Workbook

Sheet key (hidden)
B14: 1 | C14: EC804906 Corp | D14: 0.045 | E14: 1 | F14: 2013-01-04 | H14: 0.00485 | I14: 1
B15: =B14+1 -> 2 | C15: ED033382 Corp | D15: 0.0375 | E15: 1 | F15: 2013-07-04 | H15: 0.00598 | I15: 1
B16: 3 | C16: ED195422 Corp | D16: 0.0425 | E16: 1 | F16: 2014-01-04 | H16: 0.00678 | I16: 1
B17: 4 | C17: ED463939 Corp | D17: 0.0425 | E17: 1 | F17: 2014-07-04 | H17: 0.00789 | I17: 1
B18: 5 | C18: ED698221 Corp | D18: 0.0375 | E18: 1 | F18: 2015-01-04 | H18: 0.00902 | I18: 1
B19: 6 | C19: ED936651 Corp | D19: 0.0325 | E19: 1 | F19: 2015-07-04 | H19: 0.00997 | I19: 1
B20: 7 | C20: EF172933 Corp | D20: 0.035 | E20: 1 | F20: 2016-01-04 | H20: 0.01137 | I20: 1
B21: 8 | C21: EF404897 Corp | D21: 0.04 | E21: 1 | F21: 2016-07-04 | H21: 0.01256 | I21: 1
B22: 9 | C22: ZZ207104 Corp | D22: 0.05625 | E22: 1 | F22: 2016-09-20 | H22: 0.01333 | I22: 1
B23: 10 | C23: EF831838 Corp | D23: 0.0375 | E23: 1 | F23: 2017-01-04 | H23: 0.01374 | I23: 1
B24: 11 | C24: EG454536 Corp | D24: 0.0425 | E24: 1 | F24: 2017-07-04 | H24: 0.01468 | I24: 1
B25: 12 | C25: EH375794 Corp | D25: 0.0425 | E25: 1 | F25: 2018-07-04 | H25: 0.01631 | I25: 1
B26: 13 | C26: EH826226 Corp | D26: 0.035 | E26: 1 | F26: 2019-07-04 | H26: 0.018 | I26: 1
B27: 14 | C27: EI035426 Corp | D27: 0.0325 | E27: 1 | F27: 2020-01-04 | H27: 0.01863 | I27: 1
B28: 15 | C28: EI351097 Corp | D28: 0.0225 | E28: 1 | F28: 2020-09-04 | H28: 0.01979 | I28: 1
B29: 16 | C29: EI471962 Corp | D29: 0.025 | E29: 1 | F29: 2021-01-04 | H29: 0.02008 | I29: 0.5
B30: 17 | C30: GG718242 Corp | D30: 0.0625 | E30: 1 | F30: 2024-01-04 | H30: 0.02394 | I30: 0.5
B31: 18 | C31: GG729179 Corp | D31: 0.065 | E31: 1 | F31: 2027-07-04 | H31: 0.02662 | I31: 0.5
B32: 19 | C32: EC051851 Corp | D32: 0.0475 | E32: 1 | F32: 2028-07-04 | H32: 0.02745 | I32: 0.5
B33: 20 | C33: EC215301 Corp | D33: 0.0625 | E33: 1 | F33: 2030-01-04 | H33: 0.02772 | I33: 0.5
B34: 21 | C34: EC302280 Corp | D34: 0.055 | E34: 1 | F34: 2031-01-04 | H34: 0.0286 | I34: 0.5
B35: 22 | C35: EC830062 Corp | D35: 0.0475 | E35: 1 | F35: 2034-07-04 | H35: 0.02863 | I35: 0.5
B36: 23 | C36: ED783809 Corp | D36: 0.04 | E36: 1 | F36: 2037-01-04 | H36: 0.02857 | I36: 0.5
B37: 24
B38: 25
B39: 26
B40: 27
B41: 28
B42: 29
B43: 30
B44: 31
B45: 32
B46: 33
B47: 34
B48: 35
B49: 36
B50: 37
B51: 38
B52: 39
B53: 40
B54: 41
B55: 42
B56: 43
B57: 44
B58: 45
B59: 46
B60: 47
B61: 48
B62: 49
B63: 50
B64: 51
B65: 52
B66: 53
B67: 54
B68: 55
B69: 56
B70: 57
B71: 58
B72: 59
B73: 60
B74: 61
B75: 62
B76: 63
B77: 64
B78: 65
B79: =B78+1 -> 66
B80: 67
B81: 68
B82: 69
B83: 70
B84: 71
B85: 72
B86: 73
B87: 74
B88: 75
B89: 76
B90: 77
B91: 78
B92: 79
B93: 80
B94: 81
B95: 82
B96: 83
B97: 84
B98: 85
B99: 86
B100: 87
B101: 88
B102: 89
B103: 90
B104: 91
B105: 92
B106: 93
B107: 94
B108: 95
B109: 96
B110: 97
B111: 98
B112: 99
B113: 100

Sheet Description
C3: Description
C5: This file is prepared to determine (interpolate / extrapolate) market yield curve based on the bonds or IRSs market prices.
C7: Input data: yellow cells
C8: Fill valuation date and day count convention.
C9: Fill market data of bonds or IRSs: Name, Coupon, Coupon Frequency, Maturity, Clean Market Price or Yield To Maturity, Weights.
C10: Clean Market Price or Yield To Maturity - Enter one or both according to market data. At least one must be filled in!
C12: Assumption: | D12: Maximal count of entered data is 100 bonds or IRSs
D13: All bonds are assumed to have the same day count convention.
C15: Definitions:
C16: ID | D16: = | E16: Identifcation number of input bond or IRS.
C17: Name | D17: = | E17: Name of the bond or IRS.
C18: Coupon rate (p.a.) | D18: = | E18: The total amount of coupon payments in each year divided by the bond's face value.
C19: Coupon Frequency | D19: = | E19: Number of coupon payment in the year:
E20: 1 | F20: annual
E21: 2 | F21: semi-annual
E22: 4 | F22: quarterly
E23: 12 | F23: monthly
C24: Maturity | D24: = | E24: Date of the maturity
C25: Clean Market Price | D25: = | E25: The price of a bond excluding any interest that has accrued since issue or the most recent coupon payment.
C26: Dirty Market Price | D26: = | E26: The price of a bond including the accrued interest.
C27: Accrued Interest | D27: = | E27: The accumulated interest since the principal investment, or since the previous interest payment if there has been one already.
C28: Yield to Maturity | D28: = | E28: The internal rate of return (IRR, overall interest rate) earned by an investor who buys the bond today at the market price,
E29: assuming that the bond will be held until its maturity, and that all coupon and principal payments will be made on schedule.
E30: This Yield to Maturity relates to the Clean Market Price of the bond.
C31: Day Convention | D31: = | E31: Convention of the number of days between two dates with respect to weekends.
E32: Following conventions are considered 30US/360, Act/Act, Act/360, Act/365, 30E/360.
C33: Modified duration | D33: = | E33: Modified duration defines the price sensitivity and expresses the percentage change in the market price for a unit change in the underlying yield.
C34: Weights | D34: = | E34: Weights for weighted least square method.
C36: Required Add-Ins: Analysis ToolPak - VBA and Solver Add-in. Macros enabled.

Sheet Inputs
B3: SELECTED BONDS/IRS SET | T3: Convences possible | U3: Index
T4: 30US/360 | U4: 0
B5: Valuation Date | D5: 2011-11-03 | T5: Act/Act | U5: 1
B6: Input day count convention | D6: 30US/360 | E6: =VLOOKUP(D6,$T$4:$U$8,2,FALSE) -> 0 | T6: Act/360 | U6: 2
B7: Output day count convention | D7: 30US/360 | E7: =VLOOKUP(D7,$T$4:$U$8,2,FALSE) -> 0 | M7: Act/Act | T7: Act/365 | U7: 3
T8: 30E/360 | U8: 4
B11: INPUT MARKET DATA | M11: Other variables | Q11: Price consistency check
B12: 1 | C12: =B12+1 -> 2 | D12: 3 | E12: 4 | F12: 5 | G12: 6 | H12: 7 | I12: 8 | J12: 9 | K12: =J12+1 -> 10 | L12: 11 | M12: =L12+1 -> 12 | N12: =M12+1 -> 13 | O12: 14 | P12: 15 | Q12: =P12+1 -> 16 | R12: 17
B13: ID | C13: Name | D13: Coupon rate (p.a.) | E13: Coupon freq. | F13: Maturity | G13: Clean Market Price - quoted -filled if inputs are MVs | H13: Yield To Maturity - quoted (p.a.) -filled if inputs are YTMs | I13: Weights | J13: Clean Market Price - calculated from the input | K13: Yield To Maturity - calculated from the input | L13: Accrued Interest=0 | M13: Accrued Interest | N13: Dirty Price | O13: Time To Maturity in Years | P13: Modified Duration | Q13: Clean Market Price | R13: Yield to Maturity
A14: =IF(F14<>"",IF(F14>=valuation_date,0,1),"") -> 0 | B14: 1 | C14: EC804906 Corp | D14: 0.045 | E14: 1 | F14: 2013-01-04 | H14: 0.00485 | I14: 1 | J14: =IF(D14<>"",IF(G14<>"",G14,yield_price_auv(valuation_date,F14,D14,H14,,E14,index_day_count_convention,1)),"") -> 1.046692109 | K14: =IF(D14<>"",IF(H14<>"",H14,yield_price_auv(valuation_date,F14,D14,,G14,E14,index_day_count_convention,2)),"") -> 0.00485 | L14: =IF(E14=12,FALSE,IF(D14<>"",IF(OR(D14=0,COUPPCD(valuation_date,F14,E14,index_day_count_convention)-valuation_date=0),TRUE,FALSE),"")) -> FALSE | M14: =IF(D14<>"",yield_price_auv(valuation_date,F14,D14,H14,G14,E14,index_day_count_convention,3),"") -> 0.037375 | N14: =IF(D14<>"",M14+J14,"") -> 1.084067109 | O14: =IF(D14<>"",time_convention(valuation_date,F14,index_day_count_convention),"") -> 1.169444444 | P14: =IF(D14<>"",yield_price_auv(valuation_date,F14,D14,K14,,E14,index_day_count_convention,4),"") -> 1.127968116 | Q14: =IF(D14<>"",IF(ABS(yield_price_auv(valuation_date,F14,D14,K14,,E14,index_day_count_convention,1)-J14)<0.01%,"OK","WRONG"),"") -> OK | R14: =IF(D14<>"",IF(ABS(yield_price_auv(valuation_date,F14,D14,,J14,E14,index_day_count_convention,2)-K14)<0.001%,"OK","WRONG"),"") -> OK
A15: =IF(F15<>"",IF(F15>=F14,0,1),"") -> 0 | B15: =B14+1 -> 2 | C15: ED033382 Corp | D15: 0.0375 | E15: 1 | F15: 2013-07-04 | H15: 0.00598 | I15: 1 | J15: =IF(D15<>"",IF(G15<>"",G15,yield_price_auv(valuation_date,F15,D15,H15,,E15,index_day_count_convention,1)),"") -> 1.052179209 | K15: =IF(D15<>"",IF(H15<>"",H15,yield_price_auv(valuation_date,F15,D15,,G15,E15,index_day_count_convention,2)),"") -> 0.00598 | L15: FALSE | M15: =IF(D15<>"",yield_price_auv(valuation_date,F15,D15,H15,G15,E15,index_day_count_convention,3),"") -> 0.01239583333 | N15: 1.064575042 | O15: =IF(D15<>"",time_convention(valuation_date,F15,index_day_count_convention),"") -> 1.669444444 | P15: =IF(D15<>"",yield_price_auv(valuation_date,F15,D15,K15,,E15,index_day_count_convention,4),"") -> 1.634359438 | Q15: =IF(D15<>"",IF(ABS(yield_price_auv(valuation_date,F15,D15,K15,,E15,index_day_count_convention,1)-J15)<0.01%,"OK","WRONG"),"") -> OK | R15: =IF(D15<>"",IF(ABS(yield_price_auv(valuation_date,F15,D15,,J15,E15,index_day_count_convention,2)-K15)<0.001%,"OK","WRONG"),"") -> OK
A16: 0 | B16: 3 | C16: ED195422 Corp | D16: 0.0425 | E16: 1 | F16: 2014-01-04 | H16: 0.00678 | I16: 1 | J16: =IF(D16<>"",IF(G16<>"",G16,yield_price_auv(valuation_date,F16,D16,H16,,E16,index_day_count_convention,1)),"") -> 1.076608933 | K16: =IF(D16<>"",IF(H16<>"",H16,yield_price_auv(valuation_date,F16,D16,,G16,E16,index_day_count_convention,2)),"") -> 0.00678 | L16: FALSE | M16: =IF(D16<>"",yield_price_auv(valuation_date,F16,D16,H16,G16,E16,index_day_count_convention,3),"") -> 0.03529861111 | N16: 1.111907544 | O16: =IF(D16<>"",time_convention(valuation_date,F16,index_day_count_convention),"") -> 2.169444444 | P16: =IF(D16<>"",yield_price_auv(valuation_date,F16,D16,K16,,E16,index_day_count_convention,4),"") -> 2.060297736 | Q16: =IF(D16<>"",IF(ABS(yield_price_auv(valuation_date,F16,D16,K16,,E16,index_day_count_convention,1)-J16)<0.01%,"OK","WRONG"),"") -> OK | R16: =IF(D16<>"",IF(ABS(yield_price_auv(valuation_date,F16,D16,,J16,E16,index_day_count_convention,2)-K16)<0.001%,"OK","WRONG"),"") -> OK
A17: 0 | B17: 4 | C17: ED463939 Corp | D17: 0.0425 | E17: 1 | F17: 2014-07-04 | H17: 0.00789 | I17: 1 | J17: =IF(D17<>"",IF(G17<>"",G17,yield_price_auv(valuation_date,F17,D17,H17,,E17,index_day_count_convention,1)),"") -> 1.091031349 | K17: =IF(D17<>"",IF(H17<>"",H17,yield_price_auv(valuation_date,F17,D17,,G17,E17,index_day_count_convention,2)),"") -> 0.00789 | L17: FALSE | M17: =IF(D17<>"",yield_price_auv(valuation_date,F17,D17,H17,G17,E17,index_day_count_convention,3),"") -> 0.01404861111 | N17: 1.10507996 | O17: =IF(D17<>"",time_convention(valuation_date,F17,index_day_count_convention),"") -> 2.669444444 | P17: =IF(D17<>"",yield_price_auv(valuation_date,F17,D17,K17,,E17,index_day_count_convention,4),"") -> 2.554973085 | Q17: =IF(D17<>"",IF(ABS(yield_price_auv(valuation_date,F17,D17,K17,,E17,index_day_count_convention,1)-J17)<0.01%,"OK","WRONG"),"") -> OK | R17: =IF(D17<>"",IF(ABS(yield_price_auv(valuation_date,F17,D17,,J17,E17,index_day_count_convention,2)-K17)<0.001%,"OK","WRONG"),"") -> OK
A18: 0 | B18: 5 | C18: ED698221 Corp | D18: 0.0375 | E18: 1 | F18: 2015-01-04 | H18: 0.00902 | I18: 1 | J18: =IF(D18<>"",IF(G18<>"",G18,yield_price_auv(valuation_date,F18,D18,H18,,E18,index_day_count_convention,1)),"") -> 1.088543717 | K18: =IF(D18<>"",IF(H18<>"",H18,yield_price_auv(valuation_date,F18,D18,,G18,E18,index_day_count_convention,2)),"") -> 0.00902 | L18: FALSE | M18: =IF(D18<>"",yield_price_auv(valuation_date,F18,D18,H18,G18,E18,index_day_count_convention,3),"") -> 0.03114583333 | N18: 1.119689551 | O18: =IF(D18<>"",time_convention(valuation_date,F18,index_day_count_convention),"") -> 3.169444444 | P18: =IF(D18<>"",yield_price_auv(valuation_date,F18,D18,K18,,E18,index_day_count_convention,4),"") -> 2.972680179 | Q18: =IF(D18<>"",IF(ABS(yield_price_auv(valuation_date,F18,D18,K18,,E18,index_day_count_convention,1)-J18)<0.01%,"OK","WRONG"),"") -> OK | R18: =IF(D18<>"",IF(ABS(yield_price_auv(valuation_date,F18,D18,,J18,E18,index_day_count_convention,2)-K18)<0.001%,"OK","WRONG"),"") -> OK
A19: 0 | B19: 6 | C19: ED936651 Corp | D19: 0.0325 | E19: 1 | F19: 2015-07-04 | H19: 0.00997 | I19: 1 | J19: =IF(D19<>"",IF(G19<>"",G19,yield_price_auv(valuation_date,F19,D19,H19,,E19,index_day_count_convention,1)),"") -> 1.080693339 | K19: =IF(D19<>"",IF(H19<>"",H19,yield_price_auv(valuation_date,F19,D19,,G19,E19,index_day_count_convention,2)),"") -> 0.00997 | L19: FALSE | M19: =IF(D19<>"",yield_price_auv(valuation_date,F19,D19,H19,G19,E19,index_day_count_convention,3),"") -> 0.01074305556 | N19: 1.091436395 | O19: =IF(D19<>"",time_convention(valuation_date,F19,index_day_count_convention),"") -> 3.669444444 | P19: =IF(D19<>"",yield_price_auv(valuation_date,F19,D19,K19,,E19,index_day_count_convention,4),"") -> 3.498195966 | Q19: =IF(D19<>"",IF(ABS(yield_price_auv(valuation_date,F19,D19,K19,,E19,index_day_count_convention,1)-J19)<0.01%,"OK","WRONG"),"") -> OK | R19: =IF(D19<>"",IF(ABS(yield_price_auv(valuation_date,F19,D19,,J19,E19,index_day_count_convention,2)-K19)<0.001%,"OK","WRONG"),"") -> OK
A20: 0 | B20: 7 | C20: EF172933 Corp | D20: 0.035 | E20: 1 | F20: 2016-01-04 | H20: 0.01137 | I20: 1 | J20: =IF(D20<>"",IF(G20<>"",G20,yield_price_auv(valuation_date,F20,D20,H20,,E20,index_day_count_convention,1)),"") -> 1.095663784 | K20: =IF(D20<>"",IF(H20<>"",H20,yield_price_auv(valuation_date,F20,D20,,G20,E20,index_day_count_convention,2)),"") -> 0.01137 | L20: FALSE | M20: =IF(D20<>"",yield_price_auv(valuation_date,F20,D20,H20,G20,E20,index_day_count_convention,3),"") -> 0.02906944444 | N20: 1.124733228 | O20: =IF(D20<>"",time_convention(valuation_date,F20,index_day_count_convention),"") -> 4.169444444 | P20: =IF(D20<>"",yield_price_auv(valuation_date,F20,D20,K20,,E20,index_day_count_convention,4),"") -> 3.862584063 | Q20: =IF(D20<>"",IF(ABS(yield_price_auv(valuation_date,F20,D20,K20,,E20,index_day_count_convention,1)-J20)<0.01%,"OK","WRONG"),"") -> OK | R20: =IF(D20<>"",IF(ABS(yield_price_auv(valuation_date,F20,D20,,J20,E20,index_day_count_convention,2)-K20)<0.001%,"OK","WRONG"),"") -> OK
A21: 0 | B21: 8 | C21: EF404897 Corp | D21: 0.04 | E21: 1 | F21: 2016-07-04 | H21: 0.01256 | I21: 1 | J21: =IF(D21<>"",IF(G21<>"",G21,yield_price_auv(valuation_date,F21,D21,H21,,E21,index_day_count_convention,1)),"") -> 1.123634144 | K21: =IF(D21<>"",IF(H21<>"",H21,yield_price_auv(valuation_date,F21,D21,,G21,E21,index_day_count_convention,2)),"") -> 0.01256 | L21: FALSE | M21: =IF(D21<>"",yield_price_auv(valuation_date,F21,D21,H21,G21,E21,index_day_count_convention,3),"") -> 0.01322222222 | N21: 1.136856367 | O21: =IF(D21<>"",time_convention(valuation_date,F21,index_day_count_convention),"") -> 4.669444444 | P21: =IF(D21<>"",yield_price_auv(valuation_date,F21,D21,K21,,E21,index_day_count_convention,4),"") -> 4.325015076 | Q21: =IF(D21<>"",IF(ABS(yield_price_auv(valuation_date,F21,D21,K21,,E21,index_day_count_convention,1)-J21)<0.01%,"OK","WRONG"),"") -> OK | R21: =IF(D21<>"",IF(ABS(yield_price_auv(valuation_date,F21,D21,,J21,E21,index_day_count_convention,2)-K21)<0.001%,"OK","WRONG"),"") -> OK
A22: 0 | B22: 9 | C22: ZZ207104 Corp | D22: 0.05625 | E22: 1 | F22: 2016-09-20 | H22: 0.01333 | I22: 1 | J22: =IF(D22<>"",IF(G22<>"",G22,yield_price_auv(valuation_date,F22,D22,H22,,E22,index_day_count_convention,1)),"") -> 1.201462873 | K22: =IF(D22<>"",IF(H22<>"",H22,yield_price_auv(valuation_date,F22,D22,,G22,E22,index_day_count_convention,2)),"") -> 0.01333 | L22: FALSE | M22: =IF(D22<>"",yield_price_auv(valuation_date,F22,D22,H22,G22,E22,index_day_count_convention,3),"") -> 0.00671875 | N22: 1.208181623 | O22: =IF(D22<>"",time_convention(valuation_date,F22,index_day_count_convention),"") -> 4.880555556 | P22: =IF(D22<>"",yield_price_auv(valuation_date,F22,D22,K22,,E22,index_day_count_convention,4),"") -> 4.426770861 | Q22: =IF(D22<>"",IF(ABS(yield_price_auv(valuation_date,F22,D22,K22,,E22,index_day_count_convention,1)-J22)<0.01%,"OK","WRONG"),"") -> OK | R22: =IF(D22<>"",IF(ABS(yield_price_auv(valuation_date,F22,D22,,J22,E22,index_day_count_convention,2)-K22)<0.001%,"OK","WRONG"),"") -> OK
A23: 0 | B23: 10 | C23: EF831838 Corp | D23: 0.0375 | E23: 1 | F23: 2017-01-04 | H23: 0.01374 | I23: 1 | J23: =IF(D23<>"",IF(G23<>"",G23,yield_price_auv(valuation_date,F23,D23,H23,,E23,index_day_count_convention,1)),"") -> 1.117746209 | K23: =IF(D23<>"",IF(H23<>"",H23,yield_price_auv(valuation_date,F23,D23,,G23,E23,index_day_count_convention,2)),"") -> 0.01374 | L23: FALSE | M23: =IF(D23<>"",yield_price_auv(valuation_date,F23,D23,H23,G23,E23,index_day_count_convention,3),"") -> 0.03114583333 | N23: 1.148892042 | O23: =IF(D23<>"",time_convention(valuation_date,F23,index_day_count_convention),"") -> 5.169444444 | P23: =IF(D23<>"",yield_price_auv(valuation_date,F23,D23,K23,,E23,index_day_count_convention,4),"") -> 4.689983804 | Q23: =IF(D23<>"",IF(ABS(yield_price_auv(valuation_date,F23,D23,K23,,E23,index_day_count_convention,1)-J23)<0.01%,"OK","WRONG"),"") -> OK | R23: =IF(D23<>"",IF(ABS(yield_price_auv(valuation_date,F23,D23,,J23,E23,index_day_count_convention,2)-K23)<0.001%,"OK","WRONG"),"") -> OK
A24: 0 | B24: 11 | C24: EG454536 Corp | D24: 0.0425 | E24: 1 | F24: 2017-07-04 | H24: 0.01468 | I24: 1 | J24: =IF(D24<>"",IF(G24<>"",G24,yield_price_auv(valuation_date,F24,D24,H24,,E24,index_day_count_convention,1)),"") -> 1.150211841 | K24: =IF(D24<>"",IF(H24<>"",H24,yield_price_auv(valuation_date,F24,D24,,G24,E24,index_day_count_convention,2)),"") -> 0.01468 | L24: FALSE | M24: =IF(D24<>"",yield_price_auv(valuation_date,F24,D24,H24,G24,E24,index_day_count_convention,3),"") -> 0.01404861111 | N24: 1.164260452 | O24: =IF(D24<>"",time_convention(valuation_date,F24,index_day_count_convention),"") -> 5.669444444 | P24: =IF(D24<>"",yield_price_auv(valuation_date,F24,D24,K24,,E24,index_day_count_convention,4),"") -> 5.137747471 | Q24: =IF(D24<>"",IF(ABS(yield_price_auv(valuation_date,F24,D24,K24,,E24,index_day_count_convention,1)-J24)<0.01%,"OK","WRONG"),"") -> OK | R24: =IF(D24<>"",IF(ABS(yield_price_auv(valuation_date,F24,D24,,J24,E24,index_day_count_convention,2)-K24)<0.001%,"OK","WRONG"),"") -> OK
A25: 0 | B25: 12 | C25: EH375794 Corp | D25: 0.0425 | E25: 1 | F25: 2018-07-04 | H25: 0.01631 | I25: 1 | J25: =IF(D25<>"",IF(G25<>"",G25,yield_price_auv(valuation_date,F25,D25,H25,,E25,index_day_count_convention,1)),"") -> 1.164163655 | K25: =IF(D25<>"",IF(H25<>"",H25,yield_price_auv(valuation_date,F25,D25,,G25,E25,index_day_count_convention,2)),"") -> 0.01631 | L25: FALSE | M25: =IF(D25<>"",yield_price_auv(valuation_date,F25,D25,H25,G25,E25,index_day_count_convention,3),"") -> 0.01404861111 | N25: 1.178212266 | O25: =IF(D25<>"",time_convention(valuation_date,F25,index_day_count_convention),"") -> 6.669444444 | P25: =IF(D25<>"",yield_price_auv(valuation_date,F25,D25,K25,,E25,index_day_count_convention,4),"") -> 5.940022974 | Q25: =IF(D25<>"",IF(ABS(yield_price_auv(valuation_date,F25,D25,K25,,E25,index_day_count_convention,1)-J25)<0.01%,"OK","WRONG"),"") -> OK | R25: =IF(D25<>"",IF(ABS(yield_price_auv(valuation_date,F25,D25,,J25,E25,index_day_count_convention,2)-K25)<0.001%,"OK","WRONG"),"") -> OK
A26: 0 | B26: 13 | C26: EH826226 Corp | D26: 0.035 | E26: 1 | F26: 2019-07-04 | H26: 0.018 | I26: 1 | J26: =IF(D26<>"",IF(G26<>"",G26,yield_price_auv(valuation_date,F26,D26,H26,,E26,index_day_count_convention,1)),"") -> 1.120698358 | K26: =IF(D26<>"",IF(H26<>"",H26,yield_price_auv(valuation_date,F26,D26,,G26,E26,index_day_count_convention,2)),"") -> 0.018 | L26: FALSE | M26: =IF(D26<>"",yield_price_auv(valuation_date,F26,D26,H26,G26,E26,index_day_count_convention,3),"") -> 0.01156944444 | N26: 1.132267802 | O26: =IF(D26<>"",time_convention(valuation_date,F26,index_day_count_convention),"") -> 7.669444444 | P26: =IF(D26<>"",yield_price_auv(valuation_date,F26,D26,K26,,E26,index_day_count_convention,4),"") -> 6.843957713 | Q26: =IF(D26<>"",IF(ABS(yield_price_auv(valuation_date,F26,D26,K26,,E26,index_day_count_convention,1)-J26)<0.01%,"OK","WRONG"),"") -> OK | R26: =IF(D26<>"",IF(ABS(yield_price_auv(valuation_date,F26,D26,,J26,E26,index_day_count_convention,2)-K26)<0.001%,"OK","WRONG"),"") -> OK
A27: 0 | B27: 14 | C27: EI035426 Corp | D27: 0.0325 | E27: 1 | F27: 2020-01-04 | H27: 0.01863 | I27: 1 | J27: =IF(D27<>"",IF(G27<>"",G27,yield_price_auv(valuation_date,F27,D27,H27,,E27,index_day_count_convention,1)),"") -> 1.104074651 | K27: =IF(D27<>"",IF(H27<>"",H27,yield_price_auv(valuation_date,F27,D27,,G27,E27,index_day_count_convention,2)),"") -> 0.01863 | L27: FALSE | M27: =IF(D27<>"",yield_price_auv(valuation_date,F27,D27,H27,G27,E27,index_day_count_convention,3),"") -> 0.02699305556 | N27: 1.131067706 | O27: =IF(D27<>"",time_convention(valuation_date,F27,index_day_count_convention),"") -> 8.169444444 | P27: =IF(D27<>"",yield_price_auv(valuation_date,F27,D27,K27,,E27,index_day_count_convention,4),"") -> 7.185688139 | Q27: =IF(D27<>"",IF(ABS(yield_price_auv(valuation_date,F27,D27,K27,,E27,index_day_count_convention,1)-J27)<0.01%,"OK","WRONG"),"") -> OK | R27: =IF(D27<>"",IF(ABS(yield_price_auv(valuation_date,F27,D27,,J27,E27,index_day_count_convention,2)-K27)<0.001%,"OK","WRONG"),"") -> OK
A28: 0 | B28: 15 | C28: EI351097 Corp | D28: 0.0225 | E28: 1 | F28: 2020-09-04 | H28: 0.01979 | I28: 1 | J28: =IF(D28<>"",IF(G28<>"",G28,yield_price_auv(valuation_date,F28,D28,H28,,E28,index_day_count_convention,1)),"") -> 1.021741309 | K28: =IF(D28<>"",IF(H28<>"",H28,yield_price_auv(valuation_date,F28,D28,,G28,E28,index_day_count_convention,2)),"") -> 0.01979 | L28: FALSE | M28: =IF(D28<>"",yield_price_auv(valuation_date,F28,D28,H28,G28,E28,index_day_count_convention,3),"") -> 0.0036875 | N28: 1.025428809 | O28: =IF(D28<>"",time_convention(valuation_date,F28,index_day_count_convention),"") -> 8.836111111 | P28: =IF(D28<>"",yield_price_auv(valuation_date,F28,D28,K28,,E28,index_day_count_convention,4),"") -> 8.093276583 | Q28: =IF(D28<>"",IF(ABS(yield_price_auv(valuation_date,F28,D28,K28,,E28,index_day_count_convention,1)-J28)<0.01%,"OK","WRONG"),"") -> OK | R28: =IF(D28<>"",IF(ABS(yield_price_auv(valuation_date,F28,D28,,J28,E28,index_day_count_convention,2)-K28)<0.001%,"OK","WRONG"),"") -> OK
A29: 0 | B29: 16 | C29: EI471962 Corp | D29: 0.025 | E29: 1 | F29: 2021-01-04 | H29: 0.02008 | I29: 0.5 | J29: =IF(D29<>"",IF(G29<>"",G29,yield_price_auv(valuation_date,F29,D29,H29,,E29,index_day_count_convention,1)),"") -> 1.040790553 | K29: =IF(D29<>"",IF(H29<>"",H29,yield_price_auv(valuation_date,F29,D29,,G29,E29,index_day_count_convention,2)),"") -> 0.02008 | L29: FALSE | M29: =IF(D29<>"",yield_price_auv(valuation_date,F29,D29,H29,G29,E29,index_day_count_convention,3),"") -> 0.02076388889 | N29: 1.061554442 | O29: =IF(D29<>"",time_convention(valuation_date,F29,index_day_count_convention),"") -> 9.169444444 | P29: =IF(D29<>"",yield_price_auv(valuation_date,F29,D29,K29,,E29,index_day_count_convention,4),"") -> 8.167144067 | Q29: =IF(D29<>"",IF(ABS(yield_price_auv(valuation_date,F29,D29,K29,,E29,index_day_count_convention,1)-J29)<0.01%,"OK","WRONG"),"") -> OK | R29: =IF(D29<>"",IF(ABS(yield_price_auv(valuation_date,F29,D29,,J29,E29,index_day_count_convention,2)-K29)<0.001%,"OK","WRONG"),"") -> OK
A30: 0 | B30: 17 | C30: GG718242 Corp | D30: 0.0625 | E30: 1 | F30: 2024-01-04 | H30: 0.02394 | I30: 0.5 | J30: =IF(D30<>"",IF(G30<>"",G30,yield_price_auv(valuation_date,F30,D30,H30,,E30,index_day_count_convention,1)),"") -> 1.402818567 | K30: =IF(D30<>"",IF(H30<>"",H30,yield_price_auv(valuation_date,F30,D30,,G30,E30,index_day_count_convention,2)),"") -> 0.02394 | L30: FALSE | M30: =IF(D30<>"",yield_price_auv(valuation_date,F30,D30,H30,G30,E30,index_day_count_convention,3),"") -> 0.05190972222 | N30: 1.454728289 | O30: =IF(D30<>"",time_convention(valuation_date,F30,index_day_count_convention),"") -> 12.16944444 | P30: =IF(D30<>"",yield_price_auv(valuation_date,F30,D30,K30,,E30,index_day_count_convention,4),"") -> 9.102433782 | Q30: =IF(D30<>"",IF(ABS(yield_price_auv(valuation_date,F30,D30,K30,,E30,index_day_count_convention,1)-J30)<0.01%,"OK","WRONG"),"") -> OK | R30: =IF(D30<>"",IF(ABS(yield_price_auv(valuation_date,F30,D30,,J30,E30,index_day_count_convention,2)-K30)<0.001%,"OK","WRONG"),"") -> OK
A31: 0 | B31: 18 | C31: GG729179 Corp | D31: 0.065 | E31: 1 | F31: 2027-07-04 | H31: 0.02662 | I31: 0.5 | J31: =IF(D31<>"",IF(G31<>"",G31,yield_price_auv(valuation_date,F31,D31,H31,,E31,index_day_count_convention,1)),"") -> 1.486265693 | K31: =IF(D31<>"",IF(H31<>"",H31,yield_price_auv(valuation_date,F31,D31,,G31,E31,index_day_count_convention,2)),"") -> 0.02662 | L31: FALSE | M31: =IF(D31<>"",yield_price_auv(valuation_date,F31,D31,H31,G31,E31,index_day_count_convention,3),"") -> 0.02148611111 | N31: 1.507751804 | O31: =IF(D31<>"",time_convention(valuation_date,F31,index_day_count_convention),"") -> 15.66944444 | P31: =IF(D31<>"",yield_price_auv(valuation_date,F31,D31,K31,,E31,index_day_count_convention,4),"") -> 11.15477929 | Q31: =IF(D31<>"",IF(ABS(yield_price_auv(valuation_date,F31,D31,K31,,E31,index_day_count_convention,1)-J31)<0.01%,"OK","WRONG"),"") -> OK | R31: =IF(D31<>"",IF(ABS(yield_price_auv(valuation_date,F31,D31,,J31,E31,index_day_count_convention,2)-K31)<0.001%,"OK","WRONG"),"") -> OK
A32: 0 | B32: 19 | C32: EC051851 Corp | D32: 0.0475 | E32: 1 | F32: 2028-07-04 | H32: 0.02745 | I32: 0.5 | J32: =IF(D32<>"",IF(G32<>"",G32,yield_price_auv(valuation_date,F32,D32,H32,,E32,index_day_count_convention,1)),"") -> 1.265174737 | K32: =IF(D32<>"",IF(H32<>"",H32,yield_price_auv(valuation_date,F32,D32,,G32,E32,index_day_count_convention,2)),"") -> 0.02745 | L32: FALSE | M32: =IF(D32<>"",yield_price_auv(valuation_date,F32,D32,H32,G32,E32,index_day_count_convention,3),"") -> 0.01570138889 | N32: 1.280876126 | O32: =IF(D32<>"",time_convention(valuation_date,F32,index_day_count_convention),"") -> 16.66944444 | P32: =IF(D32<>"",yield_price_auv(valuation_date,F32,D32,K32,,E32,index_day_count_convention,4),"") -> 12.3212113 | Q32: =IF(D32<>"",IF(ABS(yield_price_auv(valuation_date,F32,D32,K32,,E32,index_day_count_convention,1)-J32)<0.01%,"OK","WRONG"),"") -> OK | R32: =IF(D32<>"",IF(ABS(yield_price_auv(valuation_date,F32,D32,,J32,E32,index_day_count_convention,2)-K32)<0.001%,"OK","WRONG"),"") -> OK
A33: 0 | B33: 20 | C33: EC215301 Corp | D33: 0.0625 | E33: 1 | F33: 2030-01-04 | H33: 0.02772 | I33: 0.5 | J33: =IF(D33<>"",IF(G33<>"",G33,yield_price_auv(valuation_date,F33,D33,H33,,E33,index_day_count_convention,1)),"") -> 1.491093532 | K33: =IF(D33<>"",IF(H33<>"",H33,yield_price_auv(valuation_date,F33,D33,,G33,E33,index_day_count_convention,2)),"") -> 0.02772 | L33: FALSE | M33: =IF(D33<>"",yield_price_auv(valuation_date,F33,D33,H33,G33,E33,index_day_count_convention,3),"") -> 0.05190972222 | N33: 1.543003254 | O33: =IF(D33<>"",time_convention(valuation_date,F33,index_day_count_convention),"") -> 18.16944444 | P33: =IF(D33<>"",yield_price_auv(valuation_date,F33,D33,K33,,E33,index_day_count_convention,4),"") -> 12.22469834 | Q33: =IF(D33<>"",IF(ABS(yield_price_auv(valuation_date,F33,D33,K33,,E33,index_day_count_convention,1)-J33)<0.01%,"OK","WRONG"),"") -> OK | R33: =IF(D33<>"",IF(ABS(yield_price_auv(valuation_date,F33,D33,,J33,E33,index_day_count_convention,2)-K33)<0.001%,"OK","WRONG"),"") -> OK
A34: 0 | B34: 21 | C34: EC302280 Corp | D34: 0.055 | E34: 1 | F34: 2031-01-04 | H34: 0.0286 | I34: 0.5 | J34: =IF(D34<>"",IF(G34<>"",G34,yield_price_auv(valuation_date,F34,D34,H34,,E34,index_day_count_convention,1)),"") -> 1.385219156 | K34: =IF(D34<>"",IF(H34<>"",H34,yield_price_auv(valuation_date,F34,D34,,G34,E34,index_day_count_convention,2)),"") -> 0.0286 | L34: FALSE | M34: =IF(D34<>"",yield_price_auv(valuation_date,F34,D34,H34,G34,E34,index_day_count_convention,3),"") -> 0.04568055556 | N34: 1.430899712 | O34: =IF(D34<>"",time_convention(valuation_date,F34,index_day_count_convention),"") -> 19.16944444 | P34: =IF(D34<>"",yield_price_auv(valuation_date,F34,D34,K34,,E34,index_day_count_convention,4),"") -> 12.98563918 | Q34: =IF(D34<>"",IF(ABS(yield_price_auv(valuation_date,F34,D34,K34,,E34,index_day_count_convention,1)-J34)<0.01%,"OK","WRONG"),"") -> OK | R34: =IF(D34<>"",IF(ABS(yield_price_auv(valuation_date,F34,D34,,J34,E34,index_day_count_convention,2)-K34)<0.001%,"OK","WRONG"),"") -> OK
A35: 0 | B35: 22 | C35: EC830062 Corp | D35: 0.0475 | E35: 1 | F35: 2034-07-04 | H35: 0.02863 | I35: 0.5 | J35: =IF(D35<>"",IF(G35<>"",G35,yield_price_auv(valuation_date,F35,D35,H35,,E35,index_day_count_convention,1)),"") -> 1.311356497 | K35: =IF(D35<>"",IF(H35<>"",H35,yield_price_auv(valuation_date,F35,D35,,G35,E35,index_day_count_convention,2)),"") -> 0.02863 | L35: FALSE | M35: =IF(D35<>"",yield_price_auv(valuation_date,F35,D35,H35,G35,E35,index_day_count_convention,3),"") -> 0.01570138889 | N35: 1.327057886 | O35: =IF(D35<>"",time_convention(valuation_date,F35,index_day_count_convention),"") -> 22.66944444 | P35: =IF(D35<>"",yield_price_auv(valuation_date,F35,D35,K35,,E35,index_day_count_convention,4),"") -> 15.29798158 | Q35: =IF(D35<>"",IF(ABS(yield_price_auv(valuation_date,F35,D35,K35,,E35,index_day_count_convention,1)-J35)<0.01%,"OK","WRONG"),"") -> OK | R35: =IF(D35<>"",IF(ABS(yield_price_auv(valuation_date,F35,D35,,J35,E35,index_day_count_convention,2)-K35)<0.001%,"OK","WRONG"),"") -> OK
A36: 0 | B36: 23 | C36: ED783809 Corp | D36: 0.04 | E36: 1 | F36: 2037-01-04 | H36: 0.02857 | I36: 0.5 | J36: =IF(D36<>"",IF(G36<>"",G36,yield_price_auv(valuation_date,F36,D36,H36,,E36,index_day_count_convention,1)),"") -> 1.203038014 | K36: =IF(D36<>"",IF(H36<>"",H36,yield_price_auv(valuation_date,F36,D36,,G36,E36,index_day_count_convention,2)),"") -> 0.02857 | L36: FALSE | M36: =IF(D36<>"",yield_price_auv(valuation_date,F36,D36,H36,G36,E36,index_day_count_convention,3),"") -> 0.03322222222 | N36: 1.236260236 | O36: =IF(D36<>"",time_convention(valuation_date,F36,index_day_count_convention),"") -> 25.16944444 | P36: =IF(D36<>"",yield_price_auv(valuation_date,F36,D36,K36,,E36,index_day_count_convention,4),"") -> 16.70157121 | Q36: =IF(D36<>"",IF(ABS(yield_price_auv(valuation_date,F36,D36,K36,,E36,index_day_count_convention,1)-J36)<0.01%,"OK","WRONG"),"") -> OK | R36: =IF(D36<>"",IF(ABS(yield_price_auv(valuation_date,F36,D36,,J36,E36,index_day_count_convention,2)-K36)<0.001%,"OK","WRONG"),"") -> OK
B37: 24 | J37: =IF(D37<>"",IF(G37<>"",G37,yield_price_auv(valuation_date,F37,D37,H37,,E37,index_day_count_convention,1)),"") ->  | K37: =IF(D37<>"",IF(H37<>"",H37,yield_price_auv(valuation_date,F37,D37,,G37,E37,index_day_count_convention,2)),"") ->  | M37: =IF(D37<>"",yield_price_auv(valuation_date,F37,D37,H37,G37,E37,index_day_count_convention,3),"") ->  | O37: =IF(D37<>"",time_convention(valuation_date,F37,index_day_count_convention),"") ->  | P37: =IF(D37<>"",yield_price_auv(valuation_date,F37,D37,K37,,E37,index_day_count_convention,4),"") ->  | Q37: =IF(D37<>"",IF(ABS(yield_price_auv(valuation_date,F37,D37,K37,,E37,index_day_count_convention,1)-J37)<0.01%,"OK","WRONG"),"") ->  | R37: =IF(D37<>"",IF(ABS(yield_price_auv(valuation_date,F37,D37,,J37,E37,index_day_count_convention,2)-K37)<0.001%,"OK","WRONG"),"") -> 
B38: 25 | J38: =IF(D38<>"",IF(G38<>"",G38,yield_price_auv(valuation_date,F38,D38,H38,,E38,index_day_count_convention,1)),"") ->  | K38: =IF(D38<>"",IF(H38<>"",H38,yield_price_auv(valuation_date,F38,D38,,G38,E38,index_day_count_convention,2)),"") ->  | M38: =IF(D38<>"",yield_price_auv(valuation_date,F38,D38,H38,G38,E38,index_day_count_convention,3),"") ->  | O38: =IF(D38<>"",time_convention(valuation_date,F38,index_day_count_convention),"") ->  | P38: =IF(D38<>"",yield_price_auv(valuation_date,F38,D38,K38,,E38,index_day_count_convention,4),"") ->  | Q38: =IF(D38<>"",IF(ABS(yield_price_auv(valuation_date,F38,D38,K38,,E38,index_day_count_convention,1)-J38)<0.01%,"OK","WRONG"),"") ->  | R38: =IF(D38<>"",IF(ABS(yield_price_auv(valuation_date,F38,D38,,J38,E38,index_day_count_convention,2)-K38)<0.001%,"OK","WRONG"),"") -> 
B39: 26 | J39: =IF(D39<>"",IF(G39<>"",G39,yield_price_auv(valuation_date,F39,D39,H39,,E39,index_day_count_convention,1)),"") ->  | K39: =IF(D39<>"",IF(H39<>"",H39,yield_price_auv(valuation_date,F39,D39,,G39,E39,index_day_count_convention,2)),"") ->  | M39: =IF(D39<>"",yield_price_auv(valuation_date,F39,D39,H39,G39,E39,index_day_count_convention,3),"") ->  | O39: =IF(D39<>"",time_convention(valuation_date,F39,index_day_count_convention),"") ->  | P39: =IF(D39<>"",yield_price_auv(valuation_date,F39,D39,K39,,E39,index_day_count_convention,4),"") ->  | Q39: =IF(D39<>"",IF(ABS(yield_price_auv(valuation_date,F39,D39,K39,,E39,index_day_count_convention,1)-J39)<0.01%,"OK","WRONG"),"") ->  | R39: =IF(D39<>"",IF(ABS(yield_price_auv(valuation_date,F39,D39,,J39,E39,index_day_count_convention,2)-K39)<0.001%,"OK","WRONG"),"") -> 
B40: 27 | J40: =IF(D40<>"",IF(G40<>"",G40,yield_price_auv(valuation_date,F40,D40,H40,,E40,index_day_count_convention,1)),"") ->  | K40: =IF(D40<>"",IF(H40<>"",H40,yield_price_auv(valuation_date,F40,D40,,G40,E40,index_day_count_convention,2)),"") ->  | M40: =IF(D40<>"",yield_price_auv(valuation_date,F40,D40,H40,G40,E40,index_day_count_convention,3),"") ->  | O40: =IF(D40<>"",time_convention(valuation_date,F40,index_day_count_convention),"") ->  | P40: =IF(D40<>"",yield_price_auv(valuation_date,F40,D40,K40,,E40,index_day_count_convention,4),"") ->  | Q40: =IF(D40<>"",IF(ABS(yield_price_auv(valuation_date,F40,D40,K40,,E40,index_day_count_convention,1)-J40)<0.01%,"OK","WRONG"),"") ->  | R40: =IF(D40<>"",IF(ABS(yield_price_auv(valuation_date,F40,D40,,J40,E40,index_day_count_convention,2)-K40)<0.001%,"OK","WRONG"),"") -> 
B41: 28 | J41: =IF(D41<>"",IF(G41<>"",G41,yield_price_auv(valuation_date,F41,D41,H41,,E41,index_day_count_convention,1)),"") ->  | K41: =IF(D41<>"",IF(H41<>"",H41,yield_price_auv(valuation_date,F41,D41,,G41,E41,index_day_count_convention,2)),"") ->  | M41: =IF(D41<>"",yield_price_auv(valuation_date,F41,D41,H41,G41,E41,index_day_count_convention,3),"") ->  | O41: =IF(D41<>"",time_convention(valuation_date,F41,index_day_count_convention),"") ->  | P41: =IF(D41<>"",yield_price_auv(valuation_date,F41,D41,K41,,E41,index_day_count_convention,4),"") ->  | Q41: =IF(D41<>"",IF(ABS(yield_price_auv(valuation_date,F41,D41,K41,,E41,index_day_count_convention,1)-J41)<0.01%,"OK","WRONG"),"") ->  | R41: =IF(D41<>"",IF(ABS(yield_price_auv(valuation_date,F41,D41,,J41,E41,index_day_count_convention,2)-K41)<0.001%,"OK","WRONG"),"") -> 
B42: 29 | J42: =IF(D42<>"",IF(G42<>"",G42,yield_price_auv(valuation_date,F42,D42,H42,,E42,index_day_count_convention,1)),"") ->  | K42: =IF(D42<>"",IF(H42<>"",H42,yield_price_auv(valuation_date,F42,D42,,G42,E42,index_day_count_convention,2)),"") ->  | M42: =IF(D42<>"",yield_price_auv(valuation_date,F42,D42,H42,G42,E42,index_day_count_convention,3),"") ->  | O42: =IF(D42<>"",time_convention(valuation_date,F42,index_day_count_convention),"") ->  | P42: =IF(D42<>"",yield_price_auv(valuation_date,F42,D42,K42,,E42,index_day_count_convention,4),"") ->  | Q42: =IF(D42<>"",IF(ABS(yield_price_auv(valuation_date,F42,D42,K42,,E42,index_day_count_convention,1)-J42)<0.01%,"OK","WRONG"),"") ->  | R42: =IF(D42<>"",IF(ABS(yield_price_auv(valuation_date,F42,D42,,J42,E42,index_day_count_convention,2)-K42)<0.001%,"OK","WRONG"),"") -> 
B43: 30 | J43: =IF(D43<>"",IF(G43<>"",G43,yield_price_auv(valuation_date,F43,D43,H43,,E43,index_day_count_convention,1)),"") ->  | K43: =IF(D43<>"",IF(H43<>"",H43,yield_price_auv(valuation_date,F43,D43,,G43,E43,index_day_count_convention,2)),"") ->  | M43: =IF(D43<>"",yield_price_auv(valuation_date,F43,D43,H43,G43,E43,index_day_count_convention,3),"") ->  | O43: =IF(D43<>"",time_convention(valuation_date,F43,index_day_count_convention),"") ->  | P43: =IF(D43<>"",yield_price_auv(valuation_date,F43,D43,K43,,E43,index_day_count_convention,4),"") ->  | Q43: =IF(D43<>"",IF(ABS(yield_price_auv(valuation_date,F43,D43,K43,,E43,index_day_count_convention,1)-J43)<0.01%,"OK","WRONG"),"") ->  | R43: =IF(D43<>"",IF(ABS(yield_price_auv(valuation_date,F43,D43,,J43,E43,index_day_count_convention,2)-K43)<0.001%,"OK","WRONG"),"") -> 
B44: 31 | J44: =IF(D44<>"",IF(G44<>"",G44,yield_price_auv(valuation_date,F44,D44,H44,,E44,index_day_count_convention,1)),"") ->  | K44: =IF(D44<>"",IF(H44<>"",H44,yield_price_auv(valuation_date,F44,D44,,G44,E44,index_day_count_convention,2)),"") ->  | M44: =IF(D44<>"",yield_price_auv(valuation_date,F44,D44,H44,G44,E44,index_day_count_convention,3),"") ->  | O44: =IF(D44<>"",time_convention(valuation_date,F44,index_day_count_convention),"") ->  | P44: =IF(D44<>"",yield_price_auv(valuation_date,F44,D44,K44,,E44,index_day_count_convention,4),"") ->  | Q44: =IF(D44<>"",IF(ABS(yield_price_auv(valuation_date,F44,D44,K44,,E44,index_day_count_convention,1)-J44)<0.01%,"OK","WRONG"),"") ->  | R44: =IF(D44<>"",IF(ABS(yield_price_auv(valuation_date,F44,D44,,J44,E44,index_day_count_convention,2)-K44)<0.001%,"OK","WRONG"),"") -> 
B45: 32 | J45: =IF(D45<>"",IF(G45<>"",G45,yield_price_auv(valuation_date,F45,D45,H45,,E45,index_day_count_convention,1)),"") ->  | K45: =IF(D45<>"",IF(H45<>"",H45,yield_price_auv(valuation_date,F45,D45,,G45,E45,index_day_count_convention,2)),"") ->  | M45: =IF(D45<>"",yield_price_auv(valuation_date,F45,D45,H45,G45,E45,index_day_count_convention,3),"") ->  | O45: =IF(D45<>"",time_convention(valuation_date,F45,index_day_count_convention),"") ->  | P45: =IF(D45<>"",yield_price_auv(valuation_date,F45,D45,K45,,E45,index_day_count_convention,4),"") ->  | Q45: =IF(D45<>"",IF(ABS(yield_price_auv(valuation_date,F45,D45,K45,,E45,index_day_count_convention,1)-J45)<0.01%,"OK","WRONG"),"") ->  | R45: =IF(D45<>"",IF(ABS(yield_price_auv(valuation_date,F45,D45,,J45,E45,index_day_count_convention,2)-K45)<0.001%,"OK","WRONG"),"") -> 
B46: 33 | J46: =IF(D46<>"",IF(G46<>"",G46,yield_price_auv(valuation_date,F46,D46,H46,,E46,index_day_count_convention,1)),"") ->  | K46: =IF(D46<>"",IF(H46<>"",H46,yield_price_auv(valuation_date,F46,D46,,G46,E46,index_day_count_convention,2)),"") ->  | L46: =IF(E46=12,FALSE,IF(D46<>"",IF(OR(D46=0,COUPPCD(valuation_date,F46,E46,index_day_count_convention)-valuation_date=0),TRUE,FALSE),"")) ->  | M46: =IF(D46<>"",yield_price_auv(valuation_date,F46,D46,H46,G46,E46,index_day_count_convention,3),"") ->  | N46: =IF(D46<>"",M46+J46,"") ->  | O46: =IF(D46<>"",time_convention(valuation_date,F46,index_day_count_convention),"") ->  | P46: =IF(D46<>"",yield_price_auv(valuation_date,F46,D46,K46,,E46,index_day_count_convention,4),"") ->  | Q46: =IF(D46<>"",IF(ABS(yield_price_auv(valuation_date,F46,D46,K46,,E46,index_day_count_convention,1)-J46)<0.01%,"OK","WRONG"),"") ->  | R46: =IF(D46<>"",IF(ABS(yield_price_auv(valuation_date,F46,D46,,J46,E46,index_day_count_convention,2)-K46)<0.001%,"OK","WRONG"),"") -> 
A47: =IF(F47<>"",IF(F47>=F46,0,1),"") ->  | B47: 34 | J47: =IF(D47<>"",IF(G47<>"",G47,yield_price_auv(valuation_date,F47,D47,H47,,E47,index_day_count_convention,1)),"") ->  | K47: =IF(D47<>"",IF(H47<>"",H47,yield_price_auv(valuation_date,F47,D47,,G47,E47,index_day_count_convention,2)),"") ->  | M47: =IF(D47<>"",yield_price_auv(valuation_date,F47,D47,H47,G47,E47,index_day_count_convention,3),"") ->  | O47: =IF(D47<>"",time_convention(valuation_date,F47,index_day_count_convention),"") ->  | P47: =IF(D47<>"",yield_price_auv(valuation_date,F47,D47,K47,,E47,index_day_count_convention,4),"") ->  | Q47: =IF(D47<>"",IF(ABS(yield_price_auv(valuation_date,F47,D47,K47,,E47,index_day_count_convention,1)-J47)<0.01%,"OK","WRONG"),"") ->  | R47: =IF(D47<>"",IF(ABS(yield_price_auv(valuation_date,F47,D47,,J47,E47,index_day_count_convention,2)-K47)<0.001%,"OK","WRONG"),"") -> 
B48: 35 | J48: =IF(D48<>"",IF(G48<>"",G48,yield_price_auv(valuation_date,F48,D48,H48,,E48,index_day_count_convention,1)),"") ->  | K48: =IF(D48<>"",IF(H48<>"",H48,yield_price_auv(valuation_date,F48,D48,,G48,E48,index_day_count_convention,2)),"") ->  | M48: =IF(D48<>"",yield_price_auv(valuation_date,F48,D48,H48,G48,E48,index_day_count_convention,3),"") ->  | O48: =IF(D48<>"",time_convention(valuation_date,F48,index_day_count_convention),"") ->  | P48: =IF(D48<>"",yield_price_auv(valuation_date,F48,D48,K48,,E48,index_day_count_convention,4),"") ->  | Q48: =IF(D48<>"",IF(ABS(yield_price_auv(valuation_date,F48,D48,K48,,E48,index_day_count_convention,1)-J48)<0.01%,"OK","WRONG"),"") ->  | R48: =IF(D48<>"",IF(ABS(yield_price_auv(valuation_date,F48,D48,,J48,E48,index_day_count_convention,2)-K48)<0.001%,"OK","WRONG"),"") -> 
B49: 36 | J49: =IF(D49<>"",IF(G49<>"",G49,yield_price_auv(valuation_date,F49,D49,H49,,E49,index_day_count_convention,1)),"") ->  | K49: =IF(D49<>"",IF(H49<>"",H49,yield_price_auv(valuation_date,F49,D49,,G49,E49,index_day_count_convention,2)),"") ->  | M49: =IF(D49<>"",yield_price_auv(valuation_date,F49,D49,H49,G49,E49,index_day_count_convention,3),"") ->  | O49: =IF(D49<>"",time_convention(valuation_date,F49,index_day_count_convention),"") ->  | P49: =IF(D49<>"",yield_price_auv(valuation_date,F49,D49,K49,,E49,index_day_count_convention,4),"") ->  | Q49: =IF(D49<>"",IF(ABS(yield_price_auv(valuation_date,F49,D49,K49,,E49,index_day_count_convention,1)-J49)<0.01%,"OK","WRONG"),"") ->  | R49: =IF(D49<>"",IF(ABS(yield_price_auv(valuation_date,F49,D49,,J49,E49,index_day_count_convention,2)-K49)<0.001%,"OK","WRONG"),"") -> 
B50: 37 | J50: =IF(D50<>"",IF(G50<>"",G50,yield_price_auv(valuation_date,F50,D50,H50,,E50,index_day_count_convention,1)),"") ->  | K50: =IF(D50<>"",IF(H50<>"",H50,yield_price_auv(valuation_date,F50,D50,,G50,E50,index_day_count_convention,2)),"") ->  | M50: =IF(D50<>"",yield_price_auv(valuation_date,F50,D50,H50,G50,E50,index_day_count_convention,3),"") ->  | O50: =IF(D50<>"",time_convention(valuation_date,F50,index_day_count_convention),"") ->  | P50: =IF(D50<>"",yield_price_auv(valuation_date,F50,D50,K50,,E50,index_day_count_convention,4),"") ->  | Q50: =IF(D50<>"",IF(ABS(yield_price_auv(valuation_date,F50,D50,K50,,E50,index_day_count_convention,1)-J50)<0.01%,"OK","WRONG"),"") ->  | R50: =IF(D50<>"",IF(ABS(yield_price_auv(valuation_date,F50,D50,,J50,E50,index_day_count_convention,2)-K50)<0.001%,"OK","WRONG"),"") -> 
B51: 38 | J51: =IF(D51<>"",IF(G51<>"",G51,yield_price_auv(valuation_date,F51,D51,H51,,E51,index_day_count_convention,1)),"") ->  | K51: =IF(D51<>"",IF(H51<>"",H51,yield_price_auv(valuation_date,F51,D51,,G51,E51,index_day_count_convention,2)),"") ->  | M51: =IF(D51<>"",yield_price_auv(valuation_date,F51,D51,H51,G51,E51,index_day_count_convention,3),"") ->  | O51: =IF(D51<>"",time_convention(valuation_date,F51,index_day_count_convention),"") ->  | P51: =IF(D51<>"",yield_price_auv(valuation_date,F51,D51,K51,,E51,index_day_count_convention,4),"") ->  | Q51: =IF(D51<>"",IF(ABS(yield_price_auv(valuation_date,F51,D51,K51,,E51,index_day_count_convention,1)-J51)<0.01%,"OK","WRONG"),"") ->  | R51: =IF(D51<>"",IF(ABS(yield_price_auv(valuation_date,F51,D51,,J51,E51,index_day_count_convention,2)-K51)<0.001%,"OK","WRONG"),"") -> 
B52: 39 | J52: =IF(D52<>"",IF(G52<>"",G52,yield_price_auv(valuation_date,F52,D52,H52,,E52,index_day_count_convention,1)),"") ->  | K52: =IF(D52<>"",IF(H52<>"",H52,yield_price_auv(valuation_date,F52,D52,,G52,E52,index_day_count_convention,2)),"") ->  | M52: =IF(D52<>"",yield_price_auv(valuation_date,F52,D52,H52,G52,E52,index_day_count_convention,3),"") ->  | O52: =IF(D52<>"",time_convention(valuation_date,F52,index_day_count_convention),"") ->  | P52: =IF(D52<>"",yield_price_auv(valuation_date,F52,D52,K52,,E52,index_day_count_convention,4),"") ->  | Q52: =IF(D52<>"",IF(ABS(yield_price_auv(valuation_date,F52,D52,K52,,E52,index_day_count_convention,1)-J52)<0.01%,"OK","WRONG"),"") ->  | R52: =IF(D52<>"",IF(ABS(yield_price_auv(valuation_date,F52,D52,,J52,E52,index_day_count_convention,2)-K52)<0.001%,"OK","WRONG"),"") -> 
B53: 40 | J53: =IF(D53<>"",IF(G53<>"",G53,yield_price_auv(valuation_date,F53,D53,H53,,E53,index_day_count_convention,1)),"") ->  | K53: =IF(D53<>"",IF(H53<>"",H53,yield_price_auv(valuation_date,F53,D53,,G53,E53,index_day_count_convention,2)),"") ->  | M53: =IF(D53<>"",yield_price_auv(valuation_date,F53,D53,H53,G53,E53,index_day_count_convention,3),"") ->  | O53: =IF(D53<>"",time_convention(valuation_date,F53,index_day_count_convention),"") ->  | P53: =IF(D53<>"",yield_price_auv(valuation_date,F53,D53,K53,,E53,index_day_count_convention,4),"") ->  | Q53: =IF(D53<>"",IF(ABS(yield_price_auv(valuation_date,F53,D53,K53,,E53,index_day_count_convention,1)-J53)<0.01%,"OK","WRONG"),"") ->  | R53: =IF(D53<>"",IF(ABS(yield_price_auv(valuation_date,F53,D53,,J53,E53,index_day_count_convention,2)-K53)<0.001%,"OK","WRONG"),"") -> 
B54: 41 | J54: =IF(D54<>"",IF(G54<>"",G54,yield_price_auv(valuation_date,F54,D54,H54,,E54,index_day_count_convention,1)),"") ->  | K54: =IF(D54<>"",IF(H54<>"",H54,yield_price_auv(valuation_date,F54,D54,,G54,E54,index_day_count_convention,2)),"") ->  | M54: =IF(D54<>"",yield_price_auv(valuation_date,F54,D54,H54,G54,E54,index_day_count_convention,3),"") ->  | O54: =IF(D54<>"",time_convention(valuation_date,F54,index_day_count_convention),"") ->  | P54: =IF(D54<>"",yield_price_auv(valuation_date,F54,D54,K54,,E54,index_day_count_convention,4),"") ->  | Q54: =IF(D54<>"",IF(ABS(yield_price_auv(valuation_date,F54,D54,K54,,E54,index_day_count_convention,1)-J54)<0.01%,"OK","WRONG"),"") ->  | R54: =IF(D54<>"",IF(ABS(yield_price_auv(valuation_date,F54,D54,,J54,E54,index_day_count_convention,2)-K54)<0.001%,"OK","WRONG"),"") -> 
B55: 42 | J55: =IF(D55<>"",IF(G55<>"",G55,yield_price_auv(valuation_date,F55,D55,H55,,E55,index_day_count_convention,1)),"") ->  | K55: =IF(D55<>"",IF(H55<>"",H55,yield_price_auv(valuation_date,F55,D55,,G55,E55,index_day_count_convention,2)),"") ->  | M55: =IF(D55<>"",yield_price_auv(valuation_date,F55,D55,H55,G55,E55,index_day_count_convention,3),"") ->  | O55: =IF(D55<>"",time_convention(valuation_date,F55,index_day_count_convention),"") ->  | P55: =IF(D55<>"",yield_price_auv(valuation_date,F55,D55,K55,,E55,index_day_count_convention,4),"") ->  | Q55: =IF(D55<>"",IF(ABS(yield_price_auv(valuation_date,F55,D55,K55,,E55,index_day_count_convention,1)-J55)<0.01%,"OK","WRONG"),"") ->  | R55: =IF(D55<>"",IF(ABS(yield_price_auv(valuation_date,F55,D55,,J55,E55,index_day_count_convention,2)-K55)<0.001%,"OK","WRONG"),"") -> 
B56: 43 | J56: =IF(D56<>"",IF(G56<>"",G56,yield_price_auv(valuation_date,F56,D56,H56,,E56,index_day_count_convention,1)),"") ->  | K56: =IF(D56<>"",IF(H56<>"",H56,yield_price_auv(valuation_date,F56,D56,,G56,E56,index_day_count_convention,2)),"") ->  | M56: =IF(D56<>"",yield_price_auv(valuation_date,F56,D56,H56,G56,E56,index_day_count_convention,3),"") ->  | O56: =IF(D56<>"",time_convention(valuation_date,F56,index_day_count_convention),"") ->  | P56: =IF(D56<>"",yield_price_auv(valuation_date,F56,D56,K56,,E56,index_day_count_convention,4),"") ->  | Q56: =IF(D56<>"",IF(ABS(yield_price_auv(valuation_date,F56,D56,K56,,E56,index_day_count_convention,1)-J56)<0.01%,"OK","WRONG"),"") ->  | R56: =IF(D56<>"",IF(ABS(yield_price_auv(valuation_date,F56,D56,,J56,E56,index_day_count_convention,2)-K56)<0.001%,"OK","WRONG"),"") -> 
B57: 44 | J57: =IF(D57<>"",IF(G57<>"",G57,yield_price_auv(valuation_date,F57,D57,H57,,E57,index_day_count_convention,1)),"") ->  | K57: =IF(D57<>"",IF(H57<>"",H57,yield_price_auv(valuation_date,F57,D57,,G57,E57,index_day_count_convention,2)),"") ->  | M57: =IF(D57<>"",yield_price_auv(valuation_date,F57,D57,H57,G57,E57,index_day_count_convention,3),"") ->  | O57: =IF(D57<>"",time_convention(valuation_date,F57,index_day_count_convention),"") ->  | P57: =IF(D57<>"",yield_price_auv(valuation_date,F57,D57,K57,,E57,index_day_count_convention,4),"") ->  | Q57: =IF(D57<>"",IF(ABS(yield_price_auv(valuation_date,F57,D57,K57,,E57,index_day_count_convention,1)-J57)<0.01%,"OK","WRONG"),"") ->  | R57: =IF(D57<>"",IF(ABS(yield_price_auv(valuation_date,F57,D57,,J57,E57,index_day_count_convention,2)-K57)<0.001%,"OK","WRONG"),"") -> 
B58: 45 | J58: =IF(D58<>"",IF(G58<>"",G58,yield_price_auv(valuation_date,F58,D58,H58,,E58,index_day_count_convention,1)),"") ->  | K58: =IF(D58<>"",IF(H58<>"",H58,yield_price_auv(valuation_date,F58,D58,,G58,E58,index_day_count_convention,2)),"") ->  | M58: =IF(D58<>"",yield_price_auv(valuation_date,F58,D58,H58,G58,E58,index_day_count_convention,3),"") ->  | O58: =IF(D58<>"",time_convention(valuation_date,F58,index_day_count_convention),"") ->  | P58: =IF(D58<>"",yield_price_auv(valuation_date,F58,D58,K58,,E58,index_day_count_convention,4),"") ->  | Q58: =IF(D58<>"",IF(ABS(yield_price_auv(valuation_date,F58,D58,K58,,E58,index_day_count_convention,1)-J58)<0.01%,"OK","WRONG"),"") ->  | R58: =IF(D58<>"",IF(ABS(yield_price_auv(valuation_date,F58,D58,,J58,E58,index_day_count_convention,2)-K58)<0.001%,"OK","WRONG"),"") -> 
B59: 46 | J59: =IF(D59<>"",IF(G59<>"",G59,yield_price_auv(valuation_date,F59,D59,H59,,E59,index_day_count_convention,1)),"") ->  | K59: =IF(D59<>"",IF(H59<>"",H59,yield_price_auv(valuation_date,F59,D59,,G59,E59,index_day_count_convention,2)),"") ->  | M59: =IF(D59<>"",yield_price_auv(valuation_date,F59,D59,H59,G59,E59,index_day_count_convention,3),"") ->  | O59: =IF(D59<>"",time_convention(valuation_date,F59,index_day_count_convention),"") ->  | P59: =IF(D59<>"",yield_price_auv(valuation_date,F59,D59,K59,,E59,index_day_count_convention,4),"") ->  | Q59: =IF(D59<>"",IF(ABS(yield_price_auv(valuation_date,F59,D59,K59,,E59,index_day_count_convention,1)-J59)<0.01%,"OK","WRONG"),"") ->  | R59: =IF(D59<>"",IF(ABS(yield_price_auv(valuation_date,F59,D59,,J59,E59,index_day_count_convention,2)-K59)<0.001%,"OK","WRONG"),"") -> 
B60: 47 | J60: =IF(D60<>"",IF(G60<>"",G60,yield_price_auv(valuation_date,F60,D60,H60,,E60,index_day_count_convention,1)),"") ->  | K60: =IF(D60<>"",IF(H60<>"",H60,yield_price_auv(valuation_date,F60,D60,,G60,E60,index_day_count_convention,2)),"") ->  | M60: =IF(D60<>"",yield_price_auv(valuation_date,F60,D60,H60,G60,E60,index_day_count_convention,3),"") ->  | O60: =IF(D60<>"",time_convention(valuation_date,F60,index_day_count_convention),"") ->  | P60: =IF(D60<>"",yield_price_auv(valuation_date,F60,D60,K60,,E60,index_day_count_convention,4),"") ->  | Q60: =IF(D60<>"",IF(ABS(yield_price_auv(valuation_date,F60,D60,K60,,E60,index_day_count_convention,1)-J60)<0.01%,"OK","WRONG"),"") ->  | R60: =IF(D60<>"",IF(ABS(yield_price_auv(valuation_date,F60,D60,,J60,E60,index_day_count_convention,2)-K60)<0.001%,"OK","WRONG"),"") -> 
B61: 48 | J61: =IF(D61<>"",IF(G61<>"",G61,yield_price_auv(valuation_date,F61,D61,H61,,E61,index_day_count_convention,1)),"") ->  | K61: =IF(D61<>"",IF(H61<>"",H61,yield_price_auv(valuation_date,F61,D61,,G61,E61,index_day_count_convention,2)),"") ->  | M61: =IF(D61<>"",yield_price_auv(valuation_date,F61,D61,H61,G61,E61,index_day_count_convention,3),"") ->  | O61: =IF(D61<>"",time_convention(valuation_date,F61,index_day_count_convention),"") ->  | P61: =IF(D61<>"",yield_price_auv(valuation_date,F61,D61,K61,,E61,index_day_count_convention,4),"") ->  | Q61: =IF(D61<>"",IF(ABS(yield_price_auv(valuation_date,F61,D61,K61,,E61,index_day_count_convention,1)-J61)<0.01%,"OK","WRONG"),"") ->  | R61: =IF(D61<>"",IF(ABS(yield_price_auv(valuation_date,F61,D61,,J61,E61,index_day_count_convention,2)-K61)<0.001%,"OK","WRONG"),"") -> 
B62: 49 | J62: =IF(D62<>"",IF(G62<>"",G62,yield_price_auv(valuation_date,F62,D62,H62,,E62,index_day_count_convention,1)),"") ->  | K62: =IF(D62<>"",IF(H62<>"",H62,yield_price_auv(valuation_date,F62,D62,,G62,E62,index_day_count_convention,2)),"") ->  | M62: =IF(D62<>"",yield_price_auv(valuation_date,F62,D62,H62,G62,E62,index_day_count_convention,3),"") ->  | O62: =IF(D62<>"",time_convention(valuation_date,F62,index_day_count_convention),"") ->  | P62: =IF(D62<>"",yield_price_auv(valuation_date,F62,D62,K62,,E62,index_day_count_convention,4),"") ->  | Q62: =IF(D62<>"",IF(ABS(yield_price_auv(valuation_date,F62,D62,K62,,E62,index_day_count_convention,1)-J62)<0.01%,"OK","WRONG"),"") ->  | R62: =IF(D62<>"",IF(ABS(yield_price_auv(valuation_date,F62,D62,,J62,E62,index_day_count_convention,2)-K62)<0.001%,"OK","WRONG"),"") -> 
B63: 50 | J63: =IF(D63<>"",IF(G63<>"",G63,yield_price_auv(valuation_date,F63,D63,H63,,E63,index_day_count_convention,1)),"") ->  | K63: =IF(D63<>"",IF(H63<>"",H63,yield_price_auv(valuation_date,F63,D63,,G63,E63,index_day_count_convention,2)),"") ->  | M63: =IF(D63<>"",yield_price_auv(valuation_date,F63,D63,H63,G63,E63,index_day_count_convention,3),"") ->  | O63: =IF(D63<>"",time_convention(valuation_date,F63,index_day_count_convention),"") ->  | P63: =IF(D63<>"",yield_price_auv(valuation_date,F63,D63,K63,,E63,index_day_count_convention,4),"") ->  | Q63: =IF(D63<>"",IF(ABS(yield_price_auv(valuation_date,F63,D63,K63,,E63,index_day_count_convention,1)-J63)<0.01%,"OK","WRONG"),"") ->  | R63: =IF(D63<>"",IF(ABS(yield_price_auv(valuation_date,F63,D63,,J63,E63,index_day_count_convention,2)-K63)<0.001%,"OK","WRONG"),"") -> 
B64: 51 | J64: =IF(D64<>"",IF(G64<>"",G64,yield_price_auv(valuation_date,F64,D64,H64,,E64,index_day_count_convention,1)),"") ->  | K64: =IF(D64<>"",IF(H64<>"",H64,yield_price_auv(valuation_date,F64,D64,,G64,E64,index_day_count_convention,2)),"") ->  | M64: =IF(D64<>"",yield_price_auv(valuation_date,F64,D64,H64,G64,E64,index_day_count_convention,3),"") ->  | O64: =IF(D64<>"",time_convention(valuation_date,F64,index_day_count_convention),"") ->  | P64: =IF(D64<>"",yield_price_auv(valuation_date,F64,D64,K64,,E64,index_day_count_convention,4),"") ->  | Q64: =IF(D64<>"",IF(ABS(yield_price_auv(valuation_date,F64,D64,K64,,E64,index_day_count_convention,1)-J64)<0.01%,"OK","WRONG"),"") ->  | R64: =IF(D64<>"",IF(ABS(yield_price_auv(valuation_date,F64,D64,,J64,E64,index_day_count_convention,2)-K64)<0.001%,"OK","WRONG"),"") -> 
B65: 52 | J65: =IF(D65<>"",IF(G65<>"",G65,yield_price_auv(valuation_date,F65,D65,H65,,E65,index_day_count_convention,1)),"") ->  | K65: =IF(D65<>"",IF(H65<>"",H65,yield_price_auv(valuation_date,F65,D65,,G65,E65,index_day_count_convention,2)),"") ->  | M65: =IF(D65<>"",yield_price_auv(valuation_date,F65,D65,H65,G65,E65,index_day_count_convention,3),"") ->  | O65: =IF(D65<>"",time_convention(valuation_date,F65,index_day_count_convention),"") ->  | P65: =IF(D65<>"",yield_price_auv(valuation_date,F65,D65,K65,,E65,index_day_count_convention,4),"") ->  | Q65: =IF(D65<>"",IF(ABS(yield_price_auv(valuation_date,F65,D65,K65,,E65,index_day_count_convention,1)-J65)<0.01%,"OK","WRONG"),"") ->  | R65: =IF(D65<>"",IF(ABS(yield_price_auv(valuation_date,F65,D65,,J65,E65,index_day_count_convention,2)-K65)<0.001%,"OK","WRONG"),"") -> 
B66: 53 | J66: =IF(D66<>"",IF(G66<>"",G66,yield_price_auv(valuation_date,F66,D66,H66,,E66,index_day_count_convention,1)),"") ->  | K66: =IF(D66<>"",IF(H66<>"",H66,yield_price_auv(valuation_date,F66,D66,,G66,E66,index_day_count_convention,2)),"") ->  | M66: =IF(D66<>"",yield_price_auv(valuation_date,F66,D66,H66,G66,E66,index_day_count_convention,3),"") ->  | O66: =IF(D66<>"",time_convention(valuation_date,F66,index_day_count_convention),"") ->  | P66: =IF(D66<>"",yield_price_auv(valuation_date,F66,D66,K66,,E66,index_day_count_convention,4),"") ->  | Q66: =IF(D66<>"",IF(ABS(yield_price_auv(valuation_date,F66,D66,K66,,E66,index_day_count_convention,1)-J66)<0.01%,"OK","WRONG"),"") ->  | R66: =IF(D66<>"",IF(ABS(yield_price_auv(valuation_date,F66,D66,,J66,E66,index_day_count_convention,2)-K66)<0.001%,"OK","WRONG"),"") -> 
B67: 54 | J67: =IF(D67<>"",IF(G67<>"",G67,yield_price_auv(valuation_date,F67,D67,H67,,E67,index_day_count_convention,1)),"") ->  | K67: =IF(D67<>"",IF(H67<>"",H67,yield_price_auv(valuation_date,F67,D67,,G67,E67,index_day_count_convention,2)),"") ->  | M67: =IF(D67<>"",yield_price_auv(valuation_date,F67,D67,H67,G67,E67,index_day_count_convention,3),"") ->  | O67: =IF(D67<>"",time_convention(valuation_date,F67,index_day_count_convention),"") ->  | P67: =IF(D67<>"",yield_price_auv(valuation_date,F67,D67,K67,,E67,index_day_count_convention,4),"") ->  | Q67: =IF(D67<>"",IF(ABS(yield_price_auv(valuation_date,F67,D67,K67,,E67,index_day_count_convention,1)-J67)<0.01%,"OK","WRONG"),"") ->  | R67: =IF(D67<>"",IF(ABS(yield_price_auv(valuation_date,F67,D67,,J67,E67,index_day_count_convention,2)-K67)<0.001%,"OK","WRONG"),"") -> 
B68: 55 | J68: =IF(D68<>"",IF(G68<>"",G68,yield_price_auv(valuation_date,F68,D68,H68,,E68,index_day_count_convention,1)),"") ->  | K68: =IF(D68<>"",IF(H68<>"",H68,yield_price_auv(valuation_date,F68,D68,,G68,E68,index_day_count_convention,2)),"") ->  | M68: =IF(D68<>"",yield_price_auv(valuation_date,F68,D68,H68,G68,E68,index_day_count_convention,3),"") ->  | O68: =IF(D68<>"",time_convention(valuation_date,F68,index_day_count_convention),"") ->  | P68: =IF(D68<>"",yield_price_auv(valuation_date,F68,D68,K68,,E68,index_day_count_convention,4),"") ->  | Q68: =IF(D68<>"",IF(ABS(yield_price_auv(valuation_date,F68,D68,K68,,E68,index_day_count_convention,1)-J68)<0.01%,"OK","WRONG"),"") ->  | R68: =IF(D68<>"",IF(ABS(yield_price_auv(valuation_date,F68,D68,,J68,E68,index_day_count_convention,2)-K68)<0.001%,"OK","WRONG"),"") -> 
B69: 56 | J69: =IF(D69<>"",IF(G69<>"",G69,yield_price_auv(valuation_date,F69,D69,H69,,E69,index_day_count_convention,1)),"") ->  | K69: =IF(D69<>"",IF(H69<>"",H69,yield_price_auv(valuation_date,F69,D69,,G69,E69,index_day_count_convention,2)),"") ->  | M69: =IF(D69<>"",yield_price_auv(valuation_date,F69,D69,H69,G69,E69,index_day_count_convention,3),"") ->  | O69: =IF(D69<>"",time_convention(valuation_date,F69,index_day_count_convention),"") ->  | P69: =IF(D69<>"",yield_price_auv(valuation_date,F69,D69,K69,,E69,index_day_count_convention,4),"") ->  | Q69: =IF(D69<>"",IF(ABS(yield_price_auv(valuation_date,F69,D69,K69,,E69,index_day_count_convention,1)-J69)<0.01%,"OK","WRONG"),"") ->  | R69: =IF(D69<>"",IF(ABS(yield_price_auv(valuation_date,F69,D69,,J69,E69,index_day_count_convention,2)-K69)<0.001%,"OK","WRONG"),"") -> 
B70: 57 | J70: =IF(D70<>"",IF(G70<>"",G70,yield_price_auv(valuation_date,F70,D70,H70,,E70,index_day_count_convention,1)),"") ->  | K70: =IF(D70<>"",IF(H70<>"",H70,yield_price_auv(valuation_date,F70,D70,,G70,E70,index_day_count_convention,2)),"") ->  | M70: =IF(D70<>"",yield_price_auv(valuation_date,F70,D70,H70,G70,E70,index_day_count_convention,3),"") ->  | O70: =IF(D70<>"",time_convention(valuation_date,F70,index_day_count_convention),"") ->  | P70: =IF(D70<>"",yield_price_auv(valuation_date,F70,D70,K70,,E70,index_day_count_convention,4),"") ->  | Q70: =IF(D70<>"",IF(ABS(yield_price_auv(valuation_date,F70,D70,K70,,E70,index_day_count_convention,1)-J70)<0.01%,"OK","WRONG"),"") ->  | R70: =IF(D70<>"",IF(ABS(yield_price_auv(valuation_date,F70,D70,,J70,E70,index_day_count_convention,2)-K70)<0.001%,"OK","WRONG"),"") -> 
B71: 58 | J71: =IF(D71<>"",IF(G71<>"",G71,yield_price_auv(valuation_date,F71,D71,H71,,E71,index_day_count_convention,1)),"") ->  | K71: =IF(D71<>"",IF(H71<>"",H71,yield_price_auv(valuation_date,F71,D71,,G71,E71,index_day_count_convention,2)),"") ->  | M71: =IF(D71<>"",yield_price_auv(valuation_date,F71,D71,H71,G71,E71,index_day_count_convention,3),"") ->  | O71: =IF(D71<>"",time_convention(valuation_date,F71,index_day_count_convention),"") ->  | P71: =IF(D71<>"",yield_price_auv(valuation_date,F71,D71,K71,,E71,index_day_count_convention,4),"") ->  | Q71: =IF(D71<>"",IF(ABS(yield_price_auv(valuation_date,F71,D71,K71,,E71,index_day_count_convention,1)-J71)<0.01%,"OK","WRONG"),"") ->  | R71: =IF(D71<>"",IF(ABS(yield_price_auv(valuation_date,F71,D71,,J71,E71,index_day_count_convention,2)-K71)<0.001%,"OK","WRONG"),"") -> 
B72: 59 | J72: =IF(D72<>"",IF(G72<>"",G72,yield_price_auv(valuation_date,F72,D72,H72,,E72,index_day_count_convention,1)),"") ->  | K72: =IF(D72<>"",IF(H72<>"",H72,yield_price_auv(valuation_date,F72,D72,,G72,E72,index_day_count_convention,2)),"") ->  | M72: =IF(D72<>"",yield_price_auv(valuation_date,F72,D72,H72,G72,E72,index_day_count_convention,3),"") ->  | O72: =IF(D72<>"",time_convention(valuation_date,F72,index_day_count_convention),"") ->  | P72: =IF(D72<>"",yield_price_auv(valuation_date,F72,D72,K72,,E72,index_day_count_convention,4),"") ->  | Q72: =IF(D72<>"",IF(ABS(yield_price_auv(valuation_date,F72,D72,K72,,E72,index_day_count_convention,1)-J72)<0.01%,"OK","WRONG"),"") ->  | R72: =IF(D72<>"",IF(ABS(yield_price_auv(valuation_date,F72,D72,,J72,E72,index_day_count_convention,2)-K72)<0.001%,"OK","WRONG"),"") -> 
B73: 60 | J73: =IF(D73<>"",IF(G73<>"",G73,yield_price_auv(valuation_date,F73,D73,H73,,E73,index_day_count_convention,1)),"") ->  | K73: =IF(D73<>"",IF(H73<>"",H73,yield_price_auv(valuation_date,F73,D73,,G73,E73,index_day_count_convention,2)),"") ->  | M73: =IF(D73<>"",yield_price_auv(valuation_date,F73,D73,H73,G73,E73,index_day_count_convention,3),"") ->  | O73: =IF(D73<>"",time_convention(valuation_date,F73,index_day_count_convention),"") ->  | P73: =IF(D73<>"",yield_price_auv(valuation_date,F73,D73,K73,,E73,index_day_count_convention,4),"") ->  | Q73: =IF(D73<>"",IF(ABS(yield_price_auv(valuation_date,F73,D73,K73,,E73,index_day_count_convention,1)-J73)<0.01%,"OK","WRONG"),"") ->  | R73: =IF(D73<>"",IF(ABS(yield_price_auv(valuation_date,F73,D73,,J73,E73,index_day_count_convention,2)-K73)<0.001%,"OK","WRONG"),"") -> 
B74: 61 | J74: =IF(D74<>"",IF(G74<>"",G74,yield_price_auv(valuation_date,F74,D74,H74,,E74,index_day_count_convention,1)),"") ->  | K74: =IF(D74<>"",IF(H74<>"",H74,yield_price_auv(valuation_date,F74,D74,,G74,E74,index_day_count_convention,2)),"") ->  | M74: =IF(D74<>"",yield_price_auv(valuation_date,F74,D74,H74,G74,E74,index_day_count_convention,3),"") ->  | O74: =IF(D74<>"",time_convention(valuation_date,F74,index_day_count_convention),"") ->  | P74: =IF(D74<>"",yield_price_auv(valuation_date,F74,D74,K74,,E74,index_day_count_convention,4),"") ->  | Q74: =IF(D74<>"",IF(ABS(yield_price_auv(valuation_date,F74,D74,K74,,E74,index_day_count_convention,1)-J74)<0.01%,"OK","WRONG"),"") ->  | R74: =IF(D74<>"",IF(ABS(yield_price_auv(valuation_date,F74,D74,,J74,E74,index_day_count_convention,2)-K74)<0.001%,"OK","WRONG"),"") -> 
B75: 62 | J75: =IF(D75<>"",IF(G75<>"",G75,yield_price_auv(valuation_date,F75,D75,H75,,E75,index_day_count_convention,1)),"") ->  | K75: =IF(D75<>"",IF(H75<>"",H75,yield_price_auv(valuation_date,F75,D75,,G75,E75,index_day_count_convention,2)),"") ->  | M75: =IF(D75<>"",yield_price_auv(valuation_date,F75,D75,H75,G75,E75,index_day_count_convention,3),"") ->  | O75: =IF(D75<>"",time_convention(valuation_date,F75,index_day_count_convention),"") ->  | P75: =IF(D75<>"",yield_price_auv(valuation_date,F75,D75,K75,,E75,index_day_count_convention,4),"") ->  | Q75: =IF(D75<>"",IF(ABS(yield_price_auv(valuation_date,F75,D75,K75,,E75,index_day_count_convention,1)-J75)<0.01%,"OK","WRONG"),"") ->  | R75: =IF(D75<>"",IF(ABS(yield_price_auv(valuation_date,F75,D75,,J75,E75,index_day_count_convention,2)-K75)<0.001%,"OK","WRONG"),"") -> 
B76: 63 | J76: =IF(D76<>"",IF(G76<>"",G76,yield_price_auv(valuation_date,F76,D76,H76,,E76,index_day_count_convention,1)),"") ->  | K76: =IF(D76<>"",IF(H76<>"",H76,yield_price_auv(valuation_date,F76,D76,,G76,E76,index_day_count_convention,2)),"") ->  | M76: =IF(D76<>"",yield_price_auv(valuation_date,F76,D76,H76,G76,E76,index_day_count_convention,3),"") ->  | O76: =IF(D76<>"",time_convention(valuation_date,F76,index_day_count_convention),"") ->  | P76: =IF(D76<>"",yield_price_auv(valuation_date,F76,D76,K76,,E76,index_day_count_convention,4),"") ->  | Q76: =IF(D76<>"",IF(ABS(yield_price_auv(valuation_date,F76,D76,K76,,E76,index_day_count_convention,1)-J76)<0.01%,"OK","WRONG"),"") ->  | R76: =IF(D76<>"",IF(ABS(yield_price_auv(valuation_date,F76,D76,,J76,E76,index_day_count_convention,2)-K76)<0.001%,"OK","WRONG"),"") -> 
B77: 64 | J77: =IF(D77<>"",IF(G77<>"",G77,yield_price_auv(valuation_date,F77,D77,H77,,E77,index_day_count_convention,1)),"") ->  | K77: =IF(D77<>"",IF(H77<>"",H77,yield_price_auv(valuation_date,F77,D77,,G77,E77,index_day_count_convention,2)),"") ->  | M77: =IF(D77<>"",yield_price_auv(valuation_date,F77,D77,H77,G77,E77,index_day_count_convention,3),"") ->  | O77: =IF(D77<>"",time_convention(valuation_date,F77,index_day_count_convention),"") ->  | P77: =IF(D77<>"",yield_price_auv(valuation_date,F77,D77,K77,,E77,index_day_count_convention,4),"") ->  | Q77: =IF(D77<>"",IF(ABS(yield_price_auv(valuation_date,F77,D77,K77,,E77,index_day_count_convention,1)-J77)<0.01%,"OK","WRONG"),"") ->  | R77: =IF(D77<>"",IF(ABS(yield_price_auv(valuation_date,F77,D77,,J77,E77,index_day_count_convention,2)-K77)<0.001%,"OK","WRONG"),"") -> 
B78: 65 | J78: =IF(D78<>"",IF(G78<>"",G78,yield_price_auv(valuation_date,F78,D78,H78,,E78,index_day_count_convention,1)),"") ->  | K78: =IF(D78<>"",IF(H78<>"",H78,yield_price_auv(valuation_date,F78,D78,,G78,E78,index_day_count_convention,2)),"") ->  | L78: =IF(E78=12,FALSE,IF(D78<>"",IF(OR(D78=0,COUPPCD(valuation_date,F78,E78,index_day_count_convention)-valuation_date=0),TRUE,FALSE),"")) ->  | M78: =IF(D78<>"",yield_price_auv(valuation_date,F78,D78,H78,G78,E78,index_day_count_convention,3),"") ->  | N78: =IF(D78<>"",M78+J78,"") ->  | O78: =IF(D78<>"",time_convention(valuation_date,F78,index_day_count_convention),"") ->  | P78: =IF(D78<>"",yield_price_auv(valuation_date,F78,D78,K78,,E78,index_day_count_convention,4),"") ->  | Q78: =IF(D78<>"",IF(ABS(yield_price_auv(valuation_date,F78,D78,K78,,E78,index_day_count_convention,1)-J78)<0.01%,"OK","WRONG"),"") ->  | R78: =IF(D78<>"",IF(ABS(yield_price_auv(valuation_date,F78,D78,,J78,E78,index_day_count_convention,2)-K78)<0.001%,"OK","WRONG"),"") -> 
A79: =IF(F79<>"",IF(F79>=F78,0,1),"") ->  | B79: =B78+1 -> 66 | J79: =IF(D79<>"",IF(G79<>"",G79,yield_price_auv(valuation_date,F79,D79,H79,,E79,index_day_count_convention,1)),"") ->  | K79: =IF(D79<>"",IF(H79<>"",H79,yield_price_auv(valuation_date,F79,D79,,G79,E79,index_day_count_convention,2)),"") ->  | M79: =IF(D79<>"",yield_price_auv(valuation_date,F79,D79,H79,G79,E79,index_day_count_convention,3),"") ->  | O79: =IF(D79<>"",time_convention(valuation_date,F79,index_day_count_convention),"") ->  | P79: =IF(D79<>"",yield_price_auv(valuation_date,F79,D79,K79,,E79,index_day_count_convention,4),"") ->  | Q79: =IF(D79<>"",IF(ABS(yield_price_auv(valuation_date,F79,D79,K79,,E79,index_day_count_convention,1)-J79)<0.01%,"OK","WRONG"),"") ->  | R79: =IF(D79<>"",IF(ABS(yield_price_auv(valuation_date,F79,D79,,J79,E79,index_day_count_convention,2)-K79)<0.001%,"OK","WRONG"),"") -> 
B80: 67 | J80: =IF(D80<>"",IF(G80<>"",G80,yield_price_auv(valuation_date,F80,D80,H80,,E80,index_day_count_convention,1)),"") ->  | K80: =IF(D80<>"",IF(H80<>"",H80,yield_price_auv(valuation_date,F80,D80,,G80,E80,index_day_count_convention,2)),"") ->  | M80: =IF(D80<>"",yield_price_auv(valuation_date,F80,D80,H80,G80,E80,index_day_count_convention,3),"") ->  | O80: =IF(D80<>"",time_convention(valuation_date,F80,index_day_count_convention),"") ->  | P80: =IF(D80<>"",yield_price_auv(valuation_date,F80,D80,K80,,E80,index_day_count_convention,4),"") ->  | Q80: =IF(D80<>"",IF(ABS(yield_price_auv(valuation_date,F80,D80,K80,,E80,index_day_count_convention,1)-J80)<0.01%,"OK","WRONG"),"") ->  | R80: =IF(D80<>"",IF(ABS(yield_price_auv(valuation_date,F80,D80,,J80,E80,index_day_count_convention,2)-K80)<0.001%,"OK","WRONG"),"") -> 
B81: 68 | J81: =IF(D81<>"",IF(G81<>"",G81,yield_price_auv(valuation_date,F81,D81,H81,,E81,index_day_count_convention,1)),"") ->  | K81: =IF(D81<>"",IF(H81<>"",H81,yield_price_auv(valuation_date,F81,D81,,G81,E81,index_day_count_convention,2)),"") ->  | M81: =IF(D81<>"",yield_price_auv(valuation_date,F81,D81,H81,G81,E81,index_day_count_convention,3),"") ->  | O81: =IF(D81<>"",time_convention(valuation_date,F81,index_day_count_convention),"") ->  | P81: =IF(D81<>"",yield_price_auv(valuation_date,F81,D81,K81,,E81,index_day_count_convention,4),"") ->  | Q81: =IF(D81<>"",IF(ABS(yield_price_auv(valuation_date,F81,D81,K81,,E81,index_day_count_convention,1)-J81)<0.01%,"OK","WRONG"),"") ->  | R81: =IF(D81<>"",IF(ABS(yield_price_auv(valuation_date,F81,D81,,J81,E81,index_day_count_convention,2)-K81)<0.001%,"OK","WRONG"),"") -> 
B82: 69 | J82: =IF(D82<>"",IF(G82<>"",G82,yield_price_auv(valuation_date,F82,D82,H82,,E82,index_day_count_convention,1)),"") ->  | K82: =IF(D82<>"",IF(H82<>"",H82,yield_price_auv(valuation_date,F82,D82,,G82,E82,index_day_count_convention,2)),"") ->  | M82: =IF(D82<>"",yield_price_auv(valuation_date,F82,D82,H82,G82,E82,index_day_count_convention,3),"") ->  | O82: =IF(D82<>"",time_convention(valuation_date,F82,index_day_count_convention),"") ->  | P82: =IF(D82<>"",yield_price_auv(valuation_date,F82,D82,K82,,E82,index_day_count_convention,4),"") ->  | Q82: =IF(D82<>"",IF(ABS(yield_price_auv(valuation_date,F82,D82,K82,,E82,index_day_count_convention,1)-J82)<0.01%,"OK","WRONG"),"") ->  | R82: =IF(D82<>"",IF(ABS(yield_price_auv(valuation_date,F82,D82,,J82,E82,index_day_count_convention,2)-K82)<0.001%,"OK","WRONG"),"") -> 
B83: 70 | J83: =IF(D83<>"",IF(G83<>"",G83,yield_price_auv(valuation_date,F83,D83,H83,,E83,index_day_count_convention,1)),"") ->  | K83: =IF(D83<>"",IF(H83<>"",H83,yield_price_auv(valuation_date,F83,D83,,G83,E83,index_day_count_convention,2)),"") ->  | M83: =IF(D83<>"",yield_price_auv(valuation_date,F83,D83,H83,G83,E83,index_day_count_convention,3),"") ->  | O83: =IF(D83<>"",time_convention(valuation_date,F83,index_day_count_convention),"") ->  | P83: =IF(D83<>"",yield_price_auv(valuation_date,F83,D83,K83,,E83,index_day_count_convention,4),"") ->  | Q83: =IF(D83<>"",IF(ABS(yield_price_auv(valuation_date,F83,D83,K83,,E83,index_day_count_convention,1)-J83)<0.01%,"OK","WRONG"),"") ->  | R83: =IF(D83<>"",IF(ABS(yield_price_auv(valuation_date,F83,D83,,J83,E83,index_day_count_convention,2)-K83)<0.001%,"OK","WRONG"),"") -> 
B84: 71 | J84: =IF(D84<>"",IF(G84<>"",G84,yield_price_auv(valuation_date,F84,D84,H84,,E84,index_day_count_convention,1)),"") ->  | K84: =IF(D84<>"",IF(H84<>"",H84,yield_price_auv(valuation_date,F84,D84,,G84,E84,index_day_count_convention,2)),"") ->  | M84: =IF(D84<>"",yield_price_auv(valuation_date,F84,D84,H84,G84,E84,index_day_count_convention,3),"") ->  | O84: =IF(D84<>"",time_convention(valuation_date,F84,index_day_count_convention),"") ->  | P84: =IF(D84<>"",yield_price_auv(valuation_date,F84,D84,K84,,E84,index_day_count_convention,4),"") ->  | Q84: =IF(D84<>"",IF(ABS(yield_price_auv(valuation_date,F84,D84,K84,,E84,index_day_count_convention,1)-J84)<0.01%,"OK","WRONG"),"") ->  | R84: =IF(D84<>"",IF(ABS(yield_price_auv(valuation_date,F84,D84,,J84,E84,index_day_count_convention,2)-K84)<0.001%,"OK","WRONG"),"") -> 
B85: 72 | J85: =IF(D85<>"",IF(G85<>"",G85,yield_price_auv(valuation_date,F85,D85,H85,,E85,index_day_count_convention,1)),"") ->  | K85: =IF(D85<>"",IF(H85<>"",H85,yield_price_auv(valuation_date,F85,D85,,G85,E85,index_day_count_convention,2)),"") ->  | M85: =IF(D85<>"",yield_price_auv(valuation_date,F85,D85,H85,G85,E85,index_day_count_convention,3),"") ->  | O85: =IF(D85<>"",time_convention(valuation_date,F85,index_day_count_convention),"") ->  | P85: =IF(D85<>"",yield_price_auv(valuation_date,F85,D85,K85,,E85,index_day_count_convention,4),"") ->  | Q85: =IF(D85<>"",IF(ABS(yield_price_auv(valuation_date,F85,D85,K85,,E85,index_day_count_convention,1)-J85)<0.01%,"OK","WRONG"),"") ->  | R85: =IF(D85<>"",IF(ABS(yield_price_auv(valuation_date,F85,D85,,J85,E85,index_day_count_convention,2)-K85)<0.001%,"OK","WRONG"),"") -> 
B86: 73 | J86: =IF(D86<>"",IF(G86<>"",G86,yield_price_auv(valuation_date,F86,D86,H86,,E86,index_day_count_convention,1)),"") ->  | K86: =IF(D86<>"",IF(H86<>"",H86,yield_price_auv(valuation_date,F86,D86,,G86,E86,index_day_count_convention,2)),"") ->  | M86: =IF(D86<>"",yield_price_auv(valuation_date,F86,D86,H86,G86,E86,index_day_count_convention,3),"") ->  | O86: =IF(D86<>"",time_convention(valuation_date,F86,index_day_count_convention),"") ->  | P86: =IF(D86<>"",yield_price_auv(valuation_date,F86,D86,K86,,E86,index_day_count_convention,4),"") ->  | Q86: =IF(D86<>"",IF(ABS(yield_price_auv(valuation_date,F86,D86,K86,,E86,index_day_count_convention,1)-J86)<0.01%,"OK","WRONG"),"") ->  | R86: =IF(D86<>"",IF(ABS(yield_price_auv(valuation_date,F86,D86,,J86,E86,index_day_count_convention,2)-K86)<0.001%,"OK","WRONG"),"") -> 
B87: 74 | J87: =IF(D87<>"",IF(G87<>"",G87,yield_price_auv(valuation_date,F87,D87,H87,,E87,index_day_count_convention,1)),"") ->  | K87: =IF(D87<>"",IF(H87<>"",H87,yield_price_auv(valuation_date,F87,D87,,G87,E87,index_day_count_convention,2)),"") ->  | M87: =IF(D87<>"",yield_price_auv(valuation_date,F87,D87,H87,G87,E87,index_day_count_convention,3),"") ->  | O87: =IF(D87<>"",time_convention(valuation_date,F87,index_day_count_convention),"") ->  | P87: =IF(D87<>"",yield_price_auv(valuation_date,F87,D87,K87,,E87,index_day_count_convention,4),"") ->  | Q87: =IF(D87<>"",IF(ABS(yield_price_auv(valuation_date,F87,D87,K87,,E87,index_day_count_convention,1)-J87)<0.01%,"OK","WRONG"),"") ->  | R87: =IF(D87<>"",IF(ABS(yield_price_auv(valuation_date,F87,D87,,J87,E87,index_day_count_convention,2)-K87)<0.001%,"OK","WRONG"),"") -> 
B88: 75 | J88: =IF(D88<>"",IF(G88<>"",G88,yield_price_auv(valuation_date,F88,D88,H88,,E88,index_day_count_convention,1)),"") ->  | K88: =IF(D88<>"",IF(H88<>"",H88,yield_price_auv(valuation_date,F88,D88,,G88,E88,index_day_count_convention,2)),"") ->  | M88: =IF(D88<>"",yield_price_auv(valuation_date,F88,D88,H88,G88,E88,index_day_count_convention,3),"") ->  | O88: =IF(D88<>"",time_convention(valuation_date,F88,index_day_count_convention),"") ->  | P88: =IF(D88<>"",yield_price_auv(valuation_date,F88,D88,K88,,E88,index_day_count_convention,4),"") ->  | Q88: =IF(D88<>"",IF(ABS(yield_price_auv(valuation_date,F88,D88,K88,,E88,index_day_count_convention,1)-J88)<0.01%,"OK","WRONG"),"") ->  | R88: =IF(D88<>"",IF(ABS(yield_price_auv(valuation_date,F88,D88,,J88,E88,index_day_count_convention,2)-K88)<0.001%,"OK","WRONG"),"") -> 
B89: 76 | J89: =IF(D89<>"",IF(G89<>"",G89,yield_price_auv(valuation_date,F89,D89,H89,,E89,index_day_count_convention,1)),"") ->  | K89: =IF(D89<>"",IF(H89<>"",H89,yield_price_auv(valuation_date,F89,D89,,G89,E89,index_day_count_convention,2)),"") ->  | M89: =IF(D89<>"",yield_price_auv(valuation_date,F89,D89,H89,G89,E89,index_day_count_convention,3),"") ->  | O89: =IF(D89<>"",time_convention(valuation_date,F89,index_day_count_convention),"") ->  | P89: =IF(D89<>"",yield_price_auv(valuation_date,F89,D89,K89,,E89,index_day_count_convention,4),"") ->  | Q89: =IF(D89<>"",IF(ABS(yield_price_auv(valuation_date,F89,D89,K89,,E89,index_day_count_convention,1)-J89)<0.01%,"OK","WRONG"),"") ->  | R89: =IF(D89<>"",IF(ABS(yield_price_auv(valuation_date,F89,D89,,J89,E89,index_day_count_convention,2)-K89)<0.001%,"OK","WRONG"),"") -> 
B90: 77 | J90: =IF(D90<>"",IF(G90<>"",G90,yield_price_auv(valuation_date,F90,D90,H90,,E90,index_day_count_convention,1)),"") ->  | K90: =IF(D90<>"",IF(H90<>"",H90,yield_price_auv(valuation_date,F90,D90,,G90,E90,index_day_count_convention,2)),"") ->  | M90: =IF(D90<>"",yield_price_auv(valuation_date,F90,D90,H90,G90,E90,index_day_count_convention,3),"") ->  | O90: =IF(D90<>"",time_convention(valuation_date,F90,index_day_count_convention),"") ->  | P90: =IF(D90<>"",yield_price_auv(valuation_date,F90,D90,K90,,E90,index_day_count_convention,4),"") ->  | Q90: =IF(D90<>"",IF(ABS(yield_price_auv(valuation_date,F90,D90,K90,,E90,index_day_count_convention,1)-J90)<0.01%,"OK","WRONG"),"") ->  | R90: =IF(D90<>"",IF(ABS(yield_price_auv(valuation_date,F90,D90,,J90,E90,index_day_count_convention,2)-K90)<0.001%,"OK","WRONG"),"") -> 
B91: 78 | J91: =IF(D91<>"",IF(G91<>"",G91,yield_price_auv(valuation_date,F91,D91,H91,,E91,index_day_count_convention,1)),"") ->  | K91: =IF(D91<>"",IF(H91<>"",H91,yield_price_auv(valuation_date,F91,D91,,G91,E91,index_day_count_convention,2)),"") ->  | M91: =IF(D91<>"",yield_price_auv(valuation_date,F91,D91,H91,G91,E91,index_day_count_convention,3),"") ->  | O91: =IF(D91<>"",time_convention(valuation_date,F91,index_day_count_convention),"") ->  | P91: =IF(D91<>"",yield_price_auv(valuation_date,F91,D91,K91,,E91,index_day_count_convention,4),"") ->  | Q91: =IF(D91<>"",IF(ABS(yield_price_auv(valuation_date,F91,D91,K91,,E91,index_day_count_convention,1)-J91)<0.01%,"OK","WRONG"),"") ->  | R91: =IF(D91<>"",IF(ABS(yield_price_auv(valuation_date,F91,D91,,J91,E91,index_day_count_convention,2)-K91)<0.001%,"OK","WRONG"),"") -> 
B92: 79 | J92: =IF(D92<>"",IF(G92<>"",G92,yield_price_auv(valuation_date,F92,D92,H92,,E92,index_day_count_convention,1)),"") ->  | K92: =IF(D92<>"",IF(H92<>"",H92,yield_price_auv(valuation_date,F92,D92,,G92,E92,index_day_count_convention,2)),"") ->  | M92: =IF(D92<>"",yield_price_auv(valuation_date,F92,D92,H92,G92,E92,index_day_count_convention,3),"") ->  | O92: =IF(D92<>"",time_convention(valuation_date,F92,index_day_count_convention),"") ->  | P92: =IF(D92<>"",yield_price_auv(valuation_date,F92,D92,K92,,E92,index_day_count_convention,4),"") ->  | Q92: =IF(D92<>"",IF(ABS(yield_price_auv(valuation_date,F92,D92,K92,,E92,index_day_count_convention,1)-J92)<0.01%,"OK","WRONG"),"") ->  | R92: =IF(D92<>"",IF(ABS(yield_price_auv(valuation_date,F92,D92,,J92,E92,index_day_count_convention,2)-K92)<0.001%,"OK","WRONG"),"") -> 
B93: 80 | J93: =IF(D93<>"",IF(G93<>"",G93,yield_price_auv(valuation_date,F93,D93,H93,,E93,index_day_count_convention,1)),"") ->  | K93: =IF(D93<>"",IF(H93<>"",H93,yield_price_auv(valuation_date,F93,D93,,G93,E93,index_day_count_convention,2)),"") ->  | M93: =IF(D93<>"",yield_price_auv(valuation_date,F93,D93,H93,G93,E93,index_day_count_convention,3),"") ->  | O93: =IF(D93<>"",time_convention(valuation_date,F93,index_day_count_convention),"") ->  | P93: =IF(D93<>"",yield_price_auv(valuation_date,F93,D93,K93,,E93,index_day_count_convention,4),"") ->  | Q93: =IF(D93<>"",IF(ABS(yield_price_auv(valuation_date,F93,D93,K93,,E93,index_day_count_convention,1)-J93)<0.01%,"OK","WRONG"),"") ->  | R93: =IF(D93<>"",IF(ABS(yield_price_auv(valuation_date,F93,D93,,J93,E93,index_day_count_convention,2)-K93)<0.001%,"OK","WRONG"),"") -> 
B94: 81 | J94: =IF(D94<>"",IF(G94<>"",G94,yield_price_auv(valuation_date,F94,D94,H94,,E94,index_day_count_convention,1)),"") ->  | K94: =IF(D94<>"",IF(H94<>"",H94,yield_price_auv(valuation_date,F94,D94,,G94,E94,index_day_count_convention,2)),"") ->  | M94: =IF(D94<>"",yield_price_auv(valuation_date,F94,D94,H94,G94,E94,index_day_count_convention,3),"") ->  | O94: =IF(D94<>"",time_convention(valuation_date,F94,index_day_count_convention),"") ->  | P94: =IF(D94<>"",yield_price_auv(valuation_date,F94,D94,K94,,E94,index_day_count_convention,4),"") ->  | Q94: =IF(D94<>"",IF(ABS(yield_price_auv(valuation_date,F94,D94,K94,,E94,index_day_count_convention,1)-J94)<0.01%,"OK","WRONG"),"") ->  | R94: =IF(D94<>"",IF(ABS(yield_price_auv(valuation_date,F94,D94,,J94,E94,index_day_count_convention,2)-K94)<0.001%,"OK","WRONG"),"") -> 
B95: 82 | J95: =IF(D95<>"",IF(G95<>"",G95,yield_price_auv(valuation_date,F95,D95,H95,,E95,index_day_count_convention,1)),"") ->  | K95: =IF(D95<>"",IF(H95<>"",H95,yield_price_auv(valuation_date,F95,D95,,G95,E95,index_day_count_convention,2)),"") ->  | M95: =IF(D95<>"",yield_price_auv(valuation_date,F95,D95,H95,G95,E95,index_day_count_convention,3),"") ->  | O95: =IF(D95<>"",time_convention(valuation_date,F95,index_day_count_convention),"") ->  | P95: =IF(D95<>"",yield_price_auv(valuation_date,F95,D95,K95,,E95,index_day_count_convention,4),"") ->  | Q95: =IF(D95<>"",IF(ABS(yield_price_auv(valuation_date,F95,D95,K95,,E95,index_day_count_convention,1)-J95)<0.01%,"OK","WRONG"),"") ->  | R95: =IF(D95<>"",IF(ABS(yield_price_auv(valuation_date,F95,D95,,J95,E95,index_day_count_convention,2)-K95)<0.001%,"OK","WRONG"),"") -> 
B96: 83 | J96: =IF(D96<>"",IF(G96<>"",G96,yield_price_auv(valuation_date,F96,D96,H96,,E96,index_day_count_convention,1)),"") ->  | K96: =IF(D96<>"",IF(H96<>"",H96,yield_price_auv(valuation_date,F96,D96,,G96,E96,index_day_count_convention,2)),"") ->  | M96: =IF(D96<>"",yield_price_auv(valuation_date,F96,D96,H96,G96,E96,index_day_count_convention,3),"") ->  | O96: =IF(D96<>"",time_convention(valuation_date,F96,index_day_count_convention),"") ->  | P96: =IF(D96<>"",yield_price_auv(valuation_date,F96,D96,K96,,E96,index_day_count_convention,4),"") ->  | Q96: =IF(D96<>"",IF(ABS(yield_price_auv(valuation_date,F96,D96,K96,,E96,index_day_count_convention,1)-J96)<0.01%,"OK","WRONG"),"") ->  | R96: =IF(D96<>"",IF(ABS(yield_price_auv(valuation_date,F96,D96,,J96,E96,index_day_count_convention,2)-K96)<0.001%,"OK","WRONG"),"") -> 
B97: 84 | J97: =IF(D97<>"",IF(G97<>"",G97,yield_price_auv(valuation_date,F97,D97,H97,,E97,index_day_count_convention,1)),"") ->  | K97: =IF(D97<>"",IF(H97<>"",H97,yield_price_auv(valuation_date,F97,D97,,G97,E97,index_day_count_convention,2)),"") ->  | M97: =IF(D97<>"",yield_price_auv(valuation_date,F97,D97,H97,G97,E97,index_day_count_convention,3),"") ->  | O97: =IF(D97<>"",time_convention(valuation_date,F97,index_day_count_convention),"") ->  | P97: =IF(D97<>"",yield_price_auv(valuation_date,F97,D97,K97,,E97,index_day_count_convention,4),"") ->  | Q97: =IF(D97<>"",IF(ABS(yield_price_auv(valuation_date,F97,D97,K97,,E97,index_day_count_convention,1)-J97)<0.01%,"OK","WRONG"),"") ->  | R97: =IF(D97<>"",IF(ABS(yield_price_auv(valuation_date,F97,D97,,J97,E97,index_day_count_convention,2)-K97)<0.001%,"OK","WRONG"),"") -> 
B98: 85 | J98: =IF(D98<>"",IF(G98<>"",G98,yield_price_auv(valuation_date,F98,D98,H98,,E98,index_day_count_convention,1)),"") ->  | K98: =IF(D98<>"",IF(H98<>"",H98,yield_price_auv(valuation_date,F98,D98,,G98,E98,index_day_count_convention,2)),"") ->  | M98: =IF(D98<>"",yield_price_auv(valuation_date,F98,D98,H98,G98,E98,index_day_count_convention,3),"") ->  | O98: =IF(D98<>"",time_convention(valuation_date,F98,index_day_count_convention),"") ->  | P98: =IF(D98<>"",yield_price_auv(valuation_date,F98,D98,K98,,E98,index_day_count_convention,4),"") ->  | Q98: =IF(D98<>"",IF(ABS(yield_price_auv(valuation_date,F98,D98,K98,,E98,index_day_count_convention,1)-J98)<0.01%,"OK","WRONG"),"") ->  | R98: =IF(D98<>"",IF(ABS(yield_price_auv(valuation_date,F98,D98,,J98,E98,index_day_count_convention,2)-K98)<0.001%,"OK","WRONG"),"") -> 
B99: 86 | J99: =IF(D99<>"",IF(G99<>"",G99,yield_price_auv(valuation_date,F99,D99,H99,,E99,index_day_count_convention,1)),"") ->  | K99: =IF(D99<>"",IF(H99<>"",H99,yield_price_auv(valuation_date,F99,D99,,G99,E99,index_day_count_convention,2)),"") ->  | M99: =IF(D99<>"",yield_price_auv(valuation_date,F99,D99,H99,G99,E99,index_day_count_convention,3),"") ->  | O99: =IF(D99<>"",time_convention(valuation_date,F99,index_day_count_convention),"") ->  | P99: =IF(D99<>"",yield_price_auv(valuation_date,F99,D99,K99,,E99,index_day_count_convention,4),"") ->  | Q99: =IF(D99<>"",IF(ABS(yield_price_auv(valuation_date,F99,D99,K99,,E99,index_day_count_convention,1)-J99)<0.01%,"OK","WRONG"),"") ->  | R99: =IF(D99<>"",IF(ABS(yield_price_auv(valuation_date,F99,D99,,J99,E99,index_day_count_convention,2)-K99)<0.001%,"OK","WRONG"),"") -> 
B100: 87 | J100: =IF(D100<>"",IF(G100<>"",G100,yield_price_auv(valuation_date,F100,D100,H100,,E100,index_day_count_convention,1)),"") ->  | K100: =IF(D100<>"",IF(H100<>"",H100,yield_price_auv(valuation_date,F100,D100,,G100,E100,index_day_count_convention,2)),"") ->  | M100: =IF(D100<>"",yield_price_auv(valuation_date,F100,D100,H100,G100,E100,index_day_count_convention,3),"") ->  | O100: =IF(D100<>"",time_convention(valuation_date,F100,index_day_count_convention),"") ->  | P100: =IF(D100<>"",yield_price_auv(valuation_date,F100,D100,K100,,E100,index_day_count_convention,4),"") ->  | Q100: =IF(D100<>"",IF(ABS(yield_price_auv(valuation_date,F100,D100,K100,,E100,index_day_count_convention,1)-J100)<0.01%,"OK","WRONG"),"") ->  | R100: =IF(D100<>"",IF(ABS(yield_price_auv(valuation_date,F100,D100,,J100,E100,index_day_count_convention,2)-K100)<0.001%,"OK","WRONG"),"") -> 
B101: 88 | J101: =IF(D101<>"",IF(G101<>"",G101,yield_price_auv(valuation_date,F101,D101,H101,,E101,index_day_count_convention,1)),"") ->  | K101: =IF(D101<>"",IF(H101<>"",H101,yield_price_auv(valuation_date,F101,D101,,G101,E101,index_day_count_convention,2)),"") ->  | M101: =IF(D101<>"",yield_price_auv(valuation_date,F101,D101,H101,G101,E101,index_day_count_convention,3),"") ->  | O101: =IF(D101<>"",time_convention(valuation_date,F101,index_day_count_convention),"") ->  | P101: =IF(D101<>"",yield_price_auv(valuation_date,F101,D101,K101,,E101,index_day_count_convention,4),"") ->  | Q101: =IF(D101<>"",IF(ABS(yield_price_auv(valuation_date,F101,D101,K101,,E101,index_day_count_convention,1)-J101)<0.01%,"OK","WRONG"),"") ->  | R101: =IF(D101<>"",IF(ABS(yield_price_auv(valuation_date,F101,D101,,J101,E101,index_day_count_convention,2)-K101)<0.001%,"OK","WRONG"),"") -> 
B102: 89 | J102: =IF(D102<>"",IF(G102<>"",G102,yield_price_auv(valuation_date,F102,D102,H102,,E102,index_day_count_convention,1)),"") ->  | K102: =IF(D102<>"",IF(H102<>"",H102,yield_price_auv(valuation_date,F102,D102,,G102,E102,index_day_count_convention,2)),"") ->  | M102: =IF(D102<>"",yield_price_auv(valuation_date,F102,D102,H102,G102,E102,index_day_count_convention,3),"") ->  | O102: =IF(D102<>"",time_convention(valuation_date,F102,index_day_count_convention),"") ->  | P102: =IF(D102<>"",yield_price_auv(valuation_date,F102,D102,K102,,E102,index_day_count_convention,4),"") ->  | Q102: =IF(D102<>"",IF(ABS(yield_price_auv(valuation_date,F102,D102,K102,,E102,index_day_count_convention,1)-J102)<0.01%,"OK","WRONG"),"") ->  | R102: =IF(D102<>"",IF(ABS(yield_price_auv(valuation_date,F102,D102,,J102,E102,index_day_count_convention,2)-K102)<0.001%,"OK","WRONG"),"") -> 
B103: 90 | J103: =IF(D103<>"",IF(G103<>"",G103,yield_price_auv(valuation_date,F103,D103,H103,,E103,index_day_count_convention,1)),"") ->  | K103: =IF(D103<>"",IF(H103<>"",H103,yield_price_auv(valuation_date,F103,D103,,G103,E103,index_day_count_convention,2)),"") ->  | M103: =IF(D103<>"",yield_price_auv(valuation_date,F103,D103,H103,G103,E103,index_day_count_convention,3),"") ->  | O103: =IF(D103<>"",time_convention(valuation_date,F103,index_day_count_convention),"") ->  | P103: =IF(D103<>"",yield_price_auv(valuation_date,F103,D103,K103,,E103,index_day_count_convention,4),"") ->  | Q103: =IF(D103<>"",IF(ABS(yield_price_auv(valuation_date,F103,D103,K103,,E103,index_day_count_convention,1)-J103)<0.01%,"OK","WRONG"),"") ->  | R103: =IF(D103<>"",IF(ABS(yield_price_auv(valuation_date,F103,D103,,J103,E103,index_day_count_convention,2)-K103)<0.001%,"OK","WRONG"),"") -> 
B104: 91 | J104: =IF(D104<>"",IF(G104<>"",G104,yield_price_auv(valuation_date,F104,D104,H104,,E104,index_day_count_convention,1)),"") ->  | K104: =IF(D104<>"",IF(H104<>"",H104,yield_price_auv(valuation_date,F104,D104,,G104,E104,index_day_count_convention,2)),"") ->  | M104: =IF(D104<>"",yield_price_auv(valuation_date,F104,D104,H104,G104,E104,index_day_count_convention,3),"") ->  | O104: =IF(D104<>"",time_convention(valuation_date,F104,index_day_count_convention),"") ->  | P104: =IF(D104<>"",yield_price_auv(valuation_date,F104,D104,K104,,E104,index_day_count_convention,4),"") ->  | Q104: =IF(D104<>"",IF(ABS(yield_price_auv(valuation_date,F104,D104,K104,,E104,index_day_count_convention,1)-J104)<0.01%,"OK","WRONG"),"") ->  | R104: =IF(D104<>"",IF(ABS(yield_price_auv(valuation_date,F104,D104,,J104,E104,index_day_count_convention,2)-K104)<0.001%,"OK","WRONG"),"") -> 
B105: 92 | J105: =IF(D105<>"",IF(G105<>"",G105,yield_price_auv(valuation_date,F105,D105,H105,,E105,index_day_count_convention,1)),"") ->  | K105: =IF(D105<>"",IF(H105<>"",H105,yield_price_auv(valuation_date,F105,D105,,G105,E105,index_day_count_convention,2)),"") ->  | M105: =IF(D105<>"",yield_price_auv(valuation_date,F105,D105,H105,G105,E105,index_day_count_convention,3),"") ->  | O105: =IF(D105<>"",time_convention(valuation_date,F105,index_day_count_convention),"") ->  | P105: =IF(D105<>"",yield_price_auv(valuation_date,F105,D105,K105,,E105,index_day_count_convention,4),"") ->  | Q105: =IF(D105<>"",IF(ABS(yield_price_auv(valuation_date,F105,D105,K105,,E105,index_day_count_convention,1)-J105)<0.01%,"OK","WRONG"),"") ->  | R105: =IF(D105<>"",IF(ABS(yield_price_auv(valuation_date,F105,D105,,J105,E105,index_day_count_convention,2)-K105)<0.001%,"OK","WRONG"),"") -> 
B106: 93 | J106: =IF(D106<>"",IF(G106<>"",G106,yield_price_auv(valuation_date,F106,D106,H106,,E106,index_day_count_convention,1)),"") ->  | K106: =IF(D106<>"",IF(H106<>"",H106,yield_price_auv(valuation_date,F106,D106,,G106,E106,index_day_count_convention,2)),"") ->  | M106: =IF(D106<>"",yield_price_auv(valuation_date,F106,D106,H106,G106,E106,index_day_count_convention,3),"") ->  | O106: =IF(D106<>"",time_convention(valuation_date,F106,index_day_count_convention),"") ->  | P106: =IF(D106<>"",yield_price_auv(valuation_date,F106,D106,K106,,E106,index_day_count_convention,4),"") ->  | Q106: =IF(D106<>"",IF(ABS(yield_price_auv(valuation_date,F106,D106,K106,,E106,index_day_count_convention,1)-J106)<0.01%,"OK","WRONG"),"") ->  | R106: =IF(D106<>"",IF(ABS(yield_price_auv(valuation_date,F106,D106,,J106,E106,index_day_count_convention,2)-K106)<0.001%,"OK","WRONG"),"") -> 
B107: 94 | J107: =IF(D107<>"",IF(G107<>"",G107,yield_price_auv(valuation_date,F107,D107,H107,,E107,index_day_count_convention,1)),"") ->  | K107: =IF(D107<>"",IF(H107<>"",H107,yield_price_auv(valuation_date,F107,D107,,G107,E107,index_day_count_convention,2)),"") ->  | M107: =IF(D107<>"",yield_price_auv(valuation_date,F107,D107,H107,G107,E107,index_day_count_convention,3),"") ->  | O107: =IF(D107<>"",time_convention(valuation_date,F107,index_day_count_convention),"") ->  | P107: =IF(D107<>"",yield_price_auv(valuation_date,F107,D107,K107,,E107,index_day_count_convention,4),"") ->  | Q107: =IF(D107<>"",IF(ABS(yield_price_auv(valuation_date,F107,D107,K107,,E107,index_day_count_convention,1)-J107)<0.01%,"OK","WRONG"),"") ->  | R107: =IF(D107<>"",IF(ABS(yield_price_auv(valuation_date,F107,D107,,J107,E107,index_day_count_convention,2)-K107)<0.001%,"OK","WRONG"),"") -> 
B108: 95 | J108: =IF(D108<>"",IF(G108<>"",G108,yield_price_auv(valuation_date,F108,D108,H108,,E108,index_day_count_convention,1)),"") ->  | K108: =IF(D108<>"",IF(H108<>"",H108,yield_price_auv(valuation_date,F108,D108,,G108,E108,index_day_count_convention,2)),"") ->  | M108: =IF(D108<>"",yield_price_auv(valuation_date,F108,D108,H108,G108,E108,index_day_count_convention,3),"") ->  | O108: =IF(D108<>"",time_convention(valuation_date,F108,index_day_count_convention),"") ->  | P108: =IF(D108<>"",yield_price_auv(valuation_date,F108,D108,K108,,E108,index_day_count_convention,4),"") ->  | Q108: =IF(D108<>"",IF(ABS(yield_price_auv(valuation_date,F108,D108,K108,,E108,index_day_count_convention,1)-J108)<0.01%,"OK","WRONG"),"") ->  | R108: =IF(D108<>"",IF(ABS(yield_price_auv(valuation_date,F108,D108,,J108,E108,index_day_count_convention,2)-K108)<0.001%,"OK","WRONG"),"") -> 
B109: 96 | J109: =IF(D109<>"",IF(G109<>"",G109,yield_price_auv(valuation_date,F109,D109,H109,,E109,index_day_count_convention,1)),"") ->  | K109: =IF(D109<>"",IF(H109<>"",H109,yield_price_auv(valuation_date,F109,D109,,G109,E109,index_day_count_convention,2)),"") ->  | M109: =IF(D109<>"",yield_price_auv(valuation_date,F109,D109,H109,G109,E109,index_day_count_convention,3),"") ->  | O109: =IF(D109<>"",time_convention(valuation_date,F109,index_day_count_convention),"") ->  | P109: =IF(D109<>"",yield_price_auv(valuation_date,F109,D109,K109,,E109,index_day_count_convention,4),"") ->  | Q109: =IF(D109<>"",IF(ABS(yield_price_auv(valuation_date,F109,D109,K109,,E109,index_day_count_convention,1)-J109)<0.01%,"OK","WRONG"),"") ->  | R109: =IF(D109<>"",IF(ABS(yield_price_auv(valuation_date,F109,D109,,J109,E109,index_day_count_convention,2)-K109)<0.001%,"OK","WRONG"),"") -> 
B110: 97 | J110: =IF(D110<>"",IF(G110<>"",G110,yield_price_auv(valuation_date,F110,D110,H110,,E110,index_day_count_convention,1)),"") ->  | K110: =IF(D110<>"",IF(H110<>"",H110,yield_price_auv(valuation_date,F110,D110,,G110,E110,index_day_count_convention,2)),"") ->  | M110: =IF(D110<>"",yield_price_auv(valuation_date,F110,D110,H110,G110,E110,index_day_count_convention,3),"") ->  | N110: =IF(D110<>"",M110+J110,"") ->  | O110: =IF(D110<>"",time_convention(valuation_date,F110,index_day_count_convention),"") ->  | P110: =IF(D110<>"",yield_price_auv(valuation_date,F110,D110,K110,,E110,index_day_count_convention,4),"") ->  | Q110: =IF(D110<>"",IF(ABS(yield_price_auv(valuation_date,F110,D110,K110,,E110,index_day_count_convention,1)-J110)<0.01%,"OK","WRONG"),"") ->  | R110: =IF(D110<>"",IF(ABS(yield_price_auv(valuation_date,F110,D110,,J110,E110,index_day_count_convention,2)-K110)<0.001%,"OK","WRONG"),"") -> 
B111: 98 | J111: =IF(D111<>"",IF(G111<>"",G111,yield_price_auv(valuation_date,F111,D111,H111,,E111,index_day_count_convention,1)),"") ->  | K111: =IF(D111<>"",IF(H111<>"",H111,yield_price_auv(valuation_date,F111,D111,,G111,E111,index_day_count_convention,2)),"") ->  | M111: =IF(D111<>"",yield_price_auv(valuation_date,F111,D111,H111,G111,E111,index_day_count_convention,3),"") ->  | O111: =IF(D111<>"",time_convention(valuation_date,F111,index_day_count_convention),"") ->  | P111: =IF(D111<>"",yield_price_auv(valuation_date,F111,D111,K111,,E111,index_day_count_convention,4),"") ->  | Q111: =IF(D111<>"",IF(ABS(yield_price_auv(valuation_date,F111,D111,K111,,E111,index_day_count_convention,1)-J111)<0.01%,"OK","WRONG"),"") ->  | R111: =IF(D111<>"",IF(ABS(yield_price_auv(valuation_date,F111,D111,,J111,E111,index_day_count_convention,2)-K111)<0.001%,"OK","WRONG"),"") -> 
B112: 99 | J112: =IF(D112<>"",IF(G112<>"",G112,yield_price_auv(valuation_date,F112,D112,H112,,E112,index_day_count_convention,1)),"") ->  | K112: =IF(D112<>"",IF(H112<>"",H112,yield_price_auv(valuation_date,F112,D112,,G112,E112,index_day_count_convention,2)),"") ->  | M112: =IF(D112<>"",yield_price_auv(valuation_date,F112,D112,H112,G112,E112,index_day_count_convention,3),"") ->  | O112: =IF(D112<>"",time_convention(valuation_date,F112,index_day_count_convention),"") ->  | P112: =IF(D112<>"",yield_price_auv(valuation_date,F112,D112,K112,,E112,index_day_count_convention,4),"") ->  | Q112: =IF(D112<>"",IF(ABS(yield_price_auv(valuation_date,F112,D112,K112,,E112,index_day_count_convention,1)-J112)<0.01%,"OK","WRONG"),"") ->  | R112: =IF(D112<>"",IF(ABS(yield_price_auv(valuation_date,F112,D112,,J112,E112,index_day_count_convention,2)-K112)<0.001%,"OK","WRONG"),"") -> 
B113: 100 | J113: =IF(D113<>"",IF(G113<>"",G113,yield_price_auv(valuation_date,F113,D113,H113,,E113,index_day_count_convention,1)),"") ->  | K113: =IF(D113<>"",IF(H113<>"",H113,yield_price_auv(valuation_date,F113,D113,,G113,E113,index_day_count_convention,2)),"") ->  | M113: =IF(D113<>"",yield_price_auv(valuation_date,F113,D113,H113,G113,E113,index_day_count_convention,3),"") ->  | O113: =IF(D113<>"",time_convention(valuation_date,F113,index_day_count_convention),"") ->  | P113: =IF(D113<>"",yield_price_auv(valuation_date,F113,D113,K113,,E113,index_day_count_convention,4),"") ->  | Q113: =IF(D113<>"",IF(ABS(yield_price_auv(valuation_date,F113,D113,K113,,E113,index_day_count_convention,1)-J113)<0.01%,"OK","WRONG"),"") ->  | R113: =IF(D113<>"",IF(ABS(yield_price_auv(valuation_date,F113,D113,,J113,E113,index_day_count_convention,2)-K113)<0.001%,"OK","WRONG"),"") -> 

Sheet Outputs
B3: OUTPUTS - yearly development
B6: Zero (Spot) Rates
B8: Years | C8: 1 | D8: 2 | E8: 3 | F8: 4 | G8: 5 | H8: 6 | I8: 7 | J8: 8 | K8: 9 | L8: 10 | M8: 11 | N8: 12 | O8: 13 | P8: 14 | Q8: 15 | R8: 16 | S8: 17 | T8: 18 | U8: 19 | V8: 20 | W8: 21 | X8: 22 | Y8: 23 | Z8: 24 | AA8: 25 | AB8: 26 | AC8: 27 | AD8: 28 | AE8: 29 | AF8: 30 | AG8: 31 | AH8: 32 | AI8: 33 | AJ8: 34 | AK8: 35 | AL8: 36 | AM8: 37 | AN8: 38 | AO8: 39 | AP8: 40 | AQ8: 41 | AR8: 42 | AS8: 43 | AT8: 44 | AU8: 45 | AV8: 46 | AW8: 47 | AX8: 48 | AY8: 49 | AZ8: 50
B9: Nelson-Siegel (DMP) | C9: =IF('Nelson-Siegel'!D19<>"",'Nelson-Siegel'!D19,"") -> 0.00252492302 | D9: =IF('Nelson-Siegel'!E19<>"",'Nelson-Siegel'!E19,"") -> 0.005321164534 | E9: =IF('Nelson-Siegel'!F19<>"",'Nelson-Siegel'!F19,"") -> 0.008242740949 | F9: =IF('Nelson-Siegel'!G19<>"",'Nelson-Siegel'!G19,"") -> 0.01106458555 | G9: =IF('Nelson-Siegel'!H19<>"",'Nelson-Siegel'!H19,"") -> 0.01367513309 | H9: =IF('Nelson-Siegel'!I19<>"",'Nelson-Siegel'!I19,"") -> 0.01602941178 | I9: =IF('Nelson-Siegel'!J19<>"",'Nelson-Siegel'!J19,"") -> 0.01812012692 | J9: =IF('Nelson-Siegel'!K19<>"",'Nelson-Siegel'!K19,"") -> 0.01996004898 | K9: =IF('Nelson-Siegel'!L19<>"",'Nelson-Siegel'!L19,"") -> 0.02157149072 | L9: =IF('Nelson-Siegel'!M19<>"",'Nelson-Siegel'!M19,"") -> 0.02298019849 | M9: =IF('Nelson-Siegel'!N19<>"",'Nelson-Siegel'!N19,"") -> 0.02421196009 | N9: =IF('Nelson-Siegel'!O19<>"",'Nelson-Siegel'!O19,"") -> 0.02529085614 | O9: =IF('Nelson-Siegel'!P19<>"",'Nelson-Siegel'!P19,"") -> 0.02623848263 | P9: =IF('Nelson-Siegel'!Q19<>"",'Nelson-Siegel'!Q19,"") -> 0.02707372759 | Q9: =IF('Nelson-Siegel'!R19<>"",'Nelson-Siegel'!R19,"") -> 0.02781284732 | R9: =IF('Nelson-Siegel'!S19<>"",'Nelson-Siegel'!S19,"") -> 0.02846968996 | S9: =IF('Nelson-Siegel'!T19<>"",'Nelson-Siegel'!T19,"") -> 0.02905597764 | T9: =IF('Nelson-Siegel'!U19<>"",'Nelson-Siegel'!U19,"") -> 0.02958159791 | U9: =IF('Nelson-Siegel'!V19<>"",'Nelson-Siegel'!V19,"") -> 0.03005487866 | V9: =IF('Nelson-Siegel'!W19<>"",'Nelson-Siegel'!W19,"") -> 0.03048283469 | W9: =IF('Nelson-Siegel'!X19<>"",'Nelson-Siegel'!X19,"") -> 0.0308713821 | X9: =IF('Nelson-Siegel'!Y19<>"",'Nelson-Siegel'!Y19,"") -> 0.031225521 | Y9: =IF('Nelson-Siegel'!Z19<>"",'Nelson-Siegel'!Z19,"") -> 0.03154948912 | Z9: =IF('Nelson-Siegel'!AA19<>"",'Nelson-Siegel'!AA19,"") -> 0.03184688985 | AA9: =IF('Nelson-Siegel'!AB19<>"",'Nelson-Siegel'!AB19,"") -> 0.03212079825 | AB9: =IF('Nelson-Siegel'!AC19<>"",'Nelson-Siegel'!AC19,"") -> 0.03237384864 | AC9: =IF('Nelson-Siegel'!AD19<>"",'Nelson-Siegel'!AD19,"") -> 0.03260830678 | AD9: =IF('Nelson-Siegel'!AE19<>"",'Nelson-Siegel'!AE19,"") -> 0.03282612931 | AE9: =IF('Nelson-Siegel'!AF19<>"",'Nelson-Siegel'!AF19,"") -> 0.03302901282 | AF9: =IF('Nelson-Siegel'!AG19<>"",'Nelson-Siegel'!AG19,"") -> 0.03321843427 | AG9: =IF('Nelson-Siegel'!AH19<>"",'Nelson-Siegel'!AH19,"") -> 0.03339568456 | AH9: =IF('Nelson-Siegel'!AI19<>"",'Nelson-Siegel'!AI19,"") -> 0.03356189623 | AI9: =IF('Nelson-Siegel'!AJ19<>"",'Nelson-Siegel'!AJ19,"") -> 0.03371806665 | AJ9: =IF('Nelson-Siegel'!AK19<>"",'Nelson-Siegel'!AK19,"") -> 0.03386507729 | AK9: =IF('Nelson-Siegel'!AL19<>"",'Nelson-Siegel'!AL19,"") -> 0.03400370986 | AL9: =IF('Nelson-Siegel'!AM19<>"",'Nelson-Siegel'!AM19,"") -> 0.03413465991 | AM9: =IF('Nelson-Siegel'!AN19<>"",'Nelson-Siegel'!AN19,"") -> 0.03425854831 | AN9: =IF('Nelson-Siegel'!AO19<>"",'Nelson-Siegel'!AO19,"") -> 0.03437593092 | AO9: =IF('Nelson-Siegel'!AP19<>"",'Nelson-Siegel'!AP19,"") -> 0.03448730686 | AP9: =IF('Nelson-Siegel'!AQ19<>"",'Nelson-Siegel'!AQ19,"") -> 0.03459312552 | AQ9: =IF('Nelson-Siegel'!AR19<>"",'Nelson-Siegel'!AR19,"") -> 0.03469379262 | AR9: =IF('Nelson-Siegel'!AS19<>"",'Nelson-Siegel'!AS19,"") -> 0.03478967533 | AS9: =IF('Nelson-Siegel'!AT19<>"",'Nelson-Siegel'!AT19,"") -> 0.03488110677 | AT9: =IF('Nelson-Siegel'!AU19<>"",'Nelson-Siegel'!AU19,"") -> 0.03496838986 | AU9: =IF('Nelson-Siegel'!AV19<>"",'Nelson-Siegel'!AV19,"") -> 0.03505180062 | AV9: =IF('Nelson-Siegel'!AW19<>"",'Nelson-Siegel'!AW19,"") -> 0.03513159115 | AW9: =IF('Nelson-Siegel'!AX19<>"",'Nelson-Siegel'!AX19,"") -> 0.03520799213 | AX9: =IF('Nelson-Siegel'!AY19<>"",'Nelson-Siegel'!AY19,"") -> 0.03528121504 | AY9: =IF('Nelson-Siegel'!AZ19<>"",'Nelson-Siegel'!AZ19,"") -> 0.03535145413 | AZ9: =IF('Nelson-Siegel'!BA19<>"",'Nelson-Siegel'!BA19,"") -> 0.03541888815
B10: Nelson-Siegel (YtM) | C10: =IF('Nelson-Siegel'!D31<>"",'Nelson-Siegel'!D31,"") ->  | D10: =IF('Nelson-Siegel'!E31<>"",'Nelson-Siegel'!E31,"") ->  | E10: =IF('Nelson-Siegel'!F31<>"",'Nelson-Siegel'!F31,"") ->  | F10: =IF('Nelson-Siegel'!G31<>"",'Nelson-Siegel'!G31,"") ->  | G10: =IF('Nelson-Siegel'!H31<>"",'Nelson-Siegel'!H31,"") ->  | H10: =IF('Nelson-Siegel'!I31<>"",'Nelson-Siegel'!I31,"") ->  | I10: =IF('Nelson-Siegel'!J31<>"",'Nelson-Siegel'!J31,"") ->  | J10: =IF('Nelson-Siegel'!K31<>"",'Nelson-Siegel'!K31,"") ->  | K10: =IF('Nelson-Siegel'!L31<>"",'Nelson-Siegel'!L31,"") ->  | L10: =IF('Nelson-Siegel'!M31<>"",'Nelson-Siegel'!M31,"") ->  | M10: =IF('Nelson-Siegel'!N31<>"",'Nelson-Siegel'!N31,"") ->  | N10: =IF('Nelson-Siegel'!O31<>"",'Nelson-Siegel'!O31,"") ->  | O10: =IF('Nelson-Siegel'!P31<>"",'Nelson-Siegel'!P31,"") ->  | P10: =IF('Nelson-Siegel'!Q31<>"",'Nelson-Siegel'!Q31,"") ->  | Q10: =IF('Nelson-Siegel'!R31<>"",'Nelson-Siegel'!R31,"") ->  | R10: =IF('Nelson-Siegel'!S31<>"",'Nelson-Siegel'!S31,"") ->  | S10: =IF('Nelson-Siegel'!T31<>"",'Nelson-Siegel'!T31,"") ->  | T10: =IF('Nelson-Siegel'!U31<>"",'Nelson-Siegel'!U31,"") ->  | U10: =IF('Nelson-Siegel'!V31<>"",'Nelson-Siegel'!V31,"") ->  | V10: =IF('Nelson-Siegel'!W31<>"",'Nelson-Siegel'!W31,"") ->  | W10: =IF('Nelson-Siegel'!X31<>"",'Nelson-Siegel'!X31,"") ->  | X10: =IF('Nelson-Siegel'!Y31<>"",'Nelson-Siegel'!Y31,"") ->  | Y10: =IF('Nelson-Siegel'!Z31<>"",'Nelson-Siegel'!Z31,"") ->  | Z10: =IF('Nelson-Siegel'!AA31<>"",'Nelson-Siegel'!AA31,"") ->  | AA10: =IF('Nelson-Siegel'!AB31<>"",'Nelson-Siegel'!AB31,"") ->  | AB10: =IF('Nelson-Siegel'!AC31<>"",'Nelson-Siegel'!AC31,"") ->  | AC10: =IF('Nelson-Siegel'!AD31<>"",'Nelson-Siegel'!AD31,"") ->  | AD10: =IF('Nelson-Siegel'!AE31<>"",'Nelson-Siegel'!AE31,"") ->  | AE10: =IF('Nelson-Siegel'!AF31<>"",'Nelson-Siegel'!AF31,"") ->  | AF10: =IF('Nelson-Siegel'!AG31<>"",'Nelson-Siegel'!AG31,"") ->  | AG10: =IF('Nelson-Siegel'!AH31<>"",'Nelson-Siegel'!AH31,"") ->  | AH10: =IF('Nelson-Siegel'!AI31<>"",'Nelson-Siegel'!AI31,"") ->  | AI10: =IF('Nelson-Siegel'!AJ31<>"",'Nelson-Siegel'!AJ31,"") ->  | AJ10: =IF('Nelson-Siegel'!AK31<>"",'Nelson-Siegel'!AK31,"") ->  | AK10: =IF('Nelson-Siegel'!AL31<>"",'Nelson-Siegel'!AL31,"") ->  | AL10: =IF('Nelson-Siegel'!AM31<>"",'Nelson-Siegel'!AM31,"") ->  | AM10: =IF('Nelson-Siegel'!AN31<>"",'Nelson-Siegel'!AN31,"") ->  | AN10: =IF('Nelson-Siegel'!AO31<>"",'Nelson-Siegel'!AO31,"") ->  | AO10: =IF('Nelson-Siegel'!AP31<>"",'Nelson-Siegel'!AP31,"") ->  | AP10: =IF('Nelson-Siegel'!AQ31<>"",'Nelson-Siegel'!AQ31,"") ->  | AQ10: =IF('Nelson-Siegel'!AR31<>"",'Nelson-Siegel'!AR31,"") ->  | AR10: =IF('Nelson-Siegel'!AS31<>"",'Nelson-Siegel'!AS31,"") ->  | AS10: =IF('Nelson-Siegel'!AT31<>"",'Nelson-Siegel'!AT31,"") ->  | AT10: =IF('Nelson-Siegel'!AU31<>"",'Nelson-Siegel'!AU31,"") ->  | AU10: =IF('Nelson-Siegel'!AV31<>"",'Nelson-Siegel'!AV31,"") ->  | AV10: =IF('Nelson-Siegel'!AW31<>"",'Nelson-Siegel'!AW31,"") ->  | AW10: =IF('Nelson-Siegel'!AX31<>"",'Nelson-Siegel'!AX31,"") ->  | AX10: =IF('Nelson-Siegel'!AY31<>"",'Nelson-Siegel'!AY31,"") ->  | AY10: =IF('Nelson-Siegel'!AZ31<>"",'Nelson-Siegel'!AZ31,"") ->  | AZ10: =IF('Nelson-Siegel'!BA31<>"",'Nelson-Siegel'!BA31,"") -> 
B11: Svensson (DMP) | C11: =IF(Swenson!D21<>"",Swenson!D21,"") -> 0.00444109991 | D11: =IF(Swenson!E21<>"",Swenson!E21,"") -> 0.006712067632 | E11: =IF(Swenson!F21<>"",Swenson!F21,"") -> 0.008845318586 | F11: =IF(Swenson!G21<>"",Swenson!G21,"") -> 0.01114609991 | G11: =IF(Swenson!H21<>"",Swenson!H21,"") -> 0.0135053469 | H11: =IF(Swenson!I21<>"",Swenson!I21,"") -> 0.01578116382 | I11: =IF(Swenson!J21<>"",Swenson!J21,"") -> 0.01788264293 | J11: =IF(Swenson!K21<>"",Swenson!K21,"") -> 0.01976973066 | K11: =IF(Swenson!L21<>"",Swenson!L21,"") -> 0.02143632644 | L11: =IF(Swenson!M21<>"",Swenson!M21,"") -> 0.02289506118 | M11: =IF(Swenson!N21<>"",Swenson!N21,"") -> 0.02416705207 | N11: =IF(Swenson!O21<>"",Swenson!O21,"") -> 0.02527588265 | O11: =IF(Swenson!P21<>"",Swenson!P21,"") -> 0.02624442585 | P11: =IF(Swenson!Q21<>"",Swenson!Q21,"") -> 0.0270933832 | Q11: =IF(Swenson!R21<>"",Swenson!R21,"") -> 0.02784078447 | R11: =IF(Swenson!S21<>"",Swenson!S21,"") -> 0.02850198538 | S11: =IF(Swenson!T21<>"",Swenson!T21,"") -> 0.02908989682 | T11: =IF(Swenson!U21<>"",Swenson!U21,"") -> 0.02961529979 | U11: =IF(Swenson!V21<>"",Swenson!V21,"") -> 0.0300871709 | V11: =IF(Swenson!W21<>"",Swenson!W21,"") -> 0.03051298323 | W11: =IF(Swenson!X21<>"",Swenson!X21,"") -> 0.03089896898 | X11: =IF(Swenson!Y21<>"",Swenson!Y21,"") -> 0.03125034121 | Y11: =IF(Swenson!Z21<>"",Swenson!Z21,"") -> 0.03157147758 | Z11: =IF(Swenson!AA21<>"",Swenson!AA21,"") -> 0.03186607055 | AA11: =IF(Swenson!AB21<>"",Swenson!AB21,"") -> 0.03213724963 | AB11: =IF(Swenson!AC21<>"",Swenson!AC21,"") -> 0.03238768026 | AC11: =IF(Swenson!AD21<>"",Swenson!AD21,"") -> 0.03261964401 | AD11: =IF(Swenson!AE21<>"",Swenson!AE21,"") -> 0.03283510346 | AE11: =IF(Swenson!AF21<>"",Swenson!AF21,"") -> 0.03303575491 | AF11: =IF(Swenson!AG21<>"",Swenson!AG21,"") -> 0.03322307138 | AG11: =IF(Swenson!AH21<>"",Swenson!AH21,"") -> 0.03339833768 | AH11: =IF(Swenson!AI21<>"",Swenson!AI21,"") -> 0.03356267929 | AI11: =IF(Swenson!AJ21<>"",Swenson!AJ21,"") -> 0.03371708609 | AJ11: =IF(Swenson!AK21<>"",Swenson!AK21,"") -> 0.03386243212 | AK11: =IF(Swenson!AL21<>"",Swenson!AL21,"") -> 0.03399949192 | AL11: =IF(Swenson!AM21<>"",Swenson!AM21,"") -> 0.03412895431 | AM11: =IF(Swenson!AN21<>"",Swenson!AN21,"") -> 0.03425143386 | AN11: =IF(Swenson!AO21<>"",Swenson!AO21,"") -> 0.03436748062 | AO11: =IF(Swenson!AP21<>"",Swenson!AP21,"") -> 0.03447758837 | AP11: =IF(Swenson!AQ21<>"",Swenson!AQ21,"") -> 0.03458220164 | AQ11: =IF(Swenson!AR21<>"",Swenson!AR21,"") -> 0.03468172167 | AR11: =IF(Swenson!AS21<>"",Swenson!AS21,"") -> 0.03477651156 | AS11: =IF(Swenson!AT21<>"",Swenson!AT21,"") -> 0.03486690072 | AT11: =IF(Swenson!AU21<>"",Swenson!AU21,"") -> 0.03495318866 | AU11: =IF(Swenson!AV21<>"",Swenson!AV21,"") -> 0.0350356483 | AV11: =IF(Swenson!AW21<>"",Swenson!AW21,"") -> 0.03511452889 | AW11: =IF(Swenson!AX21<>"",Swenson!AX21,"") -> 0.03519005849 | AX11: =IF(Swenson!AY21<>"",Swenson!AY21,"") -> 0.0352624462 | AY11: =IF(Swenson!AZ21<>"",Swenson!AZ21,"") -> 0.03533188406 | AZ11: =IF(Swenson!BA21<>"",Swenson!BA21,"") -> 0.03539854879
B12: Svensson (YtM) | C12: =IF(Swenson!D33<>"",Swenson!D33,"") -> 0.004469969259 | D12: =IF(Swenson!E33<>"",Swenson!E33,"") -> 0.006693657843 | E12: =IF(Swenson!F33<>"",Swenson!F33,"") -> 0.008781731574 | F12: =IF(Swenson!G33<>"",Swenson!G33,"") -> 0.01105309465 | G12: =IF(Swenson!H33<>"",Swenson!H33,"") -> 0.013396262 | H12: =IF(Swenson!I33<>"",Swenson!I33,"") -> 0.01566469314 | I12: =IF(Swenson!J33<>"",Swenson!J33,"") -> 0.01776383593 | J12: =IF(Swenson!K33<>"",Swenson!K33,"") -> 0.01965128951 | K12: =IF(Swenson!L33<>"",Swenson!L33,"") -> 0.02131956962 | L12: =IF(Swenson!M33<>"",Swenson!M33,"") -> 0.02278053581 | M12: =IF(Swenson!N33<>"",Swenson!N33,"") -> 0.02405489606 | N12: =IF(Swenson!O33<>"",Swenson!O33,"") -> 0.02516602987 | O12: =IF(Swenson!P33<>"",Swenson!P33,"") -> 0.02613671862 | P12: =IF(Swenson!Q33<>"",Swenson!Q33,"") -> 0.02698763174 | Q12: =IF(Swenson!R33<>"",Swenson!R33,"") -> 0.02773679696 | R12: =IF(Swenson!S33<>"",Swenson!S33,"") -> 0.02839958191 | S12: =IF(Swenson!T33<>"",Swenson!T33,"") -> 0.02898891491 | T12: =IF(Swenson!U33<>"",Swenson!U33,"") -> 0.02951559556 | U12: =IF(Swenson!V33<>"",Swenson!V33,"") -> 0.02998861818 | V12: =IF(Swenson!W33<>"",Swenson!W33,"") -> 0.03041547186 | W12: =IF(Swenson!X33<>"",Swenson!X33,"") -> 0.03080240281 | X12: =IF(Swenson!Y33<>"",Swenson!Y33,"") -> 0.0311546362 | Y12: =IF(Swenson!Z33<>"",Swenson!Z33,"") -> 0.03147656005 | Z12: =IF(Swenson!AA33<>"",Swenson!AA33,"") -> 0.03177187569 | AA12: =IF(Swenson!AB33<>"",Swenson!AB33,"") -> 0.03204372019 | AB12: =IF(Swenson!AC33<>"",Swenson!AC33,"") -> 0.03229476548 | AC12: =IF(Swenson!AD33<>"",Swenson!AD33,"") -> 0.03252729867 | AD12: =IF(Swenson!AE33<>"",Swenson!AE33,"") -> 0.03274328714 | AE12: =IF(Swenson!AF33<>"",Swenson!AF33,"") -> 0.03294443135 | AF12: =IF(Swenson!AG33<>"",Swenson!AG33,"") -> 0.0331322079 | AG12: =IF(Swenson!AH33<>"",Swenson!AH33,"") -> 0.03330790476 | AH12: =IF(Swenson!AI33<>"",Swenson!AI33,"") -> 0.03347265015 | AI12: =IF(Swenson!AJ33<>"",Swenson!AJ33,"") -> 0.03362743638 | AJ12: =IF(Swenson!AK33<>"",Swenson!AK33,"") -> 0.03377313962 | AK12: =IF(Swenson!AL33<>"",Swenson!AL33,"") -> 0.03391053632 | AL12: =IF(Swenson!AM33<>"",Swenson!AM33,"") -> 0.03404031697 | AM12: =IF(Swenson!AN33<>"",Swenson!AN33,"") -> 0.03416309764 | AN12: =IF(Swenson!AO33<>"",Swenson!AO33,"") -> 0.03427942975 | AO12: =IF(Swenson!AP33<>"",Swenson!AP33,"") -> 0.03438980828 | AP12: =IF(Swenson!AQ33<>"",Swenson!AQ33,"") -> 0.03449467884 | AQ12: =IF(Swenson!AR33<>"",Swenson!AR33,"") -> 0.03459444366 | AR12: =IF(Swenson!AS33<>"",Swenson!AS33,"") -> 0.03468946673 | AS12: =IF(Swenson!AT33<>"",Swenson!AT33,"") -> 0.03478007826 | AT12: =IF(Swenson!AU33<>"",Swenson!AU33,"") -> 0.0348665785 | AU12: =IF(Swenson!AV33<>"",Swenson!AV33,"") -> 0.03494924104 | AV12: =IF(Swenson!AW33<>"",Swenson!AW33,"") -> 0.03502831574 | AW12: =IF(Swenson!AX33<>"",Swenson!AX33,"") -> 0.03510403121 | AX12: =IF(Swenson!AY33<>"",Swenson!AY33,"") -> 0.03517659708 | AY12: =IF(Swenson!AZ33<>"",Swenson!AZ33,"") -> 0.03524620586 | AZ12: =IF(Swenson!BA33<>"",Swenson!BA33,"") -> 0.03531303468
B13: Cubic spline (DMP) | C13: =IF(cubic_spline!D25<>"",cubic_spline!D25,"") -> 0.005154712318 | D13: =IF(cubic_spline!E25<>"",cubic_spline!E25,"") -> 0.006431906435 | E13: =IF(cubic_spline!F25<>"",cubic_spline!F25,"") -> 0.008509461753 | F13: =IF(cubic_spline!G25<>"",cubic_spline!G25,"") -> 0.01108877628 | G13: =IF(cubic_spline!H25<>"",cubic_spline!H25,"") -> 0.0141462666 | H13: =IF(cubic_spline!I25<>"",cubic_spline!I25,"") -> 0.0141462666 | I13: =IF(cubic_spline!J25<>"",cubic_spline!J25,"") -> 0.0141462666 | J13: =IF(cubic_spline!K25<>"",cubic_spline!K25,"") -> 0.0141462666 | K13: =IF(cubic_spline!L25<>"",cubic_spline!L25,"") -> 0.0141462666 | L13: =IF(cubic_spline!M25<>"",cubic_spline!M25,"") -> 0.0141462666 | M13: =IF(cubic_spline!N25<>"",cubic_spline!N25,"") -> 0.0141462666 | N13: =IF(cubic_spline!O25<>"",cubic_spline!O25,"") -> 0.0141462666 | O13: =IF(cubic_spline!P25<>"",cubic_spline!P25,"") -> 0.0141462666 | P13: =IF(cubic_spline!Q25<>"",cubic_spline!Q25,"") -> 0.0141462666 | Q13: =IF(cubic_spline!R25<>"",cubic_spline!R25,"") -> 0.0141462666 | R13: =IF(cubic_spline!S25<>"",cubic_spline!S25,"") -> 0.0141462666 | S13: =IF(cubic_spline!T25<>"",cubic_spline!T25,"") -> 0.0141462666 | T13: =IF(cubic_spline!U25<>"",cubic_spline!U25,"") -> 0.0141462666 | U13: =IF(cubic_spline!V25<>"",cubic_spline!V25,"") -> 0.0141462666 | V13: =IF(cubic_spline!W25<>"",cubic_spline!W25,"") -> 0.0141462666 | W13: =IF(cubic_spline!X25<>"",cubic_spline!X25,"") -> 0.0141462666 | X13: =IF(cubic_spline!Y25<>"",cubic_spline!Y25,"") -> 0.0141462666 | Y13: =IF(cubic_spline!Z25<>"",cubic_spline!Z25,"") -> 0.0141462666 | Z13: =IF(cubic_spline!AA25<>"",cubic_spline!AA25,"") -> 0.0141462666 | AA13: =IF(cubic_spline!AB25<>"",cubic_spline!AB25,"") -> 0.0141462666 | AB13: =IF(cubic_spline!AC25<>"",cubic_spline!AC25,"") -> 0.0141462666 | AC13: =IF(cubic_spline!AD25<>"",cubic_spline!AD25,"") -> 0.0141462666 | AD13: =IF(cubic_spline!AE25<>"",cubic_spline!AE25,"") -> 0.0141462666 | AE13: =IF(cubic_spline!AF25<>"",cubic_spline!AF25,"") -> 0.0141462666 | AF13: =IF(cubic_spline!AG25<>"",cubic_spline!AG25,"") -> 0.0141462666 | AG13: =IF(cubic_spline!AH25<>"",cubic_spline!AH25,"") -> 0.0141462666 | AH13: =IF(cubic_spline!AI25<>"",cubic_spline!AI25,"") -> 0.0141462666 | AI13: =IF(cubic_spline!AJ25<>"",cubic_spline!AJ25,"") -> 0.0141462666 | AJ13: =IF(cubic_spline!AK25<>"",cubic_spline!AK25,"") -> 0.0141462666 | AK13: =IF(cubic_spline!AL25<>"",cubic_spline!AL25,"") -> 0.0141462666 | AL13: =IF(cubic_spline!AM25<>"",cubic_spline!AM25,"") -> 0.0141462666 | AM13: =IF(cubic_spline!AN25<>"",cubic_spline!AN25,"") -> 0.0141462666 | AN13: =IF(cubic_spline!AO25<>"",cubic_spline!AO25,"") -> 0.0141462666 | AO13: =IF(cubic_spline!AP25<>"",cubic_spline!AP25,"") -> 0.0141462666 | AP13: =IF(cubic_spline!AQ25<>"",cubic_spline!AQ25,"") -> 0.0141462666 | AQ13: =IF(cubic_spline!AR25<>"",cubic_spline!AR25,"") -> 0.0141462666 | AR13: =IF(cubic_spline!AS25<>"",cubic_spline!AS25,"") -> 0.0141462666 | AS13: =IF(cubic_spline!AT25<>"",cubic_spline!AT25,"") -> 0.0141462666 | AT13: =IF(cubic_spline!AU25<>"",cubic_spline!AU25,"") -> 0.0141462666 | AU13: =IF(cubic_spline!AV25<>"",cubic_spline!AV25,"") -> 0.0141462666 | AV13: =IF(cubic_spline!AW25<>"",cubic_spline!AW25,"") -> 0.0141462666 | AW13: =IF(cubic_spline!AX25<>"",cubic_spline!AX25,"") -> 0.0141462666 | AX13: =IF(cubic_spline!AY25<>"",cubic_spline!AY25,"") -> 0.0141462666 | AY13: =IF(cubic_spline!AZ25<>"",cubic_spline!AZ25,"") -> 0.0141462666 | AZ13: =IF(cubic_spline!BA25<>"",cubic_spline!BA25,"") -> 0.0141462666
B14: Smith-Wilson (DMP) | C14: =IF('Smith-Wilson'!D19<>"",'Smith-Wilson'!D19,"") -> 0.004657426559 | D14: =IF('Smith-Wilson'!E19<>"",'Smith-Wilson'!E19,"") -> 0.00660261358 | E14: =IF('Smith-Wilson'!F19<>"",'Smith-Wilson'!F19,"") -> 0.008834895726 | F14: =IF('Smith-Wilson'!G19<>"",'Smith-Wilson'!G19,"") -> 0.01115097397 | G14: =IF('Smith-Wilson'!H19<>"",'Smith-Wilson'!H19,"") -> 0.01403670792 | H14: =IF('Smith-Wilson'!I19<>"",'Smith-Wilson'!I19,"") -> 0.01583940316 | I14: =IF('Smith-Wilson'!J19<>"",'Smith-Wilson'!J19,"") -> 0.01751825859 | J14: =IF('Smith-Wilson'!K19<>"",'Smith-Wilson'!K19,"") -> 0.01903527709 | K14: =IF('Smith-Wilson'!L19<>"",'Smith-Wilson'!L19,"") -> 0.0204912285 | L14: =IF('Smith-Wilson'!M19<>"",'Smith-Wilson'!M19,"") -> 0.02197193121 | M14: =IF('Smith-Wilson'!N19<>"",'Smith-Wilson'!N19,"") -> 0.0239930925 | N14: =IF('Smith-Wilson'!O19<>"",'Smith-Wilson'!O19,"") -> 0.02593311944 | O14: =IF('Smith-Wilson'!P19<>"",'Smith-Wilson'!P19,"") -> 0.02741203034 | P14: =IF('Smith-Wilson'!Q19<>"",'Smith-Wilson'!Q19,"") -> 0.02843816939 | Q14: =IF('Smith-Wilson'!R19<>"",'Smith-Wilson'!R19,"") -> 0.02911654878 | R14: =IF('Smith-Wilson'!S19<>"",'Smith-Wilson'!S19,"") -> 0.02951678663 | S14: =IF('Smith-Wilson'!T19<>"",'Smith-Wilson'!T19,"") -> 0.02981658288 | T14: =IF('Smith-Wilson'!U19<>"",'Smith-Wilson'!U19,"") -> 0.0303697644 | U14: =IF('Smith-Wilson'!V19<>"",'Smith-Wilson'!V19,"") -> 0.03130760445 | V14: =IF('Smith-Wilson'!W19<>"",'Smith-Wilson'!W19,"") -> 0.03167226499 | W14: =IF('Smith-Wilson'!X19<>"",'Smith-Wilson'!X19,"") -> 0.0313887855 | X14: =IF('Smith-Wilson'!Y19<>"",'Smith-Wilson'!Y19,"") -> 0.03086000768 | Y14: =IF('Smith-Wilson'!Z19<>"",'Smith-Wilson'!Z19,"") -> 0.03038722201 | Z14: =IF('Smith-Wilson'!AA19<>"",'Smith-Wilson'!AA19,"") -> 0.030095193 | AA14: =IF('Smith-Wilson'!AB19<>"",'Smith-Wilson'!AB19,"") -> 0.02993643257 | AB14: =IF('Smith-Wilson'!AC19<>"",'Smith-Wilson'!AC19,"") -> 0.02986492403 | AC14: =IF('Smith-Wilson'!AD19<>"",'Smith-Wilson'!AD19,"") -> 0.02985730664 | AD14: =IF('Smith-Wilson'!AE19<>"",'Smith-Wilson'!AE19,"") -> 0.02990004774 | AE14: =IF('Smith-Wilson'!AF19<>"",'Smith-Wilson'!AF19,"") -> 0.02998238006 | AF14: =IF('Smith-Wilson'!AG19<>"",'Smith-Wilson'!AG19,"") -> 0.03009568472 | AG14: =IF('Smith-Wilson'!AH19<>"",'Smith-Wilson'!AH19,"") -> 0.03023303569 | AH14: =IF('Smith-Wilson'!AI19<>"",'Smith-Wilson'!AI19,"") -> 0.03038884967 | AI14: =IF('Smith-Wilson'!AJ19<>"",'Smith-Wilson'!AJ19,"") -> 0.0305586147 | AJ14: =IF('Smith-Wilson'!AK19<>"",'Smith-Wilson'!AK19,"") -> 0.0307386782 | AK14: =IF('Smith-Wilson'!AL19<>"",'Smith-Wilson'!AL19,"") -> 0.03092608026 | AL14: =IF('Smith-Wilson'!AM19<>"",'Smith-Wilson'!AM19,"") -> 0.03111842162 | AM14: =IF('Smith-Wilson'!AN19<>"",'Smith-Wilson'!AN19,"") -> 0.03131375857 | AN14: =IF('Smith-Wilson'!AO19<>"",'Smith-Wilson'!AO19,"") -> 0.03151051879 | AO14: =IF('Smith-Wilson'!AP19<>"",'Smith-Wilson'!AP19,"") -> 0.03170743361 | AP14: =IF('Smith-Wilson'!AQ19<>"",'Smith-Wilson'!AQ19,"") -> 0.03190348321 | AQ14: =IF('Smith-Wilson'!AR19<>"",'Smith-Wilson'!AR19,"") -> 0.03209785219 | AR14: =IF('Smith-Wilson'!AS19<>"",'Smith-Wilson'!AS19,"") -> 0.03228989326 | AS14: =IF('Smith-Wilson'!AT19<>"",'Smith-Wilson'!AT19,"") -> 0.03247909762 | AT14: =IF('Smith-Wilson'!AU19<>"",'Smith-Wilson'!AU19,"") -> 0.0326650706 | AU14: =IF('Smith-Wilson'!AV19<>"",'Smith-Wilson'!AV19,"") -> 0.03284751161 | AV14: =IF('Smith-Wilson'!AW19<>"",'Smith-Wilson'!AW19,"") -> 0.03302619764 | AW14: =IF('Smith-Wilson'!AX19<>"",'Smith-Wilson'!AX19,"") -> 0.03320096951 | AX14: =IF('Smith-Wilson'!AY19<>"",'Smith-Wilson'!AY19,"") -> 0.03337172058 | AY14: =IF('Smith-Wilson'!AZ19<>"",'Smith-Wilson'!AZ19,"") -> 0.0335383873 | AZ14: =IF('Smith-Wilson'!BA19<>"",'Smith-Wilson'!BA19,"") -> 0.0337009414
B15: Lin - Inter - Spot (DMP) | C15: =IF(Lin_inter_spot!D25<>"",Lin_inter_spot!D25,"") -> 0.004580085002 | D15: =IF(Lin_inter_spot!E25<>"",Lin_inter_spot!E25,"") -> 0.006658094675 | E15: =IF(Lin_inter_spot!F25<>"",Lin_inter_spot!F25,"") -> 0.008406262139 | F15: =IF(Lin_inter_spot!G25<>"",Lin_inter_spot!G25,"") -> 0.01122371193 | G15: =IF(Lin_inter_spot!H25<>"",Lin_inter_spot!H25,"") -> 0.01404116172 | H15: =IF(Lin_inter_spot!I25<>"",Lin_inter_spot!I25,"") -> 0.01568636705 | I15: =IF(Lin_inter_spot!J25<>"",Lin_inter_spot!J25,"") -> 0.01733157237 | J15: =IF(Lin_inter_spot!K25<>"",Lin_inter_spot!K25,"") -> 0.01897677769 | K15: =IF(Lin_inter_spot!L25<>"",Lin_inter_spot!L25,"") -> 0.02062198301 | L15: =IF(Lin_inter_spot!M25<>"",Lin_inter_spot!M25,"") -> 0.02226718833 | M15: =IF(Lin_inter_spot!N25<>"",Lin_inter_spot!N25,"") -> 0.02226718833 | N15: =IF(Lin_inter_spot!O25<>"",Lin_inter_spot!O25,"") -> 0.02226718833 | O15: =IF(Lin_inter_spot!P25<>"",Lin_inter_spot!P25,"") -> 0.02226718833 | P15: =IF(Lin_inter_spot!Q25<>"",Lin_inter_spot!Q25,"") -> 0.02226718833 | Q15: =IF(Lin_inter_spot!R25<>"",Lin_inter_spot!R25,"") -> 0.02226718833 | R15: =IF(Lin_inter_spot!S25<>"",Lin_inter_spot!S25,"") -> 0.02226718833 | S15: =IF(Lin_inter_spot!T25<>"",Lin_inter_spot!T25,"") -> 0.02226718833 | T15: =IF(Lin_inter_spot!U25<>"",Lin_inter_spot!U25,"") -> 0.02226718833 | U15: =IF(Lin_inter_spot!V25<>"",Lin_inter_spot!V25,"") -> 0.02226718833 | V15: =IF(Lin_inter_spot!W25<>"",Lin_inter_spot!W25,"") -> 0.02226718833 | W15: =IF(Lin_inter_spot!X25<>"",Lin_inter_spot!X25,"") -> 0.02226718833 | X15: =IF(Lin_inter_spot!Y25<>"",Lin_inter_spot!Y25,"") -> 0.02226718833 | Y15: =IF(Lin_inter_spot!Z25<>"",Lin_inter_spot!Z25,"") -> 0.02226718833 | Z15: =IF(Lin_inter_spot!AA25<>"",Lin_inter_spot!AA25,"") -> 0.02226718833 | AA15: =IF(Lin_inter_spot!AB25<>"",Lin_inter_spot!AB25,"") -> 0.02226718833 | AB15: =IF(Lin_inter_spot!AC25<>"",Lin_inter_spot!AC25,"") -> 0.02226718833 | AC15: =IF(Lin_inter_spot!AD25<>"",Lin_inter_spot!AD25,"") -> 0.02226718833 | AD15: =IF(Lin_inter_spot!AE25<>"",Lin_inter_spot!AE25,"") -> 0.02226718833 | AE15: =IF(Lin_inter_spot!AF25<>"",Lin_inter_spot!AF25,"") -> 0.02226718833 | AF15: =IF(Lin_inter_spot!AG25<>"",Lin_inter_spot!AG25,"") -> 0.02226718833 | AG15: =IF(Lin_inter_spot!AH25<>"",Lin_inter_spot!AH25,"") -> 0.02226718833 | AH15: =IF(Lin_inter_spot!AI25<>"",Lin_inter_spot!AI25,"") -> 0.02226718833 | AI15: =IF(Lin_inter_spot!AJ25<>"",Lin_inter_spot!AJ25,"") -> 0.02226718833 | AJ15: =IF(Lin_inter_spot!AK25<>"",Lin_inter_spot!AK25,"") -> 0.02226718833 | AK15: =IF(Lin_inter_spot!AL25<>"",Lin_inter_spot!AL25,"") -> 0.02226718833 | AL15: =IF(Lin_inter_spot!AM25<>"",Lin_inter_spot!AM25,"") -> 0.02226718833 | AM15: =IF(Lin_inter_spot!AN25<>"",Lin_inter_spot!AN25,"") -> 0.02226718833 | AN15: =IF(Lin_inter_spot!AO25<>"",Lin_inter_spot!AO25,"") -> 0.02226718833 | AO15: =IF(Lin_inter_spot!AP25<>"",Lin_inter_spot!AP25,"") -> 0.02226718833 | AP15: =IF(Lin_inter_spot!AQ25<>"",Lin_inter_spot!AQ25,"") -> 0.02226718833 | AQ15: =IF(Lin_inter_spot!AR25<>"",Lin_inter_spot!AR25,"") -> 0.02226718833 | AR15: =IF(Lin_inter_spot!AS25<>"",Lin_inter_spot!AS25,"") -> 0.02226718833 | AS15: =IF(Lin_inter_spot!AT25<>"",Lin_inter_spot!AT25,"") -> 0.02226718833 | AT15: =IF(Lin_inter_spot!AU25<>"",Lin_inter_spot!AU25,"") -> 0.02226718833 | AU15: =IF(Lin_inter_spot!AV25<>"",Lin_inter_spot!AV25,"") -> 0.02226718833 | AV15: =IF(Lin_inter_spot!AW25<>"",Lin_inter_spot!AW25,"") -> 0.02226718833 | AW15: =IF(Lin_inter_spot!AX25<>"",Lin_inter_spot!AX25,"") -> 0.02226718833 | AX15: =IF(Lin_inter_spot!AY25<>"",Lin_inter_spot!AY25,"") -> 0.02226718833 | AY15: =IF(Lin_inter_spot!AZ25<>"",Lin_inter_spot!AZ25,"") -> 0.02226718833 | AZ15: =IF(Lin_inter_spot!BA25<>"",Lin_inter_spot!BA25,"") -> 0.02226718833
B16: Lin - Inter - Spot (YtM) | C16: =IF(Lin_inter_spot!D36<>"",Lin_inter_spot!D36,"") -> 0.004941006146 | D16: =IF(Lin_inter_spot!E36<>"",Lin_inter_spot!E36,"") -> 0.006536073621 | E16: =IF(Lin_inter_spot!F36<>"",Lin_inter_spot!F36,"") -> 0.008591503512 | F16: =IF(Lin_inter_spot!G36<>"",Lin_inter_spot!G36,"") -> 0.01119959185 | G16: =IF(Lin_inter_spot!H36<>"",Lin_inter_spot!H36,"") -> 0.01380768019 | H16: =IF(Lin_inter_spot!I36<>"",Lin_inter_spot!I36,"") -> 0.01558999432 | I16: =IF(Lin_inter_spot!J36<>"",Lin_inter_spot!J36,"") -> 0.01737230845 | J16: =IF(Lin_inter_spot!K36<>"",Lin_inter_spot!K36,"") -> 0.01915462258 | K16: =IF(Lin_inter_spot!L36<>"",Lin_inter_spot!L36,"") -> 0.02093693671 | L16: =IF(Lin_inter_spot!M36<>"",Lin_inter_spot!M36,"") -> 0.02271925084 | M16: =IF(Lin_inter_spot!N36<>"",Lin_inter_spot!N36,"") -> 0.02271925084 | N16: =IF(Lin_inter_spot!O36<>"",Lin_inter_spot!O36,"") -> 0.02271925084 | O16: =IF(Lin_inter_spot!P36<>"",Lin_inter_spot!P36,"") -> 0.02271925084 | P16: =IF(Lin_inter_spot!Q36<>"",Lin_inter_spot!Q36,"") -> 0.02271925084 | Q16: =IF(Lin_inter_spot!R36<>"",Lin_inter_spot!R36,"") -> 0.02271925084 | R16: =IF(Lin_inter_spot!S36<>"",Lin_inter_spot!S36,"") -> 0.02271925084 | S16: =IF(Lin_inter_spot!T36<>"",Lin_inter_spot!T36,"") -> 0.02271925084 | T16: =IF(Lin_inter_spot!U36<>"",Lin_inter_spot!U36,"") -> 0.02271925084 | U16: =IF(Lin_inter_spot!V36<>"",Lin_inter_spot!V36,"") -> 0.02271925084 | V16: =IF(Lin_inter_spot!W36<>"",Lin_inter_spot!W36,"") -> 0.02271925084 | W16: =IF(Lin_inter_spot!X36<>"",Lin_inter_spot!X36,"") -> 0.02271925084 | X16: =IF(Lin_inter_spot!Y36<>"",Lin_inter_spot!Y36,"") -> 0.02271925084 | Y16: =IF(Lin_inter_spot!Z36<>"",Lin_inter_spot!Z36,"") -> 0.02271925084 | Z16: =IF(Lin_inter_spot!AA36<>"",Lin_inter_spot!AA36,"") -> 0.02271925084 | AA16: =IF(Lin_inter_spot!AB36<>"",Lin_inter_spot!AB36,"") -> 0.02271925084 | AB16: =IF(Lin_inter_spot!AC36<>"",Lin_inter_spot!AC36,"") -> 0.02271925084 | AC16: =IF(Lin_inter_spot!AD36<>"",Lin_inter_spot!AD36,"") -> 0.02271925084 | AD16: =IF(Lin_inter_spot!AE36<>"",Lin_inter_spot!AE36,"") -> 0.02271925084 | AE16: =IF(Lin_inter_spot!AF36<>"",Lin_inter_spot!AF36,"") -> 0.02271925084 | AF16: =IF(Lin_inter_spot!AG36<>"",Lin_inter_spot!AG36,"") -> 0.02271925084 | AG16: =IF(Lin_inter_spot!AH36<>"",Lin_inter_spot!AH36,"") -> 0.02271925084 | AH16: =IF(Lin_inter_spot!AI36<>"",Lin_inter_spot!AI36,"") -> 0.02271925084 | AI16: =IF(Lin_inter_spot!AJ36<>"",Lin_inter_spot!AJ36,"") -> 0.02271925084 | AJ16: =IF(Lin_inter_spot!AK36<>"",Lin_inter_spot!AK36,"") -> 0.02271925084 | AK16: =IF(Lin_inter_spot!AL36<>"",Lin_inter_spot!AL36,"") -> 0.02271925084 | AL16: =IF(Lin_inter_spot!AM36<>"",Lin_inter_spot!AM36,"") -> 0.02271925084 | AM16: =IF(Lin_inter_spot!AN36<>"",Lin_inter_spot!AN36,"") -> 0.02271925084 | AN16: =IF(Lin_inter_spot!AO36<>"",Lin_inter_spot!AO36,"") -> 0.02271925084 | AO16: =IF(Lin_inter_spot!AP36<>"",Lin_inter_spot!AP36,"") -> 0.02271925084 | AP16: =IF(Lin_inter_spot!AQ36<>"",Lin_inter_spot!AQ36,"") -> 0.02271925084 | AQ16: =IF(Lin_inter_spot!AR36<>"",Lin_inter_spot!AR36,"") -> 0.02271925084 | AR16: =IF(Lin_inter_spot!AS36<>"",Lin_inter_spot!AS36,"") -> 0.02271925084 | AS16: =IF(Lin_inter_spot!AT36<>"",Lin_inter_spot!AT36,"") -> 0.02271925084 | AT16: =IF(Lin_inter_spot!AU36<>"",Lin_inter_spot!AU36,"") -> 0.02271925084 | AU16: =IF(Lin_inter_spot!AV36<>"",Lin_inter_spot!AV36,"") -> 0.02271925084 | AV16: =IF(Lin_inter_spot!AW36<>"",Lin_inter_spot!AW36,"") -> 0.02271925084 | AW16: =IF(Lin_inter_spot!AX36<>"",Lin_inter_spot!AX36,"") -> 0.02271925084 | AX16: =IF(Lin_inter_spot!AY36<>"",Lin_inter_spot!AY36,"") -> 0.02271925084 | AY16: =IF(Lin_inter_spot!AZ36<>"",Lin_inter_spot!AZ36,"") -> 0.02271925084 | AZ16: =IF(Lin_inter_spot!BA36<>"",Lin_inter_spot!BA36,"") -> 0.02271925084
B17: Lin - Inter - DF (DMP) | C17: =IF(Lin_Inter_DF!D25<>"",Lin_Inter_DF!D25,"") -> 0.00422160759 | D17: =IF(Lin_Inter_DF!E25<>"",Lin_Inter_DF!E25,"") -> 0.006576039245 | E17: =IF(Lin_Inter_DF!F25<>"",Lin_Inter_DF!F25,"") -> 0.008098632193 | F17: =IF(Lin_Inter_DF!G25<>"",Lin_Inter_DF!G25,"") -> 0.01144432199 | G17: =IF(Lin_Inter_DF!H25<>"",Lin_Inter_DF!H25,"") -> 0.01355120386 | H17: =IF(Lin_Inter_DF!I25<>"",Lin_Inter_DF!I25,"") -> 0.01589809875 | I17: =IF(Lin_Inter_DF!J25<>"",Lin_Inter_DF!J25,"") -> 0.01768948277 | J17: =IF(Lin_Inter_DF!K25<>"",Lin_Inter_DF!K25,"") -> 0.01913863605 | K17: =IF(Lin_Inter_DF!L25<>"",Lin_Inter_DF!L25,"") -> 0.02036481973 | L17: =IF(Lin_Inter_DF!M25<>"",Lin_Inter_DF!M25,"") -> 0.02144019668 | M17: =IF(Lin_Inter_DF!N25<>"",Lin_Inter_DF!N25,"") -> 0.02144019668 | N17: =IF(Lin_Inter_DF!O25<>"",Lin_Inter_DF!O25,"") -> 0.02144019668 | O17: =IF(Lin_Inter_DF!P25<>"",Lin_Inter_DF!P25,"") -> 0.02144019668 | P17: =IF(Lin_Inter_DF!Q25<>"",Lin_Inter_DF!Q25,"") -> 0.02144019668 | Q17: =IF(Lin_Inter_DF!R25<>"",Lin_Inter_DF!R25,"") -> 0.02144019668 | R17: =IF(Lin_Inter_DF!S25<>"",Lin_Inter_DF!S25,"") -> 0.02144019668 | S17: =IF(Lin_Inter_DF!T25<>"",Lin_Inter_DF!T25,"") -> 0.02144019668 | T17: =IF(Lin_Inter_DF!U25<>"",Lin_Inter_DF!U25,"") -> 0.02144019668 | U17: =IF(Lin_Inter_DF!V25<>"",Lin_Inter_DF!V25,"") -> 0.02144019668 | V17: =IF(Lin_Inter_DF!W25<>"",Lin_Inter_DF!W25,"") -> 0.02144019668 | W17: =IF(Lin_Inter_DF!X25<>"",Lin_Inter_DF!X25,"") -> 0.02144019668 | X17: =IF(Lin_Inter_DF!Y25<>"",Lin_Inter_DF!Y25,"") -> 0.02144019668 | Y17: =IF(Lin_Inter_DF!Z25<>"",Lin_Inter_DF!Z25,"") -> 0.02144019668 | Z17: =IF(Lin_Inter_DF!AA25<>"",Lin_Inter_DF!AA25,"") -> 0.02144019668 | AA17: =IF(Lin_Inter_DF!AB25<>"",Lin_Inter_DF!AB25,"") -> 0.02144019668 | AB17: =IF(Lin_Inter_DF!AC25<>"",Lin_Inter_DF!AC25,"") -> 0.02144019668 | AC17: =IF(Lin_Inter_DF!AD25<>"",Lin_Inter_DF!AD25,"") -> 0.02144019668 | AD17: =IF(Lin_Inter_DF!AE25<>"",Lin_Inter_DF!AE25,"") -> 0.02144019668 | AE17: =IF(Lin_Inter_DF!AF25<>"",Lin_Inter_DF!AF25,"") -> 0.02144019668 | AF17: =IF(Lin_Inter_DF!AG25<>"",Lin_Inter_DF!AG25,"") -> 0.02144019668 | AG17: =IF(Lin_Inter_DF!AH25<>"",Lin_Inter_DF!AH25,"") -> 0.02144019668 | AH17: =IF(Lin_Inter_DF!AI25<>"",Lin_Inter_DF!AI25,"") -> 0.02144019668 | AI17: =IF(Lin_Inter_DF!AJ25<>"",Lin_Inter_DF!AJ25,"") -> 0.02144019668 | AJ17: =IF(Lin_Inter_DF!AK25<>"",Lin_Inter_DF!AK25,"") -> 0.02144019668 | AK17: =IF(Lin_Inter_DF!AL25<>"",Lin_Inter_DF!AL25,"") -> 0.02144019668 | AL17: =IF(Lin_Inter_DF!AM25<>"",Lin_Inter_DF!AM25,"") -> 0.02144019668 | AM17: =IF(Lin_Inter_DF!AN25<>"",Lin_Inter_DF!AN25,"") -> 0.02144019668 | AN17: =IF(Lin_Inter_DF!AO25<>"",Lin_Inter_DF!AO25,"") -> 0.02144019668 | AO17: =IF(Lin_Inter_DF!AP25<>"",Lin_Inter_DF!AP25,"") -> 0.02144019668 | AP17: =IF(Lin_Inter_DF!AQ25<>"",Lin_Inter_DF!AQ25,"") -> 0.02144019668 | AQ17: =IF(Lin_Inter_DF!AR25<>"",Lin_Inter_DF!AR25,"") -> 0.02144019668 | AR17: =IF(Lin_Inter_DF!AS25<>"",Lin_Inter_DF!AS25,"") -> 0.02144019668 | AS17: =IF(Lin_Inter_DF!AT25<>"",Lin_Inter_DF!AT25,"") -> 0.02144019668 | AT17: =IF(Lin_Inter_DF!AU25<>"",Lin_Inter_DF!AU25,"") -> 0.02144019668 | AU17: =IF(Lin_Inter_DF!AV25<>"",Lin_Inter_DF!AV25,"") -> 0.02144019668 | AV17: =IF(Lin_Inter_DF!AW25<>"",Lin_Inter_DF!AW25,"") -> 0.02144019668 | AW17: =IF(Lin_Inter_DF!AX25<>"",Lin_Inter_DF!AX25,"") -> 0.02144019668 | AX17: =IF(Lin_Inter_DF!AY25<>"",Lin_Inter_DF!AY25,"") -> 0.02144019668 | AY17: =IF(Lin_Inter_DF!AZ25<>"",Lin_Inter_DF!AZ25,"") -> 0.02144019668 | AZ17: =IF(Lin_Inter_DF!BA25<>"",Lin_Inter_DF!BA25,"") -> 0.02144019668
B18: Lin - Inter - DF (YtM) | C18: =IF(Lin_Inter_DF!D36<>"",Lin_Inter_DF!D36,"") -> 0.004169229959 | D18: =IF(Lin_Inter_DF!E36<>"",Lin_Inter_DF!E36,"") -> 0.006517289531 | E18: =IF(Lin_Inter_DF!F36<>"",Lin_Inter_DF!F36,"") -> 0.00811787285 | F18: =IF(Lin_Inter_DF!G36<>"",Lin_Inter_DF!G36,"") -> 0.01161674434 | G18: =IF(Lin_Inter_DF!H36<>"",Lin_Inter_DF!H36,"") -> 0.01382172096 | H18: =IF(Lin_Inter_DF!I36<>"",Lin_Inter_DF!I36,"") -> 0.01603724697 | I18: =IF(Lin_Inter_DF!J36<>"",Lin_Inter_DF!J36,"") -> 0.01773023148 | J18: =IF(Lin_Inter_DF!K36<>"",Lin_Inter_DF!K36,"") -> 0.01910135294 | K18: =IF(Lin_Inter_DF!L36<>"",Lin_Inter_DF!L36,"") -> 0.02026280031 | L18: =IF(Lin_Inter_DF!M36<>"",Lin_Inter_DF!M36,"") -> 0.02128244023 | M18: =IF(Lin_Inter_DF!N36<>"",Lin_Inter_DF!N36,"") -> 0.02128244023 | N18: =IF(Lin_Inter_DF!O36<>"",Lin_Inter_DF!O36,"") -> 0.02128244023 | O18: =IF(Lin_Inter_DF!P36<>"",Lin_Inter_DF!P36,"") -> 0.02128244023 | P18: =IF(Lin_Inter_DF!Q36<>"",Lin_Inter_DF!Q36,"") -> 0.02128244023 | Q18: =IF(Lin_Inter_DF!R36<>"",Lin_Inter_DF!R36,"") -> 0.02128244023 | R18: =IF(Lin_Inter_DF!S36<>"",Lin_Inter_DF!S36,"") -> 0.02128244023 | S18: =IF(Lin_Inter_DF!T36<>"",Lin_Inter_DF!T36,"") -> 0.02128244023 | T18: =IF(Lin_Inter_DF!U36<>"",Lin_Inter_DF!U36,"") -> 0.02128244023 | U18: =IF(Lin_Inter_DF!V36<>"",Lin_Inter_DF!V36,"") -> 0.02128244023 | V18: =IF(Lin_Inter_DF!W36<>"",Lin_Inter_DF!W36,"") -> 0.02128244023 | W18: =IF(Lin_Inter_DF!X36<>"",Lin_Inter_DF!X36,"") -> 0.02128244023 | X18: =IF(Lin_Inter_DF!Y36<>"",Lin_Inter_DF!Y36,"") -> 0.02128244023 | Y18: =IF(Lin_Inter_DF!Z36<>"",Lin_Inter_DF!Z36,"") -> 0.02128244023 | Z18: =IF(Lin_Inter_DF!AA36<>"",Lin_Inter_DF!AA36,"") -> 0.02128244023 | AA18: =IF(Lin_Inter_DF!AB36<>"",Lin_Inter_DF!AB36,"") -> 0.02128244023 | AB18: =IF(Lin_Inter_DF!AC36<>"",Lin_Inter_DF!AC36,"") -> 0.02128244023 | AC18: =IF(Lin_Inter_DF!AD36<>"",Lin_Inter_DF!AD36,"") -> 0.02128244023 | AD18: =IF(Lin_Inter_DF!AE36<>"",Lin_Inter_DF!AE36,"") -> 0.02128244023 | AE18: =IF(Lin_Inter_DF!AF36<>"",Lin_Inter_DF!AF36,"") -> 0.02128244023 | AF18: =IF(Lin_Inter_DF!AG36<>"",Lin_Inter_DF!AG36,"") -> 0.02128244023 | AG18: =IF(Lin_Inter_DF!AH36<>"",Lin_Inter_DF!AH36,"") -> 0.02128244023 | AH18: =IF(Lin_Inter_DF!AI36<>"",Lin_Inter_DF!AI36,"") -> 0.02128244023 | AI18: =IF(Lin_Inter_DF!AJ36<>"",Lin_Inter_DF!AJ36,"") -> 0.02128244023 | AJ18: =IF(Lin_Inter_DF!AK36<>"",Lin_Inter_DF!AK36,"") -> 0.02128244023 | AK18: =IF(Lin_Inter_DF!AL36<>"",Lin_Inter_DF!AL36,"") -> 0.02128244023 | AL18: =IF(Lin_Inter_DF!AM36<>"",Lin_Inter_DF!AM36,"") -> 0.02128244023 | AM18: =IF(Lin_Inter_DF!AN36<>"",Lin_Inter_DF!AN36,"") -> 0.02128244023 | AN18: =IF(Lin_Inter_DF!AO36<>"",Lin_Inter_DF!AO36,"") -> 0.02128244023 | AO18: =IF(Lin_Inter_DF!AP36<>"",Lin_Inter_DF!AP36,"") -> 0.02128244023 | AP18: =IF(Lin_Inter_DF!AQ36<>"",Lin_Inter_DF!AQ36,"") -> 0.02128244023 | AQ18: =IF(Lin_Inter_DF!AR36<>"",Lin_Inter_DF!AR36,"") -> 0.02128244023 | AR18: =IF(Lin_Inter_DF!AS36<>"",Lin_Inter_DF!AS36,"") -> 0.02128244023 | AS18: =IF(Lin_Inter_DF!AT36<>"",Lin_Inter_DF!AT36,"") -> 0.02128244023 | AT18: =IF(Lin_Inter_DF!AU36<>"",Lin_Inter_DF!AU36,"") -> 0.02128244023 | AU18: =IF(Lin_Inter_DF!AV36<>"",Lin_Inter_DF!AV36,"") -> 0.02128244023 | AV18: =IF(Lin_Inter_DF!AW36<>"",Lin_Inter_DF!AW36,"") -> 0.02128244023 | AW18: =IF(Lin_Inter_DF!AX36<>"",Lin_Inter_DF!AX36,"") -> 0.02128244023 | AX18: =IF(Lin_Inter_DF!AY36<>"",Lin_Inter_DF!AY36,"") -> 0.02128244023 | AY18: =IF(Lin_Inter_DF!AZ36<>"",Lin_Inter_DF!AZ36,"") -> 0.02128244023 | AZ18: =IF(Lin_Inter_DF!BA36<>"",Lin_Inter_DF!BA36,"") -> 0.02128244023
B19: Lin - Inter - Forward (DMP) | C19: =IF(Lin_Inter_fw!D25<>"",Lin_Inter_fw!D25,"") -> 0.005212034513 | D19: =IF(Lin_Inter_fw!E25<>"",Lin_Inter_fw!E25,"") -> 0.006948157413 | E19: =IF(Lin_Inter_fw!F25<>"",Lin_Inter_fw!F25,"") -> 0.008611218816 | F19: =IF(Lin_Inter_fw!G25<>"",Lin_Inter_fw!G25,"") -> 0.01149458162 | G19: =IF(Lin_Inter_fw!H25<>"",Lin_Inter_fw!H25,"") -> 0.0138523207 | H19: =IF(Lin_Inter_fw!I25<>"",Lin_Inter_fw!I25,"") -> 0.0159465073 | I19: =IF(Lin_Inter_fw!J25<>"",Lin_Inter_fw!J25,"") -> 0.01767799549 | J19: =IF(Lin_Inter_fw!K25<>"",Lin_Inter_fw!K25,"") -> 0.01918239422 | K19: =IF(Lin_Inter_fw!L25<>"",Lin_Inter_fw!L25,"") -> 0.0205351688 | L19: =IF(Lin_Inter_fw!M25<>"",Lin_Inter_fw!M25,"") -> 0.02178165579 | M19: =IF(Lin_Inter_fw!N25<>"",Lin_Inter_fw!N25,"") -> 0.02178165579 | N19: =IF(Lin_Inter_fw!O25<>"",Lin_Inter_fw!O25,"") -> 0.02178165579 | O19: =IF(Lin_Inter_fw!P25<>"",Lin_Inter_fw!P25,"") -> 0.02178165579 | P19: =IF(Lin_Inter_fw!Q25<>"",Lin_Inter_fw!Q25,"") -> 0.02178165579 | Q19: =IF(Lin_Inter_fw!R25<>"",Lin_Inter_fw!R25,"") -> 0.02178165579 | R19: =IF(Lin_Inter_fw!S25<>"",Lin_Inter_fw!S25,"") -> 0.02178165579 | S19: =IF(Lin_Inter_fw!T25<>"",Lin_Inter_fw!T25,"") -> 0.02178165579 | T19: =IF(Lin_Inter_fw!U25<>"",Lin_Inter_fw!U25,"") -> 0.02178165579 | U19: =IF(Lin_Inter_fw!V25<>"",Lin_Inter_fw!V25,"") -> 0.02178165579 | V19: =IF(Lin_Inter_fw!W25<>"",Lin_Inter_fw!W25,"") -> 0.02178165579 | W19: =IF(Lin_Inter_fw!X25<>"",Lin_Inter_fw!X25,"") -> 0.02178165579 | X19: =IF(Lin_Inter_fw!Y25<>"",Lin_Inter_fw!Y25,"") -> 0.02178165579 | Y19: =IF(Lin_Inter_fw!Z25<>"",Lin_Inter_fw!Z25,"") -> 0.02178165579 | Z19: =IF(Lin_Inter_fw!AA25<>"",Lin_Inter_fw!AA25,"") -> 0.02178165579 | AA19: =IF(Lin_Inter_fw!AB25<>"",Lin_Inter_fw!AB25,"") -> 0.02178165579 | AB19: =IF(Lin_Inter_fw!AC25<>"",Lin_Inter_fw!AC25,"") -> 0.02178165579 | AC19: =IF(Lin_Inter_fw!AD25<>"",Lin_Inter_fw!AD25,"") -> 0.02178165579 | AD19: =IF(Lin_Inter_fw!AE25<>"",Lin_Inter_fw!AE25,"") -> 0.02178165579 | AE19: =IF(Lin_Inter_fw!AF25<>"",Lin_Inter_fw!AF25,"") -> 0.02178165579 | AF19: =IF(Lin_Inter_fw!AG25<>"",Lin_Inter_fw!AG25,"") -> 0.02178165579 | AG19: =IF(Lin_Inter_fw!AH25<>"",Lin_Inter_fw!AH25,"") -> 0.02178165579 | AH19: =IF(Lin_Inter_fw!AI25<>"",Lin_Inter_fw!AI25,"") -> 0.02178165579 | AI19: =IF(Lin_Inter_fw!AJ25<>"",Lin_Inter_fw!AJ25,"") -> 0.02178165579 | AJ19: =IF(Lin_Inter_fw!AK25<>"",Lin_Inter_fw!AK25,"") -> 0.02178165579 | AK19: =IF(Lin_Inter_fw!AL25<>"",Lin_Inter_fw!AL25,"") -> 0.02178165579 | AL19: =IF(Lin_Inter_fw!AM25<>"",Lin_Inter_fw!AM25,"") -> 0.02178165579 | AM19: =IF(Lin_Inter_fw!AN25<>"",Lin_Inter_fw!AN25,"") -> 0.02178165579 | AN19: =IF(Lin_Inter_fw!AO25<>"",Lin_Inter_fw!AO25,"") -> 0.02178165579 | AO19: =IF(Lin_Inter_fw!AP25<>"",Lin_Inter_fw!AP25,"") -> 0.02178165579 | AP19: =IF(Lin_Inter_fw!AQ25<>"",Lin_Inter_fw!AQ25,"") -> 0.02178165579 | AQ19: =IF(Lin_Inter_fw!AR25<>"",Lin_Inter_fw!AR25,"") -> 0.02178165579 | AR19: =IF(Lin_Inter_fw!AS25<>"",Lin_Inter_fw!AS25,"") -> 0.02178165579 | AS19: =IF(Lin_Inter_fw!AT25<>"",Lin_Inter_fw!AT25,"") -> 0.02178165579 | AT19: =IF(Lin_Inter_fw!AU25<>"",Lin_Inter_fw!AU25,"") -> 0.02178165579 | AU19: =IF(Lin_Inter_fw!AV25<>"",Lin_Inter_fw!AV25,"") -> 0.02178165579 | AV19: =IF(Lin_Inter_fw!AW25<>"",Lin_Inter_fw!AW25,"") -> 0.02178165579 | AW19: =IF(Lin_Inter_fw!AX25<>"",Lin_Inter_fw!AX25,"") -> 0.02178165579 | AX19: =IF(Lin_Inter_fw!AY25<>"",Lin_Inter_fw!AY25,"") -> 0.02178165579 | AY19: =IF(Lin_Inter_fw!AZ25<>"",Lin_Inter_fw!AZ25,"") -> 0.02178165579 | AZ19: =IF(Lin_Inter_fw!BA25<>"",Lin_Inter_fw!BA25,"") -> 0.02178165579
B20: Lin - Inter - Forward (YtM) | C20: =IF(Lin_Inter_fw!D36<>"",Lin_Inter_fw!D36,"") -> 0.005594581689 | D20: =IF(Lin_Inter_fw!E36<>"",Lin_Inter_fw!E36,"") -> 0.005767824747 | E20: =IF(Lin_Inter_fw!F36<>"",Lin_Inter_fw!F36,"") -> 0.009562781245 | F20: =IF(Lin_Inter_fw!G36<>"",Lin_Inter_fw!G36,"") -> 0.01154760055 | G20: =IF(Lin_Inter_fw!H36<>"",Lin_Inter_fw!H36,"") -> 0.01380242983 | H20: =IF(Lin_Inter_fw!I36<>"",Lin_Inter_fw!I36,"") -> 0.01619103458 | I20: =IF(Lin_Inter_fw!J36<>"",Lin_Inter_fw!J36,"") -> 0.01794319872 | J20: =IF(Lin_Inter_fw!K36<>"",Lin_Inter_fw!K36,"") -> 0.01929659437 | K20: =IF(Lin_Inter_fw!L36<>"",Lin_Inter_fw!L36,"") -> 0.02038365186 | L20: =IF(Lin_Inter_fw!M36<>"",Lin_Inter_fw!M36,"") -> 0.02128400544 | M20: =IF(Lin_Inter_fw!N36<>"",Lin_Inter_fw!N36,"") -> 0.02128400544 | N20: =IF(Lin_Inter_fw!O36<>"",Lin_Inter_fw!O36,"") -> 0.02128400544 | O20: =IF(Lin_Inter_fw!P36<>"",Lin_Inter_fw!P36,"") -> 0.02128400544 | P20: =IF(Lin_Inter_fw!Q36<>"",Lin_Inter_fw!Q36,"") -> 0.02128400544 | Q20: =IF(Lin_Inter_fw!R36<>"",Lin_Inter_fw!R36,"") -> 0.02128400544 | R20: =IF(Lin_Inter_fw!S36<>"",Lin_Inter_fw!S36,"") -> 0.02128400544 | S20: =IF(Lin_Inter_fw!T36<>"",Lin_Inter_fw!T36,"") -> 0.02128400544 | T20: =IF(Lin_Inter_fw!U36<>"",Lin_Inter_fw!U36,"") -> 0.02128400544 | U20: =IF(Lin_Inter_fw!V36<>"",Lin_Inter_fw!V36,"") -> 0.02128400544 | V20: =IF(Lin_Inter_fw!W36<>"",Lin_Inter_fw!W36,"") -> 0.02128400544 | W20: =IF(Lin_Inter_fw!X36<>"",Lin_Inter_fw!X36,"") -> 0.02128400544 | X20: =IF(Lin_Inter_fw!Y36<>"",Lin_Inter_fw!Y36,"") -> 0.02128400544 | Y20: =IF(Lin_Inter_fw!Z36<>"",Lin_Inter_fw!Z36,"") -> 0.02128400544 | Z20: =IF(Lin_Inter_fw!AA36<>"",Lin_Inter_fw!AA36,"") -> 0.02128400544 | AA20: =IF(Lin_Inter_fw!AB36<>"",Lin_Inter_fw!AB36,"") -> 0.02128400544 | AB20: =IF(Lin_Inter_fw!AC36<>"",Lin_Inter_fw!AC36,"") -> 0.02128400544 | AC20: =IF(Lin_Inter_fw!AD36<>"",Lin_Inter_fw!AD36,"") -> 0.02128400544 | AD20: =IF(Lin_Inter_fw!AE36<>"",Lin_Inter_fw!AE36,"") -> 0.02128400544 | AE20: =IF(Lin_Inter_fw!AF36<>"",Lin_Inter_fw!AF36,"") -> 0.02128400544 | AF20: =IF(Lin_Inter_fw!AG36<>"",Lin_Inter_fw!AG36,"") -> 0.02128400544 | AG20: =IF(Lin_Inter_fw!AH36<>"",Lin_Inter_fw!AH36,"") -> 0.02128400544 | AH20: =IF(Lin_Inter_fw!AI36<>"",Lin_Inter_fw!AI36,"") -> 0.02128400544 | AI20: =IF(Lin_Inter_fw!AJ36<>"",Lin_Inter_fw!AJ36,"") -> 0.02128400544 | AJ20: =IF(Lin_Inter_fw!AK36<>"",Lin_Inter_fw!AK36,"") -> 0.02128400544 | AK20: =IF(Lin_Inter_fw!AL36<>"",Lin_Inter_fw!AL36,"") -> 0.02128400544 | AL20: =IF(Lin_Inter_fw!AM36<>"",Lin_Inter_fw!AM36,"") -> 0.02128400544 | AM20: =IF(Lin_Inter_fw!AN36<>"",Lin_Inter_fw!AN36,"") -> 0.02128400544 | AN20: =IF(Lin_Inter_fw!AO36<>"",Lin_Inter_fw!AO36,"") -> 0.02128400544 | AO20: =IF(Lin_Inter_fw!AP36<>"",Lin_Inter_fw!AP36,"") -> 0.02128400544 | AP20: =IF(Lin_Inter_fw!AQ36<>"",Lin_Inter_fw!AQ36,"") -> 0.02128400544 | AQ20: =IF(Lin_Inter_fw!AR36<>"",Lin_Inter_fw!AR36,"") -> 0.02128400544 | AR20: =IF(Lin_Inter_fw!AS36<>"",Lin_Inter_fw!AS36,"") -> 0.02128400544 | AS20: =IF(Lin_Inter_fw!AT36<>"",Lin_Inter_fw!AT36,"") -> 0.02128400544 | AT20: =IF(Lin_Inter_fw!AU36<>"",Lin_Inter_fw!AU36,"") -> 0.02128400544 | AU20: =IF(Lin_Inter_fw!AV36<>"",Lin_Inter_fw!AV36,"") -> 0.02128400544 | AV20: =IF(Lin_Inter_fw!AW36<>"",Lin_Inter_fw!AW36,"") -> 0.02128400544 | AW20: =IF(Lin_Inter_fw!AX36<>"",Lin_Inter_fw!AX36,"") -> 0.02128400544 | AX20: =IF(Lin_Inter_fw!AY36<>"",Lin_Inter_fw!AY36,"") -> 0.02128400544 | AY20: =IF(Lin_Inter_fw!AZ36<>"",Lin_Inter_fw!AZ36,"") -> 0.02128400544 | AZ20: =IF(Lin_Inter_fw!BA36<>"",Lin_Inter_fw!BA36,"") -> 0.02128400544
B21: Lin - Inter - Par (DMP) | C21: =IF(Lin_Inter_par!D25<>"",Lin_Inter_par!D25,"") -> 0.003727278473 | D21: =IF(Lin_Inter_par!E25<>"",Lin_Inter_par!E25,"") -> 0.006408048514 | E21: =IF(Lin_Inter_par!F25<>"",Lin_Inter_par!F25,"") -> 0.008610881695 | F21: =IF(Lin_Inter_par!G25<>"",Lin_Inter_par!G25,"") -> 0.01078750308 | G21: =IF(Lin_Inter_par!H25<>"",Lin_Inter_par!H25,"") -> 0.01406452357 | H21: =IF(Lin_Inter_par!I25<>"",Lin_Inter_par!I25,"") -> 0.01566612123 | I21: =IF(Lin_Inter_par!J25<>"",Lin_Inter_par!J25,"") -> 0.01728857302 | J21: =IF(Lin_Inter_par!K25<>"",Lin_Inter_par!K25,"") -> 0.01893475718 | K21: =IF(Lin_Inter_par!L25<>"",Lin_Inter_par!L25,"") -> 0.02060810671 | L21: =IF(Lin_Inter_par!M25<>"",Lin_Inter_par!M25,"") -> 0.02231256865 | M21: =IF(Lin_Inter_par!N25<>"",Lin_Inter_par!N25,"") -> 0.02231256865 | N21: =IF(Lin_Inter_par!O25<>"",Lin_Inter_par!O25,"") -> 0.02231256865 | O21: =IF(Lin_Inter_par!P25<>"",Lin_Inter_par!P25,"") -> 0.02231256865 | P21: =IF(Lin_Inter_par!Q25<>"",Lin_Inter_par!Q25,"") -> 0.02231256865 | Q21: =IF(Lin_Inter_par!R25<>"",Lin_Inter_par!R25,"") -> 0.02231256865 | R21: =IF(Lin_Inter_par!S25<>"",Lin_Inter_par!S25,"") -> 0.02231256865 | S21: =IF(Lin_Inter_par!T25<>"",Lin_Inter_par!T25,"") -> 0.02231256865 | T21: =IF(Lin_Inter_par!U25<>"",Lin_Inter_par!U25,"") -> 0.02231256865 | U21: =IF(Lin_Inter_par!V25<>"",Lin_Inter_par!V25,"") -> 0.02231256865 | V21: =IF(Lin_Inter_par!W25<>"",Lin_Inter_par!W25,"") -> 0.02231256865 | W21: =IF(Lin_Inter_par!X25<>"",Lin_Inter_par!X25,"") -> 0.02231256865 | X21: =IF(Lin_Inter_par!Y25<>"",Lin_Inter_par!Y25,"") -> 0.02231256865 | Y21: =IF(Lin_Inter_par!Z25<>"",Lin_Inter_par!Z25,"") -> 0.02231256865 | Z21: =IF(Lin_Inter_par!AA25<>"",Lin_Inter_par!AA25,"") -> 0.02231256865 | AA21: =IF(Lin_Inter_par!AB25<>"",Lin_Inter_par!AB25,"") -> 0.02231256865 | AB21: =IF(Lin_Inter_par!AC25<>"",Lin_Inter_par!AC25,"") -> 0.02231256865 | AC21: =IF(Lin_Inter_par!AD25<>"",Lin_Inter_par!AD25,"") -> 0.02231256865 | AD21: =IF(Lin_Inter_par!AE25<>"",Lin_Inter_par!AE25,"") -> 0.02231256865 | AE21: =IF(Lin_Inter_par!AF25<>"",Lin_Inter_par!AF25,"") -> 0.02231256865 | AF21: =IF(Lin_Inter_par!AG25<>"",Lin_Inter_par!AG25,"") -> 0.02231256865 | AG21: =IF(Lin_Inter_par!AH25<>"",Lin_Inter_par!AH25,"") -> 0.02231256865 | AH21: =IF(Lin_Inter_par!AI25<>"",Lin_Inter_par!AI25,"") -> 0.02231256865 | AI21: =IF(Lin_Inter_par!AJ25<>"",Lin_Inter_par!AJ25,"") -> 0.02231256865 | AJ21: =IF(Lin_Inter_par!AK25<>"",Lin_Inter_par!AK25,"") -> 0.02231256865 | AK21: =IF(Lin_Inter_par!AL25<>"",Lin_Inter_par!AL25,"") -> 0.02231256865 | AL21: =IF(Lin_Inter_par!AM25<>"",Lin_Inter_par!AM25,"") -> 0.02231256865 | AM21: =IF(Lin_Inter_par!AN25<>"",Lin_Inter_par!AN25,"") -> 0.02231256865 | AN21: =IF(Lin_Inter_par!AO25<>"",Lin_Inter_par!AO25,"") -> 0.02231256865 | AO21: =IF(Lin_Inter_par!AP25<>"",Lin_Inter_par!AP25,"") -> 0.02231256865 | AP21: =IF(Lin_Inter_par!AQ25<>"",Lin_Inter_par!AQ25,"") -> 0.02231256865 | AQ21: =IF(Lin_Inter_par!AR25<>"",Lin_Inter_par!AR25,"") -> 0.02231256865 | AR21: =IF(Lin_Inter_par!AS25<>"",Lin_Inter_par!AS25,"") -> 0.02231256865 | AS21: =IF(Lin_Inter_par!AT25<>"",Lin_Inter_par!AT25,"") -> 0.02231256865 | AT21: =IF(Lin_Inter_par!AU25<>"",Lin_Inter_par!AU25,"") -> 0.02231256865 | AU21: =IF(Lin_Inter_par!AV25<>"",Lin_Inter_par!AV25,"") -> 0.02231256865 | AV21: =IF(Lin_Inter_par!AW25<>"",Lin_Inter_par!AW25,"") -> 0.02231256865 | AW21: =IF(Lin_Inter_par!AX25<>"",Lin_Inter_par!AX25,"") -> 0.02231256865 | AX21: =IF(Lin_Inter_par!AY25<>"",Lin_Inter_par!AY25,"") -> 0.02231256865 | AY21: =IF(Lin_Inter_par!AZ25<>"",Lin_Inter_par!AZ25,"") -> 0.02231256865 | AZ21: =IF(Lin_Inter_par!BA25<>"",Lin_Inter_par!BA25,"") -> 0.02231256865
B22: Lin - Inter - Par (YtM) | C22: =IF(Lin_Inter_par!D36<>"",Lin_Inter_par!D36,"") -> 0.004959668694 | D22: =IF(Lin_Inter_par!E36<>"",Lin_Inter_par!E36,"") -> 0.005961566734 | E22: =IF(Lin_Inter_par!F36<>"",Lin_Inter_par!F36,"") -> 0.008755123321 | F22: =IF(Lin_Inter_par!G36<>"",Lin_Inter_par!G36,"") -> 0.01052063878 | G22: =IF(Lin_Inter_par!H36<>"",Lin_Inter_par!H36,"") -> 0.01403830401 | H22: =IF(Lin_Inter_par!I36<>"",Lin_Inter_par!I36,"") -> 0.01565993208 | I22: =IF(Lin_Inter_par!J36<>"",Lin_Inter_par!J36,"") -> 0.01730273967 | J22: =IF(Lin_Inter_par!K36<>"",Lin_Inter_par!K36,"") -> 0.01896971016 | K22: =IF(Lin_Inter_par!L36<>"",Lin_Inter_par!L36,"") -> 0.02066438453 | L22: =IF(Lin_Inter_par!M36<>"",Lin_Inter_par!M36,"") -> 0.0223908276 | M22: =IF(Lin_Inter_par!N36<>"",Lin_Inter_par!N36,"") -> 0.0223908276 | N22: =IF(Lin_Inter_par!O36<>"",Lin_Inter_par!O36,"") -> 0.0223908276 | O22: =IF(Lin_Inter_par!P36<>"",Lin_Inter_par!P36,"") -> 0.0223908276 | P22: =IF(Lin_Inter_par!Q36<>"",Lin_Inter_par!Q36,"") -> 0.0223908276 | Q22: =IF(Lin_Inter_par!R36<>"",Lin_Inter_par!R36,"") -> 0.0223908276 | R22: =IF(Lin_Inter_par!S36<>"",Lin_Inter_par!S36,"") -> 0.0223908276 | S22: =IF(Lin_Inter_par!T36<>"",Lin_Inter_par!T36,"") -> 0.0223908276 | T22: =IF(Lin_Inter_par!U36<>"",Lin_Inter_par!U36,"") -> 0.0223908276 | U22: =IF(Lin_Inter_par!V36<>"",Lin_Inter_par!V36,"") -> 0.0223908276 | V22: =IF(Lin_Inter_par!W36<>"",Lin_Inter_par!W36,"") -> 0.0223908276 | W22: =IF(Lin_Inter_par!X36<>"",Lin_Inter_par!X36,"") -> 0.0223908276 | X22: =IF(Lin_Inter_par!Y36<>"",Lin_Inter_par!Y36,"") -> 0.0223908276 | Y22: =IF(Lin_Inter_par!Z36<>"",Lin_Inter_par!Z36,"") -> 0.0223908276 | Z22: =IF(Lin_Inter_par!AA36<>"",Lin_Inter_par!AA36,"") -> 0.0223908276 | AA22: =IF(Lin_Inter_par!AB36<>"",Lin_Inter_par!AB36,"") -> 0.0223908276 | AB22: =IF(Lin_Inter_par!AC36<>"",Lin_Inter_par!AC36,"") -> 0.0223908276 | AC22: =IF(Lin_Inter_par!AD36<>"",Lin_Inter_par!AD36,"") -> 0.0223908276 | AD22: =IF(Lin_Inter_par!AE36<>"",Lin_Inter_par!AE36,"") -> 0.0223908276 | AE22: =IF(Lin_Inter_par!AF36<>"",Lin_Inter_par!AF36,"") -> 0.0223908276 | AF22: =IF(Lin_Inter_par!AG36<>"",Lin_Inter_par!AG36,"") -> 0.0223908276 | AG22: =IF(Lin_Inter_par!AH36<>"",Lin_Inter_par!AH36,"") -> 0.0223908276 | AH22: =IF(Lin_Inter_par!AI36<>"",Lin_Inter_par!AI36,"") -> 0.0223908276 | AI22: =IF(Lin_Inter_par!AJ36<>"",Lin_Inter_par!AJ36,"") -> 0.0223908276 | AJ22: =IF(Lin_Inter_par!AK36<>"",Lin_Inter_par!AK36,"") -> 0.0223908276 | AK22: =IF(Lin_Inter_par!AL36<>"",Lin_Inter_par!AL36,"") -> 0.0223908276 | AL22: =IF(Lin_Inter_par!AM36<>"",Lin_Inter_par!AM36,"") -> 0.0223908276 | AM22: =IF(Lin_Inter_par!AN36<>"",Lin_Inter_par!AN36,"") -> 0.0223908276 | AN22: =IF(Lin_Inter_par!AO36<>"",Lin_Inter_par!AO36,"") -> 0.0223908276 | AO22: =IF(Lin_Inter_par!AP36<>"",Lin_Inter_par!AP36,"") -> 0.0223908276 | AP22: =IF(Lin_Inter_par!AQ36<>"",Lin_Inter_par!AQ36,"") -> 0.0223908276 | AQ22: =IF(Lin_Inter_par!AR36<>"",Lin_Inter_par!AR36,"") -> 0.0223908276 | AR22: =IF(Lin_Inter_par!AS36<>"",Lin_Inter_par!AS36,"") -> 0.0223908276 | AS22: =IF(Lin_Inter_par!AT36<>"",Lin_Inter_par!AT36,"") -> 0.0223908276 | AT22: =IF(Lin_Inter_par!AU36<>"",Lin_Inter_par!AU36,"") -> 0.0223908276 | AU22: =IF(Lin_Inter_par!AV36<>"",Lin_Inter_par!AV36,"") -> 0.0223908276 | AV22: =IF(Lin_Inter_par!AW36<>"",Lin_Inter_par!AW36,"") -> 0.0223908276 | AW22: =IF(Lin_Inter_par!AX36<>"",Lin_Inter_par!AX36,"") -> 0.0223908276 | AX22: =IF(Lin_Inter_par!AY36<>"",Lin_Inter_par!AY36,"") -> 0.0223908276 | AY22: =IF(Lin_Inter_par!AZ36<>"",Lin_Inter_par!AZ36,"") -> 0.0223908276 | AZ22: =IF(Lin_Inter_par!BA36<>"",Lin_Inter_par!BA36,"") -> 0.0223908276
B25: 1-Year Forward Rates
B27: Years | C27: 1 | D27: 2 | E27: 3 | F27: 4 | G27: 5 | H27: 6 | I27: 7 | J27: 8 | K27: 9 | L27: 10 | M27: 11 | N27: 12 | O27: 13 | P27: 14 | Q27: 15 | R27: 16 | S27: 17 | T27: 18 | U27: 19 | V27: 20 | W27: 21 | X27: 22 | Y27: 23 | Z27: 24 | AA27: 25 | AB27: 26 | AC27: 27 | AD27: 28 | AE27: 29 | AF27: 30 | AG27: 31 | AH27: 32 | AI27: 33 | AJ27: 34 | AK27: 35 | AL27: 36 | AM27: 37 | AN27: 38 | AO27: 39 | AP27: 40 | AQ27: 41 | AR27: 42 | AS27: 43 | AT27: 44 | AU27: 45 | AV27: 46 | AW27: 47 | AX27: 48 | AY27: 49 | AZ27: 50
B28: Nelson-Siegel (DMP) | C28: =IF('Nelson-Siegel'!D20<>"",'Nelson-Siegel'!D20,"") -> 0.00252492302 | D28: =IF('Nelson-Siegel'!E20<>"",'Nelson-Siegel'!E20,"") -> 0.008125205322 | E28: =IF('Nelson-Siegel'!F20<>"",'Nelson-Siegel'!F20,"") -> 0.01411138974 | F28: =IF('Nelson-Siegel'!G20<>"",'Nelson-Siegel'!G20,"") -> 0.0195775941 | G28: =IF('Nelson-Siegel'!H20<>"",'Nelson-Siegel'!H20,"") -> 0.02418490129 | H28: =IF('Nelson-Siegel'!I20<>"",'Nelson-Siegel'!I20,"") -> 0.02788307745 | I28: =IF('Nelson-Siegel'!J20<>"",'Nelson-Siegel'!J20,"") -> 0.03075507297 | J28: =IF('Nelson-Siegel'!K20<>"",'Nelson-Siegel'!K20,"") -> 0.03293294244 | K28: =IF('Nelson-Siegel'!L20<>"",'Nelson-Siegel'!L20,"") -> 0.03455501665 | L28: =IF('Nelson-Siegel'!M20<>"",'Nelson-Siegel'!M20,"") -> 0.03574630562 | M28: =IF('Nelson-Siegel'!N20<>"",'Nelson-Siegel'!N20,"") -> 0.03661144491 | N28: =IF('Nelson-Siegel'!O20<>"",'Nelson-Siegel'!O20,"") -> 0.0372339857 | O28: =IF('Nelson-Siegel'!P20<>"",'Nelson-Siegel'!P20,"") -> 0.0376785485 | P28: =IF('Nelson-Siegel'!Q20<>"",'Nelson-Siegel'!Q20,"") -> 0.0379939754 | Q28: =IF('Nelson-Siegel'!R20<>"",'Nelson-Siegel'!R20,"") -> 0.03821654735 | R28: =IF('Nelson-Siegel'!S20<>"",'Nelson-Siegel'!S20,"") -> 0.03837285216 | S28: =IF('Nelson-Siegel'!T20<>"",'Nelson-Siegel'!T20,"") -> 0.03848216393 | T28: =IF('Nelson-Siegel'!U20<>"",'Nelson-Siegel'!U20,"") -> 0.03855833144 | U28: =IF('Nelson-Siegel'!V20<>"",'Nelson-Siegel'!V20,"") -> 0.03861123192 | V28: =IF('Nelson-Siegel'!W20<>"",'Nelson-Siegel'!W20,"") -> 0.03864786613 | W28: =IF('Nelson-Siegel'!X20<>"",'Nelson-Siegel'!X20,"") -> 0.03867316953 | X28: =IF('Nelson-Siegel'!Y20<>"",'Nelson-Siegel'!Y20,"") -> 0.03869060541 | Y28: =IF('Nelson-Siegel'!Z20<>"",'Nelson-Siegel'!Z20,"") -> 0.03870259423 | Z28: =IF('Nelson-Siegel'!AA20<>"",'Nelson-Siegel'!AA20,"") -> 0.03871082152 | AA28: =IF('Nelson-Siegel'!AB20<>"",'Nelson-Siegel'!AB20,"") -> 0.03871645735 | AB28: =IF('Nelson-Siegel'!AC20<>"",'Nelson-Siegel'!AC20,"") -> 0.0387203116 | AC28: =IF('Nelson-Siegel'!AD20<>"",'Nelson-Siegel'!AD20,"") -> 0.03872294344 | AD28: =IF('Nelson-Siegel'!AE20<>"",'Nelson-Siegel'!AE20,"") -> 0.03872473803 | AE28: =IF('Nelson-Siegel'!AF20<>"",'Nelson-Siegel'!AF20,"") -> 0.03872596012 | AF28: =IF('Nelson-Siegel'!AG20<>"",'Nelson-Siegel'!AG20,"") -> 0.03872679132 | AG28: =IF('Nelson-Siegel'!AH20<>"",'Nelson-Siegel'!AH20,"") -> 0.03872735602 | AH28: =IF('Nelson-Siegel'!AI20<>"",'Nelson-Siegel'!AI20,"") -> 0.03872773925 | AI28: =IF('Nelson-Siegel'!AJ20<>"",'Nelson-Siegel'!AJ20,"") -> 0.03872799907 | AJ28: =IF('Nelson-Siegel'!AK20<>"",'Nelson-Siegel'!AK20,"") -> 0.03872817506 | AK28: =IF('Nelson-Siegel'!AL20<>"",'Nelson-Siegel'!AL20,"") -> 0.03872829416 | AL28: =IF('Nelson-Siegel'!AM20<>"",'Nelson-Siegel'!AM20,"") -> 0.03872837468 | AM28: =IF('Nelson-Siegel'!AN20<>"",'Nelson-Siegel'!AN20,"") -> 0.03872842909 | AN28: =IF('Nelson-Siegel'!AO20<>"",'Nelson-Siegel'!AO20,"") -> 0.03872846583 | AO28: =IF('Nelson-Siegel'!AP20<>"",'Nelson-Siegel'!AP20,"") -> 0.03872849061 | AP28: =IF('Nelson-Siegel'!AQ20<>"",'Nelson-Siegel'!AQ20,"") -> 0.03872850732 | AQ28: =IF('Nelson-Siegel'!AR20<>"",'Nelson-Siegel'!AR20,"") -> 0.03872851857 | AR28: =IF('Nelson-Siegel'!AS20<>"",'Nelson-Siegel'!AS20,"") -> 0.03872852615 | AS28: =IF('Nelson-Siegel'!AT20<>"",'Nelson-Siegel'!AT20,"") -> 0.03872853126 | AT28: =IF('Nelson-Siegel'!AU20<>"",'Nelson-Siegel'!AU20,"") -> 0.03872853469 | AU28: =IF('Nelson-Siegel'!AV20<>"",'Nelson-Siegel'!AV20,"") -> 0.03872853699 | AV28: =IF('Nelson-Siegel'!AW20<>"",'Nelson-Siegel'!AW20,"") -> 0.03872853854 | AW28: =IF('Nelson-Siegel'!AX20<>"",'Nelson-Siegel'!AX20,"") -> 0.03872853958 | AX28: =IF('Nelson-Siegel'!AY20<>"",'Nelson-Siegel'!AY20,"") -> 0.03872854028 | AY28: =IF('Nelson-Siegel'!AZ20<>"",'Nelson-Siegel'!AZ20,"") -> 0.03872854075 | AZ28: =IF('Nelson-Siegel'!BA20<>"",'Nelson-Siegel'!BA20,"") -> 0.03872854107
B29: Nelson-Siegel (YtM) | C29: =IF('Nelson-Siegel'!D32<>"",'Nelson-Siegel'!D32,"") ->  | D29: =IF('Nelson-Siegel'!E32<>"",'Nelson-Siegel'!E32,"") ->  | E29: =IF('Nelson-Siegel'!F32<>"",'Nelson-Siegel'!F32,"") ->  | F29: =IF('Nelson-Siegel'!G32<>"",'Nelson-Siegel'!G32,"") ->  | G29: =IF('Nelson-Siegel'!H32<>"",'Nelson-Siegel'!H32,"") ->  | H29: =IF('Nelson-Siegel'!I32<>"",'Nelson-Siegel'!I32,"") ->  | I29: =IF('Nelson-Siegel'!J32<>"",'Nelson-Siegel'!J32,"") ->  | J29: =IF('Nelson-Siegel'!K32<>"",'Nelson-Siegel'!K32,"") ->  | K29: =IF('Nelson-Siegel'!L32<>"",'Nelson-Siegel'!L32,"") ->  | L29: =IF('Nelson-Siegel'!M32<>"",'Nelson-Siegel'!M32,"") ->  | M29: =IF('Nelson-Siegel'!N32<>"",'Nelson-Siegel'!N32,"") ->  | N29: =IF('Nelson-Siegel'!O32<>"",'Nelson-Siegel'!O32,"") ->  | O29: =IF('Nelson-Siegel'!P32<>"",'Nelson-Siegel'!P32,"") ->  | P29: =IF('Nelson-Siegel'!Q32<>"",'Nelson-Siegel'!Q32,"") ->  | Q29: =IF('Nelson-Siegel'!R32<>"",'Nelson-Siegel'!R32,"") ->  | R29: =IF('Nelson-Siegel'!S32<>"",'Nelson-Siegel'!S32,"") ->  | S29: =IF('Nelson-Siegel'!T32<>"",'Nelson-Siegel'!T32,"") ->  | T29: =IF('Nelson-Siegel'!U32<>"",'Nelson-Siegel'!U32,"") ->  | U29: =IF('Nelson-Siegel'!V32<>"",'Nelson-Siegel'!V32,"") ->  | V29: =IF('Nelson-Siegel'!W32<>"",'Nelson-Siegel'!W32,"") ->  | W29: =IF('Nelson-Siegel'!X32<>"",'Nelson-Siegel'!X32,"") ->  | X29: =IF('Nelson-Siegel'!Y32<>"",'Nelson-Siegel'!Y32,"") ->  | Y29: =IF('Nelson-Siegel'!Z32<>"",'Nelson-Siegel'!Z32,"") ->  | Z29: =IF('Nelson-Siegel'!AA32<>"",'Nelson-Siegel'!AA32,"") ->  | AA29: =IF('Nelson-Siegel'!AB32<>"",'Nelson-Siegel'!AB32,"") ->  | AB29: =IF('Nelson-Siegel'!AC32<>"",'Nelson-Siegel'!AC32,"") ->  | AC29: =IF('Nelson-Siegel'!AD32<>"",'Nelson-Siegel'!AD32,"") ->  | AD29: =IF('Nelson-Siegel'!AE32<>"",'Nelson-Siegel'!AE32,"") ->  | AE29: =IF('Nelson-Siegel'!AF32<>"",'Nelson-Siegel'!AF32,"") ->  | AF29: =IF('Nelson-Siegel'!AG32<>"",'Nelson-Siegel'!AG32,"") ->  | AG29: =IF('Nelson-Siegel'!AH32<>"",'Nelson-Siegel'!AH32,"") ->  | AH29: =IF('Nelson-Siegel'!AI32<>"",'Nelson-Siegel'!AI32,"") ->  | AI29: =IF('Nelson-Siegel'!AJ32<>"",'Nelson-Siegel'!AJ32,"") ->  | AJ29: =IF('Nelson-Siegel'!AK32<>"",'Nelson-Siegel'!AK32,"") ->  | AK29: =IF('Nelson-Siegel'!AL32<>"",'Nelson-Siegel'!AL32,"") ->  | AL29: =IF('Nelson-Siegel'!AM32<>"",'Nelson-Siegel'!AM32,"") ->  | AM29: =IF('Nelson-Siegel'!AN32<>"",'Nelson-Siegel'!AN32,"") ->  | AN29: =IF('Nelson-Siegel'!AO32<>"",'Nelson-Siegel'!AO32,"") ->  | AO29: =IF('Nelson-Siegel'!AP32<>"",'Nelson-Siegel'!AP32,"") ->  | AP29: =IF('Nelson-Siegel'!AQ32<>"",'Nelson-Siegel'!AQ32,"") ->  | AQ29: =IF('Nelson-Siegel'!AR32<>"",'Nelson-Siegel'!AR32,"") ->  | AR29: =IF('Nelson-Siegel'!AS32<>"",'Nelson-Siegel'!AS32,"") ->  | AS29: =IF('Nelson-Siegel'!AT32<>"",'Nelson-Siegel'!AT32,"") ->  | AT29: =IF('Nelson-Siegel'!AU32<>"",'Nelson-Siegel'!AU32,"") ->  | AU29: =IF('Nelson-Siegel'!AV32<>"",'Nelson-Siegel'!AV32,"") ->  | AV29: =IF('Nelson-Siegel'!AW32<>"",'Nelson-Siegel'!AW32,"") ->  | AW29: =IF('Nelson-Siegel'!AX32<>"",'Nelson-Siegel'!AX32,"") ->  | AX29: =IF('Nelson-Siegel'!AY32<>"",'Nelson-Siegel'!AY32,"") ->  | AY29: =IF('Nelson-Siegel'!AZ32<>"",'Nelson-Siegel'!AZ32,"") ->  | AZ29: =IF('Nelson-Siegel'!BA32<>"",'Nelson-Siegel'!BA32,"") -> 
B30: Svensson (DMP) | C30: =IF(Swenson!D22<>"",Swenson!D22,"") -> 0.00444109991 | D30: =IF(Swenson!E22<>"",Swenson!E22,"") -> 0.008988169846 | E30: =IF(Swenson!F22<>"",Swenson!F22,"") -> 0.01312539133 | F30: =IF(Swenson!G22<>"",Swenson!G22,"") -> 0.01807997486 | G30: =IF(Swenson!H22<>"",Swenson!H22,"") -> 0.02299751035 | H30: =IF(Swenson!I22<>"",Swenson!I22,"") -> 0.02723713322 | I30: =IF(Swenson!J22<>"",Swenson!J22,"") -> 0.03058313273 | J30: =IF(Swenson!K22<>"",Swenson!K22,"") -> 0.03307766784 | K30: =IF(Swenson!L22<>"",Swenson!L22,"") -> 0.03486752056 | L30: =IF(Swenson!M22<>"",Swenson!M22,"") -> 0.036117778 | M30: =IF(Swenson!N22<>"",Swenson!N22,"") -> 0.03697428237 | N30: =IF(Swenson!O22<>"",Swenson!O22,"") -> 0.03755253815 | O30: =IF(Swenson!P22<>"",Swenson!P22,"") -> 0.0379385581 | P30: =IF(Swenson!Q22<>"",Swenson!Q22,"") -> 0.03819394979 | Q30: =IF(Swenson!R22<>"",Swenson!R22,"") -> 0.03836168947 | R30: =IF(Swenson!S22<>"",Swenson!S22,"") -> 0.03847119392 | S30: =IF(Swenson!T22<>"",Swenson!T22,"") -> 0.03854231511 | T30: =IF(Swenson!U22<>"",Swenson!U22,"") -> 0.03858830377 | U30: =IF(Swenson!V22<>"",Swenson!V22,"") -> 0.03861792713 | V30: =IF(Swenson!W22<>"",Swenson!W22,"") -> 0.03863694447 | W30: =IF(Swenson!X22<>"",Swenson!X22,"") -> 0.03864911644 | X30: =IF(Swenson!Y22<>"",Swenson!Y22,"") -> 0.03865688612 | Y30: =IF(Swenson!Z22<>"",Swenson!Z22,"") -> 0.0386618337 | Z30: =IF(Swenson!AA22<>"",Swenson!AA22,"") -> 0.03866497731 | AA30: =IF(Swenson!AB22<>"",Swenson!AB22,"") -> 0.03866697071 | AB30: =IF(Swenson!AC22<>"",Swenson!AC22,"") -> 0.03866823242 | AC30: =IF(Swenson!AD22<>"",Swenson!AD22,"") -> 0.03866902968 | AD30: =IF(Swenson!AE22<>"",Swenson!AE22,"") -> 0.03866953268 | AE30: =IF(Swenson!AF22<>"",Swenson!AF22,"") -> 0.03866984956 | AF30: =IF(Swenson!AG22<>"",Swenson!AG22,"") -> 0.03867004893 | AG30: =IF(Swenson!AH22<>"",Swenson!AH22,"") -> 0.03867017421 | AH30: =IF(Swenson!AI22<>"",Swenson!AI22,"") -> 0.03867025284 | AI30: =IF(Swenson!AJ22<>"",Swenson!AJ22,"") -> 0.03867030214 | AJ30: =IF(Swenson!AK22<>"",Swenson!AK22,"") -> 0.03867033302 | AK30: =IF(Swenson!AL22<>"",Swenson!AL22,"") -> 0.03867035234 | AL30: =IF(Swenson!AM22<>"",Swenson!AM22,"") -> 0.03867036442 | AM30: =IF(Swenson!AN22<>"",Swenson!AN22,"") -> 0.03867037196 | AN30: =IF(Swenson!AO22<>"",Swenson!AO22,"") -> 0.03867037667 | AO30: =IF(Swenson!AP22<>"",Swenson!AP22,"") -> 0.03867037961 | AP30: =IF(Swenson!AQ22<>"",Swenson!AQ22,"") -> 0.03867038144 | AQ30: =IF(Swenson!AR22<>"",Swenson!AR22,"") -> 0.03867038258 | AR30: =IF(Swenson!AS22<>"",Swenson!AS22,"") -> 0.03867038329 | AS30: =IF(Swenson!AT22<>"",Swenson!AT22,"") -> 0.03867038373 | AT30: =IF(Swenson!AU22<>"",Swenson!AU22,"") -> 0.038670384 | AU30: =IF(Swenson!AV22<>"",Swenson!AV22,"") -> 0.03867038417 | AV30: =IF(Swenson!AW22<>"",Swenson!AW22,"") -> 0.03867038428 | AW30: =IF(Swenson!AX22<>"",Swenson!AX22,"") -> 0.03867038435 | AX30: =IF(Swenson!AY22<>"",Swenson!AY22,"") -> 0.03867038439 | AY30: =IF(Swenson!AZ22<>"",Swenson!AZ22,"") -> 0.03867038441 | AZ30: =IF(Swenson!BA22<>"",Swenson!BA22,"") -> 0.03867038443
B31: Svensson (YtM) | C31: =IF(Swenson!D34<>"",Swenson!D34,"") -> 0.004469969259 | D31: =IF(Swenson!E34<>"",Swenson!E34,"") -> 0.008922269212 | E31: =IF(Swenson!F34<>"",Swenson!F34,"") -> 0.0129708812 | F31: =IF(Swenson!G34<>"",Swenson!G34,"") -> 0.01789791503 | G31: =IF(Swenson!H34<>"",Swenson!H34,"") -> 0.0228233615 | H31: =IF(Swenson!I34<>"",Swenson!I34,"") -> 0.02708324289 | I31: =IF(Swenson!J34<>"",Swenson!J34,"") -> 0.0304501144 | J31: =IF(Swenson!K34<>"",Swenson!K34,"") -> 0.03296183738 | K31: =IF(Swenson!L34<>"",Swenson!L34,"") -> 0.03476444929 | L31: =IF(Swenson!M34<>"",Swenson!M34,"") -> 0.03602363518 | M31: =IF(Swenson!N34<>"",Swenson!N34,"") -> 0.03688615601 | N31: =IF(Swenson!O34<>"",Swenson!O34,"") -> 0.03746836112 | O31: =IF(Swenson!P34<>"",Swenson!P34,"") -> 0.03785692335 | P31: =IF(Swenson!Q34<>"",Swenson!Q34,"") -> 0.0381139264 | Q31: =IF(Swenson!R34<>"",Swenson!R34,"") -> 0.03828267423 | R31: =IF(Swenson!S34<>"",Swenson!S34,"") -> 0.03839280221 | S31: =IF(Swenson!T34<>"",Swenson!T34,"") -> 0.038464305 | T31: =IF(Swenson!U34<>"",Swenson!U34,"") -> 0.03851052481 | U31: =IF(Swenson!V34<>"",Swenson!V34,"") -> 0.03854028678 | V31: =IF(Swenson!W34<>"",Swenson!W34,"") -> 0.03855938637 | W31: =IF(Swenson!X34<>"",Swenson!X34,"") -> 0.03857160659 | X31: =IF(Swenson!Y34<>"",Swenson!Y34,"") -> 0.03857940424 | Y31: =IF(Swenson!Z34<>"",Swenson!Z34,"") -> 0.0385843678 | Z31: =IF(Swenson!AA34<>"",Swenson!AA34,"") -> 0.03858752039 | AA31: =IF(Swenson!AB34<>"",Swenson!AB34,"") -> 0.03858951873 | AB31: =IF(Swenson!AC34<>"",Swenson!AC34,"") -> 0.0385907831 | AC31: =IF(Swenson!AD34<>"",Swenson!AD34,"") -> 0.03859158173 | AD31: =IF(Swenson!AE34<>"",Swenson!AE34,"") -> 0.03859208539 | AE31: =IF(Swenson!AF34<>"",Swenson!AF34,"") -> 0.03859240258 | AF31: =IF(Swenson!AG34<>"",Swenson!AG34,"") -> 0.03859260206 | AG31: =IF(Swenson!AH34<>"",Swenson!AH34,"") -> 0.03859272736 | AH31: =IF(Swenson!AI34<>"",Swenson!AI34,"") -> 0.03859280597 | AI31: =IF(Swenson!AJ34<>"",Swenson!AJ34,"") -> 0.03859285524 | AJ31: =IF(Swenson!AK34<>"",Swenson!AK34,"") -> 0.03859288609 | AK31: =IF(Swenson!AL34<>"",Swenson!AL34,"") -> 0.03859290538 | AL31: =IF(Swenson!AM34<>"",Swenson!AM34,"") -> 0.03859291744 | AM31: =IF(Swenson!AN34<>"",Swenson!AN34,"") -> 0.03859292497 | AN31: =IF(Swenson!AO34<>"",Swenson!AO34,"") -> 0.03859292967 | AO31: =IF(Swenson!AP34<>"",Swenson!AP34,"") -> 0.0385929326 | AP31: =IF(Swenson!AQ34<>"",Swenson!AQ34,"") -> 0.03859293442 | AQ31: =IF(Swenson!AR34<>"",Swenson!AR34,"") -> 0.03859293556 | AR31: =IF(Swenson!AS34<>"",Swenson!AS34,"") -> 0.03859293626 | AS31: =IF(Swenson!AT34<>"",Swenson!AT34,"") -> 0.0385929367 | AT31: =IF(Swenson!AU34<>"",Swenson!AU34,"") -> 0.03859293697 | AU31: =IF(Swenson!AV34<>"",Swenson!AV34,"") -> 0.03859293714 | AV31: =IF(Swenson!AW34<>"",Swenson!AW34,"") -> 0.03859293725 | AW31: =IF(Swenson!AX34<>"",Swenson!AX34,"") -> 0.03859293731 | AX31: =IF(Swenson!AY34<>"",Swenson!AY34,"") -> 0.03859293735 | AY31: =IF(Swenson!AZ34<>"",Swenson!AZ34,"") -> 0.03859293738 | AZ31: =IF(Swenson!BA34<>"",Swenson!BA34,"") -> 0.0385929374
B32: Cubic spline (DMP) | C32: =IF(cubic_spline!D26<>"",cubic_spline!D26,"") -> 0.005154712318 | D32: =IF(cubic_spline!E26<>"",cubic_spline!E26,"") -> 0.007710723411 | E32: =IF(cubic_spline!F26<>"",cubic_spline!F26,"") -> 0.0126774472 | F32: =IF(cubic_spline!G26<>"",cubic_spline!G26,"") -> 0.01886636776 | G32: =IF(cubic_spline!H26<>"",cubic_spline!H26,"") -> 0.02646896513 | H32: =IF(cubic_spline!I26<>"",cubic_spline!I26,"") -> 0.0141462666 | I32: =IF(cubic_spline!J26<>"",cubic_spline!J26,"") -> 0.0141462666 | J32: =IF(cubic_spline!K26<>"",cubic_spline!K26,"") -> 0.0141462666 | K32: =IF(cubic_spline!L26<>"",cubic_spline!L26,"") -> 0.0141462666 | L32: =IF(cubic_spline!M26<>"",cubic_spline!M26,"") -> 0.0141462666 | M32: =IF(cubic_spline!N26<>"",cubic_spline!N26,"") -> 0.0141462666 | N32: =IF(cubic_spline!O26<>"",cubic_spline!O26,"") -> 0.0141462666 | O32: =IF(cubic_spline!P26<>"",cubic_spline!P26,"") -> 0.0141462666 | P32: =IF(cubic_spline!Q26<>"",cubic_spline!Q26,"") -> 0.0141462666 | Q32: =IF(cubic_spline!R26<>"",cubic_spline!R26,"") -> 0.0141462666 | R32: =IF(cubic_spline!S26<>"",cubic_spline!S26,"") -> 0.0141462666 | S32: =IF(cubic_spline!T26<>"",cubic_spline!T26,"") -> 0.0141462666 | T32: =IF(cubic_spline!U26<>"",cubic_spline!U26,"") -> 0.0141462666 | U32: =IF(cubic_spline!V26<>"",cubic_spline!V26,"") -> 0.0141462666 | V32: =IF(cubic_spline!W26<>"",cubic_spline!W26,"") -> 0.0141462666 | W32: =IF(cubic_spline!X26<>"",cubic_spline!X26,"") -> 0.0141462666 | X32: =IF(cubic_spline!Y26<>"",cubic_spline!Y26,"") -> 0.0141462666 | Y32: =IF(cubic_spline!Z26<>"",cubic_spline!Z26,"") -> 0.0141462666 | Z32: =IF(cubic_spline!AA26<>"",cubic_spline!AA26,"") -> 0.0141462666 | AA32: =IF(cubic_spline!AB26<>"",cubic_spline!AB26,"") -> 0.0141462666 | AB32: =IF(cubic_spline!AC26<>"",cubic_spline!AC26,"") -> 0.0141462666 | AC32: =IF(cubic_spline!AD26<>"",cubic_spline!AD26,"") -> 0.0141462666 | AD32: =IF(cubic_spline!AE26<>"",cubic_spline!AE26,"") -> 0.0141462666 | AE32: =IF(cubic_spline!AF26<>"",cubic_spline!AF26,"") -> 0.0141462666 | AF32: =IF(cubic_spline!AG26<>"",cubic_spline!AG26,"") -> 0.0141462666 | AG32: =IF(cubic_spline!AH26<>"",cubic_spline!AH26,"") -> 0.0141462666 | AH32: =IF(cubic_spline!AI26<>"",cubic_spline!AI26,"") -> 0.0141462666 | AI32: =IF(cubic_spline!AJ26<>"",cubic_spline!AJ26,"") -> 0.0141462666 | AJ32: =IF(cubic_spline!AK26<>"",cubic_spline!AK26,"") -> 0.0141462666 | AK32: =IF(cubic_spline!AL26<>"",cubic_spline!AL26,"") -> 0.0141462666 | AL32: =IF(cubic_spline!AM26<>"",cubic_spline!AM26,"") -> 0.0141462666 | AM32: =IF(cubic_spline!AN26<>"",cubic_spline!AN26,"") -> 0.0141462666 | AN32: =IF(cubic_spline!AO26<>"",cubic_spline!AO26,"") -> 0.0141462666 | AO32: =IF(cubic_spline!AP26<>"",cubic_spline!AP26,"") -> 0.0141462666 | AP32: =IF(cubic_spline!AQ26<>"",cubic_spline!AQ26,"") -> 0.0141462666 | AQ32: =IF(cubic_spline!AR26<>"",cubic_spline!AR26,"") -> 0.0141462666 | AR32: =IF(cubic_spline!AS26<>"",cubic_spline!AS26,"") -> 0.0141462666 | AS32: =IF(cubic_spline!AT26<>"",cubic_spline!AT26,"") -> 0.0141462666 | AT32: =IF(cubic_spline!AU26<>"",cubic_spline!AU26,"") -> 0.0141462666 | AU32: =IF(cubic_spline!AV26<>"",cubic_spline!AV26,"") -> 0.0141462666 | AV32: =IF(cubic_spline!AW26<>"",cubic_spline!AW26,"") -> 0.0141462666 | AW32: =IF(cubic_spline!AX26<>"",cubic_spline!AX26,"") -> 0.0141462666 | AX32: =IF(cubic_spline!AY26<>"",cubic_spline!AY26,"") -> 0.0141462666 | AY32: =IF(cubic_spline!AZ26<>"",cubic_spline!AZ26,"") -> 0.0141462666 | AZ32: =IF(cubic_spline!BA26<>"",cubic_spline!BA26,"") -> 0.0141462666
B33: Smith-Wilson (DMP) | C33: =IF('Smith-Wilson'!D20<>"",'Smith-Wilson'!D20,"") -> 0.004657426559 | D33: =IF('Smith-Wilson'!E20<>"",'Smith-Wilson'!E20,"") -> 0.008551566813 | E33: =IF('Smith-Wilson'!F20<>"",'Smith-Wilson'!F20,"") -> 0.01331432219 | F33: =IF('Smith-Wilson'!G20<>"",'Smith-Wilson'!G20,"") -> 0.01813116099 | G33: =IF('Smith-Wilson'!H20<>"",'Smith-Wilson'!H20,"") -> 0.02566223534 | H33: =IF('Smith-Wilson'!I20<>"",'Smith-Wilson'!I20,"") -> 0.0249010644 | I33: =IF('Smith-Wilson'!J20<>"",'Smith-Wilson'!J20,"") -> 0.02764981866 | J33: =IF('Smith-Wilson'!K20<>"",'Smith-Wilson'!K20,"") -> 0.02971792402 | K33: =IF('Smith-Wilson'!L20<>"",'Smith-Wilson'!L20,"") -> 0.03221397708 | L33: =IF('Smith-Wilson'!M20<>"",'Smith-Wilson'!M20,"") -> 0.03539531121 | M33: =IF('Smith-Wilson'!N20<>"",'Smith-Wilson'!N20,"") -> 0.04442586448 | N33: =IF('Smith-Wilson'!O20<>"",'Smith-Wilson'!O20,"") -> 0.04751753847 | O33: =IF('Smith-Wilson'!P20<>"",'Smith-Wilson'!P20,"") -> 0.0453261308 | P33: =IF('Smith-Wilson'!Q20<>"",'Smith-Wilson'!Q20,"") -> 0.04187161351 | Q33: =IF('Smith-Wilson'!R20<>"",'Smith-Wilson'!R20,"") -> 0.03866097957 | R33: =IF('Smith-Wilson'!S20<>"",'Smith-Wilson'!S20,"") -> 0.03553906728 | S33: =IF('Smith-Wilson'!T20<>"",'Smith-Wilson'!T20,"") -> 0.03462521319 | T33: =IF('Smith-Wilson'!U20<>"",'Smith-Wilson'!U20,"") -> 0.03981944466 | U33: =IF('Smith-Wilson'!V20<>"",'Smith-Wilson'!V20,"") -> 0.04833544985 | V33: =IF('Smith-Wilson'!W20<>"",'Smith-Wilson'!W20,"") -> 0.0386253661 | W33: =IF('Smith-Wilson'!X20<>"",'Smith-Wilson'!X20,"") -> 0.02573552492 | X33: =IF('Smith-Wilson'!Y20<>"",'Smith-Wilson'!Y20,"") -> 0.01981808327 | Y33: =IF('Smith-Wilson'!Z20<>"",'Smith-Wilson'!Z20,"") -> 0.02004062073 | Z33: =IF('Smith-Wilson'!AA20<>"",'Smith-Wilson'!AA20,"") -> 0.02340132173 | AA33: =IF('Smith-Wilson'!AB20<>"",'Smith-Wilson'!AB20,"") -> 0.02613351403 | AB33: =IF('Smith-Wilson'!AC20<>"",'Smith-Wilson'!AC20,"") -> 0.02807882328 | AC33: =IF('Smith-Wilson'!AD20<>"",'Smith-Wilson'!AD20,"") -> 0.02965927432 | AD33: =IF('Smith-Wilson'!AE20<>"",'Smith-Wilson'!AE20,"") -> 0.03105472811 | AE33: =IF('Smith-Wilson'!AF20<>"",'Smith-Wilson'!AF20,"") -> 0.03229035931 | AF33: =IF('Smith-Wilson'!AG20<>"",'Smith-Wilson'!AG20,"") -> 0.0333869474 | AG33: =IF('Smith-Wilson'!AH20<>"",'Smith-Wilson'!AH20,"") -> 0.03436209175 | AH33: =IF('Smith-Wilson'!AI20<>"",'Smith-Wilson'!AI20,"") -> 0.03523078911 | AI33: =IF('Smith-Wilson'!AJ20<>"",'Smith-Wilson'!AJ20,"") -> 0.03600588907 | AJ33: =IF('Smith-Wilson'!AK20<>"",'Smith-Wilson'!AK20,"") -> 0.03669845674 | AK33: =IF('Smith-Wilson'!AL20<>"",'Smith-Wilson'!AL20,"") -> 0.03731806388 | AL33: =IF('Smith-Wilson'!AM20<>"",'Smith-Wilson'!AM20,"") -> 0.0378730248 | AM33: =IF('Smith-Wilson'!AN20<>"",'Smith-Wilson'!AN20,"") -> 0.03837058865 | AN33: =IF('Smith-Wilson'!AO20<>"",'Smith-Wilson'!AO20,"") -> 0.03881709752 | AO33: =IF('Smith-Wilson'!AP20<>"",'Smith-Wilson'!AP20,"") -> 0.03921811723 | AP33: =IF('Smith-Wilson'!AQ20<>"",'Smith-Wilson'!AQ20,"") -> 0.03957854608 | AQ33: =IF('Smith-Wilson'!AR20<>"",'Smith-Wilson'!AR20,"") -> 0.03990270605 | AR33: =IF('Smith-Wilson'!AS20<>"",'Smith-Wilson'!AS20,"") -> 0.04019441947 | AS33: =IF('Smith-Wilson'!AT20<>"",'Smith-Wilson'!AT20,"") -> 0.04045707402 | AT33: =IF('Smith-Wilson'!AU20<>"",'Smith-Wilson'!AU20,"") -> 0.04069367788 | AU33: =IF('Smith-Wilson'!AV20<>"",'Smith-Wilson'!AV20,"") -> 0.04090690696 | AV33: =IF('Smith-Wilson'!AW20<>"",'Smith-Wilson'!AW20,"") -> 0.04109914541 | AW33: =IF('Smith-Wilson'!AX20<>"",'Smith-Wilson'!AX20,"") -> 0.04127252044 | AX33: =IF('Smith-Wilson'!AY20<>"",'Smith-Wilson'!AY20,"") -> 0.04142893256 | AY33: =IF('Smith-Wilson'!AZ20<>"",'Smith-Wilson'!AZ20,"") -> 0.04157008174 | AZ33: =IF('Smith-Wilson'!BA20<>"",'Smith-Wilson'!BA20,"") -> 0.04169749021
B34: Lin - Inter - Spot (DMP) | C34: =IF(Lin_inter_spot!D26<>"",Lin_inter_spot!D26,"") -> 0.004580085002 | D34: =IF(Lin_inter_spot!E26<>"",Lin_inter_spot!E26,"") -> 0.008740402786 | E34: =IF(Lin_inter_spot!F26<>"",Lin_inter_spot!F26,"") -> 0.01191170997 | F34: =IF(Lin_inter_spot!G26<>"",Lin_inter_spot!G26,"") -> 0.01972338045 | G34: =IF(Lin_inter_spot!H26<>"",Lin_inter_spot!H26,"") -> 0.0253896791 | H34: =IF(Lin_inter_spot!I26<>"",Lin_inter_spot!I26,"") -> 0.0239525187 | I34: =IF(Lin_inter_spot!J26<>"",Lin_inter_spot!J26,"") -> 0.02725891848 | J34: =IF(Lin_inter_spot!K26<>"",Lin_inter_spot!K26,"") -> 0.03056795285 | K34: =IF(Lin_inter_spot!L26<>"",Lin_inter_spot!L26,"") -> 0.03387961325 | L34: =IF(Lin_inter_spot!M26<>"",Lin_inter_spot!M26,"") -> 0.03719389116 | M34: =IF(Lin_inter_spot!N26<>"",Lin_inter_spot!N26,"") -> 0.02226718833 | N34: =IF(Lin_inter_spot!O26<>"",Lin_inter_spot!O26,"") -> 0.02226718833 | O34: =IF(Lin_inter_spot!P26<>"",Lin_inter_spot!P26,"") -> 0.02226718833 | P34: =IF(Lin_inter_spot!Q26<>"",Lin_inter_spot!Q26,"") -> 0.02226718833 | Q34: =IF(Lin_inter_spot!R26<>"",Lin_inter_spot!R26,"") -> 0.02226718833 | R34: =IF(Lin_inter_spot!S26<>"",Lin_inter_spot!S26,"") -> 0.02226718833 | S34: =IF(Lin_inter_spot!T26<>"",Lin_inter_spot!T26,"") -> 0.02226718833 | T34: =IF(Lin_inter_spot!U26<>"",Lin_inter_spot!U26,"") -> 0.02226718833 | U34: =IF(Lin_inter_spot!V26<>"",Lin_inter_spot!V26,"") -> 0.02226718833 | V34: =IF(Lin_inter_spot!W26<>"",Lin_inter_spot!W26,"") -> 0.02226718833 | W34: =IF(Lin_inter_spot!X26<>"",Lin_inter_spot!X26,"") -> 0.02226718833 | X34: =IF(Lin_inter_spot!Y26<>"",Lin_inter_spot!Y26,"") -> 0.02226718833 | Y34: =IF(Lin_inter_spot!Z26<>"",Lin_inter_spot!Z26,"") -> 0.02226718833 | Z34: =IF(Lin_inter_spot!AA26<>"",Lin_inter_spot!AA26,"") -> 0.02226718833 | AA34: =IF(Lin_inter_spot!AB26<>"",Lin_inter_spot!AB26,"") -> 0.02226718833 | AB34: =IF(Lin_inter_spot!AC26<>"",Lin_inter_spot!AC26,"") -> 0.02226718833 | AC34: =IF(Lin_inter_spot!AD26<>"",Lin_inter_spot!AD26,"") -> 0.02226718833 | AD34: =IF(Lin_inter_spot!AE26<>"",Lin_inter_spot!AE26,"") -> 0.02226718833 | AE34: =IF(Lin_inter_spot!AF26<>"",Lin_inter_spot!AF26,"") -> 0.02226718833 | AF34: =IF(Lin_inter_spot!AG26<>"",Lin_inter_spot!AG26,"") -> 0.02226718833 | AG34: =IF(Lin_inter_spot!AH26<>"",Lin_inter_spot!AH26,"") -> 0.02226718833 | AH34: =IF(Lin_inter_spot!AI26<>"",Lin_inter_spot!AI26,"") -> 0.02226718833 | AI34: =IF(Lin_inter_spot!AJ26<>"",Lin_inter_spot!AJ26,"") -> 0.02226718833 | AJ34: =IF(Lin_inter_spot!AK26<>"",Lin_inter_spot!AK26,"") -> 0.02226718833 | AK34: =IF(Lin_inter_spot!AL26<>"",Lin_inter_spot!AL26,"") -> 0.02226718833 | AL34: =IF(Lin_inter_spot!AM26<>"",Lin_inter_spot!AM26,"") -> 0.02226718833 | AM34: =IF(Lin_inter_spot!AN26<>"",Lin_inter_spot!AN26,"") -> 0.02226718833 | AN34: =IF(Lin_inter_spot!AO26<>"",Lin_inter_spot!AO26,"") -> 0.02226718833 | AO34: =IF(Lin_inter_spot!AP26<>"",Lin_inter_spot!AP26,"") -> 0.02226718833 | AP34: =IF(Lin_inter_spot!AQ26<>"",Lin_inter_spot!AQ26,"") -> 0.02226718833 | AQ34: =IF(Lin_inter_spot!AR26<>"",Lin_inter_spot!AR26,"") -> 0.02226718833 | AR34: =IF(Lin_inter_spot!AS26<>"",Lin_inter_spot!AS26,"") -> 0.02226718833 | AS34: =IF(Lin_inter_spot!AT26<>"",Lin_inter_spot!AT26,"") -> 0.02226718833 | AT34: =IF(Lin_inter_spot!AU26<>"",Lin_inter_spot!AU26,"") -> 0.02226718833 | AU34: =IF(Lin_inter_spot!AV26<>"",Lin_inter_spot!AV26,"") -> 0.02226718833 | AV34: =IF(Lin_inter_spot!AW26<>"",Lin_inter_spot!AW26,"") -> 0.02226718833 | AW34: =IF(Lin_inter_spot!AX26<>"",Lin_inter_spot!AX26,"") -> 0.02226718833 | AX34: =IF(Lin_inter_spot!AY26<>"",Lin_inter_spot!AY26,"") -> 0.02226718833 | AY34: =IF(Lin_inter_spot!AZ26<>"",Lin_inter_spot!AZ26,"") -> 0.02226718833 | AZ34: =IF(Lin_inter_spot!BA26<>"",Lin_inter_spot!BA26,"") -> 0.02226718833
B35: Lin - Inter - Spot (YtM) | C35: =IF(Lin_inter_spot!D37<>"",Lin_inter_spot!D37,"") -> 0.004941006146 | D35: =IF(Lin_inter_spot!E37<>"",Lin_inter_spot!E37,"") -> 0.008133672826 | E35: =IF(Lin_inter_spot!F37<>"",Lin_inter_spot!F37,"") -> 0.01271496394 | F35: =IF(Lin_inter_spot!G37<>"",Lin_inter_spot!G37,"") -> 0.01906439177 | G35: =IF(Lin_inter_spot!H37<>"",Lin_inter_spot!H37,"") -> 0.02430747515 | H35: =IF(Lin_inter_spot!I37<>"",Lin_inter_spot!I37,"") -> 0.02454867597 | I35: =IF(Lin_inter_spot!J37<>"",Lin_inter_spot!J37,"") -> 0.02813207117 | J35: =IF(Lin_inter_spot!K37<>"",Lin_inter_spot!K37,"") -> 0.03171855569 | K35: =IF(Lin_inter_spot!L37<>"",Lin_inter_spot!L37,"") -> 0.03530811866 | L35: =IF(Lin_inter_spot!M37<>"",Lin_inter_spot!M37,"") -> 0.03890074925 | M35: =IF(Lin_inter_spot!N37<>"",Lin_inter_spot!N37,"") -> 0.02271925084 | N35: =IF(Lin_inter_spot!O37<>"",Lin_inter_spot!O37,"") -> 0.02271925084 | O35: =IF(Lin_inter_spot!P37<>"",Lin_inter_spot!P37,"") -> 0.02271925084 | P35: =IF(Lin_inter_spot!Q37<>"",Lin_inter_spot!Q37,"") -> 0.02271925084 | Q35: =IF(Lin_inter_spot!R37<>"",Lin_inter_spot!R37,"") -> 0.02271925084 | R35: =IF(Lin_inter_spot!S37<>"",Lin_inter_spot!S37,"") -> 0.02271925084 | S35: =IF(Lin_inter_spot!T37<>"",Lin_inter_spot!T37,"") -> 0.02271925084 | T35: =IF(Lin_inter_spot!U37<>"",Lin_inter_spot!U37,"") -> 0.02271925084 | U35: =IF(Lin_inter_spot!V37<>"",Lin_inter_spot!V37,"") -> 0.02271925084 | V35: =IF(Lin_inter_spot!W37<>"",Lin_inter_spot!W37,"") -> 0.02271925084 | W35: =IF(Lin_inter_spot!X37<>"",Lin_inter_spot!X37,"") -> 0.02271925084 | X35: =IF(Lin_inter_spot!Y37<>"",Lin_inter_spot!Y37,"") -> 0.02271925084 | Y35: =IF(Lin_inter_spot!Z37<>"",Lin_inter_spot!Z37,"") -> 0.02271925084 | Z35: =IF(Lin_inter_spot!AA37<>"",Lin_inter_spot!AA37,"") -> 0.02271925084 | AA35: =IF(Lin_inter_spot!AB37<>"",Lin_inter_spot!AB37,"") -> 0.02271925084 | AB35: =IF(Lin_inter_spot!AC37<>"",Lin_inter_spot!AC37,"") -> 0.02271925084 | AC35: =IF(Lin_inter_spot!AD37<>"",Lin_inter_spot!AD37,"") -> 0.02271925084 | AD35: =IF(Lin_inter_spot!AE37<>"",Lin_inter_spot!AE37,"") -> 0.02271925084 | AE35: =IF(Lin_inter_spot!AF37<>"",Lin_inter_spot!AF37,"") -> 0.02271925084 | AF35: =IF(Lin_inter_spot!AG37<>"",Lin_inter_spot!AG37,"") -> 0.02271925084 | AG35: =IF(Lin_inter_spot!AH37<>"",Lin_inter_spot!AH37,"") -> 0.02271925084 | AH35: =IF(Lin_inter_spot!AI37<>"",Lin_inter_spot!AI37,"") -> 0.02271925084 | AI35: =IF(Lin_inter_spot!AJ37<>"",Lin_inter_spot!AJ37,"") -> 0.02271925084 | AJ35: =IF(Lin_inter_spot!AK37<>"",Lin_inter_spot!AK37,"") -> 0.02271925084 | AK35: =IF(Lin_inter_spot!AL37<>"",Lin_inter_spot!AL37,"") -> 0.02271925084 | AL35: =IF(Lin_inter_spot!AM37<>"",Lin_inter_spot!AM37,"") -> 0.02271925084 | AM35: =IF(Lin_inter_spot!AN37<>"",Lin_inter_spot!AN37,"") -> 0.02271925084 | AN35: =IF(Lin_inter_spot!AO37<>"",Lin_inter_spot!AO37,"") -> 0.02271925084 | AO35: =IF(Lin_inter_spot!AP37<>"",Lin_inter_spot!AP37,"") -> 0.02271925084 | AP35: =IF(Lin_inter_spot!AQ37<>"",Lin_inter_spot!AQ37,"") -> 0.02271925084 | AQ35: =IF(Lin_inter_spot!AR37<>"",Lin_inter_spot!AR37,"") -> 0.02271925084 | AR35: =IF(Lin_inter_spot!AS37<>"",Lin_inter_spot!AS37,"") -> 0.02271925084 | AS35: =IF(Lin_inter_spot!AT37<>"",Lin_inter_spot!AT37,"") -> 0.02271925084 | AT35: =IF(Lin_inter_spot!AU37<>"",Lin_inter_spot!AU37,"") -> 0.02271925084 | AU35: =IF(Lin_inter_spot!AV37<>"",Lin_inter_spot!AV37,"") -> 0.02271925084 | AV35: =IF(Lin_inter_spot!AW37<>"",Lin_inter_spot!AW37,"") -> 0.02271925084 | AW35: =IF(Lin_inter_spot!AX37<>"",Lin_inter_spot!AX37,"") -> 0.02271925084 | AX35: =IF(Lin_inter_spot!AY37<>"",Lin_inter_spot!AY37,"") -> 0.02271925084 | AY35: =IF(Lin_inter_spot!AZ37<>"",Lin_inter_spot!AZ37,"") -> 0.02271925084 | AZ35: =IF(Lin_inter_spot!BA37<>"",Lin_inter_spot!BA37,"") -> 0.02271925084
B36: Lin - Inter - DF (DMP) | C36: =IF(Lin_Inter_DF!D26<>"",Lin_Inter_DF!D26,"") -> 0.00422160759 | D36: =IF(Lin_Inter_DF!E26<>"",Lin_Inter_DF!E26,"") -> 0.008935990945 | E36: =IF(Lin_Inter_DF!F26<>"",Lin_Inter_DF!F26,"") -> 0.011150731 | F36: =IF(Lin_Inter_DF!G26<>"",Lin_Inter_DF!G26,"") -> 0.0215481612 | G36: =IF(Lin_Inter_DF!H26<>"",Lin_Inter_DF!H26,"") -> 0.02202271011 | H36: =IF(Lin_Inter_DF!I26<>"",Lin_Inter_DF!I26,"") -> 0.02771433941 | I36: =IF(Lin_Inter_DF!J26<>"",Lin_Inter_DF!J26,"") -> 0.02850431775 | J36: =IF(Lin_Inter_DF!K26<>"",Lin_Inter_DF!K26,"") -> 0.02934065305 | K36: =IF(Lin_Inter_DF!L26<>"",Lin_Inter_DF!L26,"") -> 0.03022754908 | L36: =IF(Lin_Inter_DF!M26<>"",Lin_Inter_DF!M26,"") -> 0.03116973373 | M36: =IF(Lin_Inter_DF!N26<>"",Lin_Inter_DF!N26,"") -> 0.02144019668 | N36: =IF(Lin_Inter_DF!O26<>"",Lin_Inter_DF!O26,"") -> 0.02144019668 | O36: =IF(Lin_Inter_DF!P26<>"",Lin_Inter_DF!P26,"") -> 0.02144019668 | P36: =IF(Lin_Inter_DF!Q26<>"",Lin_Inter_DF!Q26,"") -> 0.02144019668 | Q36: =IF(Lin_Inter_DF!R26<>"",Lin_Inter_DF!R26,"") -> 0.02144019668 | R36: =IF(Lin_Inter_DF!S26<>"",Lin_Inter_DF!S26,"") -> 0.02144019668 | S36: =IF(Lin_Inter_DF!T26<>"",Lin_Inter_DF!T26,"") -> 0.02144019668 | T36: =IF(Lin_Inter_DF!U26<>"",Lin_Inter_DF!U26,"") -> 0.02144019668 | U36: =IF(Lin_Inter_DF!V26<>"",Lin_Inter_DF!V26,"") -> 0.02144019668 | V36: =IF(Lin_Inter_DF!W26<>"",Lin_Inter_DF!W26,"") -> 0.02144019668 | W36: =IF(Lin_Inter_DF!X26<>"",Lin_Inter_DF!X26,"") -> 0.02144019668 | X36: =IF(Lin_Inter_DF!Y26<>"",Lin_Inter_DF!Y26,"") -> 0.02144019668 | Y36: =IF(Lin_Inter_DF!Z26<>"",Lin_Inter_DF!Z26,"") -> 0.02144019668 | Z36: =IF(Lin_Inter_DF!AA26<>"",Lin_Inter_DF!AA26,"") -> 0.02144019668 | AA36: =IF(Lin_Inter_DF!AB26<>"",Lin_Inter_DF!AB26,"") -> 0.02144019668 | AB36: =IF(Lin_Inter_DF!AC26<>"",Lin_Inter_DF!AC26,"") -> 0.02144019668 | AC36: =IF(Lin_Inter_DF!AD26<>"",Lin_Inter_DF!AD26,"") -> 0.02144019668 | AD36: =IF(Lin_Inter_DF!AE26<>"",Lin_Inter_DF!AE26,"") -> 0.02144019668 | AE36: =IF(Lin_Inter_DF!AF26<>"",Lin_Inter_DF!AF26,"") -> 0.02144019668 | AF36: =IF(Lin_Inter_DF!AG26<>"",Lin_Inter_DF!AG26,"") -> 0.02144019668 | AG36: =IF(Lin_Inter_DF!AH26<>"",Lin_Inter_DF!AH26,"") -> 0.02144019668 | AH36: =IF(Lin_Inter_DF!AI26<>"",Lin_Inter_DF!AI26,"") -> 0.02144019668 | AI36: =IF(Lin_Inter_DF!AJ26<>"",Lin_Inter_DF!AJ26,"") -> 0.02144019668 | AJ36: =IF(Lin_Inter_DF!AK26<>"",Lin_Inter_DF!AK26,"") -> 0.02144019668 | AK36: =IF(Lin_Inter_DF!AL26<>"",Lin_Inter_DF!AL26,"") -> 0.02144019668 | AL36: =IF(Lin_Inter_DF!AM26<>"",Lin_Inter_DF!AM26,"") -> 0.02144019668 | AM36: =IF(Lin_Inter_DF!AN26<>"",Lin_Inter_DF!AN26,"") -> 0.02144019668 | AN36: =IF(Lin_Inter_DF!AO26<>"",Lin_Inter_DF!AO26,"") -> 0.02144019668 | AO36: =IF(Lin_Inter_DF!AP26<>"",Lin_Inter_DF!AP26,"") -> 0.02144019668 | AP36: =IF(Lin_Inter_DF!AQ26<>"",Lin_Inter_DF!AQ26,"") -> 0.02144019668 | AQ36: =IF(Lin_Inter_DF!AR26<>"",Lin_Inter_DF!AR26,"") -> 0.02144019668 | AR36: =IF(Lin_Inter_DF!AS26<>"",Lin_Inter_DF!AS26,"") -> 0.02144019668 | AS36: =IF(Lin_Inter_DF!AT26<>"",Lin_Inter_DF!AT26,"") -> 0.02144019668 | AT36: =IF(Lin_Inter_DF!AU26<>"",Lin_Inter_DF!AU26,"") -> 0.02144019668 | AU36: =IF(Lin_Inter_DF!AV26<>"",Lin_Inter_DF!AV26,"") -> 0.02144019668 | AV36: =IF(Lin_Inter_DF!AW26<>"",Lin_Inter_DF!AW26,"") -> 0.02144019668 | AW36: =IF(Lin_Inter_DF!AX26<>"",Lin_Inter_DF!AX26,"") -> 0.02144019668 | AX36: =IF(Lin_Inter_DF!AY26<>"",Lin_Inter_DF!AY26,"") -> 0.02144019668 | AY36: =IF(Lin_Inter_DF!AZ26<>"",Lin_Inter_DF!AZ26,"") -> 0.02144019668 | AZ36: =IF(Lin_Inter_DF!BA26<>"",Lin_Inter_DF!BA26,"") -> 0.02144019668
B37: Lin - Inter - DF (YtM) | C37: =IF(Lin_Inter_DF!D37<>"",Lin_Inter_DF!D37,"") -> 0.004169229959 | D37: =IF(Lin_Inter_DF!E37<>"",Lin_Inter_DF!E37,"") -> 0.008870839595 | E37: =IF(Lin_Inter_DF!F37<>"",Lin_Inter_DF!F37,"") -> 0.01132667937 | F37: =IF(Lin_Inter_DF!G37<>"",Lin_Inter_DF!G37,"") -> 0.02218638866 | G37: =IF(Lin_Inter_DF!H37<>"",Lin_Inter_DF!H37,"") -> 0.02268979323 | H37: =IF(Lin_Inter_DF!I37<>"",Lin_Inter_DF!I37,"") -> 0.02718771355 | I37: =IF(Lin_Inter_DF!J37<>"",Lin_Inter_DF!J37,"") -> 0.02794754336 | J37: =IF(Lin_Inter_DF!K37<>"",Lin_Inter_DF!K37,"") -> 0.02875106499 | K37: =IF(Lin_Inter_DF!L37<>"",Lin_Inter_DF!L37,"") -> 0.02960215858 | L37: =IF(Lin_Inter_DF!M37<>"",Lin_Inter_DF!M37,"") -> 0.03050517768 | M37: =IF(Lin_Inter_DF!N37<>"",Lin_Inter_DF!N37,"") -> 0.02128244023 | N37: =IF(Lin_Inter_DF!O37<>"",Lin_Inter_DF!O37,"") -> 0.02128244023 | O37: =IF(Lin_Inter_DF!P37<>"",Lin_Inter_DF!P37,"") -> 0.02128244023 | P37: =IF(Lin_Inter_DF!Q37<>"",Lin_Inter_DF!Q37,"") -> 0.02128244023 | Q37: =IF(Lin_Inter_DF!R37<>"",Lin_Inter_DF!R37,"") -> 0.02128244023 | R37: =IF(Lin_Inter_DF!S37<>"",Lin_Inter_DF!S37,"") -> 0.02128244023 | S37: =IF(Lin_Inter_DF!T37<>"",Lin_Inter_DF!T37,"") -> 0.02128244023 | T37: =IF(Lin_Inter_DF!U37<>"",Lin_Inter_DF!U37,"") -> 0.02128244023 | U37: =IF(Lin_Inter_DF!V37<>"",Lin_Inter_DF!V37,"") -> 0.02128244023 | V37: =IF(Lin_Inter_DF!W37<>"",Lin_Inter_DF!W37,"") -> 0.02128244023 | W37: =IF(Lin_Inter_DF!X37<>"",Lin_Inter_DF!X37,"") -> 0.02128244023 | X37: =IF(Lin_Inter_DF!Y37<>"",Lin_Inter_DF!Y37,"") -> 0.02128244023 | Y37: =IF(Lin_Inter_DF!Z37<>"",Lin_Inter_DF!Z37,"") -> 0.02128244023 | Z37: =IF(Lin_Inter_DF!AA37<>"",Lin_Inter_DF!AA37,"") -> 0.02128244023 | AA37: =IF(Lin_Inter_DF!AB37<>"",Lin_Inter_DF!AB37,"") -> 0.02128244023 | AB37: =IF(Lin_Inter_DF!AC37<>"",Lin_Inter_DF!AC37,"") -> 0.02128244023 | AC37: =IF(Lin_Inter_DF!AD37<>"",Lin_Inter_DF!AD37,"") -> 0.02128244023 | AD37: =IF(Lin_Inter_DF!AE37<>"",Lin_Inter_DF!AE37,"") -> 0.02128244023 | AE37: =IF(Lin_Inter_DF!AF37<>"",Lin_Inter_DF!AF37,"") -> 0.02128244023 | AF37: =IF(Lin_Inter_DF!AG37<>"",Lin_Inter_DF!AG37,"") -> 0.02128244023 | AG37: =IF(Lin_Inter_DF!AH37<>"",Lin_Inter_DF!AH37,"") -> 0.02128244023 | AH37: =IF(Lin_Inter_DF!AI37<>"",Lin_Inter_DF!AI37,"") -> 0.02128244023 | AI37: =IF(Lin_Inter_DF!AJ37<>"",Lin_Inter_DF!AJ37,"") -> 0.02128244023 | AJ37: =IF(Lin_Inter_DF!AK37<>"",Lin_Inter_DF!AK37,"") -> 0.02128244023 | AK37: =IF(Lin_Inter_DF!AL37<>"",Lin_Inter_DF!AL37,"") -> 0.02128244023 | AL37: =IF(Lin_Inter_DF!AM37<>"",Lin_Inter_DF!AM37,"") -> 0.02128244023 | AM37: =IF(Lin_Inter_DF!AN37<>"",Lin_Inter_DF!AN37,"") -> 0.02128244023 | AN37: =IF(Lin_Inter_DF!AO37<>"",Lin_Inter_DF!AO37,"") -> 0.02128244023 | AO37: =IF(Lin_Inter_DF!AP37<>"",Lin_Inter_DF!AP37,"") -> 0.02128244023 | AP37: =IF(Lin_Inter_DF!AQ37<>"",Lin_Inter_DF!AQ37,"") -> 0.02128244023 | AQ37: =IF(Lin_Inter_DF!AR37<>"",Lin_Inter_DF!AR37,"") -> 0.02128244023 | AR37: =IF(Lin_Inter_DF!AS37<>"",Lin_Inter_DF!AS37,"") -> 0.02128244023 | AS37: =IF(Lin_Inter_DF!AT37<>"",Lin_Inter_DF!AT37,"") -> 0.02128244023 | AT37: =IF(Lin_Inter_DF!AU37<>"",Lin_Inter_DF!AU37,"") -> 0.02128244023 | AU37: =IF(Lin_Inter_DF!AV37<>"",Lin_Inter_DF!AV37,"") -> 0.02128244023 | AV37: =IF(Lin_Inter_DF!AW37<>"",Lin_Inter_DF!AW37,"") -> 0.02128244023 | AW37: =IF(Lin_Inter_DF!AX37<>"",Lin_Inter_DF!AX37,"") -> 0.02128244023 | AX37: =IF(Lin_Inter_DF!AY37<>"",Lin_Inter_DF!AY37,"") -> 0.02128244023 | AY37: =IF(Lin_Inter_DF!AZ37<>"",Lin_Inter_DF!AZ37,"") -> 0.02128244023 | AZ37: =IF(Lin_Inter_DF!BA37<>"",Lin_Inter_DF!BA37,"") -> 0.02128244023
B38: Lin - Inter - Forward (DMP) | C38: =IF(Lin_Inter_fw!D26<>"",Lin_Inter_fw!D26,"") -> 0.005212034513 | D38: =IF(Lin_Inter_fw!E26<>"",Lin_Inter_fw!E26,"") -> 0.008687278808 | E38: =IF(Lin_Inter_fw!F26<>"",Lin_Inter_fw!F26,"") -> 0.01194558622 | F38: =IF(Lin_Inter_fw!G26<>"",Lin_Inter_fw!G26,"") -> 0.02019422115 | G38: =IF(Lin_Inter_fw!H26<>"",Lin_Inter_fw!H26,"") -> 0.02333836292 | H38: =IF(Lin_Inter_fw!I26<>"",Lin_Inter_fw!I26,"") -> 0.02648250469 | I38: =IF(Lin_Inter_fw!J26<>"",Lin_Inter_fw!J26,"") -> 0.02812907183 | J38: =IF(Lin_Inter_fw!K26<>"",Lin_Inter_fw!K26,"") -> 0.02977563897 | K38: =IF(Lin_Inter_fw!L26<>"",Lin_Inter_fw!L26,"") -> 0.03142220612 | L38: =IF(Lin_Inter_fw!M26<>"",Lin_Inter_fw!M26,"") -> 0.03306877326 | M38: =IF(Lin_Inter_fw!N26<>"",Lin_Inter_fw!N26,"") -> 0.02178165579 | N38: =IF(Lin_Inter_fw!O26<>"",Lin_Inter_fw!O26,"") -> 0.02178165579 | O38: =IF(Lin_Inter_fw!P26<>"",Lin_Inter_fw!P26,"") -> 0.02178165579 | P38: =IF(Lin_Inter_fw!Q26<>"",Lin_Inter_fw!Q26,"") -> 0.02178165579 | Q38: =IF(Lin_Inter_fw!R26<>"",Lin_Inter_fw!R26,"") -> 0.02178165579 | R38: =IF(Lin_Inter_fw!S26<>"",Lin_Inter_fw!S26,"") -> 0.02178165579 | S38: =IF(Lin_Inter_fw!T26<>"",Lin_Inter_fw!T26,"") -> 0.02178165579 | T38: =IF(Lin_Inter_fw!U26<>"",Lin_Inter_fw!U26,"") -> 0.02178165579 | U38: =IF(Lin_Inter_fw!V26<>"",Lin_Inter_fw!V26,"") -> 0.02178165579 | V38: =IF(Lin_Inter_fw!W26<>"",Lin_Inter_fw!W26,"") -> 0.02178165579 | W38: =IF(Lin_Inter_fw!X26<>"",Lin_Inter_fw!X26,"") -> 0.02178165579 | X38: =IF(Lin_Inter_fw!Y26<>"",Lin_Inter_fw!Y26,"") -> 0.02178165579 | Y38: =IF(Lin_Inter_fw!Z26<>"",Lin_Inter_fw!Z26,"") -> 0.02178165579 | Z38: =IF(Lin_Inter_fw!AA26<>"",Lin_Inter_fw!AA26,"") -> 0.02178165579 | AA38: =IF(Lin_Inter_fw!AB26<>"",Lin_Inter_fw!AB26,"") -> 0.02178165579 | AB38: =IF(Lin_Inter_fw!AC26<>"",Lin_Inter_fw!AC26,"") -> 0.02178165579 | AC38: =IF(Lin_Inter_fw!AD26<>"",Lin_Inter_fw!AD26,"") -> 0.02178165579 | AD38: =IF(Lin_Inter_fw!AE26<>"",Lin_Inter_fw!AE26,"") -> 0.02178165579 | AE38: =IF(Lin_Inter_fw!AF26<>"",Lin_Inter_fw!AF26,"") -> 0.02178165579 | AF38: =IF(Lin_Inter_fw!AG26<>"",Lin_Inter_fw!AG26,"") -> 0.02178165579 | AG38: =IF(Lin_Inter_fw!AH26<>"",Lin_Inter_fw!AH26,"") -> 0.02178165579 | AH38: =IF(Lin_Inter_fw!AI26<>"",Lin_Inter_fw!AI26,"") -> 0.02178165579 | AI38: =IF(Lin_Inter_fw!AJ26<>"",Lin_Inter_fw!AJ26,"") -> 0.02178165579 | AJ38: =IF(Lin_Inter_fw!AK26<>"",Lin_Inter_fw!AK26,"") -> 0.02178165579 | AK38: =IF(Lin_Inter_fw!AL26<>"",Lin_Inter_fw!AL26,"") -> 0.02178165579 | AL38: =IF(Lin_Inter_fw!AM26<>"",Lin_Inter_fw!AM26,"") -> 0.02178165579 | AM38: =IF(Lin_Inter_fw!AN26<>"",Lin_Inter_fw!AN26,"") -> 0.02178165579 | AN38: =IF(Lin_Inter_fw!AO26<>"",Lin_Inter_fw!AO26,"") -> 0.02178165579 | AO38: =IF(Lin_Inter_fw!AP26<>"",Lin_Inter_fw!AP26,"") -> 0.02178165579 | AP38: =IF(Lin_Inter_fw!AQ26<>"",Lin_Inter_fw!AQ26,"") -> 0.02178165579 | AQ38: =IF(Lin_Inter_fw!AR26<>"",Lin_Inter_fw!AR26,"") -> 0.02178165579 | AR38: =IF(Lin_Inter_fw!AS26<>"",Lin_Inter_fw!AS26,"") -> 0.02178165579 | AS38: =IF(Lin_Inter_fw!AT26<>"",Lin_Inter_fw!AT26,"") -> 0.02178165579 | AT38: =IF(Lin_Inter_fw!AU26<>"",Lin_Inter_fw!AU26,"") -> 0.02178165579 | AU38: =IF(Lin_Inter_fw!AV26<>"",Lin_Inter_fw!AV26,"") -> 0.02178165579 | AV38: =IF(Lin_Inter_fw!AW26<>"",Lin_Inter_fw!AW26,"") -> 0.02178165579 | AW38: =IF(Lin_Inter_fw!AX26<>"",Lin_Inter_fw!AX26,"") -> 0.02178165579 | AX38: =IF(Lin_Inter_fw!AY26<>"",Lin_Inter_fw!AY26,"") -> 0.02178165579 | AY38: =IF(Lin_Inter_fw!AZ26<>"",Lin_Inter_fw!AZ26,"") -> 0.02178165579 | AZ38: =IF(Lin_Inter_fw!BA26<>"",Lin_Inter_fw!BA26,"") -> 0.02178165579
B39: Lin - Inter - Forward (YtM) | C39: =IF(Lin_Inter_fw!D37<>"",Lin_Inter_fw!D37,"") -> 0.005594581689 | D39: =IF(Lin_Inter_fw!E37<>"",Lin_Inter_fw!E37,"") -> 0.005941097652 | E39: =IF(Lin_Inter_fw!F37<>"",Lin_Inter_fw!F37,"") -> 0.01719570558 | F39: =IF(Lin_Inter_fw!G37<>"",Lin_Inter_fw!G37,"") -> 0.0175255023 | G39: =IF(Lin_Inter_fw!H37<>"",Lin_Inter_fw!H37,"") -> 0.02287212129 | H39: =IF(Lin_Inter_fw!I37<>"",Lin_Inter_fw!I37,"") -> 0.02821874029 | I39: =IF(Lin_Inter_fw!J37<>"",Lin_Inter_fw!J37,"") -> 0.02851981068 | J39: =IF(Lin_Inter_fw!K37<>"",Lin_Inter_fw!K37,"") -> 0.02882088107 | K39: =IF(Lin_Inter_fw!L37<>"",Lin_Inter_fw!L37,"") -> 0.02912195146 | L39: =IF(Lin_Inter_fw!M37<>"",Lin_Inter_fw!M37,"") -> 0.02942302185 | M39: =IF(Lin_Inter_fw!N37<>"",Lin_Inter_fw!N37,"") -> 0.02128400544 | N39: =IF(Lin_Inter_fw!O37<>"",Lin_Inter_fw!O37,"") -> 0.02128400544 | O39: =IF(Lin_Inter_fw!P37<>"",Lin_Inter_fw!P37,"") -> 0.02128400544 | P39: =IF(Lin_Inter_fw!Q37<>"",Lin_Inter_fw!Q37,"") -> 0.02128400544 | Q39: =IF(Lin_Inter_fw!R37<>"",Lin_Inter_fw!R37,"") -> 0.02128400544 | R39: =IF(Lin_Inter_fw!S37<>"",Lin_Inter_fw!S37,"") -> 0.02128400544 | S39: =IF(Lin_Inter_fw!T37<>"",Lin_Inter_fw!T37,"") -> 0.02128400544 | T39: =IF(Lin_Inter_fw!U37<>"",Lin_Inter_fw!U37,"") -> 0.02128400544 | U39: =IF(Lin_Inter_fw!V37<>"",Lin_Inter_fw!V37,"") -> 0.02128400544 | V39: =IF(Lin_Inter_fw!W37<>"",Lin_Inter_fw!W37,"") -> 0.02128400544 | W39: =IF(Lin_Inter_fw!X37<>"",Lin_Inter_fw!X37,"") -> 0.02128400544 | X39: =IF(Lin_Inter_fw!Y37<>"",Lin_Inter_fw!Y37,"") -> 0.02128400544 | Y39: =IF(Lin_Inter_fw!Z37<>"",Lin_Inter_fw!Z37,"") -> 0.02128400544 | Z39: =IF(Lin_Inter_fw!AA37<>"",Lin_Inter_fw!AA37,"") -> 0.02128400544 | AA39: =IF(Lin_Inter_fw!AB37<>"",Lin_Inter_fw!AB37,"") -> 0.02128400544 | AB39: =IF(Lin_Inter_fw!AC37<>"",Lin_Inter_fw!AC37,"") -> 0.02128400544 | AC39: =IF(Lin_Inter_fw!AD37<>"",Lin_Inter_fw!AD37,"") -> 0.02128400544 | AD39: =IF(Lin_Inter_fw!AE37<>"",Lin_Inter_fw!AE37,"") -> 0.02128400544 | AE39: =IF(Lin_Inter_fw!AF37<>"",Lin_Inter_fw!AF37,"") -> 0.02128400544 | AF39: =IF(Lin_Inter_fw!AG37<>"",Lin_Inter_fw!AG37,"") -> 0.02128400544 | AG39: =IF(Lin_Inter_fw!AH37<>"",Lin_Inter_fw!AH37,"") -> 0.02128400544 | AH39: =IF(Lin_Inter_fw!AI37<>"",Lin_Inter_fw!AI37,"") -> 0.02128400544 | AI39: =IF(Lin_Inter_fw!AJ37<>"",Lin_Inter_fw!AJ37,"") -> 0.02128400544 | AJ39: =IF(Lin_Inter_fw!AK37<>"",Lin_Inter_fw!AK37,"") -> 0.02128400544 | AK39: =IF(Lin_Inter_fw!AL37<>"",Lin_Inter_fw!AL37,"") -> 0.02128400544 | AL39: =IF(Lin_Inter_fw!AM37<>"",Lin_Inter_fw!AM37,"") -> 0.02128400544 | AM39: =IF(Lin_Inter_fw!AN37<>"",Lin_Inter_fw!AN37,"") -> 0.02128400544 | AN39: =IF(Lin_Inter_fw!AO37<>"",Lin_Inter_fw!AO37,"") -> 0.02128400544 | AO39: =IF(Lin_Inter_fw!AP37<>"",Lin_Inter_fw!AP37,"") -> 0.02128400544 | AP39: =IF(Lin_Inter_fw!AQ37<>"",Lin_Inter_fw!AQ37,"") -> 0.02128400544 | AQ39: =IF(Lin_Inter_fw!AR37<>"",Lin_Inter_fw!AR37,"") -> 0.02128400544 | AR39: =IF(Lin_Inter_fw!AS37<>"",Lin_Inter_fw!AS37,"") -> 0.02128400544 | AS39: =IF(Lin_Inter_fw!AT37<>"",Lin_Inter_fw!AT37,"") -> 0.02128400544 | AT39: =IF(Lin_Inter_fw!AU37<>"",Lin_Inter_fw!AU37,"") -> 0.02128400544 | AU39: =IF(Lin_Inter_fw!AV37<>"",Lin_Inter_fw!AV37,"") -> 0.02128400544 | AV39: =IF(Lin_Inter_fw!AW37<>"",Lin_Inter_fw!AW37,"") -> 0.02128400544 | AW39: =IF(Lin_Inter_fw!AX37<>"",Lin_Inter_fw!AX37,"") -> 0.02128400544 | AX39: =IF(Lin_Inter_fw!AY37<>"",Lin_Inter_fw!AY37,"") -> 0.02128400544 | AY39: =IF(Lin_Inter_fw!AZ37<>"",Lin_Inter_fw!AZ37,"") -> 0.02128400544 | AZ39: =IF(Lin_Inter_fw!BA37<>"",Lin_Inter_fw!BA37,"") -> 0.02128400544
B40: Lin - Inter - Par (DMP) | C40: =IF(Lin_Inter_par!D26<>"",Lin_Inter_par!D26,"") -> 0.003727278473 | D40: =IF(Lin_Inter_par!E26<>"",Lin_Inter_par!E26,"") -> 0.009095978397 | E40: =IF(Lin_Inter_par!F26<>"",Lin_Inter_par!F26,"") -> 0.01303102334 | F40: =IF(Lin_Inter_par!G26<>"",Lin_Inter_par!G26,"") -> 0.01734559121 | G40: =IF(Lin_Inter_par!H26<>"",Lin_Inter_par!H26,"") -> 0.02727919308 | H40: =IF(Lin_Inter_par!I26<>"",Lin_Inter_par!I26,"") -> 0.02371213259 | I40: =IF(Lin_Inter_par!J26<>"",Lin_Inter_par!J26,"") -> 0.0270778556 | J40: =IF(Lin_Inter_par!K26<>"",Lin_Inter_par!K26,"") -> 0.03053287645 | K40: =IF(Lin_Inter_par!L26<>"",Lin_Inter_par!L26,"") -> 0.03409421335 | L40: =IF(Lin_Inter_par!M26<>"",Lin_Inter_par!M26,"") -> 0.03778139205 | M40: =IF(Lin_Inter_par!N26<>"",Lin_Inter_par!N26,"") -> 0.02231256865 | N40: =IF(Lin_Inter_par!O26<>"",Lin_Inter_par!O26,"") -> 0.02231256865 | O40: =IF(Lin_Inter_par!P26<>"",Lin_Inter_par!P26,"") -> 0.02231256865 | P40: =IF(Lin_Inter_par!Q26<>"",Lin_Inter_par!Q26,"") -> 0.02231256865 | Q40: =IF(Lin_Inter_par!R26<>"",Lin_Inter_par!R26,"") -> 0.02231256865 | R40: =IF(Lin_Inter_par!S26<>"",Lin_Inter_par!S26,"") -> 0.02231256865 | S40: =IF(Lin_Inter_par!T26<>"",Lin_Inter_par!T26,"") -> 0.02231256865 | T40: =IF(Lin_Inter_par!U26<>"",Lin_Inter_par!U26,"") -> 0.02231256865 | U40: =IF(Lin_Inter_par!V26<>"",Lin_Inter_par!V26,"") -> 0.02231256865 | V40: =IF(Lin_Inter_par!W26<>"",Lin_Inter_par!W26,"") -> 0.02231256865 | W40: =IF(Lin_Inter_par!X26<>"",Lin_Inter_par!X26,"") -> 0.02231256865 | X40: =IF(Lin_Inter_par!Y26<>"",Lin_Inter_par!Y26,"") -> 0.02231256865 | Y40: =IF(Lin_Inter_par!Z26<>"",Lin_Inter_par!Z26,"") -> 0.02231256865 | Z40: =IF(Lin_Inter_par!AA26<>"",Lin_Inter_par!AA26,"") -> 0.02231256865 | AA40: =IF(Lin_Inter_par!AB26<>"",Lin_Inter_par!AB26,"") -> 0.02231256865 | AB40: =IF(Lin_Inter_par!AC26<>"",Lin_Inter_par!AC26,"") -> 0.02231256865 | AC40: =IF(Lin_Inter_par!AD26<>"",Lin_Inter_par!AD26,"") -> 0.02231256865 | AD40: =IF(Lin_Inter_par!AE26<>"",Lin_Inter_par!AE26,"") -> 0.02231256865 | AE40: =IF(Lin_Inter_par!AF26<>"",Lin_Inter_par!AF26,"") -> 0.02231256865 | AF40: =IF(Lin_Inter_par!AG26<>"",Lin_Inter_par!AG26,"") -> 0.02231256865 | AG40: =IF(Lin_Inter_par!AH26<>"",Lin_Inter_par!AH26,"") -> 0.02231256865 | AH40: =IF(Lin_Inter_par!AI26<>"",Lin_Inter_par!AI26,"") -> 0.02231256865 | AI40: =IF(Lin_Inter_par!AJ26<>"",Lin_Inter_par!AJ26,"") -> 0.02231256865 | AJ40: =IF(Lin_Inter_par!AK26<>"",Lin_Inter_par!AK26,"") -> 0.02231256865 | AK40: =IF(Lin_Inter_par!AL26<>"",Lin_Inter_par!AL26,"") -> 0.02231256865 | AL40: =IF(Lin_Inter_par!AM26<>"",Lin_Inter_par!AM26,"") -> 0.02231256865 | AM40: =IF(Lin_Inter_par!AN26<>"",Lin_Inter_par!AN26,"") -> 0.02231256865 | AN40: =IF(Lin_Inter_par!AO26<>"",Lin_Inter_par!AO26,"") -> 0.02231256865 | AO40: =IF(Lin_Inter_par!AP26<>"",Lin_Inter_par!AP26,"") -> 0.02231256865 | AP40: =IF(Lin_Inter_par!AQ26<>"",Lin_Inter_par!AQ26,"") -> 0.02231256865 | AQ40: =IF(Lin_Inter_par!AR26<>"",Lin_Inter_par!AR26,"") -> 0.02231256865 | AR40: =IF(Lin_Inter_par!AS26<>"",Lin_Inter_par!AS26,"") -> 0.02231256865 | AS40: =IF(Lin_Inter_par!AT26<>"",Lin_Inter_par!AT26,"") -> 0.02231256865 | AT40: =IF(Lin_Inter_par!AU26<>"",Lin_Inter_par!AU26,"") -> 0.02231256865 | AU40: =IF(Lin_Inter_par!AV26<>"",Lin_Inter_par!AV26,"") -> 0.02231256865 | AV40: =IF(Lin_Inter_par!AW26<>"",Lin_Inter_par!AW26,"") -> 0.02231256865 | AW40: =IF(Lin_Inter_par!AX26<>"",Lin_Inter_par!AX26,"") -> 0.02231256865 | AX40: =IF(Lin_Inter_par!AY26<>"",Lin_Inter_par!AY26,"") -> 0.02231256865 | AY40: =IF(Lin_Inter_par!AZ26<>"",Lin_Inter_par!AZ26,"") -> 0.02231256865 | AZ40: =IF(Lin_Inter_par!BA26<>"",Lin_Inter_par!BA26,"") -> 0.02231256865
B41: Lin - Inter - Par (YtM) | C41: =IF(Lin_Inter_par!D37<>"",Lin_Inter_par!D37,"") -> 0.004959668694 | D41: =IF(Lin_Inter_par!E37<>"",Lin_Inter_par!E37,"") -> 0.006964463619 | E41: =IF(Lin_Inter_par!F37<>"",Lin_Inter_par!F37,"") -> 0.01436553117 | F41: =IF(Lin_Inter_par!G37<>"",Lin_Inter_par!G37,"") -> 0.01583574676 | G41: =IF(Lin_Inter_par!H37<>"",Lin_Inter_par!H37,"") -> 0.02823184333 | H41: =IF(Lin_Inter_par!I37<>"",Lin_Inter_par!I37,"") -> 0.02380705455 | I41: =IF(Lin_Inter_par!J37<>"",Lin_Inter_par!J37,"") -> 0.02721553721 | J41: =IF(Lin_Inter_par!K37<>"",Lin_Inter_par!K37,"") -> 0.03071523756 | K41: =IF(Lin_Inter_par!L37<>"",Lin_Inter_par!L37,"") -> 0.03432363864 | L41: =IF(Lin_Inter_par!M37<>"",Lin_Inter_par!M37,"") -> 0.03806082141 | M41: =IF(Lin_Inter_par!N37<>"",Lin_Inter_par!N37,"") -> 0.0223908276 | N41: =IF(Lin_Inter_par!O37<>"",Lin_Inter_par!O37,"") -> 0.0223908276 | O41: =IF(Lin_Inter_par!P37<>"",Lin_Inter_par!P37,"") -> 0.0223908276 | P41: =IF(Lin_Inter_par!Q37<>"",Lin_Inter_par!Q37,"") -> 0.0223908276 | Q41: =IF(Lin_Inter_par!R37<>"",Lin_Inter_par!R37,"") -> 0.0223908276 | R41: =IF(Lin_Inter_par!S37<>"",Lin_Inter_par!S37,"") -> 0.0223908276 | S41: =IF(Lin_Inter_par!T37<>"",Lin_Inter_par!T37,"") -> 0.0223908276 | T41: =IF(Lin_Inter_par!U37<>"",Lin_Inter_par!U37,"") -> 0.0223908276 | U41: =IF(Lin_Inter_par!V37<>"",Lin_Inter_par!V37,"") -> 0.0223908276 | V41: =IF(Lin_Inter_par!W37<>"",Lin_Inter_par!W37,"") -> 0.0223908276 | W41: =IF(Lin_Inter_par!X37<>"",Lin_Inter_par!X37,"") -> 0.0223908276 | X41: =IF(Lin_Inter_par!Y37<>"",Lin_Inter_par!Y37,"") -> 0.0223908276 | Y41: =IF(Lin_Inter_par!Z37<>"",Lin_Inter_par!Z37,"") -> 0.0223908276 | Z41: =IF(Lin_Inter_par!AA37<>"",Lin_Inter_par!AA37,"") -> 0.0223908276 | AA41: =IF(Lin_Inter_par!AB37<>"",Lin_Inter_par!AB37,"") -> 0.0223908276 | AB41: =IF(Lin_Inter_par!AC37<>"",Lin_Inter_par!AC37,"") -> 0.0223908276 | AC41: =IF(Lin_Inter_par!AD37<>"",Lin_Inter_par!AD37,"") -> 0.0223908276 | AD41: =IF(Lin_Inter_par!AE37<>"",Lin_Inter_par!AE37,"") -> 0.0223908276 | AE41: =IF(Lin_Inter_par!AF37<>"",Lin_Inter_par!AF37,"") -> 0.0223908276 | AF41: =IF(Lin_Inter_par!AG37<>"",Lin_Inter_par!AG37,"") -> 0.0223908276 | AG41: =IF(Lin_Inter_par!AH37<>"",Lin_Inter_par!AH37,"") -> 0.0223908276 | AH41: =IF(Lin_Inter_par!AI37<>"",Lin_Inter_par!AI37,"") -> 0.0223908276 | AI41: =IF(Lin_Inter_par!AJ37<>"",Lin_Inter_par!AJ37,"") -> 0.0223908276 | AJ41: =IF(Lin_Inter_par!AK37<>"",Lin_Inter_par!AK37,"") -> 0.0223908276 | AK41: =IF(Lin_Inter_par!AL37<>"",Lin_Inter_par!AL37,"") -> 0.0223908276 | AL41: =IF(Lin_Inter_par!AM37<>"",Lin_Inter_par!AM37,"") -> 0.0223908276 | AM41: =IF(Lin_Inter_par!AN37<>"",Lin_Inter_par!AN37,"") -> 0.0223908276 | AN41: =IF(Lin_Inter_par!AO37<>"",Lin_Inter_par!AO37,"") -> 0.0223908276 | AO41: =IF(Lin_Inter_par!AP37<>"",Lin_Inter_par!AP37,"") -> 0.0223908276 | AP41: =IF(Lin_Inter_par!AQ37<>"",Lin_Inter_par!AQ37,"") -> 0.0223908276 | AQ41: =IF(Lin_Inter_par!AR37<>"",Lin_Inter_par!AR37,"") -> 0.0223908276 | AR41: =IF(Lin_Inter_par!AS37<>"",Lin_Inter_par!AS37,"") -> 0.0223908276 | AS41: =IF(Lin_Inter_par!AT37<>"",Lin_Inter_par!AT37,"") -> 0.0223908276 | AT41: =IF(Lin_Inter_par!AU37<>"",Lin_Inter_par!AU37,"") -> 0.0223908276 | AU41: =IF(Lin_Inter_par!AV37<>"",Lin_Inter_par!AV37,"") -> 0.0223908276 | AV41: =IF(Lin_Inter_par!AW37<>"",Lin_Inter_par!AW37,"") -> 0.0223908276 | AW41: =IF(Lin_Inter_par!AX37<>"",Lin_Inter_par!AX37,"") -> 0.0223908276 | AX41: =IF(Lin_Inter_par!AY37<>"",Lin_Inter_par!AY37,"") -> 0.0223908276 | AY41: =IF(Lin_Inter_par!AZ37<>"",Lin_Inter_par!AZ37,"") -> 0.0223908276 | AZ41: =IF(Lin_Inter_par!BA37<>"",Lin_Inter_par!BA37,"") -> 0.0223908276
B44: Continuously compounded Zero (Spot) Rates
B46: Years | C46: 1 | D46: 2 | E46: 3 | F46: 4 | G46: 5 | H46: 6 | I46: 7 | J46: 8 | K46: 9 | L46: 10 | M46: 11 | N46: 12 | O46: 13 | P46: 14 | Q46: 15 | R46: 16 | S46: 17 | T46: 18 | U46: 19 | V46: 20 | W46: 21 | X46: 22 | Y46: 23 | Z46: 24 | AA46: 25 | AB46: 26 | AC46: 27 | AD46: 28 | AE46: 29 | AF46: 30 | AG46: 31 | AH46: 32 | AI46: 33 | AJ46: 34 | AK46: 35 | AL46: 36 | AM46: 37 | AN46: 38 | AO46: 39 | AP46: 40 | AQ46: 41 | AR46: 42 | AS46: 43 | AT46: 44 | AU46: 45 | AV46: 46 | AW46: 47 | AX46: 48 | AY46: 49 | AZ46: 50
B47: Nelson-Siegel (DMP) | C47: =IF('Nelson-Siegel'!D18<>"",'Nelson-Siegel'!D18,"") -> 0.002521740758 | D47: =IF('Nelson-Siegel'!E18<>"",'Nelson-Siegel'!E18,"") -> 0.005307057161 | E47: =IF('Nelson-Siegel'!F18<>"",'Nelson-Siegel'!F18,"") -> 0.008208955091 | F47: =IF('Nelson-Siegel'!G18<>"",'Nelson-Siegel'!G18,"") -> 0.01100382084 | G47: =IF('Nelson-Siegel'!H18<>"",'Nelson-Siegel'!H18,"") -> 0.01358247227 | H47: =IF('Nelson-Siegel'!I18<>"",'Nelson-Siegel'!I18,"") -> 0.01590229734 | I47: =IF('Nelson-Siegel'!J18<>"",'Nelson-Siegel'!J18,"") -> 0.01795791404 | J47: =IF('Nelson-Siegel'!K18<>"",'Nelson-Siegel'!K18,"") -> 0.01976345887 | K47: =IF('Nelson-Siegel'!L18<>"",'Nelson-Siegel'!L18,"") -> 0.02134211884 | L47: =IF('Nelson-Siegel'!M18<>"",'Nelson-Siegel'!M18,"") -> 0.02272013047 | M47: =IF('Nelson-Siegel'!N18<>"",'Nelson-Siegel'!N18,"") -> 0.02392349747 | N47: =IF('Nelson-Siegel'!O18<>"",'Nelson-Siegel'!O18,"") -> 0.02497633443 | O47: =IF('Nelson-Siegel'!P18<>"",'Nelson-Siegel'!P18,"") -> 0.02590015895 | P47: =IF('Nelson-Siegel'!Q18<>"",'Nelson-Siegel'!Q18,"") -> 0.02671371765 | Q47: =IF('Nelson-Siegel'!R18<>"",'Nelson-Siegel'!R18,"") -> 0.02743309532 | R47: =IF('Nelson-Siegel'!S18<>"",'Nelson-Siegel'!S18,"") -> 0.02807195954 | S47: =IF('Nelson-Siegel'!T18<>"",'Nelson-Siegel'!T18,"") -> 0.02864185541 | T47: =IF('Nelson-Siegel'!U18<>"",'Nelson-Siegel'!U18,"") -> 0.02915250409 | U47: =IF('Nelson-Siegel'!V18<>"",'Nelson-Siegel'!V18,"") -> 0.02961208108 | V47: =IF('Nelson-Siegel'!W18<>"",'Nelson-Siegel'!W18,"") -> 0.03002746395 | W47: =IF('Nelson-Siegel'!X18<>"",'Nelson-Siegel'!X18,"") -> 0.03040444662 | X47: =IF('Nelson-Siegel'!Y18<>"",'Nelson-Siegel'!Y18,"") -> 0.03074792117 | Y47: =IF('Nelson-Siegel'!Z18<>"",'Nelson-Siegel'!Z18,"") -> 0.0310620302 | Z47: =IF('Nelson-Siegel'!AA18<>"",'Nelson-Siegel'!AA18,"") -> 0.0313502935 | AA47: =IF('Nelson-Siegel'!AB18<>"",'Nelson-Siegel'!AB18,"") -> 0.03161571278 | AB47: =IF('Nelson-Siegel'!AC18<>"",'Nelson-Siegel'!AC18,"") -> 0.0318608579 | AC47: =IF('Nelson-Siegel'!AD18<>"",'Nelson-Siegel'!AD18,"") -> 0.03208793796 | AD47: =IF('Nelson-Siegel'!AE18<>"",'Nelson-Siegel'!AE18,"") -> 0.03229885972 | AE47: =IF('Nelson-Siegel'!AF18<>"",'Nelson-Siegel'!AF18,"") -> 0.03249527573 | AF47: =IF('Nelson-Siegel'!AG18<>"",'Nelson-Siegel'!AG18,"") -> 0.032678624 | AG47: =IF('Nelson-Siegel'!AH18<>"",'Nelson-Siegel'!AH18,"") -> 0.0328501609 | AH47: =IF('Nelson-Siegel'!AI18<>"",'Nelson-Siegel'!AI18,"") -> 0.03301098826 | AI47: =IF('Nelson-Siegel'!AJ18<>"",'Nelson-Siegel'!AJ18,"") -> 0.0331620761 | AJ47: =IF('Nelson-Siegel'!AK18<>"",'Nelson-Siegel'!AK18,"") -> 0.03330428139 | AK47: =IF('Nelson-Siegel'!AL18<>"",'Nelson-Siegel'!AL18,"") -> 0.03343836395 | AL47: =IF('Nelson-Siegel'!AM18<>"",'Nelson-Siegel'!AM18,"") -> 0.03356499963 | AM47: =IF('Nelson-Siegel'!AN18<>"",'Nelson-Siegel'!AN18,"") -> 0.03368479155 | AN47: =IF('Nelson-Siegel'!AO18<>"",'Nelson-Siegel'!AO18,"") -> 0.03379827957 | AO47: =IF('Nelson-Siegel'!AP18<>"",'Nelson-Siegel'!AP18,"") -> 0.03390594829 | AP47: =IF('Nelson-Siegel'!AQ18<>"",'Nelson-Siegel'!AQ18,"") -> 0.03400823399 | AQ47: =IF('Nelson-Siegel'!AR18<>"",'Nelson-Siegel'!AR18,"") -> 0.0341055304 | AR47: =IF('Nelson-Siegel'!AS18<>"",'Nelson-Siegel'!AS18,"") -> 0.03419819382 | AS47: =IF('Nelson-Siegel'!AT18<>"",'Nelson-Siegel'!AT18,"") -> 0.03428654744 | AT47: =IF('Nelson-Siegel'!AU18<>"",'Nelson-Siegel'!AU18,"") -> 0.03437088505 | AU47: =IF('Nelson-Siegel'!AV18<>"",'Nelson-Siegel'!AV18,"") -> 0.03445147437 | AV47: =IF('Nelson-Siegel'!AW18<>"",'Nelson-Siegel'!AW18,"") -> 0.03452855985 | AW47: =IF('Nelson-Siegel'!AX18<>"",'Nelson-Siegel'!AX18,"") -> 0.03460236511 | AX47: =IF('Nelson-Siegel'!AY18<>"",'Nelson-Siegel'!AY18,"") -> 0.03467309516 | AY47: =IF('Nelson-Siegel'!AZ18<>"",'Nelson-Siegel'!AZ18,"") -> 0.03474093829 | AZ47: =IF('Nelson-Siegel'!BA18<>"",'Nelson-Siegel'!BA18,"") -> 0.03480606769
B48: Nelson-Siegel (YtM) | C48: =IF('Nelson-Siegel'!D30<>"",'Nelson-Siegel'!D30,"") ->  | D48: =IF('Nelson-Siegel'!E30<>"",'Nelson-Siegel'!E30,"") ->  | E48: =IF('Nelson-Siegel'!F30<>"",'Nelson-Siegel'!F30,"") ->  | F48: =IF('Nelson-Siegel'!G30<>"",'Nelson-Siegel'!G30,"") ->  | G48: =IF('Nelson-Siegel'!H30<>"",'Nelson-Siegel'!H30,"") ->  | H48: =IF('Nelson-Siegel'!I30<>"",'Nelson-Siegel'!I30,"") ->  | I48: =IF('Nelson-Siegel'!J30<>"",'Nelson-Siegel'!J30,"") ->  | J48: =IF('Nelson-Siegel'!K30<>"",'Nelson-Siegel'!K30,"") ->  | K48: =IF('Nelson-Siegel'!L30<>"",'Nelson-Siegel'!L30,"") ->  | L48: =IF('Nelson-Siegel'!M30<>"",'Nelson-Siegel'!M30,"") ->  | M48: =IF('Nelson-Siegel'!N30<>"",'Nelson-Siegel'!N30,"") ->  | N48: =IF('Nelson-Siegel'!O30<>"",'Nelson-Siegel'!O30,"") ->  | O48: =IF('Nelson-Siegel'!P30<>"",'Nelson-Siegel'!P30,"") ->  | P48: =IF('Nelson-Siegel'!Q30<>"",'Nelson-Siegel'!Q30,"") ->  | Q48: =IF('Nelson-Siegel'!R30<>"",'Nelson-Siegel'!R30,"") ->  | R48: =IF('Nelson-Siegel'!S30<>"",'Nelson-Siegel'!S30,"") ->  | S48: =IF('Nelson-Siegel'!T30<>"",'Nelson-Siegel'!T30,"") ->  | T48: =IF('Nelson-Siegel'!U30<>"",'Nelson-Siegel'!U30,"") ->  | U48: =IF('Nelson-Siegel'!V30<>"",'Nelson-Siegel'!V30,"") ->  | V48: =IF('Nelson-Siegel'!W30<>"",'Nelson-Siegel'!W30,"") ->  | W48: =IF('Nelson-Siegel'!X30<>"",'Nelson-Siegel'!X30,"") ->  | X48: =IF('Nelson-Siegel'!Y30<>"",'Nelson-Siegel'!Y30,"") ->  | Y48: =IF('Nelson-Siegel'!Z30<>"",'Nelson-Siegel'!Z30,"") ->  | Z48: =IF('Nelson-Siegel'!AA30<>"",'Nelson-Siegel'!AA30,"") ->  | AA48: =IF('Nelson-Siegel'!AB30<>"",'Nelson-Siegel'!AB30,"") ->  | AB48: =IF('Nelson-Siegel'!AC30<>"",'Nelson-Siegel'!AC30,"") ->  | AC48: =IF('Nelson-Siegel'!AD30<>"",'Nelson-Siegel'!AD30,"") ->  | AD48: =IF('Nelson-Siegel'!AE30<>"",'Nelson-Siegel'!AE30,"") ->  | AE48: =IF('Nelson-Siegel'!AF30<>"",'Nelson-Siegel'!AF30,"") ->  | AF48: =IF('Nelson-Siegel'!AG30<>"",'Nelson-Siegel'!AG30,"") ->  | AG48: =IF('Nelson-Siegel'!AH30<>"",'Nelson-Siegel'!AH30,"") ->  | AH48: =IF('Nelson-Siegel'!AI30<>"",'Nelson-Siegel'!AI30,"") ->  | AI48: =IF('Nelson-Siegel'!AJ30<>"",'Nelson-Siegel'!AJ30,"") ->  | AJ48: =IF('Nelson-Siegel'!AK30<>"",'Nelson-Siegel'!AK30,"") ->  | AK48: =IF('Nelson-Siegel'!AL30<>"",'Nelson-Siegel'!AL30,"") ->  | AL48: =IF('Nelson-Siegel'!AM30<>"",'Nelson-Siegel'!AM30,"") ->  | AM48: =IF('Nelson-Siegel'!AN30<>"",'Nelson-Siegel'!AN30,"") ->  | AN48: =IF('Nelson-Siegel'!AO30<>"",'Nelson-Siegel'!AO30,"") ->  | AO48: =IF('Nelson-Siegel'!AP30<>"",'Nelson-Siegel'!AP30,"") ->  | AP48: =IF('Nelson-Siegel'!AQ30<>"",'Nelson-Siegel'!AQ30,"") ->  | AQ48: =IF('Nelson-Siegel'!AR30<>"",'Nelson-Siegel'!AR30,"") ->  | AR48: =IF('Nelson-Siegel'!AS30<>"",'Nelson-Siegel'!AS30,"") ->  | AS48: =IF('Nelson-Siegel'!AT30<>"",'Nelson-Siegel'!AT30,"") ->  | AT48: =IF('Nelson-Siegel'!AU30<>"",'Nelson-Siegel'!AU30,"") ->  | AU48: =IF('Nelson-Siegel'!AV30<>"",'Nelson-Siegel'!AV30,"") ->  | AV48: =IF('Nelson-Siegel'!AW30<>"",'Nelson-Siegel'!AW30,"") ->  | AW48: =IF('Nelson-Siegel'!AX30<>"",'Nelson-Siegel'!AX30,"") ->  | AX48: =IF('Nelson-Siegel'!AY30<>"",'Nelson-Siegel'!AY30,"") ->  | AY48: =IF('Nelson-Siegel'!AZ30<>"",'Nelson-Siegel'!AZ30,"") ->  | AZ48: =IF('Nelson-Siegel'!BA30<>"",'Nelson-Siegel'!BA30,"") -> 
B49: Svensson (DMP) | C49: =IF(Swenson!D20<>"",Swenson!D20,"") -> 0.004431267327 | D49: =IF(Swenson!E20<>"",Swenson!E20,"") -> 0.006689641999 | E49: =IF(Swenson!F20<>"",Swenson!F20,"") -> 0.008806427921 | F49: =IF(Swenson!G20<>"",Swenson!G20,"") -> 0.01108443989 | G49: =IF(Swenson!H20<>"",Swenson!H20,"") -> 0.01341496257 | H49: =IF(Swenson!I20<>"",Swenson!I20,"") -> 0.01565793602 | I49: =IF(Swenson!J20<>"",Swenson!J20,"") -> 0.01772462949 | J49: =IF(Swenson!K20<>"",Swenson!K20,"") -> 0.01957684755 | K49: =IF(Swenson!L20<>"",Swenson!L20,"") -> 0.02120979994 | L49: =IF(Swenson!M20<>"",Swenson!M20,"") -> 0.02263690222 | M49: =IF(Swenson!N20<>"",Swenson!N20,"") -> 0.0238796501 | N49: =IF(Swenson!O20<>"",Swenson!O20,"") -> 0.02496173018 | O49: =IF(Swenson!P20<>"",Swenson!P20,"") -> 0.0259059502 | P49: =IF(Swenson!Q20<>"",Swenson!Q20,"") -> 0.02673285495 | Q49: =IF(Swenson!R20<>"",Swenson!R20,"") -> 0.02746027612 | R49: =IF(Swenson!S20<>"",Swenson!S20,"") -> 0.02810336048 | S49: =IF(Swenson!T20<>"",Swenson!T20,"") -> 0.02867481632 | T49: =IF(Swenson!U20<>"",Swenson!U20,"") -> 0.02918523713 | U49: =IF(Swenson!V20<>"",Swenson!V20,"") -> 0.0296434306 | V49: =IF(Swenson!W20<>"",Swenson!W20,"") -> 0.03005672023 | W49: =IF(Swenson!X20<>"",Swenson!X20,"") -> 0.030431207 | X49: =IF(Swenson!Y20<>"",Swenson!Y20,"") -> 0.03077198954 | Y49: =IF(Swenson!Z20<>"",Swenson!Z20,"") -> 0.03108334592 | Z49: =IF(Swenson!AA20<>"",Swenson!AA20,"") -> 0.03136888204 | AA49: =IF(Swenson!AB20<>"",Swenson!AB20,"") -> 0.03163165204 | AB49: =IF(Swenson!AC20<>"",Swenson!AC20,"") -> 0.03187425569 | AC49: =IF(Swenson!AD20<>"",Swenson!AD20,"") -> 0.03209891712 | AD49: =IF(Swenson!AE20<>"",Swenson!AE20,"") -> 0.0323075486 | AE49: =IF(Swenson!AF20<>"",Swenson!AF20,"") -> 0.03250180223 | AF49: =IF(Swenson!AG20<>"",Swenson!AG20,"") -> 0.03268311201 | AG49: =IF(Swenson!AH20<>"",Swenson!AH20,"") -> 0.03285272828 | AH49: =IF(Swenson!AI20<>"",Swenson!AI20,"") -> 0.03301174589 | AI49: =IF(Swenson!AJ20<>"",Swenson!AJ20,"") -> 0.03316112752 | AJ49: =IF(Swenson!AK20<>"",Swenson!AK20,"") -> 0.03330172286 | AK49: =IF(Swenson!AL20<>"",Swenson!AL20,"") -> 0.03343428472 | AL49: =IF(Swenson!AM20<>"",Swenson!AM20,"") -> 0.03355948235 | AM49: =IF(Swenson!AN20<>"",Swenson!AN20,"") -> 0.03367791274 | AN49: =IF(Swenson!AO20<>"",Swenson!AO20,"") -> 0.03379011006 | AO49: =IF(Swenson!AP20<>"",Swenson!AP20,"") -> 0.03389655376 | AP49: =IF(Swenson!AQ20<>"",Swenson!AQ20,"") -> 0.03399767531 | AQ49: =IF(Swenson!AR20<>"",Swenson!AR20,"") -> 0.03409386413 | AR49: =IF(Swenson!AS20<>"",Swenson!AS20,"") -> 0.03418547254 | AS49: =IF(Swenson!AT20<>"",Swenson!AT20,"") -> 0.03427282011 | AT49: =IF(Swenson!AU20<>"",Swenson!AU20,"") -> 0.03435619734 | AU49: =IF(Swenson!AV20<>"",Swenson!AV20,"") -> 0.03443586892 | AV49: =IF(Swenson!AW20<>"",Swenson!AW20,"") -> 0.03451207652 | AW49: =IF(Swenson!AX20<>"",Swenson!AX20,"") -> 0.03458504125 | AX49: =IF(Swenson!AY20<>"",Swenson!AY20,"") -> 0.03465496578 | AY49: =IF(Swenson!AZ20<>"",Swenson!AZ20,"") -> 0.03472203625 | AZ49: =IF(Swenson!BA20<>"",Swenson!BA20,"") -> 0.03478642389
B50: Svensson (YtM) | C50: =IF(Swenson!D32<>"",Swenson!D32,"") -> 0.004460008618 | D50: =IF(Swenson!E32<>"",Swenson!E32,"") -> 0.006671354786 | E50: =IF(Swenson!F32<>"",Swenson!F32,"") -> 0.008743396438 | F50: =IF(Swenson!G32<>"",Swenson!G32,"") -> 0.01099245562 | G50: =IF(Swenson!H32<>"",Swenson!H32,"") -> 0.01330732548 | H50: =IF(Swenson!I32<>"",Swenson!I32,"") -> 0.01554326825 | I50: =IF(Swenson!J32<>"",Swenson!J32,"") -> 0.01760790293 | J50: =IF(Swenson!K32<>"",Swenson!K32,"") -> 0.01946069581 | K50: =IF(Swenson!L32<>"",Swenson!L32,"") -> 0.0210954869 | L50: =IF(Swenson!M32<>"",Swenson!M32,"") -> 0.02252493395 | M50: =IF(Swenson!N32<>"",Swenson!N32,"") -> 0.02377013461 | N50: =IF(Swenson!O32<>"",Swenson!O32,"") -> 0.02485457984 | O50: =IF(Swenson!P32<>"",Swenson!P32,"") -> 0.02580099189 | P50: =IF(Swenson!Q32<>"",Swenson!Q32,"") -> 0.02662988778 | Q50: =IF(Swenson!R32<>"",Swenson!R32,"") -> 0.02735910016 | R50: =IF(Swenson!S32<>"",Swenson!S32,"") -> 0.02800378986 | S50: =IF(Swenson!T32<>"",Swenson!T32,"") -> 0.02857668411 | T50: =IF(Swenson!U32<>"",Swenson!U32,"") -> 0.02908839604 | U50: =IF(Swenson!V32<>"",Swenson!V32,"") -> 0.02954775187 | V50: =IF(Swenson!W32<>"",Swenson!W32,"") -> 0.02996209165 | W50: =IF(Swenson!X32<>"",Swenson!X32,"") -> 0.03033753081 | X50: =IF(Swenson!Y32<>"",Swenson!Y32,"") -> 0.0306791804 | Y50: =IF(Swenson!Z32<>"",Swenson!Z32,"") -> 0.03099132913 | Z50: =IF(Swenson!AA32<>"",Swenson!AA32,"") -> 0.03127759194 | AA50: =IF(Swenson!AB32<>"",Swenson!AB32,"") -> 0.03154103068 | AB50: =IF(Swenson!AC32<>"",Swenson!AC32,"") -> 0.03178425174 | AC50: =IF(Swenson!AD32<>"",Swenson!AD32,"") -> 0.03200948489 | AD50: =IF(Swenson!AE32<>"",Swenson!AE32,"") -> 0.03221864729 | AE50: =IF(Swenson!AF32<>"",Swenson!AF32,"") -> 0.03241339522 | AF50: =IF(Swenson!AG32<>"",Swenson!AG32,"") -> 0.03259516636 | AG50: =IF(Swenson!AH32<>"",Swenson!AH32,"") -> 0.03276521422 | AH50: =IF(Swenson!AI32<>"",Swenson!AI32,"") -> 0.03292463646 | AI50: =IF(Swenson!AJ32<>"",Swenson!AJ32,"") -> 0.03307439818 | AJ50: =IF(Swenson!AK32<>"",Swenson!AK32,"") -> 0.03321535126 | AK50: =IF(Swenson!AL32<>"",Swenson!AL32,"") -> 0.03334825041 | AL50: =IF(Swenson!AM32<>"",Swenson!AM32,"") -> 0.03347376659 | AM50: =IF(Swenson!AN32<>"",Swenson!AN32,"") -> 0.03359249831 | AN50: =IF(Swenson!AO32<>"",Swenson!AO32,"") -> 0.03370498112 | AO50: =IF(Swenson!AP32<>"",Swenson!AP32,"") -> 0.03381169564 | AP50: =IF(Swenson!AQ32<>"",Swenson!AQ32,"") -> 0.03391307449 | AQ50: =IF(Swenson!AR32<>"",Swenson!AR32,"") -> 0.03400950805 | AR50: =IF(Swenson!AS32<>"",Swenson!AS32,"") -> 0.03410134955 | AS50: =IF(Swenson!AT32<>"",Swenson!AT32,"") -> 0.03418891937 | AT50: =IF(Swenson!AU32<>"",Swenson!AU32,"") -> 0.03427250874 | AU50: =IF(Swenson!AV32<>"",Swenson!AV32,"") -> 0.03435238304 | AV50: =IF(Swenson!AW32<>"",Swenson!AW32,"") -> 0.03442878454 | AW50: =IF(Swenson!AX32<>"",Swenson!AX32,"") -> 0.03450193492 | AX50: =IF(Swenson!AY32<>"",Swenson!AY32,"") -> 0.03457203736 | AY50: =IF(Swenson!AZ32<>"",Swenson!AZ32,"") -> 0.03463927848 | AZ50: =IF(Swenson!BA32<>"",Swenson!BA32,"") -> 0.03470382996
B51: Cubic spline (DMP) | C51: =IF(C13<>"",LN(1+C13),"") -> 0.005141472268 | D51: =IF(D13<>"",LN(1+D13),"") -> 0.006411309994 | E51: 0.008473460374 | F51: 0.01102774655 | G51: 0.01404714191 | H51: 0.01404714191 | I51: 0.01404714191 | J51: 0.01404714191 | K51: 0.01404714191 | L51: 0.01404714191 | M51: 0.01404714191 | N51: 0.01404714191 | O51: 0.01404714191 | P51: 0.01404714191 | Q51: 0.01404714191 | R51: 0.01404714191 | S51: 0.01404714191 | T51: 0.01404714191 | U51: 0.01404714191 | V51: 0.01404714191 | W51: 0.01404714191 | X51: 0.01404714191 | Y51: 0.01404714191 | Z51: 0.01404714191 | AA51: 0.01404714191 | AB51: 0.01404714191 | AC51: 0.01404714191 | AD51: 0.01404714191 | AE51: 0.01404714191 | AF51: 0.01404714191 | AG51: 0.01404714191 | AH51: 0.01404714191 | AI51: 0.01404714191 | AJ51: 0.01404714191 | AK51: 0.01404714191 | AL51: 0.01404714191 | AM51: 0.01404714191 | AN51: 0.01404714191 | AO51: 0.01404714191 | AP51: 0.01404714191 | AQ51: 0.01404714191 | AR51: 0.01404714191 | AS51: 0.01404714191 | AT51: 0.01404714191 | AU51: 0.01404714191 | AV51: 0.01404714191 | AW51: 0.01404714191 | AX51: 0.01404714191 | AY51: 0.01404714191 | AZ51: 0.01404714191
B52: Smith-Wilson (DMP) | C52: =IF('Smith-Wilson'!D18<>"",'Smith-Wilson'!D18,"") -> 0.004646614306 | D52: =IF('Smith-Wilson'!E18<>"",'Smith-Wilson'!E18,"") -> 0.0065809118 | E52: =IF('Smith-Wilson'!F18<>"",'Smith-Wilson'!F18,"") -> 0.008796096393 | F52: =IF('Smith-Wilson'!G18<>"",'Smith-Wilson'!G18,"") -> 0.01108926021 | G52: =IF('Smith-Wilson'!H18<>"",'Smith-Wilson'!H18,"") -> 0.01393910561 | H52: =IF('Smith-Wilson'!I18<>"",'Smith-Wilson'!I18,"") -> 0.01571526891 | I52: =IF('Smith-Wilson'!J18<>"",'Smith-Wilson'!J18,"") -> 0.01736658273 | J52: =IF('Smith-Wilson'!K18<>"",'Smith-Wilson'!K18,"") -> 0.01885637296 | K52: =IF('Smith-Wilson'!L18<>"",'Smith-Wilson'!L18,"") -> 0.02028410793 | L52: =IF('Smith-Wilson'!M18<>"",'Smith-Wilson'!M18,"") -> 0.02173402684 | M52: =IF('Smith-Wilson'!N18<>"",'Smith-Wilson'!N18,"") -> 0.02370978099 | N52: =IF('Smith-Wilson'!O18<>"",'Smith-Wilson'!O18,"") -> 0.02560255889 | O52: =IF('Smith-Wilson'!P18<>"",'Smith-Wilson'!P18,"") -> 0.02704304848 | P52: =IF('Smith-Wilson'!Q18<>"",'Smith-Wilson'!Q18,"") -> 0.02804131103 | Q52: =IF('Smith-Wilson'!R18<>"",'Smith-Wilson'!R18,"") -> 0.02870071456 | R52: =IF('Smith-Wilson'!S18<>"",'Smith-Wilson'!S18,"") -> 0.02908955297 | S52: =IF('Smith-Wilson'!T18<>"",'Smith-Wilson'!T18,"") -> 0.02938071151 | T52: =IF('Smith-Wilson'!U18<>"",'Smith-Wilson'!U18,"") -> 0.02991773238 | U52: =IF('Smith-Wilson'!V18<>"",'Smith-Wilson'!V18,"") -> 0.03082751596 | V52: =IF('Smith-Wilson'!W18<>"",'Smith-Wilson'!W18,"") -> 0.03118104394 | W52: =IF('Smith-Wilson'!X18<>"",'Smith-Wilson'!X18,"") -> 0.03090622949 | X52: =IF('Smith-Wilson'!Y18<>"",'Smith-Wilson'!Y18,"") -> 0.03039341277 | Y52: =IF('Smith-Wilson'!Z18<>"",'Smith-Wilson'!Z18,"") -> 0.02993467529 | Z52: =IF('Smith-Wilson'!AA18<>"",'Smith-Wilson'!AA18,"") -> 0.02965121836 | AA52: =IF('Smith-Wilson'!AB18<>"",'Smith-Wilson'!AB18,"") -> 0.02949708438 | AB52: =IF('Smith-Wilson'!AC18<>"",'Smith-Wilson'!AC18,"") -> 0.02942765192 | AC52: =IF('Smith-Wilson'!AD18<>"",'Smith-Wilson'!AD18,"") -> 0.0294202554 | AD52: =IF('Smith-Wilson'!AE18<>"",'Smith-Wilson'!AE18,"") -> 0.0294617565 | AE52: =IF('Smith-Wilson'!AF18<>"",'Smith-Wilson'!AF18,"") -> 0.02954169536 | AF52: =IF('Smith-Wilson'!AG18<>"",'Smith-Wilson'!AG18,"") -> 0.02965169572 | AG52: =IF('Smith-Wilson'!AH18<>"",'Smith-Wilson'!AH18,"") -> 0.0297850249 | AH52: =IF('Smith-Wilson'!AI18<>"",'Smith-Wilson'!AI18,"") -> 0.02993625495 | AI52: =IF('Smith-Wilson'!AJ18<>"",'Smith-Wilson'!AJ18,"") -> 0.03010099959 | AJ52: =IF('Smith-Wilson'!AK18<>"",'Smith-Wilson'!AK18,"") -> 0.03027570851 | AK52: =IF('Smith-Wilson'!AL18<>"",'Smith-Wilson'!AL18,"") -> 0.03045750534 | AL52: =IF('Smith-Wilson'!AM18<>"",'Smith-Wilson'!AM18,"") -> 0.03064405937 | AM52: =IF('Smith-Wilson'!AN18<>"",'Smith-Wilson'!AN18,"") -> 0.03083348325 | AN52: =IF('Smith-Wilson'!AO18<>"",'Smith-Wilson'!AO18,"") -> 0.03102425105 | AO52: =IF('Smith-Wilson'!AP18<>"",'Smith-Wilson'!AP18,"") -> 0.0312151323 | AP52: =IF('Smith-Wilson'!AQ18<>"",'Smith-Wilson'!AQ18,"") -> 0.03140513867 | AQ52: =IF('Smith-Wilson'!AR18<>"",'Smith-Wilson'!AR18,"") -> 0.03159348058 | AR52: =IF('Smith-Wilson'!AS18<>"",'Smith-Wilson'!AS18,"") -> 0.03177953193 | AS52: =IF('Smith-Wilson'!AT18<>"",'Smith-Wilson'!AT18,"") -> 0.03196280121 | AT52: =IF('Smith-Wilson'!AU18<>"",'Smith-Wilson'!AU18,"") -> 0.03214290774 | AU52: =IF('Smith-Wilson'!AV18<>"",'Smith-Wilson'!AV18,"") -> 0.03231956222 | AV52: =IF('Smith-Wilson'!AW18<>"",'Smith-Wilson'!AW18,"") -> 0.03249255055 | AW52: =IF('Smith-Wilson'!AX18<>"",'Smith-Wilson'!AX18,"") -> 0.0326617206 | AX52: =IF('Smith-Wilson'!AY18<>"",'Smith-Wilson'!AY18,"") -> 0.03282697108 | AY52: =IF('Smith-Wilson'!AZ18<>"",'Smith-Wilson'!AZ18,"") -> 0.03298824246 | AZ52: =IF('Smith-Wilson'!BA18<>"",'Smith-Wilson'!BA18,"") -> 0.0331455093
B53: Lin - Inter - Spot (DMP) | C53: =IF(C15<>"",LN(1+C15),"") -> 0.004569628328 | D53: =IF(D15<>"",LN(1+D15),"") -> 0.006636027459 | E53: 0.008371126287 | F53: 0.01116119344 | G53: 0.01394349776 | H53: 0.01556460765 | I53: 0.01718309379 | J53: 0.01879896467 | K53: 0.02041222872 | L53: 0.02202289434 | M53: 0.02202289434 | N53: 0.02202289434 | O53: 0.02202289434 | P53: 0.02202289434 | Q53: 0.02202289434 | R53: 0.02202289434 | S53: 0.02202289434 | T53: 0.02202289434 | U53: 0.02202289434 | V53: 0.02202289434 | W53: 0.02202289434 | X53: 0.02202289434 | Y53: 0.02202289434 | Z53: 0.02202289434 | AA53: 0.02202289434 | AB53: 0.02202289434 | AC53: 0.02202289434 | AD53: 0.02202289434 | AE53: 0.02202289434 | AF53: 0.02202289434 | AG53: 0.02202289434 | AH53: 0.02202289434 | AI53: 0.02202289434 | AJ53: 0.02202289434 | AK53: 0.02202289434 | AL53: 0.02202289434 | AM53: 0.02202289434 | AN53: 0.02202289434 | AO53: 0.02202289434 | AP53: 0.02202289434 | AQ53: 0.02202289434 | AR53: 0.02202289434 | AS53: 0.02202289434 | AT53: 0.02202289434 | AU53: 0.02202289434 | AV53: 0.02202289434 | AW53: 0.02202289434 | AX53: 0.02202289434 | AY53: 0.02202289434 | AZ53: 0.02202289434
B54: Lin - Inter - Spot (YtM) | C54: 0.004928839436 | D54: =IF(D16<>"",LN(1+D16),"") -> 0.006514806112 | E54: 0.008554806584 | F54: 0.01113734078 | G54: 0.01371322268 | H54: 0.01546971881 | I54: 0.01722313508 | J54: 0.01897348226 | K54: 0.02072077107 | L54: 0.02246501219 | M54: 0.02246501219 | N54: 0.02246501219 | O54: 0.02246501219 | P54: 0.02246501219 | Q54: 0.02246501219 | R54: 0.02246501219 | S54: 0.02246501219 | T54: 0.02246501219 | U54: 0.02246501219 | V54: 0.02246501219 | W54: 0.02246501219 | X54: 0.02246501219 | Y54: 0.02246501219 | Z54: 0.02246501219 | AA54: 0.02246501219 | AB54: 0.02246501219 | AC54: 0.02246501219 | AD54: 0.02246501219 | AE54: 0.02246501219 | AF54: 0.02246501219 | AG54: 0.02246501219 | AH54: 0.02246501219 | AI54: 0.02246501219 | AJ54: 0.02246501219 | AK54: 0.02246501219 | AL54: 0.02246501219 | AM54: 0.02246501219 | AN54: 0.02246501219 | AO54: 0.02246501219 | AP54: 0.02246501219 | AQ54: 0.02246501219 | AR54: 0.02246501219 | AS54: 0.02246501219 | AT54: 0.02246501219 | AU54: 0.02246501219 | AV54: 0.02246501219 | AW54: 0.02246501219 | AX54: 0.02246501219 | AY54: 0.02246501219 | AZ54: 0.02246501219
B55: Lin - Inter - DF (DMP) | C55: 0.004212721605 | D55: =IF(D17<>"",LN(1+D17),"") -> 0.006554511426 | E55: 0.00806601426 | F55: 0.01137933112 | G55: 0.01346020745 | H55: 0.01577304762 | I55: 0.01753484485 | J55: 0.01895779606 | K55: 0.02016022975 | L55: 0.02121358895 | M55: 0.02121358895 | N55: 0.02121358895 | O55: 0.02121358895 | P55: 0.02121358895 | Q55: 0.02121358895 | R55: 0.02121358895 | S55: 0.02121358895 | T55: 0.02121358895 | U55: 0.02121358895 | V55: 0.02121358895 | W55: 0.02121358895 | X55: 0.02121358895 | Y55: 0.02121358895 | Z55: 0.02121358895 | AA55: 0.02121358895 | AB55: 0.02121358895 | AC55: 0.02121358895 | AD55: 0.02121358895 | AE55: 0.02121358895 | AF55: 0.02121358895 | AG55: 0.02121358895 | AH55: 0.02121358895 | AI55: 0.02121358895 | AJ55: 0.02121358895 | AK55: 0.02121358895 | AL55: 0.02121358895 | AM55: 0.02121358895 | AN55: 0.02121358895 | AO55: 0.02121358895 | AP55: 0.02121358895 | AQ55: 0.02121358895 | AR55: 0.02121358895 | AS55: 0.02121358895 | AT55: 0.02121358895 | AU55: 0.02121358895 | AV55: 0.02121358895 | AW55: 0.02121358895 | AX55: 0.02121358895 | AY55: 0.02121358895 | AZ55: 0.02121358895
B56: Lin - Inter - DF (YtM) | C56: 0.004160562802 | D56: =IF(D18<>"",LN(1+D18),"") -> 0.006496143825 | E56: 0.008085100164 | F56: 0.01154978801 | G56: 0.01372707212 | H56: 0.01591000889 | I56: 0.01757488446 | J56: 0.01892121243 | K56: 0.02006024148 | L56: 0.0210591319 | M56: 0.0210591319 | N56: 0.0210591319 | O56: 0.0210591319 | P56: 0.0210591319 | Q56: 0.0210591319 | R56: 0.0210591319 | S56: 0.0210591319 | T56: 0.0210591319 | U56: 0.0210591319 | V56: 0.0210591319 | W56: 0.0210591319 | X56: 0.0210591319 | Y56: 0.0210591319 | Z56: 0.0210591319 | AA56: 0.0210591319 | AB56: 0.0210591319 | AC56: 0.0210591319 | AD56: 0.0210591319 | AE56: 0.0210591319 | AF56: 0.0210591319 | AG56: 0.0210591319 | AH56: 0.0210591319 | AI56: 0.0210591319 | AJ56: 0.0210591319 | AK56: 0.0210591319 | AL56: 0.0210591319 | AM56: 0.0210591319 | AN56: 0.0210591319 | AO56: 0.0210591319 | AP56: 0.0210591319 | AQ56: 0.0210591319 | AR56: 0.0210591319 | AS56: 0.0210591319 | AT56: 0.0210591319 | AU56: 0.0210591319 | AV56: 0.0210591319 | AW56: 0.0210591319 | AX56: 0.0210591319 | AY56: 0.0210591319 | AZ56: 0.0210591319
B57: Lin - Inter - Forward (DMP) | C57: 0.005198498873 | D57: =IF(D19<>"",LN(1+D19),"") -> 0.0069241302 | E57: 0.008574353755 | F57: 0.01142902083 | G57: 0.01375725423 | H57: 0.01582069747 | I57: 0.01752355718 | J57: 0.01900073156 | K57: 0.020327165 | L57: 0.02154782492 | M57: 0.02154782492 | N57: 0.02154782492 | O57: 0.02154782492 | P57: 0.02154782492 | Q57: 0.02154782492 | R57: 0.02154782492 | S57: 0.02154782492 | T57: 0.02154782492 | U57: 0.02154782492 | V57: 0.02154782492 | W57: 0.02154782492 | X57: 0.02154782492 | Y57: 0.02154782492 | Z57: 0.02154782492 | AA57: 0.02154782492 | AB57: 0.02154782492 | AC57: 0.02154782492 | AD57: 0.02154782492 | AE57: 0.02154782492 | AF57: 0.02154782492 | AG57: 0.02154782492 | AH57: 0.02154782492 | AI57: 0.02154782492 | AJ57: 0.02154782492 | AK57: 0.02154782492 | AL57: 0.02154782492 | AM57: 0.02154782492 | AN57: 0.02154782492 | AO57: 0.02154782492 | AP57: 0.02154782492 | AQ57: 0.02154782492 | AR57: 0.02154782492 | AS57: 0.02154782492 | AT57: 0.02154782492 | AU57: 0.02154782492 | AV57: 0.02154782492 | AW57: 0.02154782492 | AX57: 0.02154782492 | AY57: 0.02154782492 | AZ57: 0.02154782492
B58: Lin - Inter - Forward (YtM) | C58: 0.005578990142 | D58: =IF(D20<>"",LN(1+D20),"") -> 0.005751254532 | E58: 0.009517347273 | F58: 0.01148143588 | G58: 0.01370804381 | H58: 0.01606135764 | I58: 0.01778411964 | J58: 0.01911277604 | K58: 0.02017868585 | L58: 0.0210606645 | M58: 0.0210606645 | N58: 0.0210606645 | O58: 0.0210606645 | P58: 0.0210606645 | Q58: 0.0210606645 | R58: 0.0210606645 | S58: 0.0210606645 | T58: 0.0210606645 | U58: 0.0210606645 | V58: 0.0210606645 | W58: 0.0210606645 | X58: 0.0210606645 | Y58: 0.0210606645 | Z58: 0.0210606645 | AA58: 0.0210606645 | AB58: 0.0210606645 | AC58: 0.0210606645 | AD58: 0.0210606645 | AE58: 0.0210606645 | AF58: 0.0210606645 | AG58: 0.0210606645 | AH58: 0.0210606645 | AI58: 0.0210606645 | AJ58: 0.0210606645 | AK58: 0.0210606645 | AL58: 0.0210606645 | AM58: 0.0210606645 | AN58: 0.0210606645 | AO58: 0.0210606645 | AP58: 0.0210606645 | AQ58: 0.0210606645 | AR58: 0.0210606645 | AS58: 0.0210606645 | AT58: 0.0210606645 | AU58: 0.0210606645 | AV58: 0.0210606645 | AW58: 0.0210606645 | AX58: 0.0210606645 | AY58: 0.0210606645 | AZ58: 0.0210606645
B59: Lin - Inter - Par (DMP) | C59: 0.003720349383 | D59: =IF(D21<>"",LN(1+D21),"") -> 0.006387604264 | E59: 0.008574019513 | F59: 0.01072973306 | G59: 0.01396653586 | H59: 0.01554467431 | I59: 0.0171408261 | J59: 0.01875772587 | K59: 0.0203986327 | L59: 0.02206728519 | M59: 0.02206728519 | N59: 0.02206728519 | O59: 0.02206728519 | P59: 0.02206728519 | Q59: 0.02206728519 | R59: 0.02206728519 | S59: 0.02206728519 | T59: 0.02206728519 | U59: 0.02206728519 | V59: 0.02206728519 | W59: 0.02206728519 | X59: 0.02206728519 | Y59: 0.02206728519 | Z59: 0.02206728519 | AA59: 0.02206728519 | AB59: 0.02206728519 | AC59: 0.02206728519 | AD59: 0.02206728519 | AE59: 0.02206728519 | AF59: 0.02206728519 | AG59: 0.02206728519 | AH59: 0.02206728519 | AI59: 0.02206728519 | AJ59: 0.02206728519 | AK59: 0.02206728519 | AL59: 0.02206728519 | AM59: 0.02206728519 | AN59: 0.02206728519 | AO59: 0.02206728519 | AP59: 0.02206728519 | AQ59: 0.02206728519 | AR59: 0.02206728519 | AS59: 0.02206728519 | AT59: 0.02206728519 | AU59: 0.02206728519 | AV59: 0.02206728519 | AW59: 0.02206728519 | AX59: 0.02206728519 | AY59: 0.02206728519 | AZ59: 0.02206728519
B60: Lin - Inter - Par (YtM) | C60: 0.004947410053 | D60: =IF(D22<>"",LN(1+D22),"") -> 0.005943866906 | E60: 0.00871701947 | F60: 0.01046568198 | G60: 0.01394067961 | H60: 0.01553858061 | I60: 0.01715475189 | J60: 0.01879202874 | K60: 0.02045377264 | L60: 0.02214383316 | M60: 0.02214383316 | N60: 0.02214383316 | O60: 0.02214383316 | P60: 0.02214383316 | Q60: 0.02214383316 | R60: 0.02214383316 | S60: 0.02214383316 | T60: 0.02214383316 | U60: 0.02214383316 | V60: 0.02214383316 | W60: 0.02214383316 | X60: 0.02214383316 | Y60: 0.02214383316 | Z60: 0.02214383316 | AA60: 0.02214383316 | AB60: 0.02214383316 | AC60: 0.02214383316 | AD60: 0.02214383316 | AE60: 0.02214383316 | AF60: 0.02214383316 | AG60: 0.02214383316 | AH60: 0.02214383316 | AI60: 0.02214383316 | AJ60: 0.02214383316 | AK60: 0.02214383316 | AL60: 0.02214383316 | AM60: 0.02214383316 | AN60: 0.02214383316 | AO60: 0.02214383316 | AP60: 0.02214383316 | AQ60: 0.02214383316 | AR60: 0.02214383316 | AS60: 0.02214383316 | AT60: 0.02214383316 | AU60: 0.02214383316 | AV60: 0.02214383316 | AW60: 0.02214383316 | AX60: 0.02214383316 | AY60: 0.02214383316 | AZ60: 0.02214383316
B63: Par rates
B65: Years | C65: 1 | D65: 2 | E65: 3 | F65: 4 | G65: 5 | H65: 6 | I65: 7 | J65: 8 | K65: 9 | L65: 10 | M65: 11 | N65: 12 | O65: 13 | P65: 14 | Q65: 15 | R65: 16 | S65: 17 | T65: 18 | U65: 19 | V65: 20 | W65: 21 | X65: 22 | Y65: 23 | Z65: 24 | AA65: 25 | AB65: 26 | AC65: 27 | AD65: 28 | AE65: 29 | AF65: 30 | AG65: 31 | AH65: 32 | AI65: 33 | AJ65: 34 | AK65: 35 | AL65: 36 | AM65: 37 | AN65: 38 | AO65: 39 | AP65: 40 | AQ65: 41 | AR65: 42 | AS65: 43 | AT65: 44 | AU65: 45 | AV65: 46 | AW65: 47 | AX65: 48 | AY65: 49 | AZ65: 50
B66: Nelson-Siegel (DMP) | C66: =IF('Nelson-Siegel'!D24<>"",'Nelson-Siegel'!D24,"") -> 0.00252492302 | D66: =IF('Nelson-Siegel'!E24<>"",'Nelson-Siegel'!E24,"") -> 0.005313734339 | E66: =IF('Nelson-Siegel'!F24<>"",'Nelson-Siegel'!F24,"") -> 0.008211071286 | F66: =IF('Nelson-Siegel'!G24<>"",'Nelson-Siegel'!G24,"") -> 0.01098616274 | G66: =IF('Nelson-Siegel'!H24<>"",'Nelson-Siegel'!H24,"") -> 0.01352684007 | H66: =IF('Nelson-Siegel'!I24<>"",'Nelson-Siegel'!I24,"") -> 0.01579129506 | I66: =IF('Nelson-Siegel'!J24<>"",'Nelson-Siegel'!J24,"") -> 0.01777725015 | J66: =IF('Nelson-Siegel'!K24<>"",'Nelson-Siegel'!K24,"") -> 0.01950283221 | K66: =IF('Nelson-Siegel'!L24<>"",'Nelson-Siegel'!L24,"") -> 0.02099515108 | L66: =IF('Nelson-Siegel'!M24<>"",'Nelson-Siegel'!M24,"") -> 0.02228379998 | M66: =IF('Nelson-Siegel'!N24<>"",'Nelson-Siegel'!N24,"") -> 0.02339739797 | N66: =IF('Nelson-Siegel'!O24<>"",'Nelson-Siegel'!O24,"") -> 0.02436194683 | O66: =IF('Nelson-Siegel'!P24<>"",'Nelson-Siegel'!P24,"") -> 0.02520022586 | P66: =IF('Nelson-Siegel'!Q24<>"",'Nelson-Siegel'!Q24,"") -> 0.02593174863 | Q66: =IF('Nelson-Siegel'!R24<>"",'Nelson-Siegel'!R24,"") -> 0.0265729987 | R66: =IF('Nelson-Siegel'!S24<>"",'Nelson-Siegel'!S24,"") -> 0.02713778199 | S66: =IF('Nelson-Siegel'!T24<>"",'Nelson-Siegel'!T24,"") -> 0.02763760701 | T66: =IF('Nelson-Siegel'!U24<>"",'Nelson-Siegel'!U24,"") -> 0.02808204741 | U66: =IF('Nelson-Siegel'!V24<>"",'Nelson-Siegel'!V24,"") -> 0.02847906645 | V66: =IF('Nelson-Siegel'!W24<>"",'Nelson-Siegel'!W24,"") -> 0.02883529687 | W66: =IF('Nelson-Siegel'!X24<>"",'Nelson-Siegel'!X24,"") -> 0.02915627658 | X66: =IF('Nelson-Siegel'!Y24<>"",'Nelson-Siegel'!Y24,"") -> 0.02944664428 | Y66: =IF('Nelson-Siegel'!Z24<>"",'Nelson-Siegel'!Z24,"") -> 0.02971030015 | Z66: =IF('Nelson-Siegel'!AA24<>"",'Nelson-Siegel'!AA24,"") -> 0.02995053721 | AA66: =IF('Nelson-Siegel'!AB24<>"",'Nelson-Siegel'!AB24,"") -> 0.03017014812 | AB66: =IF('Nelson-Siegel'!AC24<>"",'Nelson-Siegel'!AC24,"") -> 0.03037151212 | AC66: =IF('Nelson-Siegel'!AD24<>"",'Nelson-Siegel'!AD24,"") -> 0.03055666558 | AD66: =IF('Nelson-Siegel'!AE24<>"",'Nelson-Siegel'!AE24,"") -> 0.03072735951 | AE66: =IF('Nelson-Siegel'!AF24<>"",'Nelson-Siegel'!AF24,"") -> 0.03088510643 | AF66: =IF('Nelson-Siegel'!AG24<>"",'Nelson-Siegel'!AG24,"") -> 0.03103121862 | AG66: =IF('Nelson-Siegel'!AH24<>"",'Nelson-Siegel'!AH24,"") -> 0.03116683964 | AH66: =IF('Nelson-Siegel'!AI24<>"",'Nelson-Siegel'!AI24,"") -> 0.03129297008 | AI66: =IF('Nelson-Siegel'!AJ24<>"",'Nelson-Siegel'!AJ24,"") -> 0.03141048904 | AJ66: =IF('Nelson-Siegel'!AK24<>"",'Nelson-Siegel'!AK24,"") -> 0.03152017179 | AK66: =IF('Nelson-Siegel'!AL24<>"",'Nelson-Siegel'!AL24,"") -> 0.03162270457 | AL66: =IF('Nelson-Siegel'!AM24<>"",'Nelson-Siegel'!AM24,"") -> 0.03171869692 | AM66: =IF('Nelson-Siegel'!AN24<>"",'Nelson-Siegel'!AN24,"") -> 0.03180869208 | AN66: =IF('Nelson-Siegel'!AO24<>"",'Nelson-Siegel'!AO24,"") -> 0.03189317573 | AO66: =IF('Nelson-Siegel'!AP24<>"",'Nelson-Siegel'!AP24,"") -> 0.03197258339 | AP66: =IF('Nelson-Siegel'!AQ24<>"",'Nelson-Siegel'!AQ24,"") -> 0.03204730674 | AQ66: =IF('Nelson-Siegel'!AR24<>"",'Nelson-Siegel'!AR24,"") -> 0.03211769898 | AR66: =IF('Nelson-Siegel'!AS24<>"",'Nelson-Siegel'!AS24,"") -> 0.03218407947 | AS66: =IF('Nelson-Siegel'!AT24<>"",'Nelson-Siegel'!AT24,"") -> 0.03224673766 | AT66: =IF('Nelson-Siegel'!AU24<>"",'Nelson-Siegel'!AU24,"") -> 0.0323059365 | AU66: =IF('Nelson-Siegel'!AV24<>"",'Nelson-Siegel'!AV24,"") -> 0.03236191545 | AV66: =IF('Nelson-Siegel'!AW24<>"",'Nelson-Siegel'!AW24,"") -> 0.03241489301 | AW66: =IF('Nelson-Siegel'!AX24<>"",'Nelson-Siegel'!AX24,"") -> 0.03246506899 | AX66: =IF('Nelson-Siegel'!AY24<>"",'Nelson-Siegel'!AY24,"") -> 0.03251262643 | AY66: =IF('Nelson-Siegel'!AZ24<>"",'Nelson-Siegel'!AZ24,"") -> 0.03255773336 | AZ66: =IF('Nelson-Siegel'!BA24<>"",'Nelson-Siegel'!BA24,"") -> 0.0326005443
B67: Nelson-Siegel (YtM) | C67: =IF('Nelson-Siegel'!D36<>"",'Nelson-Siegel'!D36,"") ->  | D67: =IF('Nelson-Siegel'!E36<>"",'Nelson-Siegel'!E36,"") ->  | E67: =IF('Nelson-Siegel'!F36<>"",'Nelson-Siegel'!F36,"") ->  | F67: =IF('Nelson-Siegel'!G36<>"",'Nelson-Siegel'!G36,"") ->  | G67: =IF('Nelson-Siegel'!H36<>"",'Nelson-Siegel'!H36,"") ->  | H67: =IF('Nelson-Siegel'!I36<>"",'Nelson-Siegel'!I36,"") ->  | I67: =IF('Nelson-Siegel'!J36<>"",'Nelson-Siegel'!J36,"") ->  | J67: =IF('Nelson-Siegel'!K36<>"",'Nelson-Siegel'!K36,"") ->  | K67: =IF('Nelson-Siegel'!L36<>"",'Nelson-Siegel'!L36,"") ->  | L67: =IF('Nelson-Siegel'!M36<>"",'Nelson-Siegel'!M36,"") ->  | M67: =IF('Nelson-Siegel'!N36<>"",'Nelson-Siegel'!N36,"") ->  | N67: =IF('Nelson-Siegel'!O36<>"",'Nelson-Siegel'!O36,"") ->  | O67: =IF('Nelson-Siegel'!P36<>"",'Nelson-Siegel'!P36,"") ->  | P67: =IF('Nelson-Siegel'!Q36<>"",'Nelson-Siegel'!Q36,"") ->  | Q67: =IF('Nelson-Siegel'!R36<>"",'Nelson-Siegel'!R36,"") ->  | R67: =IF('Nelson-Siegel'!S36<>"",'Nelson-Siegel'!S36,"") ->  | S67: =IF('Nelson-Siegel'!T36<>"",'Nelson-Siegel'!T36,"") ->  | T67: =IF('Nelson-Siegel'!U36<>"",'Nelson-Siegel'!U36,"") ->  | U67: =IF('Nelson-Siegel'!V36<>"",'Nelson-Siegel'!V36,"") ->  | V67: =IF('Nelson-Siegel'!W36<>"",'Nelson-Siegel'!W36,"") ->  | W67: =IF('Nelson-Siegel'!X36<>"",'Nelson-Siegel'!X36,"") ->  | X67: =IF('Nelson-Siegel'!Y36<>"",'Nelson-Siegel'!Y36,"") ->  | Y67: =IF('Nelson-Siegel'!Z36<>"",'Nelson-Siegel'!Z36,"") ->  | Z67: =IF('Nelson-Siegel'!AA36<>"",'Nelson-Siegel'!AA36,"") ->  | AA67: =IF('Nelson-Siegel'!AB36<>"",'Nelson-Siegel'!AB36,"") ->  | AB67: =IF('Nelson-Siegel'!AC36<>"",'Nelson-Siegel'!AC36,"") ->  | AC67: =IF('Nelson-Siegel'!AD36<>"",'Nelson-Siegel'!AD36,"") ->  | AD67: =IF('Nelson-Siegel'!AE36<>"",'Nelson-Siegel'!AE36,"") ->  | AE67: =IF('Nelson-Siegel'!AF36<>"",'Nelson-Siegel'!AF36,"") ->  | AF67: =IF('Nelson-Siegel'!AG36<>"",'Nelson-Siegel'!AG36,"") ->  | AG67: =IF('Nelson-Siegel'!AH36<>"",'Nelson-Siegel'!AH36,"") ->  | AH67: =IF('Nelson-Siegel'!AI36<>"",'Nelson-Siegel'!AI36,"") ->  | AI67: =IF('Nelson-Siegel'!AJ36<>"",'Nelson-Siegel'!AJ36,"") ->  | AJ67: =IF('Nelson-Siegel'!AK36<>"",'Nelson-Siegel'!AK36,"") ->  | AK67: =IF('Nelson-Siegel'!AL36<>"",'Nelson-Siegel'!AL36,"") ->  | AL67: =IF('Nelson-Siegel'!AM36<>"",'Nelson-Siegel'!AM36,"") ->  | AM67: =IF('Nelson-Siegel'!AN36<>"",'Nelson-Siegel'!AN36,"") ->  | AN67: =IF('Nelson-Siegel'!AO36<>"",'Nelson-Siegel'!AO36,"") ->  | AO67: =IF('Nelson-Siegel'!AP36<>"",'Nelson-Siegel'!AP36,"") ->  | AP67: =IF('Nelson-Siegel'!AQ36<>"",'Nelson-Siegel'!AQ36,"") ->  | AQ67: =IF('Nelson-Siegel'!AR36<>"",'Nelson-Siegel'!AR36,"") ->  | AR67: =IF('Nelson-Siegel'!AS36<>"",'Nelson-Siegel'!AS36,"") ->  | AS67: =IF('Nelson-Siegel'!AT36<>"",'Nelson-Siegel'!AT36,"") ->  | AT67: =IF('Nelson-Siegel'!AU36<>"",'Nelson-Siegel'!AU36,"") ->  | AU67: =IF('Nelson-Siegel'!AV36<>"",'Nelson-Siegel'!AV36,"") ->  | AV67: =IF('Nelson-Siegel'!AW36<>"",'Nelson-Siegel'!AW36,"") ->  | AW67: =IF('Nelson-Siegel'!AX36<>"",'Nelson-Siegel'!AX36,"") ->  | AX67: =IF('Nelson-Siegel'!AY36<>"",'Nelson-Siegel'!AY36,"") ->  | AY67: =IF('Nelson-Siegel'!AZ36<>"",'Nelson-Siegel'!AZ36,"") ->  | AZ67: =IF('Nelson-Siegel'!BA36<>"",'Nelson-Siegel'!BA36,"") -> 
B68: Svensson (DMP) | C68: =IF(Swenson!D26<>"",Swenson!D26,"") -> 0.00444109991 | D68: =IF(Swenson!E26<>"",Swenson!E26,"") -> 0.006704463132 | E68: =IF(Swenson!F26<>"",Swenson!F26,"") -> 0.008819841439 | F68: =IF(Swenson!G26<>"",Swenson!G26,"") -> 0.01108380205 | G68: =IF(Swenson!H26<>"",Swenson!H26,"") -> 0.0133818375 | H68: =IF(Swenson!I26<>"",Swenson!I26,"") -> 0.01557222256 | I68: =IF(Swenson!J26<>"",Swenson!J26,"") -> 0.01756863016 | J68: =IF(Swenson!K26<>"",Swenson!K26,"") -> 0.01933751939 | K68: =IF(Swenson!L26<>"",Swenson!L26,"") -> 0.02087920702 | L68: =IF(Swenson!M26<>"",Swenson!M26,"") -> 0.02221157543 | M68: =IF(Swenson!N26<>"",Swenson!N26,"") -> 0.02335952303 | N68: =IF(Swenson!O26<>"",Swenson!O26,"") -> 0.02434906487 | O68: =IF(Swenson!P26<>"",Swenson!P26,"") -> 0.0252044402 | P68: =IF(Swenson!Q26<>"",Swenson!Q26,"") -> 0.025946954 | Q68: =IF(Swenson!R26<>"",Swenson!R26,"") -> 0.02659473357 | R68: =IF(Swenson!S26<>"",Swenson!S26,"") -> 0.02716292097 | S68: =IF(Swenson!T26<>"",Swenson!T26,"") -> 0.02766403948 | T68: =IF(Swenson!U26<>"",Swenson!U26,"") -> 0.02810839971 | U68: =IF(Swenson!V26<>"",Swenson!V26,"") -> 0.02850448276 | V68: =IF(Swenson!W26<>"",Swenson!W26,"") -> 0.02885927543 | W68: =IF(Swenson!X26<>"",Swenson!X26,"") -> 0.02917855173 | X68: =IF(Swenson!Y26<>"",Swenson!Y26,"") -> 0.02946710379 | Y68: =IF(Swenson!Z26<>"",Swenson!Z26,"") -> 0.02972892853 | Z68: =IF(Swenson!AA26<>"",Swenson!AA26,"") -> 0.02996737761 | AA68: =IF(Swenson!AB26<>"",Swenson!AB26,"") -> 0.03018527717 | AB68: =IF(Swenson!AC26<>"",Swenson!AC26,"") -> 0.03038502368 | AC68: =IF(Swenson!AD26<>"",Swenson!AD26,"") -> 0.03056866044 | AD68: =IF(Swenson!AE26<>"",Swenson!AE26,"") -> 0.03073793914 | AE68: =IF(Swenson!AF26<>"",Swenson!AF26,"") -> 0.0308943692 | AF68: =IF(Swenson!AG26<>"",Swenson!AG26,"") -> 0.03103925785 | AG68: =IF(Swenson!AH26<>"",Swenson!AH26,"") -> 0.03117374256 | AH68: =IF(Swenson!AI26<>"",Swenson!AI26,"") -> 0.03129881759 | AI68: =IF(Swenson!AJ26<>"",Swenson!AJ26,"") -> 0.03141535569 | AJ68: =IF(Swenson!AK26<>"",Swenson!AK26,"") -> 0.03152412613 | AK68: =IF(Swenson!AL26<>"",Swenson!AL26,"") -> 0.03162580948 | AL68: =IF(Swenson!AM26<>"",Swenson!AM26,"") -> 0.03172101011 | AM68: =IF(Swenson!AN26<>"",Swenson!AN26,"") -> 0.0318102665 | AN68: =IF(Swenson!AO26<>"",Swenson!AO26,"") -> 0.03189406 | AO68: =IF(Swenson!AP26<>"",Swenson!AP26,"") -> 0.03197282222 | AP68: =IF(Swenson!AQ26<>"",Swenson!AQ26,"") -> 0.03204694129 | AQ68: =IF(Swenson!AR26<>"",Swenson!AR26,"") -> 0.03211676719 | AR68: =IF(Swenson!AS26<>"",Swenson!AS26,"") -> 0.03218261637 | AS68: =IF(Swenson!AT26<>"",Swenson!AT26,"") -> 0.03224477563 | AT68: =IF(Swenson!AU26<>"",Swenson!AU26,"") -> 0.03230350555 | AU68: =IF(Swenson!AV26<>"",Swenson!AV26,"") -> 0.0323590434 | AV68: =IF(Swenson!AW26<>"",Swenson!AW26,"") -> 0.03241160569 | AW68: =IF(Swenson!AX26<>"",Swenson!AX26,"") -> 0.03246139042 | AX68: =IF(Swenson!AY26<>"",Swenson!AY26,"") -> 0.03250857899 | AY68: =IF(Swenson!AZ26<>"",Swenson!AZ26,"") -> 0.03255333791 | AZ68: =IF(Swenson!BA26<>"",Swenson!BA26,"") -> 0.0325958203
B69: Svensson (YtM) | C69: =IF(Swenson!D38<>"",Swenson!D38,"") -> 0.004469969259 | D69: =IF(Swenson!E38<>"",Swenson!E38,"") -> 0.006686232188 | E69: =IF(Swenson!F38<>"",Swenson!F38,"") -> 0.008756970549 | F69: =IF(Swenson!G38<>"",Swenson!G38,"") -> 0.01099230311 | G69: =IF(Swenson!H38<>"",Swenson!H38,"") -> 0.01327513168 | H69: =IF(Swenson!I38<>"",Swenson!I38,"") -> 0.015458925 | I69: =IF(Swenson!J38<>"",Swenson!J38,"") -> 0.01745362005 | J69: =IF(Swenson!K38<>"",Swenson!K38,"") -> 0.01922330689 | K69: =IF(Swenson!L38<>"",Swenson!L38,"") -> 0.02076693912 | L69: =IF(Swenson!M38<>"",Swenson!M38,"") -> 0.02210166458 | M69: =IF(Swenson!N38<>"",Swenson!N38,"") -> 0.02325201012 | N69: =IF(Swenson!O38<>"",Swenson!O38,"") -> 0.02424381839 | O69: =IF(Swenson!P38<>"",Swenson!P38,"") -> 0.0251012611 | P69: =IF(Swenson!Q38<>"",Swenson!Q38,"") -> 0.02584562829 | Q69: =IF(Swenson!R38<>"",Swenson!R38,"") -> 0.02649505685 | R69: =IF(Swenson!S38<>"",Swenson!S38,"") -> 0.02706470844 | S69: =IF(Swenson!T38<>"",Swenson!T38,"") -> 0.0275671286 | T69: =IF(Swenson!U38<>"",Swenson!U38,"") -> 0.02801264949 | U69: =IF(Swenson!V38<>"",Swenson!V38,"") -> 0.02840977167 | V69: =IF(Swenson!W38<>"",Swenson!W38,"") -> 0.02876549881 | W69: =IF(Swenson!X38<>"",Swenson!X38,"") -> 0.02908561934 | X69: =IF(Swenson!Y38<>"",Swenson!Y38,"") -> 0.02937493757 | Y69: =IF(Swenson!Z38<>"",Swenson!Z38,"") -> 0.02963746069 | Z69: =IF(Swenson!AA38<>"",Swenson!AA38,"") -> 0.02987654897 | AA69: =IF(Swenson!AB38<>"",Swenson!AB38,"") -> 0.03009503585 | AB69: =IF(Swenson!AC38<>"",Swenson!AC38,"") -> 0.03029532394 | AC69: =IF(Swenson!AD38<>"",Swenson!AD38,"") -> 0.0304794618 | AD69: =IF(Swenson!AE38<>"",Swenson!AE38,"") -> 0.03064920557 | AE69: =IF(Swenson!AF38<>"",Swenson!AF38,"") -> 0.03080606853 | AF69: =IF(Swenson!AG38<>"",Swenson!AG38,"") -> 0.03095136121 | AG69: =IF(Swenson!AH38<>"",Swenson!AH38,"") -> 0.03108622396 | AH69: =IF(Swenson!AI38<>"",Swenson!AI38,"") -> 0.0312116535 | AI69: =IF(Swenson!AJ38<>"",Swenson!AJ38,"") -> 0.0313285248 | AJ69: =IF(Swenson!AK38<>"",Swenson!AK38,"") -> 0.03143760902 | AK69: =IF(Swenson!AL38<>"",Swenson!AL38,"") -> 0.03153958843 | AL69: =IF(Swenson!AM38<>"",Swenson!AM38,"") -> 0.03163506889 | AM69: =IF(Swenson!AN38<>"",Swenson!AN38,"") -> 0.03172459021 | AN69: =IF(Swenson!AO38<>"",Swenson!AO38,"") -> 0.03180863492 | AO69: =IF(Swenson!AP38<>"",Swenson!AP38,"") -> 0.03188763568 | AP69: =IF(Swenson!AQ38<>"",Swenson!AQ38,"") -> 0.03196198156 | AQ69: =IF(Swenson!AR38<>"",Swenson!AR38,"") -> 0.03203202342 | AR69: =IF(Swenson!AS38<>"",Swenson!AS38,"") -> 0.03209807846 | AS69: =IF(Swenson!AT38<>"",Swenson!AT38,"") -> 0.03216043418 | AT69: =IF(Swenson!AU38<>"",Swenson!AU38,"") -> 0.03221935178 | AU69: =IF(Swenson!AV38<>"",Swenson!AV38,"") -> 0.0322750691 | AV69: =IF(Swenson!AW38<>"",Swenson!AW38,"") -> 0.03232780318 | AW69: =IF(Swenson!AX38<>"",Swenson!AX38,"") -> 0.0323777525 | AX69: =IF(Swenson!AY38<>"",Swenson!AY38,"") -> 0.03242509888 | AY69: =IF(Swenson!AZ38<>"",Swenson!AZ38,"") -> 0.03247000924 | AZ69: =IF(Swenson!BA38<>"",Swenson!BA38,"") -> 0.03251263707
B70: Cubic spline (DMP) | C70: =IF(cubic_spline!D31<>"",cubic_spline!D31,"") -> 0.005154712318 | D70: =IF(cubic_spline!E31<>"",cubic_spline!E31,"") -> 0.006427809614 | E70: =IF(cubic_spline!F31<>"",cubic_spline!F31,"") -> 0.008488245147 | F70: =IF(cubic_spline!G31<>"",cubic_spline!G31,"") -> 0.01102544266 | G70: =IF(cubic_spline!H31<>"",cubic_spline!H31,"") -> 0.01399611835 | H70: =IF(cubic_spline!I31<>"",cubic_spline!I31,"") -> 0.01399611835 | I70: =IF(cubic_spline!J31<>"",cubic_spline!J31,"") -> 0.01399611835 | J70: =IF(cubic_spline!K31<>"",cubic_spline!K31,"") -> 0.01399611835 | K70: =IF(cubic_spline!L31<>"",cubic_spline!L31,"") -> 0.01399611835 | L70: =IF(cubic_spline!M31<>"",cubic_spline!M31,"") -> 0.01399611835 | M70: =IF(cubic_spline!N31<>"",cubic_spline!N31,"") -> 0.01399611835 | N70: =IF(cubic_spline!O31<>"",cubic_spline!O31,"") -> 0.01399611835 | O70: =IF(cubic_spline!P31<>"",cubic_spline!P31,"") -> 0.01399611835 | P70: =IF(cubic_spline!Q31<>"",cubic_spline!Q31,"") -> 0.01399611835 | Q70: =IF(cubic_spline!R31<>"",cubic_spline!R31,"") -> 0.01399611835 | R70: =IF(cubic_spline!S31<>"",cubic_spline!S31,"") -> 0.01399611835 | S70: =IF(cubic_spline!T31<>"",cubic_spline!T31,"") -> 0.01399611835 | T70: =IF(cubic_spline!U31<>"",cubic_spline!U31,"") -> 0.01399611835 | U70: =IF(cubic_spline!V31<>"",cubic_spline!V31,"") -> 0.01399611835 | V70: =IF(cubic_spline!W31<>"",cubic_spline!W31,"") -> 0.01399611835 | W70: =IF(cubic_spline!X31<>"",cubic_spline!X31,"") -> 0.01399611835 | X70: =IF(cubic_spline!Y31<>"",cubic_spline!Y31,"") -> 0.01399611835 | Y70: =IF(cubic_spline!Z31<>"",cubic_spline!Z31,"") -> 0.01399611835 | Z70: =IF(cubic_spline!AA31<>"",cubic_spline!AA31,"") -> 0.01399611835 | AA70: =IF(cubic_spline!AB31<>"",cubic_spline!AB31,"") -> 0.01399611835 | AB70: =IF(cubic_spline!AC31<>"",cubic_spline!AC31,"") -> 0.01399611835 | AC70: =IF(cubic_spline!AD31<>"",cubic_spline!AD31,"") -> 0.01399611835 | AD70: =IF(cubic_spline!AE31<>"",cubic_spline!AE31,"") -> 0.01399611835 | AE70: =IF(cubic_spline!AF31<>"",cubic_spline!AF31,"") -> 0.01399611835 | AF70: =IF(cubic_spline!AG31<>"",cubic_spline!AG31,"") -> 0.01399611835 | AG70: =IF(cubic_spline!AH31<>"",cubic_spline!AH31,"") -> 0.01399611835 | AH70: =IF(cubic_spline!AI31<>"",cubic_spline!AI31,"") -> 0.01399611835 | AI70: =IF(cubic_spline!AJ31<>"",cubic_spline!AJ31,"") -> 0.01399611835 | AJ70: =IF(cubic_spline!AK31<>"",cubic_spline!AK31,"") -> 0.01399611835 | AK70: =IF(cubic_spline!AL31<>"",cubic_spline!AL31,"") -> 0.01399611835 | AL70: =IF(cubic_spline!AM31<>"",cubic_spline!AM31,"") -> 0.01399611835 | AM70: =IF(cubic_spline!AN31<>"",cubic_spline!AN31,"") -> 0.01399611835 | AN70: =IF(cubic_spline!AO31<>"",cubic_spline!AO31,"") -> 0.01399611835 | AO70: =IF(cubic_spline!AP31<>"",cubic_spline!AP31,"") -> 0.01399611835 | AP70: =IF(cubic_spline!AQ31<>"",cubic_spline!AQ31,"") -> 0.01399611835 | AQ70: =IF(cubic_spline!AR31<>"",cubic_spline!AR31,"") -> 0.01399611835 | AR70: =IF(cubic_spline!AS31<>"",cubic_spline!AS31,"") -> 0.01399611835 | AS70: =IF(cubic_spline!AT31<>"",cubic_spline!AT31,"") -> 0.01399611835 | AT70: =IF(cubic_spline!AU31<>"",cubic_spline!AU31,"") -> 0.01399611835 | AU70: =IF(cubic_spline!AV31<>"",cubic_spline!AV31,"") -> 0.01399611835 | AV70: =IF(cubic_spline!AW31<>"",cubic_spline!AW31,"") -> 0.01399611835 | AW70: =IF(cubic_spline!AX31<>"",cubic_spline!AX31,"") -> 0.01399611835 | AX70: =IF(cubic_spline!AY31<>"",cubic_spline!AY31,"") -> 0.01399611835 | AY70: =IF(cubic_spline!AZ31<>"",cubic_spline!AZ31,"") -> 0.01399611835 | AZ70: =IF(cubic_spline!BA31<>"",cubic_spline!BA31,"") -> 0.01399611835
B71: Smith-Wilson (DMP) | C71: =IF('Smith-Wilson'!D25<>"",'Smith-Wilson'!D25,"") -> 0.004657426559 | D71: =IF('Smith-Wilson'!E25<>"",'Smith-Wilson'!E25,"") -> 0.006596206881 | E71: =IF('Smith-Wilson'!F25<>"",'Smith-Wilson'!F25,"") -> 0.00880953948 | F71: =IF('Smith-Wilson'!G25<>"",'Smith-Wilson'!G25,"") -> 0.01108848207 | G71: =IF('Smith-Wilson'!H25<>"",'Smith-Wilson'!H25,"") -> 0.0138936654 | H71: =IF('Smith-Wilson'!I25<>"",'Smith-Wilson'!I25,"") -> 0.01563405842 | I71: =IF('Smith-Wilson'!J25<>"",'Smith-Wilson'!J25,"") -> 0.01723625836 | J71: =IF('Smith-Wilson'!K25<>"",'Smith-Wilson'!K25,"") -> 0.01866724667 | K71: =IF('Smith-Wilson'!L25<>"",'Smith-Wilson'!L25,"") -> 0.02002146026 | L71: =IF('Smith-Wilson'!M25<>"",'Smith-Wilson'!M25,"") -> 0.02137509415 | M71: =IF('Smith-Wilson'!N25<>"",'Smith-Wilson'!N25,"") -> 0.02316725046 | N71: =IF('Smith-Wilson'!O25<>"",'Smith-Wilson'!O25,"") -> 0.0248496899 | O71: =IF('Smith-Wilson'!P25<>"",'Smith-Wilson'!P25,"") -> 0.02611921465 | P71: =IF('Smith-Wilson'!Q25<>"",'Smith-Wilson'!Q25,"") -> 0.02700395353 | Q71: =IF('Smith-Wilson'!R25<>"",'Smith-Wilson'!R25,"") -> 0.02760196698 | R71: =IF('Smith-Wilson'!S25<>"",'Smith-Wilson'!S25,"") -> 0.02797661163 | S71: =IF('Smith-Wilson'!T25<>"",'Smith-Wilson'!T25,"") -> 0.02826669992 | T71: =IF('Smith-Wilson'!U25<>"",'Smith-Wilson'!U25,"") -> 0.0287319386 | U71: =IF('Smith-Wilson'!V25<>"",'Smith-Wilson'!V25,"") -> 0.02945713172 | V71: =IF('Smith-Wilson'!W25<>"",'Smith-Wilson'!W25,"") -> 0.02977244865 | W71: =IF('Smith-Wilson'!X25<>"",'Smith-Wilson'!X25,"") -> 0.02964148406 | X71: =IF('Smith-Wilson'!Y25<>"",'Smith-Wilson'!Y25,"") -> 0.02933862384 | Y71: =IF('Smith-Wilson'!Z25<>"",'Smith-Wilson'!Z25,"") -> 0.02906583875 | Z71: =IF('Smith-Wilson'!AA25<>"",'Smith-Wilson'!AA25,"") -> 0.02890797844 | AA71: =IF('Smith-Wilson'!AB25<>"",'Smith-Wilson'!AB25,"") -> 0.02883462038 | AB71: =IF('Smith-Wilson'!AC25<>"",'Smith-Wilson'!AC25,"") -> 0.02881566993 | AC71: =IF('Smith-Wilson'!AD25<>"",'Smith-Wilson'!AD25,"") -> 0.02883572437 | AD71: =IF('Smith-Wilson'!AE25<>"",'Smith-Wilson'!AE25,"") -> 0.02888573342 | AE71: =IF('Smith-Wilson'!AF25<>"",'Smith-Wilson'!AF25,"") -> 0.02895847431 | AF71: =IF('Smith-Wilson'!AG25<>"",'Smith-Wilson'!AG25,"") -> 0.02904817852 | AG71: =IF('Smith-Wilson'!AH25<>"",'Smith-Wilson'!AH25,"") -> 0.02915024377 | AH71: =IF('Smith-Wilson'!AI25<>"",'Smith-Wilson'!AI25,"") -> 0.02926100429 | AI71: =IF('Smith-Wilson'!AJ25<>"",'Smith-Wilson'!AJ25,"") -> 0.029377547 | AJ71: =IF('Smith-Wilson'!AK25<>"",'Smith-Wilson'!AK25,"") -> 0.02949756447 | AK71: =IF('Smith-Wilson'!AL25<>"",'Smith-Wilson'!AL25,"") -> 0.02961923686 | AL71: =IF('Smith-Wilson'!AM25<>"",'Smith-Wilson'!AM25,"") -> 0.02974113713 | AM71: =IF('Smith-Wilson'!AN25<>"",'Smith-Wilson'!AN25,"") -> 0.02986215475 | AN71: =IF('Smith-Wilson'!AO25<>"",'Smith-Wilson'!AO25,"") -> 0.02998143417 | AO71: =IF('Smith-Wilson'!AP25<>"",'Smith-Wilson'!AP25,"") -> 0.03009832513 | AP71: =IF('Smith-Wilson'!AQ25<>"",'Smith-Wilson'!AQ25,"") -> 0.03021234253 | AQ71: =IF('Smith-Wilson'!AR25<>"",'Smith-Wilson'!AR25,"") -> 0.03032313395 | AR71: =IF('Smith-Wilson'!AS25<>"",'Smith-Wilson'!AS25,"") -> 0.03043045324 | AS71: =IF('Smith-Wilson'!AT25<>"",'Smith-Wilson'!AT25,"") -> 0.03053413922 | AT71: =IF('Smith-Wilson'!AU25<>"",'Smith-Wilson'!AU25,"") -> 0.03063409832 | AU71: =IF('Smith-Wilson'!AV25<>"",'Smith-Wilson'!AV25,"") -> 0.03073029053 | AV71: =IF('Smith-Wilson'!AW25<>"",'Smith-Wilson'!AW25,"") -> 0.03082271794 | AW71: =IF('Smith-Wilson'!AX25<>"",'Smith-Wilson'!AX25,"") -> 0.03091141549 | AX71: =IF('Smith-Wilson'!AY25<>"",'Smith-Wilson'!AY25,"") -> 0.03099644347 | AY71: =IF('Smith-Wilson'!AZ25<>"",'Smith-Wilson'!AZ25,"") -> 0.03107788139 | AZ71: =IF('Smith-Wilson'!BA25<>"",'Smith-Wilson'!BA25,"") -> 0.0311558231
B72: Lin - Inter - Spot (DMP) | C72: =IF(Lin_inter_spot!D30<>"",Lin_inter_spot!D30,"") -> 0.004580085002 | D72: =IF(Lin_inter_spot!E30<>"",Lin_inter_spot!E30,"") -> 0.006651192736 | E72: =IF(Lin_inter_spot!F30<>"",Lin_inter_spot!F30,"") -> 0.008385809695 | F72: =IF(Lin_inter_spot!G30<>"",Lin_inter_spot!G30,"") -> 0.01115615044 | G72: =IF(Lin_inter_spot!H30<>"",Lin_inter_spot!H30,"") -> 0.01389526949 | H72: =IF(Lin_inter_spot!I30<>"",Lin_inter_spot!I30,"") -> 0.01548639092 | I72: =IF(Lin_inter_spot!J30<>"",Lin_inter_spot!J30,"") -> 0.01705749505 | J72: =IF(Lin_inter_spot!K30<>"",Lin_inter_spot!K30,"") -> 0.01860646763 | K72: =IF(Lin_inter_spot!L30<>"",Lin_inter_spot!L30,"") -> 0.02013108196 | L72: =IF(Lin_inter_spot!M30<>"",Lin_inter_spot!M30,"") -> 0.02162909311 | M72: =IF(Lin_inter_spot!N30<>"",Lin_inter_spot!N30,"") -> 0.02162909311 | N72: =IF(Lin_inter_spot!O30<>"",Lin_inter_spot!O30,"") -> 0.02162909311 | O72: =IF(Lin_inter_spot!P30<>"",Lin_inter_spot!P30,"") -> 0.02162909311 | P72: =IF(Lin_inter_spot!Q30<>"",Lin_inter_spot!Q30,"") -> 0.02162909311 | Q72: =IF(Lin_inter_spot!R30<>"",Lin_inter_spot!R30,"") -> 0.02162909311 | R72: =IF(Lin_inter_spot!S30<>"",Lin_inter_spot!S30,"") -> 0.02162909311 | S72: =IF(Lin_inter_spot!T30<>"",Lin_inter_spot!T30,"") -> 0.02162909311 | T72: =IF(Lin_inter_spot!U30<>"",Lin_inter_spot!U30,"") -> 0.02162909311 | U72: =IF(Lin_inter_spot!V30<>"",Lin_inter_spot!V30,"") -> 0.02162909311 | V72: =IF(Lin_inter_spot!W30<>"",Lin_inter_spot!W30,"") -> 0.02162909311 | W72: =IF(Lin_inter_spot!X30<>"",Lin_inter_spot!X30,"") -> 0.02162909311 | X72: =IF(Lin_inter_spot!Y30<>"",Lin_inter_spot!Y30,"") -> 0.02162909311 | Y72: =IF(Lin_inter_spot!Z30<>"",Lin_inter_spot!Z30,"") -> 0.02162909311 | Z72: =IF(Lin_inter_spot!AA30<>"",Lin_inter_spot!AA30,"") -> 0.02162909311 | AA72: =IF(Lin_inter_spot!AB30<>"",Lin_inter_spot!AB30,"") -> 0.02162909311 | AB72: =IF(Lin_inter_spot!AC30<>"",Lin_inter_spot!AC30,"") -> 0.02162909311 | AC72: =IF(Lin_inter_spot!AD30<>"",Lin_inter_spot!AD30,"") -> 0.02162909311 | AD72: =IF(Lin_inter_spot!AE30<>"",Lin_inter_spot!AE30,"") -> 0.02162909311 | AE72: =IF(Lin_inter_spot!AF30<>"",Lin_inter_spot!AF30,"") -> 0.02162909311 | AF72: =IF(Lin_inter_spot!AG30<>"",Lin_inter_spot!AG30,"") -> 0.02162909311 | AG72: =IF(Lin_inter_spot!AH30<>"",Lin_inter_spot!AH30,"") -> 0.02162909311 | AH72: =IF(Lin_inter_spot!AI30<>"",Lin_inter_spot!AI30,"") -> 0.02162909311 | AI72: =IF(Lin_inter_spot!AJ30<>"",Lin_inter_spot!AJ30,"") -> 0.02162909311 | AJ72: =IF(Lin_inter_spot!AK30<>"",Lin_inter_spot!AK30,"") -> 0.02162909311 | AK72: =IF(Lin_inter_spot!AL30<>"",Lin_inter_spot!AL30,"") -> 0.02162909311 | AL72: =IF(Lin_inter_spot!AM30<>"",Lin_inter_spot!AM30,"") -> 0.02162909311 | AM72: =IF(Lin_inter_spot!AN30<>"",Lin_inter_spot!AN30,"") -> 0.02162909311 | AN72: =IF(Lin_inter_spot!AO30<>"",Lin_inter_spot!AO30,"") -> 0.02162909311 | AO72: =IF(Lin_inter_spot!AP30<>"",Lin_inter_spot!AP30,"") -> 0.02162909311 | AP72: =IF(Lin_inter_spot!AQ30<>"",Lin_inter_spot!AQ30,"") -> 0.02162909311 | AQ72: =IF(Lin_inter_spot!AR30<>"",Lin_inter_spot!AR30,"") -> 0.02162909311 | AR72: =IF(Lin_inter_spot!AS30<>"",Lin_inter_spot!AS30,"") -> 0.02162909311 | AS72: =IF(Lin_inter_spot!AT30<>"",Lin_inter_spot!AT30,"") -> 0.02162909311 | AT72: =IF(Lin_inter_spot!AU30<>"",Lin_inter_spot!AU30,"") -> 0.02162909311 | AU72: =IF(Lin_inter_spot!AV30<>"",Lin_inter_spot!AV30,"") -> 0.02162909311 | AV72: =IF(Lin_inter_spot!AW30<>"",Lin_inter_spot!AW30,"") -> 0.02162909311 | AW72: =IF(Lin_inter_spot!AX30<>"",Lin_inter_spot!AX30,"") -> 0.02162909311 | AX72: =IF(Lin_inter_spot!AY30<>"",Lin_inter_spot!AY30,"") -> 0.02162909311 | AY72: =IF(Lin_inter_spot!AZ30<>"",Lin_inter_spot!AZ30,"") -> 0.02162909311 | AZ72: =IF(Lin_inter_spot!BA30<>"",Lin_inter_spot!BA30,"") -> 0.02162909311
B73: Lin - Inter - Spot (YtM) | C73: =IF(Lin_inter_spot!D41<>"",Lin_inter_spot!D41,"") -> 0.004941006146 | D73: =IF(Lin_inter_spot!E41<>"",Lin_inter_spot!E41,"") -> 0.006530873755 | E73: =IF(Lin_inter_spot!F41<>"",Lin_inter_spot!F41,"") -> 0.008569360558 | F73: =IF(Lin_inter_spot!G41<>"",Lin_inter_spot!G41,"") -> 0.01113444084 | G73: =IF(Lin_inter_spot!H41<>"",Lin_inter_spot!H41,"") -> 0.01367213024 | H73: =IF(Lin_inter_spot!I41<>"",Lin_inter_spot!I41,"") -> 0.01539354195 | I73: =IF(Lin_inter_spot!J41<>"",Lin_inter_spot!J41,"") -> 0.01709288789 | J73: =IF(Lin_inter_spot!K41<>"",Lin_inter_spot!K41,"") -> 0.01876747341 | K73: =IF(Lin_inter_spot!L41<>"",Lin_inter_spot!L41,"") -> 0.02041457386 | L73: =IF(Lin_inter_spot!M41<>"",Lin_inter_spot!M41,"") -> 0.02203149711 | M73: =IF(Lin_inter_spot!N41<>"",Lin_inter_spot!N41,"") -> 0.02203149711 | N73: =IF(Lin_inter_spot!O41<>"",Lin_inter_spot!O41,"") -> 0.02203149711 | O73: =IF(Lin_inter_spot!P41<>"",Lin_inter_spot!P41,"") -> 0.02203149711 | P73: =IF(Lin_inter_spot!Q41<>"",Lin_inter_spot!Q41,"") -> 0.02203149711 | Q73: =IF(Lin_inter_spot!R41<>"",Lin_inter_spot!R41,"") -> 0.02203149711 | R73: =IF(Lin_inter_spot!S41<>"",Lin_inter_spot!S41,"") -> 0.02203149711 | S73: =IF(Lin_inter_spot!T41<>"",Lin_inter_spot!T41,"") -> 0.02203149711 | T73: =IF(Lin_inter_spot!U41<>"",Lin_inter_spot!U41,"") -> 0.02203149711 | U73: =IF(Lin_inter_spot!V41<>"",Lin_inter_spot!V41,"") -> 0.02203149711 | V73: =IF(Lin_inter_spot!W41<>"",Lin_inter_spot!W41,"") -> 0.02203149711 | W73: =IF(Lin_inter_spot!X41<>"",Lin_inter_spot!X41,"") -> 0.02203149711 | X73: =IF(Lin_inter_spot!Y41<>"",Lin_inter_spot!Y41,"") -> 0.02203149711 | Y73: =IF(Lin_inter_spot!Z41<>"",Lin_inter_spot!Z41,"") -> 0.02203149711 | Z73: =IF(Lin_inter_spot!AA41<>"",Lin_inter_spot!AA41,"") -> 0.02203149711 | AA73: =IF(Lin_inter_spot!AB41<>"",Lin_inter_spot!AB41,"") -> 0.02203149711 | AB73: =IF(Lin_inter_spot!AC41<>"",Lin_inter_spot!AC41,"") -> 0.02203149711 | AC73: =IF(Lin_inter_spot!AD41<>"",Lin_inter_spot!AD41,"") -> 0.02203149711 | AD73: =IF(Lin_inter_spot!AE41<>"",Lin_inter_spot!AE41,"") -> 0.02203149711 | AE73: =IF(Lin_inter_spot!AF41<>"",Lin_inter_spot!AF41,"") -> 0.02203149711 | AF73: =IF(Lin_inter_spot!AG41<>"",Lin_inter_spot!AG41,"") -> 0.02203149711 | AG73: =IF(Lin_inter_spot!AH41<>"",Lin_inter_spot!AH41,"") -> 0.02203149711 | AH73: =IF(Lin_inter_spot!AI41<>"",Lin_inter_spot!AI41,"") -> 0.02203149711 | AI73: =IF(Lin_inter_spot!AJ41<>"",Lin_inter_spot!AJ41,"") -> 0.02203149711 | AJ73: =IF(Lin_inter_spot!AK41<>"",Lin_inter_spot!AK41,"") -> 0.02203149711 | AK73: =IF(Lin_inter_spot!AL41<>"",Lin_inter_spot!AL41,"") -> 0.02203149711 | AL73: =IF(Lin_inter_spot!AM41<>"",Lin_inter_spot!AM41,"") -> 0.02203149711 | AM73: =IF(Lin_inter_spot!AN41<>"",Lin_inter_spot!AN41,"") -> 0.02203149711 | AN73: =IF(Lin_inter_spot!AO41<>"",Lin_inter_spot!AO41,"") -> 0.02203149711 | AO73: =IF(Lin_inter_spot!AP41<>"",Lin_inter_spot!AP41,"") -> 0.02203149711 | AP73: =IF(Lin_inter_spot!AQ41<>"",Lin_inter_spot!AQ41,"") -> 0.02203149711 | AQ73: =IF(Lin_inter_spot!AR41<>"",Lin_inter_spot!AR41,"") -> 0.02203149711 | AR73: =IF(Lin_inter_spot!AS41<>"",Lin_inter_spot!AS41,"") -> 0.02203149711 | AS73: =IF(Lin_inter_spot!AT41<>"",Lin_inter_spot!AT41,"") -> 0.02203149711 | AT73: =IF(Lin_inter_spot!AU41<>"",Lin_inter_spot!AU41,"") -> 0.02203149711 | AU73: =IF(Lin_inter_spot!AV41<>"",Lin_inter_spot!AV41,"") -> 0.02203149711 | AV73: =IF(Lin_inter_spot!AW41<>"",Lin_inter_spot!AW41,"") -> 0.02203149711 | AW73: =IF(Lin_inter_spot!AX41<>"",Lin_inter_spot!AX41,"") -> 0.02203149711 | AX73: =IF(Lin_inter_spot!AY41<>"",Lin_inter_spot!AY41,"") -> 0.02203149711 | AY73: =IF(Lin_inter_spot!AZ41<>"",Lin_inter_spot!AZ41,"") -> 0.02203149711 | AZ73: =IF(Lin_inter_spot!BA41<>"",Lin_inter_spot!BA41,"") -> 0.02203149711
B74: Lin - Inter - DF (DMP) | C74: =IF(Lin_Inter_DF!D30<>"",Lin_Inter_DF!D30,"") -> 0.00422160759 | D74: =IF(Lin_Inter_DF!E30<>"",Lin_Inter_DF!E30,"") -> 0.006568314193 | E74: =IF(Lin_Inter_DF!F30<>"",Lin_Inter_DF!F30,"") -> 0.008079995892 | F74: =IF(Lin_Inter_DF!G30<>"",Lin_Inter_DF!G30,"") -> 0.01136759499 | G74: =IF(Lin_Inter_DF!H30<>"",Lin_Inter_DF!H30,"") -> 0.01342184006 | H74: =IF(Lin_Inter_DF!I30<>"",Lin_Inter_DF!I30,"") -> 0.01567951516 | I74: =IF(Lin_Inter_DF!J30<>"",Lin_Inter_DF!J30,"") -> 0.01738696696 | J74: =IF(Lin_Inter_DF!K30<>"",Lin_Inter_DF!K30,"") -> 0.01875600373 | K74: =IF(Lin_Inter_DF!L30<>"",Lin_Inter_DF!L30,"") -> 0.01990368759 | L74: =IF(Lin_Inter_DF!M30<>"",Lin_Inter_DF!M30,"") -> 0.02090007076 | M74: =IF(Lin_Inter_DF!N30<>"",Lin_Inter_DF!N30,"") -> 0.02090007076 | N74: =IF(Lin_Inter_DF!O30<>"",Lin_Inter_DF!O30,"") -> 0.02090007076 | O74: =IF(Lin_Inter_DF!P30<>"",Lin_Inter_DF!P30,"") -> 0.02090007076 | P74: =IF(Lin_Inter_DF!Q30<>"",Lin_Inter_DF!Q30,"") -> 0.02090007076 | Q74: =IF(Lin_Inter_DF!R30<>"",Lin_Inter_DF!R30,"") -> 0.02090007076 | R74: =IF(Lin_Inter_DF!S30<>"",Lin_Inter_DF!S30,"") -> 0.02090007076 | S74: =IF(Lin_Inter_DF!T30<>"",Lin_Inter_DF!T30,"") -> 0.02090007076 | T74: =IF(Lin_Inter_DF!U30<>"",Lin_Inter_DF!U30,"") -> 0.02090007076 | U74: =IF(Lin_Inter_DF!V30<>"",Lin_Inter_DF!V30,"") -> 0.02090007076 | V74: =IF(Lin_Inter_DF!W30<>"",Lin_Inter_DF!W30,"") -> 0.02090007076 | W74: =IF(Lin_Inter_DF!X30<>"",Lin_Inter_DF!X30,"") -> 0.02090007076 | X74: =IF(Lin_Inter_DF!Y30<>"",Lin_Inter_DF!Y30,"") -> 0.02090007076 | Y74: =IF(Lin_Inter_DF!Z30<>"",Lin_Inter_DF!Z30,"") -> 0.02090007076 | Z74: =IF(Lin_Inter_DF!AA30<>"",Lin_Inter_DF!AA30,"") -> 0.02090007076 | AA74: =IF(Lin_Inter_DF!AB30<>"",Lin_Inter_DF!AB30,"") -> 0.02090007076 | AB74: =IF(Lin_Inter_DF!AC30<>"",Lin_Inter_DF!AC30,"") -> 0.02090007076 | AC74: =IF(Lin_Inter_DF!AD30<>"",Lin_Inter_DF!AD30,"") -> 0.02090007076 | AD74: =IF(Lin_Inter_DF!AE30<>"",Lin_Inter_DF!AE30,"") -> 0.02090007076 | AE74: =IF(Lin_Inter_DF!AF30<>"",Lin_Inter_DF!AF30,"") -> 0.02090007076 | AF74: =IF(Lin_Inter_DF!AG30<>"",Lin_Inter_DF!AG30,"") -> 0.02090007076 | AG74: =IF(Lin_Inter_DF!AH30<>"",Lin_Inter_DF!AH30,"") -> 0.02090007076 | AH74: =IF(Lin_Inter_DF!AI30<>"",Lin_Inter_DF!AI30,"") -> 0.02090007076 | AI74: =IF(Lin_Inter_DF!AJ30<>"",Lin_Inter_DF!AJ30,"") -> 0.02090007076 | AJ74: =IF(Lin_Inter_DF!AK30<>"",Lin_Inter_DF!AK30,"") -> 0.02090007076 | AK74: =IF(Lin_Inter_DF!AL30<>"",Lin_Inter_DF!AL30,"") -> 0.02090007076 | AL74: =IF(Lin_Inter_DF!AM30<>"",Lin_Inter_DF!AM30,"") -> 0.02090007076 | AM74: =IF(Lin_Inter_DF!AN30<>"",Lin_Inter_DF!AN30,"") -> 0.02090007076 | AN74: =IF(Lin_Inter_DF!AO30<>"",Lin_Inter_DF!AO30,"") -> 0.02090007076 | AO74: =IF(Lin_Inter_DF!AP30<>"",Lin_Inter_DF!AP30,"") -> 0.02090007076 | AP74: =IF(Lin_Inter_DF!AQ30<>"",Lin_Inter_DF!AQ30,"") -> 0.02090007076 | AQ74: =IF(Lin_Inter_DF!AR30<>"",Lin_Inter_DF!AR30,"") -> 0.02090007076 | AR74: =IF(Lin_Inter_DF!AS30<>"",Lin_Inter_DF!AS30,"") -> 0.02090007076 | AS74: =IF(Lin_Inter_DF!AT30<>"",Lin_Inter_DF!AT30,"") -> 0.02090007076 | AT74: =IF(Lin_Inter_DF!AU30<>"",Lin_Inter_DF!AU30,"") -> 0.02090007076 | AU74: =IF(Lin_Inter_DF!AV30<>"",Lin_Inter_DF!AV30,"") -> 0.02090007076 | AV74: =IF(Lin_Inter_DF!AW30<>"",Lin_Inter_DF!AW30,"") -> 0.02090007076 | AW74: =IF(Lin_Inter_DF!AX30<>"",Lin_Inter_DF!AX30,"") -> 0.02090007076 | AX74: =IF(Lin_Inter_DF!AY30<>"",Lin_Inter_DF!AY30,"") -> 0.02090007076 | AY74: =IF(Lin_Inter_DF!AZ30<>"",Lin_Inter_DF!AZ30,"") -> 0.02090007076 | AZ74: =IF(Lin_Inter_DF!BA30<>"",Lin_Inter_DF!BA30,"") -> 0.02090007076
B75: Lin - Inter - DF (YtM) | C75: =IF(Lin_Inter_DF!D41<>"",Lin_Inter_DF!D41,"") -> 0.004169229959 | D75: =IF(Lin_Inter_DF!E41<>"",Lin_Inter_DF!E41,"") -> 0.006509654014 | E75: =IF(Lin_Inter_DF!F41<>"",Lin_Inter_DF!F41,"") -> 0.008098579383 | F75: =IF(Lin_Inter_DF!G41<>"",Lin_Inter_DF!G41,"") -> 0.01153556472 | G75: =IF(Lin_Inter_DF!H41<>"",Lin_Inter_DF!H41,"") -> 0.01368396002 | H75: =IF(Lin_Inter_DF!I41<>"",Lin_Inter_DF!I41,"") -> 0.01581622907 | I75: =IF(Lin_Inter_DF!J41<>"",Lin_Inter_DF!J41,"") -> 0.01743157589 | J75: =IF(Lin_Inter_DF!K41<>"",Lin_Inter_DF!K41,"") -> 0.01872879603 | K75: =IF(Lin_Inter_DF!L41<>"",Lin_Inter_DF!L41,"") -> 0.01981784583 | L75: =IF(Lin_Inter_DF!M41<>"",Lin_Inter_DF!M41,"") -> 0.0207645626 | M75: =IF(Lin_Inter_DF!N41<>"",Lin_Inter_DF!N41,"") -> 0.0207645626 | N75: =IF(Lin_Inter_DF!O41<>"",Lin_Inter_DF!O41,"") -> 0.0207645626 | O75: =IF(Lin_Inter_DF!P41<>"",Lin_Inter_DF!P41,"") -> 0.0207645626 | P75: =IF(Lin_Inter_DF!Q41<>"",Lin_Inter_DF!Q41,"") -> 0.0207645626 | Q75: =IF(Lin_Inter_DF!R41<>"",Lin_Inter_DF!R41,"") -> 0.0207645626 | R75: =IF(Lin_Inter_DF!S41<>"",Lin_Inter_DF!S41,"") -> 0.0207645626 | S75: =IF(Lin_Inter_DF!T41<>"",Lin_Inter_DF!T41,"") -> 0.0207645626 | T75: =IF(Lin_Inter_DF!U41<>"",Lin_Inter_DF!U41,"") -> 0.0207645626 | U75: =IF(Lin_Inter_DF!V41<>"",Lin_Inter_DF!V41,"") -> 0.0207645626 | V75: =IF(Lin_Inter_DF!W41<>"",Lin_Inter_DF!W41,"") -> 0.0207645626 | W75: =IF(Lin_Inter_DF!X41<>"",Lin_Inter_DF!X41,"") -> 0.0207645626 | X75: =IF(Lin_Inter_DF!Y41<>"",Lin_Inter_DF!Y41,"") -> 0.0207645626 | Y75: =IF(Lin_Inter_DF!Z41<>"",Lin_Inter_DF!Z41,"") -> 0.0207645626 | Z75: =IF(Lin_Inter_DF!AA41<>"",Lin_Inter_DF!AA41,"") -> 0.0207645626 | AA75: =IF(Lin_Inter_DF!AB41<>"",Lin_Inter_DF!AB41,"") -> 0.0207645626 | AB75: =IF(Lin_Inter_DF!AC41<>"",Lin_Inter_DF!AC41,"") -> 0.0207645626 | AC75: =IF(Lin_Inter_DF!AD41<>"",Lin_Inter_DF!AD41,"") -> 0.0207645626 | AD75: =IF(Lin_Inter_DF!AE41<>"",Lin_Inter_DF!AE41,"") -> 0.0207645626 | AE75: =IF(Lin_Inter_DF!AF41<>"",Lin_Inter_DF!AF41,"") -> 0.0207645626 | AF75: =IF(Lin_Inter_DF!AG41<>"",Lin_Inter_DF!AG41,"") -> 0.0207645626 | AG75: =IF(Lin_Inter_DF!AH41<>"",Lin_Inter_DF!AH41,"") -> 0.0207645626 | AH75: =IF(Lin_Inter_DF!AI41<>"",Lin_Inter_DF!AI41,"") -> 0.0207645626 | AI75: =IF(Lin_Inter_DF!AJ41<>"",Lin_Inter_DF!AJ41,"") -> 0.0207645626 | AJ75: =IF(Lin_Inter_DF!AK41<>"",Lin_Inter_DF!AK41,"") -> 0.0207645626 | AK75: =IF(Lin_Inter_DF!AL41<>"",Lin_Inter_DF!AL41,"") -> 0.0207645626 | AL75: =IF(Lin_Inter_DF!AM41<>"",Lin_Inter_DF!AM41,"") -> 0.0207645626 | AM75: =IF(Lin_Inter_DF!AN41<>"",Lin_Inter_DF!AN41,"") -> 0.0207645626 | AN75: =IF(Lin_Inter_DF!AO41<>"",Lin_Inter_DF!AO41,"") -> 0.0207645626 | AO75: =IF(Lin_Inter_DF!AP41<>"",Lin_Inter_DF!AP41,"") -> 0.0207645626 | AP75: =IF(Lin_Inter_DF!AQ41<>"",Lin_Inter_DF!AQ41,"") -> 0.0207645626 | AQ75: =IF(Lin_Inter_DF!AR41<>"",Lin_Inter_DF!AR41,"") -> 0.0207645626 | AR75: =IF(Lin_Inter_DF!AS41<>"",Lin_Inter_DF!AS41,"") -> 0.0207645626 | AS75: =IF(Lin_Inter_DF!AT41<>"",Lin_Inter_DF!AT41,"") -> 0.0207645626 | AT75: =IF(Lin_Inter_DF!AU41<>"",Lin_Inter_DF!AU41,"") -> 0.0207645626 | AU75: =IF(Lin_Inter_DF!AV41<>"",Lin_Inter_DF!AV41,"") -> 0.0207645626 | AV75: =IF(Lin_Inter_DF!AW41<>"",Lin_Inter_DF!AW41,"") -> 0.0207645626 | AW75: =IF(Lin_Inter_DF!AX41<>"",Lin_Inter_DF!AX41,"") -> 0.0207645626 | AX75: =IF(Lin_Inter_DF!AY41<>"",Lin_Inter_DF!AY41,"") -> 0.0207645626 | AY75: =IF(Lin_Inter_DF!AZ41<>"",Lin_Inter_DF!AZ41,"") -> 0.0207645626 | AZ75: =IF(Lin_Inter_DF!BA41<>"",Lin_Inter_DF!BA41,"") -> 0.0207645626
B76: Lin - Inter - Forward (DMP) | C76: =IF(Lin_Inter_fw!D30<>"",Lin_Inter_fw!D30,"") -> 0.005212034513 | D76: =IF(Lin_Inter_fw!E30<>"",Lin_Inter_fw!E30,"") -> 0.006942141699 | E76: =IF(Lin_Inter_fw!F30<>"",Lin_Inter_fw!F30,"") -> 0.008591983044 | F76: =IF(Lin_Inter_fw!G30<>"",Lin_Inter_fw!G30,"") -> 0.01142599648 | G76: =IF(Lin_Inter_fw!H30<>"",Lin_Inter_fw!H30,"") -> 0.01372148437 | H76: =IF(Lin_Inter_fw!I30<>"",Lin_Inter_fw!I30,"") -> 0.01573843093 | I76: =IF(Lin_Inter_fw!J30<>"",Lin_Inter_fw!J30,"") -> 0.01738944424 | J76: =IF(Lin_Inter_fw!K30<>"",Lin_Inter_fw!K30,"") -> 0.01880852336 | K76: =IF(Lin_Inter_fw!L30<>"",Lin_Inter_fw!L30,"") -> 0.02006956425 | L76: =IF(Lin_Inter_fw!M30<>"",Lin_Inter_fw!M30,"") -> 0.02121654959 | M76: =IF(Lin_Inter_fw!N30<>"",Lin_Inter_fw!N30,"") -> 0.02121654959 | N76: =IF(Lin_Inter_fw!O30<>"",Lin_Inter_fw!O30,"") -> 0.02121654959 | O76: =IF(Lin_Inter_fw!P30<>"",Lin_Inter_fw!P30,"") -> 0.02121654959 | P76: =IF(Lin_Inter_fw!Q30<>"",Lin_Inter_fw!Q30,"") -> 0.02121654959 | Q76: =IF(Lin_Inter_fw!R30<>"",Lin_Inter_fw!R30,"") -> 0.02121654959 | R76: =IF(Lin_Inter_fw!S30<>"",Lin_Inter_fw!S30,"") -> 0.02121654959 | S76: =IF(Lin_Inter_fw!T30<>"",Lin_Inter_fw!T30,"") -> 0.02121654959 | T76: =IF(Lin_Inter_fw!U30<>"",Lin_Inter_fw!U30,"") -> 0.02121654959 | U76: =IF(Lin_Inter_fw!V30<>"",Lin_Inter_fw!V30,"") -> 0.02121654959 | V76: =IF(Lin_Inter_fw!W30<>"",Lin_Inter_fw!W30,"") -> 0.02121654959 | W76: =IF(Lin_Inter_fw!X30<>"",Lin_Inter_fw!X30,"") -> 0.02121654959 | X76: =IF(Lin_Inter_fw!Y30<>"",Lin_Inter_fw!Y30,"") -> 0.02121654959 | Y76: =IF(Lin_Inter_fw!Z30<>"",Lin_Inter_fw!Z30,"") -> 0.02121654959 | Z76: =IF(Lin_Inter_fw!AA30<>"",Lin_Inter_fw!AA30,"") -> 0.02121654959 | AA76: =IF(Lin_Inter_fw!AB30<>"",Lin_Inter_fw!AB30,"") -> 0.02121654959 | AB76: =IF(Lin_Inter_fw!AC30<>"",Lin_Inter_fw!AC30,"") -> 0.02121654959 | AC76: =IF(Lin_Inter_fw!AD30<>"",Lin_Inter_fw!AD30,"") -> 0.02121654959 | AD76: =IF(Lin_Inter_fw!AE30<>"",Lin_Inter_fw!AE30,"") -> 0.02121654959 | AE76: =IF(Lin_Inter_fw!AF30<>"",Lin_Inter_fw!AF30,"") -> 0.02121654959 | AF76: =IF(Lin_Inter_fw!AG30<>"",Lin_Inter_fw!AG30,"") -> 0.02121654959 | AG76: =IF(Lin_Inter_fw!AH30<>"",Lin_Inter_fw!AH30,"") -> 0.02121654959 | AH76: =IF(Lin_Inter_fw!AI30<>"",Lin_Inter_fw!AI30,"") -> 0.02121654959 | AI76: =IF(Lin_Inter_fw!AJ30<>"",Lin_Inter_fw!AJ30,"") -> 0.02121654959 | AJ76: =IF(Lin_Inter_fw!AK30<>"",Lin_Inter_fw!AK30,"") -> 0.02121654959 | AK76: =IF(Lin_Inter_fw!AL30<>"",Lin_Inter_fw!AL30,"") -> 0.02121654959 | AL76: =IF(Lin_Inter_fw!AM30<>"",Lin_Inter_fw!AM30,"") -> 0.02121654959 | AM76: =IF(Lin_Inter_fw!AN30<>"",Lin_Inter_fw!AN30,"") -> 0.02121654959 | AN76: =IF(Lin_Inter_fw!AO30<>"",Lin_Inter_fw!AO30,"") -> 0.02121654959 | AO76: =IF(Lin_Inter_fw!AP30<>"",Lin_Inter_fw!AP30,"") -> 0.02121654959 | AP76: =IF(Lin_Inter_fw!AQ30<>"",Lin_Inter_fw!AQ30,"") -> 0.02121654959 | AQ76: =IF(Lin_Inter_fw!AR30<>"",Lin_Inter_fw!AR30,"") -> 0.02121654959 | AR76: =IF(Lin_Inter_fw!AS30<>"",Lin_Inter_fw!AS30,"") -> 0.02121654959 | AS76: =IF(Lin_Inter_fw!AT30<>"",Lin_Inter_fw!AT30,"") -> 0.02121654959 | AT76: =IF(Lin_Inter_fw!AU30<>"",Lin_Inter_fw!AU30,"") -> 0.02121654959 | AU76: =IF(Lin_Inter_fw!AV30<>"",Lin_Inter_fw!AV30,"") -> 0.02121654959 | AV76: =IF(Lin_Inter_fw!AW30<>"",Lin_Inter_fw!AW30,"") -> 0.02121654959 | AW76: =IF(Lin_Inter_fw!AX30<>"",Lin_Inter_fw!AX30,"") -> 0.02121654959 | AX76: =IF(Lin_Inter_fw!AY30<>"",Lin_Inter_fw!AY30,"") -> 0.02121654959 | AY76: =IF(Lin_Inter_fw!AZ30<>"",Lin_Inter_fw!AZ30,"") -> 0.02121654959 | AZ76: =IF(Lin_Inter_fw!BA30<>"",Lin_Inter_fw!BA30,"") -> 0.02121654959
B77: Lin - Inter - Forward (YtM) | C77: =IF(Lin_Inter_fw!D41<>"",Lin_Inter_fw!D41,"") -> 0.005594581689 | D77: =IF(Lin_Inter_fw!E41<>"",Lin_Inter_fw!E41,"") -> 0.005767326523 | E77: =IF(Lin_Inter_fw!F41<>"",Lin_Inter_fw!F41,"") -> 0.009526124294 | F77: =IF(Lin_Inter_fw!G41<>"",Lin_Inter_fw!G41,"") -> 0.01148018524 | G77: =IF(Lin_Inter_fw!H41<>"",Lin_Inter_fw!H41,"") -> 0.01367628381 | H77: =IF(Lin_Inter_fw!I41<>"",Lin_Inter_fw!I41,"") -> 0.01597231648 | I77: =IF(Lin_Inter_fw!J41<>"",Lin_Inter_fw!J41,"") -> 0.01764211653 | J77: =IF(Lin_Inter_fw!K41<>"",Lin_Inter_fw!K41,"") -> 0.01892247862 | K77: =IF(Lin_Inter_fw!L41<>"",Lin_Inter_fw!L41,"") -> 0.01994393745 | L77: =IF(Lin_Inter_fw!M41<>"",Lin_Inter_fw!M41,"") -> 0.02078435656 | M77: =IF(Lin_Inter_fw!N41<>"",Lin_Inter_fw!N41,"") -> 0.02078435656 | N77: =IF(Lin_Inter_fw!O41<>"",Lin_Inter_fw!O41,"") -> 0.02078435656 | O77: =IF(Lin_Inter_fw!P41<>"",Lin_Inter_fw!P41,"") -> 0.02078435656 | P77: =IF(Lin_Inter_fw!Q41<>"",Lin_Inter_fw!Q41,"") -> 0.02078435656 | Q77: =IF(Lin_Inter_fw!R41<>"",Lin_Inter_fw!R41,"") -> 0.02078435656 | R77: =IF(Lin_Inter_fw!S41<>"",Lin_Inter_fw!S41,"") -> 0.02078435656 | S77: =IF(Lin_Inter_fw!T41<>"",Lin_Inter_fw!T41,"") -> 0.02078435656 | T77: =IF(Lin_Inter_fw!U41<>"",Lin_Inter_fw!U41,"") -> 0.02078435656 | U77: =IF(Lin_Inter_fw!V41<>"",Lin_Inter_fw!V41,"") -> 0.02078435656 | V77: =IF(Lin_Inter_fw!W41<>"",Lin_Inter_fw!W41,"") -> 0.02078435656 | W77: =IF(Lin_Inter_fw!X41<>"",Lin_Inter_fw!X41,"") -> 0.02078435656 | X77: =IF(Lin_Inter_fw!Y41<>"",Lin_Inter_fw!Y41,"") -> 0.02078435656 | Y77: =IF(Lin_Inter_fw!Z41<>"",Lin_Inter_fw!Z41,"") -> 0.02078435656 | Z77: =IF(Lin_Inter_fw!AA41<>"",Lin_Inter_fw!AA41,"") -> 0.02078435656 | AA77: =IF(Lin_Inter_fw!AB41<>"",Lin_Inter_fw!AB41,"") -> 0.02078435656 | AB77: =IF(Lin_Inter_fw!AC41<>"",Lin_Inter_fw!AC41,"") -> 0.02078435656 | AC77: =IF(Lin_Inter_fw!AD41<>"",Lin_Inter_fw!AD41,"") -> 0.02078435656 | AD77: =IF(Lin_Inter_fw!AE41<>"",Lin_Inter_fw!AE41,"") -> 0.02078435656 | AE77: =IF(Lin_Inter_fw!AF41<>"",Lin_Inter_fw!AF41,"") -> 0.02078435656 | AF77: =IF(Lin_Inter_fw!AG41<>"",Lin_Inter_fw!AG41,"") -> 0.02078435656 | AG77: =IF(Lin_Inter_fw!AH41<>"",Lin_Inter_fw!AH41,"") -> 0.02078435656 | AH77: =IF(Lin_Inter_fw!AI41<>"",Lin_Inter_fw!AI41,"") -> 0.02078435656 | AI77: =IF(Lin_Inter_fw!AJ41<>"",Lin_Inter_fw!AJ41,"") -> 0.02078435656 | AJ77: =IF(Lin_Inter_fw!AK41<>"",Lin_Inter_fw!AK41,"") -> 0.02078435656 | AK77: =IF(Lin_Inter_fw!AL41<>"",Lin_Inter_fw!AL41,"") -> 0.02078435656 | AL77: =IF(Lin_Inter_fw!AM41<>"",Lin_Inter_fw!AM41,"") -> 0.02078435656 | AM77: =IF(Lin_Inter_fw!AN41<>"",Lin_Inter_fw!AN41,"") -> 0.02078435656 | AN77: =IF(Lin_Inter_fw!AO41<>"",Lin_Inter_fw!AO41,"") -> 0.02078435656 | AO77: =IF(Lin_Inter_fw!AP41<>"",Lin_Inter_fw!AP41,"") -> 0.02078435656 | AP77: =IF(Lin_Inter_fw!AQ41<>"",Lin_Inter_fw!AQ41,"") -> 0.02078435656 | AQ77: =IF(Lin_Inter_fw!AR41<>"",Lin_Inter_fw!AR41,"") -> 0.02078435656 | AR77: =IF(Lin_Inter_fw!AS41<>"",Lin_Inter_fw!AS41,"") -> 0.02078435656 | AS77: =IF(Lin_Inter_fw!AT41<>"",Lin_Inter_fw!AT41,"") -> 0.02078435656 | AT77: =IF(Lin_Inter_fw!AU41<>"",Lin_Inter_fw!AU41,"") -> 0.02078435656 | AU77: =IF(Lin_Inter_fw!AV41<>"",Lin_Inter_fw!AV41,"") -> 0.02078435656 | AV77: =IF(Lin_Inter_fw!AW41<>"",Lin_Inter_fw!AW41,"") -> 0.02078435656 | AW77: =IF(Lin_Inter_fw!AX41<>"",Lin_Inter_fw!AX41,"") -> 0.02078435656 | AX77: =IF(Lin_Inter_fw!AY41<>"",Lin_Inter_fw!AY41,"") -> 0.02078435656 | AY77: =IF(Lin_Inter_fw!AZ41<>"",Lin_Inter_fw!AZ41,"") -> 0.02078435656 | AZ77: =IF(Lin_Inter_fw!BA41<>"",Lin_Inter_fw!BA41,"") -> 0.02078435656
B78: Lin - Inter - Par (DMP) | C78: =IF(Lin_Inter_par!D30<>"",Lin_Inter_par!D30,"") -> 0.003727278473 | D78: =IF(Lin_Inter_par!E30<>"",Lin_Inter_par!E30,"") -> 0.006399475313 | E78: =IF(Lin_Inter_par!F30<>"",Lin_Inter_par!F30,"") -> 0.00858430029 | F78: =IF(Lin_Inter_par!G30<>"",Lin_Inter_par!G30,"") -> 0.01072751242 | G78: =IF(Lin_Inter_par!H30<>"",Lin_Inter_par!H30,"") -> 0.01391087043 | H78: =IF(Lin_Inter_par!I30<>"",Lin_Inter_par!I30,"") -> 0.01546103336 | I78: =IF(Lin_Inter_par!J30<>"",Lin_Inter_par!J30,"") -> 0.01701119628 | J78: =IF(Lin_Inter_par!K30<>"",Lin_Inter_par!K30,"") -> 0.01856135921 | K78: =IF(Lin_Inter_par!L30<>"",Lin_Inter_par!L30,"") -> 0.02011152213 | L78: =IF(Lin_Inter_par!M30<>"",Lin_Inter_par!M30,"") -> 0.02166168505 | M78: =IF(Lin_Inter_par!N30<>"",Lin_Inter_par!N30,"") -> 0.02166168505 | N78: =IF(Lin_Inter_par!O30<>"",Lin_Inter_par!O30,"") -> 0.02166168505 | O78: =IF(Lin_Inter_par!P30<>"",Lin_Inter_par!P30,"") -> 0.02166168505 | P78: =IF(Lin_Inter_par!Q30<>"",Lin_Inter_par!Q30,"") -> 0.02166168505 | Q78: =IF(Lin_Inter_par!R30<>"",Lin_Inter_par!R30,"") -> 0.02166168505 | R78: =IF(Lin_Inter_par!S30<>"",Lin_Inter_par!S30,"") -> 0.02166168505 | S78: =IF(Lin_Inter_par!T30<>"",Lin_Inter_par!T30,"") -> 0.02166168505 | T78: =IF(Lin_Inter_par!U30<>"",Lin_Inter_par!U30,"") -> 0.02166168505 | U78: =IF(Lin_Inter_par!V30<>"",Lin_Inter_par!V30,"") -> 0.02166168505 | V78: =IF(Lin_Inter_par!W30<>"",Lin_Inter_par!W30,"") -> 0.02166168505 | W78: =IF(Lin_Inter_par!X30<>"",Lin_Inter_par!X30,"") -> 0.02166168505 | X78: =IF(Lin_Inter_par!Y30<>"",Lin_Inter_par!Y30,"") -> 0.02166168505 | Y78: =IF(Lin_Inter_par!Z30<>"",Lin_Inter_par!Z30,"") -> 0.02166168505 | Z78: =IF(Lin_Inter_par!AA30<>"",Lin_Inter_par!AA30,"") -> 0.02166168505 | AA78: =IF(Lin_Inter_par!AB30<>"",Lin_Inter_par!AB30,"") -> 0.02166168505 | AB78: =IF(Lin_Inter_par!AC30<>"",Lin_Inter_par!AC30,"") -> 0.02166168505 | AC78: =IF(Lin_Inter_par!AD30<>"",Lin_Inter_par!AD30,"") -> 0.02166168505 | AD78: =IF(Lin_Inter_par!AE30<>"",Lin_Inter_par!AE30,"") -> 0.02166168505 | AE78: =IF(Lin_Inter_par!AF30<>"",Lin_Inter_par!AF30,"") -> 0.02166168505 | AF78: =IF(Lin_Inter_par!AG30<>"",Lin_Inter_par!AG30,"") -> 0.02166168505 | AG78: =IF(Lin_Inter_par!AH30<>"",Lin_Inter_par!AH30,"") -> 0.02166168505 | AH78: =IF(Lin_Inter_par!AI30<>"",Lin_Inter_par!AI30,"") -> 0.02166168505 | AI78: =IF(Lin_Inter_par!AJ30<>"",Lin_Inter_par!AJ30,"") -> 0.02166168505 | AJ78: =IF(Lin_Inter_par!AK30<>"",Lin_Inter_par!AK30,"") -> 0.02166168505 | AK78: =IF(Lin_Inter_par!AL30<>"",Lin_Inter_par!AL30,"") -> 0.02166168505 | AL78: =IF(Lin_Inter_par!AM30<>"",Lin_Inter_par!AM30,"") -> 0.02166168505 | AM78: =IF(Lin_Inter_par!AN30<>"",Lin_Inter_par!AN30,"") -> 0.02166168505 | AN78: =IF(Lin_Inter_par!AO30<>"",Lin_Inter_par!AO30,"") -> 0.02166168505 | AO78: =IF(Lin_Inter_par!AP30<>"",Lin_Inter_par!AP30,"") -> 0.02166168505 | AP78: =IF(Lin_Inter_par!AQ30<>"",Lin_Inter_par!AQ30,"") -> 0.02166168505 | AQ78: =IF(Lin_Inter_par!AR30<>"",Lin_Inter_par!AR30,"") -> 0.02166168505 | AR78: =IF(Lin_Inter_par!AS30<>"",Lin_Inter_par!AS30,"") -> 0.02166168505 | AS78: =IF(Lin_Inter_par!AT30<>"",Lin_Inter_par!AT30,"") -> 0.02166168505 | AT78: =IF(Lin_Inter_par!AU30<>"",Lin_Inter_par!AU30,"") -> 0.02166168505 | AU78: =IF(Lin_Inter_par!AV30<>"",Lin_Inter_par!AV30,"") -> 0.02166168505 | AV78: =IF(Lin_Inter_par!AW30<>"",Lin_Inter_par!AW30,"") -> 0.02166168505 | AW78: =IF(Lin_Inter_par!AX30<>"",Lin_Inter_par!AX30,"") -> 0.02166168505 | AX78: =IF(Lin_Inter_par!AY30<>"",Lin_Inter_par!AY30,"") -> 0.02166168505 | AY78: =IF(Lin_Inter_par!AZ30<>"",Lin_Inter_par!AZ30,"") -> 0.02166168505 | AZ78: =IF(Lin_Inter_par!BA30<>"",Lin_Inter_par!BA30,"") -> 0.02166168505
B79: Lin - Inter - Par (YtM) | C79: =IF(Lin_Inter_par!D41<>"",Lin_Inter_par!D41,"") -> 0.004959668694 | D79: =IF(Lin_Inter_par!E41<>"",Lin_Inter_par!E41,"") -> 0.005958587689 | E79: =IF(Lin_Inter_par!F41<>"",Lin_Inter_par!F41,"") -> 0.008727859623 | F79: =IF(Lin_Inter_par!G41<>"",Lin_Inter_par!G41,"") -> 0.01046833807 | G79: =IF(Lin_Inter_par!H41<>"",Lin_Inter_par!H41,"") -> 0.01388494551 | H79: =IF(Lin_Inter_par!I41<>"",Lin_Inter_par!I41,"") -> 0.01545416908 | I79: =IF(Lin_Inter_par!J41<>"",Lin_Inter_par!J41,"") -> 0.01702339265 | J79: =IF(Lin_Inter_par!K41<>"",Lin_Inter_par!K41,"") -> 0.01859261622 | K79: =IF(Lin_Inter_par!L41<>"",Lin_Inter_par!L41,"") -> 0.02016183979 | L79: =IF(Lin_Inter_par!M41<>"",Lin_Inter_par!M41,"") -> 0.02173106336 | M79: =IF(Lin_Inter_par!N41<>"",Lin_Inter_par!N41,"") -> 0.02173106336 | N79: =IF(Lin_Inter_par!O41<>"",Lin_Inter_par!O41,"") -> 0.02173106336 | O79: =IF(Lin_Inter_par!P41<>"",Lin_Inter_par!P41,"") -> 0.02173106336 | P79: =IF(Lin_Inter_par!Q41<>"",Lin_Inter_par!Q41,"") -> 0.02173106336 | Q79: =IF(Lin_Inter_par!R41<>"",Lin_Inter_par!R41,"") -> 0.02173106336 | R79: =IF(Lin_Inter_par!S41<>"",Lin_Inter_par!S41,"") -> 0.02173106336 | S79: =IF(Lin_Inter_par!T41<>"",Lin_Inter_par!T41,"") -> 0.02173106336 | T79: =IF(Lin_Inter_par!U41<>"",Lin_Inter_par!U41,"") -> 0.02173106336 | U79: =IF(Lin_Inter_par!V41<>"",Lin_Inter_par!V41,"") -> 0.02173106336 | V79: =IF(Lin_Inter_par!W41<>"",Lin_Inter_par!W41,"") -> 0.02173106336 | W79: =IF(Lin_Inter_par!X41<>"",Lin_Inter_par!X41,"") -> 0.02173106336 | X79: =IF(Lin_Inter_par!Y41<>"",Lin_Inter_par!Y41,"") -> 0.02173106336 | Y79: =IF(Lin_Inter_par!Z41<>"",Lin_Inter_par!Z41,"") -> 0.02173106336 | Z79: =IF(Lin_Inter_par!AA41<>"",Lin_Inter_par!AA41,"") -> 0.02173106336 | AA79: =IF(Lin_Inter_par!AB41<>"",Lin_Inter_par!AB41,"") -> 0.02173106336 | AB79: =IF(Lin_Inter_par!AC41<>"",Lin_Inter_par!AC41,"") -> 0.02173106336 | AC79: =IF(Lin_Inter_par!AD41<>"",Lin_Inter_par!AD41,"") -> 0.02173106336 | AD79: =IF(Lin_Inter_par!AE41<>"",Lin_Inter_par!AE41,"") -> 0.02173106336 | AE79: =IF(Lin_Inter_par!AF41<>"",Lin_Inter_par!AF41,"") -> 0.02173106336 | AF79: =IF(Lin_Inter_par!AG41<>"",Lin_Inter_par!AG41,"") -> 0.02173106336 | AG79: =IF(Lin_Inter_par!AH41<>"",Lin_Inter_par!AH41,"") -> 0.02173106336 | AH79: =IF(Lin_Inter_par!AI41<>"",Lin_Inter_par!AI41,"") -> 0.02173106336 | AI79: =IF(Lin_Inter_par!AJ41<>"",Lin_Inter_par!AJ41,"") -> 0.02173106336 | AJ79: =IF(Lin_Inter_par!AK41<>"",Lin_Inter_par!AK41,"") -> 0.02173106336 | AK79: =IF(Lin_Inter_par!AL41<>"",Lin_Inter_par!AL41,"") -> 0.02173106336 | AL79: =IF(Lin_Inter_par!AM41<>"",Lin_Inter_par!AM41,"") -> 0.02173106336 | AM79: =IF(Lin_Inter_par!AN41<>"",Lin_Inter_par!AN41,"") -> 0.02173106336 | AN79: =IF(Lin_Inter_par!AO41<>"",Lin_Inter_par!AO41,"") -> 0.02173106336 | AO79: =IF(Lin_Inter_par!AP41<>"",Lin_Inter_par!AP41,"") -> 0.02173106336 | AP79: =IF(Lin_Inter_par!AQ41<>"",Lin_Inter_par!AQ41,"") -> 0.02173106336 | AQ79: =IF(Lin_Inter_par!AR41<>"",Lin_Inter_par!AR41,"") -> 0.02173106336 | AR79: =IF(Lin_Inter_par!AS41<>"",Lin_Inter_par!AS41,"") -> 0.02173106336 | AS79: =IF(Lin_Inter_par!AT41<>"",Lin_Inter_par!AT41,"") -> 0.02173106336 | AT79: =IF(Lin_Inter_par!AU41<>"",Lin_Inter_par!AU41,"") -> 0.02173106336 | AU79: =IF(Lin_Inter_par!AV41<>"",Lin_Inter_par!AV41,"") -> 0.02173106336 | AV79: =IF(Lin_Inter_par!AW41<>"",Lin_Inter_par!AW41,"") -> 0.02173106336 | AW79: =IF(Lin_Inter_par!AX41<>"",Lin_Inter_par!AX41,"") -> 0.02173106336 | AX79: =IF(Lin_Inter_par!AY41<>"",Lin_Inter_par!AY41,"") -> 0.02173106336 | AY79: =IF(Lin_Inter_par!AZ41<>"",Lin_Inter_par!AZ41,"") -> 0.02173106336 | AZ79: =IF(Lin_Inter_par!BA41<>"",Lin_Inter_par!BA41,"") -> 0.02173106336

Sheet Linear (hidden)
B3: Linear interpolation + extrapolation constant forward rate
B5: Formula:
B6: r(t) = (t-t(i-1)) / (t(i)-t(i-1)) * r(i) + (t(i)-t) / (t(i)-t(i-1)) * r(i-1)
B7: f(t) = (2t-t(i-1)) / (t(i)-t(i-1)) * r(i) + (t(i)-2t) / (t(i)-t(i-1)) * r(i-1)

Sheet Cubic Spline (hidden)
B3: Linear interpolation + extrapolation constant forward rate

Sheet Outputs_monthly
B3: OUTPUTS - monthly development
B6: Zero (Spot) Rates | S6: 1-Year Forward Rates | AJ6: 1-Month Forward Rates | BA6: Continuously compounded Zero (Spot) Rates
B8: Years | C8: Month | D8: Nelson-Siegel (DMP) | E8: Nelson-Siegel (YtM) | F8: Svensson (DMP) | G8: Svensson (YtM) | H8: Cubic spline (DMP) | I8: Smith-Wilson (DMP) | J8: Lin - Inter - Spot (DMP) | K8: Lin - Inter - Spot (YtM) | L8: Lin - Inter - DF (DMP) | M8: Lin - Inter - DF (YtM) | N8: Lin - Inter - Forward (DMP) | O8: Lin - Inter - Forward (YtM) | P8: Lin - Inter - Par (DMP) | Q8: Lin - Inter - Par (YtM) | S8: Years | T8: Month | U8: Nelson-Siegel (DMP) | V8: Nelson-Siegel (YtM) | W8: Svensson (DMP) | X8: Svensson (YtM) | Y8: Cubic spline (DMP) | Z8: Smith-Wilson (DMP) | AA8: Lin - Inter - Spot (DMP) | AB8: Lin - Inter - Spot (YtM) | AC8: Lin - Inter - DF (DMP) | AD8: Lin - Inter - DF (YtM) | AE8: Lin - Inter - Forward (DMP) | AF8: Lin - Inter - Forward (YtM) | AG8: Lin - Inter - Par (DMP) | AH8: Lin - Inter - Par (YtM) | AJ8: Years | AK8: Month | AL8: Nelson-Siegel (DMP) | AM8: Nelson-Siegel (YtM) | AN8: Svensson (DMP) | AO8: Svensson (YtM) | AP8: Cubic spline (DMP) | AQ8: Smith-Wilson (DMP) | AR8: Lin - Inter - Spot (DMP) | AS8: Lin - Inter - Spot (YtM) | AT8: Lin - Inter - DF (DMP) | AU8: Lin - Inter - DF (YtM) | AV8: Lin - Inter - Forward (DMP) | AW8: Lin - Inter - Forward (YtM) | AX8: Lin - Inter - Par (DMP) | AY8: Lin - Inter - Par (YtM) | BA8: Years | BB8: Month | BC8: Nelson-Siegel (DMP) | BD8: Nelson-Siegel (YtM) | BE8: Svensson (DMP) | BF8: Svensson (YtM) | BG8: Cubic spline (DMP) | BH8: Smith-Wilson (DMP) | BI8: Lin - Inter - Spot (DMP) | BJ8: Lin - Inter - Spot (YtM) | BK8: Lin - Inter - DF (DMP) | BL8: Lin - Inter - DF (YtM) | BM8: Lin - Inter - Forward (DMP) | BN8: Lin - Inter - Forward (YtM) | BO8: Lin - Inter - Par (DMP) | BP8: Lin - Inter - Par (YtM)
B9: 1 | C9: 1 | D9: 0.0004206928486 | F9: 0.0005764048975 | G9: 0.0005864005894 | H9: 0.005700848771 | I9: 0.002168792634 | J9: 0.0003816737501 | K9: 0.0004117505122 | L9: 0.004213448784 | M9: 0.004161272234 | N9: 0.0004343362095 | O9: 0.0004662151407 | P9: 0.003720917633 | Q9: 0.004948410035 | S9: 1 | T9: 1 | U9: 0.00252492302 | W9: 0.00444109991 | X9: 0.004469969259 | Y9: 0.005154712318 | Z9: 0.004657426559 | AA9: 0.004580085002 | AB9: 0.004941006146 | AC9: 0.00422160759 | AD9: 0.004169229959 | AE9: 0.005212034513 | AF9: 0.005594581689 | AG9: 0.003727278473 | AH9: 0.004959668694 | AJ9: 1 | AK9: 1 | AL9: 0.0004206928486 | AN9: 0.0005764048975 | AO9: 0.0005864005894 | AP9: 0.005700848771 | AQ9: 0.002168792634 | AR9: 0.0003816737501 | AS9: 0.0004117505122 | AT9: 0.004213448784 | AU9: 0.004161272234 | AV9: 0.0004343362095 | AW9: 0.0004662151407 | AX9: 0.003720917633 | AY9: 0.004948410035 | BA9: 1 | BB9: 1 | BC9: 0.0004206043822 | BE9: 0.00057623884 | BF9: 0.0005862287237 | BG9: 0.005684660428 | BH9: 0.002166444198 | BI9: 0.0003816009312 | BJ9: 0.0004116657662 | BK9: 0.004204597064 | BL9: 0.004152638085 | BM9: 0.0004342419128 | BN9: 0.0004661064962 | BO9: 0.003714012143 | BP9: 0.004936206895
C10: 2 | D10: 0.0005811050434 | F10: 0.001099009459 | G10: 0.001117004226 | H10: 0.005565777774 | I10: 0.002351155944 | J10: 0.0007633475003 | K10: 0.0008235010244 | L10: 0.004214188757 | M10: 0.004161993991 | N10: 0.0008686724189 | O10: 0.0009324302814 | P10: 0.003721494696 | Q10: 0.004949430735 | T10: 2 | U10: 0.002938598837 | W10: 0.005005555381 | X10: 0.005032863592 | Y10: 0.005166370544 | Z10: 0.004963718778 | AA10: 0.005118411859 | AB10: 0.0054634226 | AC10: 0.004611280929 | AD10: 0.004557870491 | AE10: 0.005768000947 | AF10: 0.006038776993 | AG10: 0.004170970637 | AH10: 0.005125675138 | AK10: 2 | AL10: 0.0007415429594 | AN10: 0.001621886979 | AO10: 0.001647889239 | AP10: 0.005430724918 | AQ10: 0.002533552438 | AR10: 0.00114516687 | AS10: 0.001235421005 | AT10: 0.004214928731 | AU10: 0.004162715748 | AV10: 0.001303197194 | AW10: 0.001398862677 | AX10: 0.003722071758 | AY10: 0.004950451436 | BB10: 2 | BC10: 0.0005809362672 | BE10: 0.00109840599 | BF10: 0.001116380841 | BG10: 0.005550346066 | BH10: 0.002348396301 | BI10: 0.0007630562988 | BJ10: 0.0008231621335 | BK10: 0.004205333932 | BL10: 0.004153356851 | BM10: 0.0008682953414 | BN10: 0.0009319958384 | BO10: 0.003714587067 | BP10: 0.004937222568
C11: 3 | D11: 0.0007490022226 | F11: 0.001573832543 | G11: 0.00159805758 | H11: 0.005447733657 | I11: 0.002597391137 | J11: 0.00114502125 | K11: 0.001235251537 | L11: 0.004214929077 | M11: 0.004162716081 | N11: 0.001303008628 | O11: 0.001398645422 | P11: 0.003722071997 | Q11: 0.004950451996 | T11: 3 | U11: 0.003366051384 | W11: 0.005507817047 | X11: 0.005531327826 | Y11: 0.005226033262 | Z11: 0.005280192007 | AA11: 0.005621947103 | AB11: 0.00593927321 | AC11: 0.005001530331 | AD11: 0.004947081402 | AE11: 0.006275589752 | AF11: 0.006407427749 | AG11: 0.004615330376 | AH11: 0.00529187316 | AK11: 3 | AL11: 0.001084881105 | AN11: 0.002524154445 | AO11: 0.002560857861 | AP11: 0.005211686994 | AQ11: 0.003090043007 | AR11: 0.001908805497 | AS11: 0.002059260828 | AT11: 0.004216409718 | AU11: 0.004164160264 | AV11: 0.002172246582 | AW11: 0.002331727267 | AX11: 0.0037232266 | AY11: 0.004952494522 | BB11: 3 | BC11: 0.0007487218604 | BE11: 0.001572595366 | BF11: 0.001596782045 | BG11: 0.005432948429 | BH11: 0.002594023746 | BI11: 0.001144366214 | BJ11: 0.001234489241 | BK11: 0.004206071145 | BL11: 0.004154075948 | BM11: 0.001302160449 | BN11: 0.001397668229 | BO11: 0.003715162227 | BP11: 0.0049382388
C12: 4 | D12: 0.000923908605 | F12: 0.002006317938 | G12: 0.002035210505 | H12: 0.005346736116 | I12: 0.002865832693 | J12: 0.001526695001 | K12: 0.001647002049 | L12: 0.004215669743 | M12: 0.004163438506 | N12: 0.001737344838 | O12: 0.001864860563 | P12: 0.003722649537 | Q12: 0.00495147382 | T12: 4 | U12: 0.003805872828 | W12: 0.005959300275 | X12: 0.005977211282 | Y12: 0.005330283662 | Z12: 0.005617236163 | AA12: 0.006090667292 | AB12: 0.006368529806 | AC12: 0.005392357074 | AD12: 0.005336863948 | AE12: 0.00673476958 | AF12: 0.006700505329 | AG12: 0.005060359199 | AH12: 0.005458263094 | AK12: 4 | AL12: 0.001448811189 | AN12: 0.003304894946 | AO12: 0.0033478144 | AP12: 0.005043804362 | AQ12: 0.003671588682 | AR12: 0.002672589522 | AS12: 0.00288326984 | AT12: 0.004217891745 | AU12: 0.004165605783 | AV12: 0.003041484208 | AW12: 0.003264808707 | AX12: 0.003724382159 | AY12: 0.004954539296 | BB12: 4 | BC12: 0.0009234820641 | BE12: 0.00200430797 | BF12: 0.00203314227 | BG12: 0.005332493069 | BH12: 0.002861734023 | BI12: 0.001525530787 | BJ12: 0.001645647228 | BK12: 0.004206808702 | BL12: 0.004154795378 | BM12: 0.0017358374 | BN12: 0.001863123869 | BO12: 0.003715737625 | BP12: 0.004939255589
C13: 5 | D13: 0.001105369318 | F13: 0.002401383427 | G13: 0.002433566944 | H13: 0.005262804084 | I13: 0.00313904732 | J13: 0.001908368751 | K13: 0.002058752561 | L13: 0.004216410756 | M13: 0.004164161265 | N13: 0.002171681047 | O13: 0.002331075704 | P13: 0.003723227316 | Q13: 0.004952496205 | T13: 5 | U13: 0.004256735279 | W13: 0.006369903922 | X13: 0.006380789386 | Y13: 0.005475704958 | Z13: 0.005970444478 | AA13: 0.006524552623 | AB13: 0.006751170719 | AC13: 0.005783762441 | AD13: 0.005727219388 | AE13: 0.007145516097 | AF13: 0.006917998136 | AG13: 0.005506058617 | AH13: 0.005624845271 | AK13: 5 | AL13: 0.001831541207 | AN13: 0.003983203636 | AO13: 0.004028576986 | AP13: 0.004927146019 | AQ13: 0.004232650361 | AR13: 0.003436518834 | AS13: 0.003707447903 | AT13: 0.004219374815 | AU13: 0.004167052305 | AV13: 0.003910909909 | AW13: 0.004198106796 | AX13: 0.003725538435 | AY13: 0.004956585758 | BB13: 5 | BC13: 0.001104758847 | BE13: 0.002398504713 | BF13: 0.002430610616 | BG13: 0.005249003928 | BH13: 0.003134130797 | BI13: 0.001906550128 | BJ13: 0.002056636234 | BK13: 0.004207546605 | BL13: 0.004155515139 | BM13: 0.002169326356 | BN13: 0.002328362962 | BO13: 0.003716313261 | BP13: 0.004940272936
C14: 6 | D14: 0.001292949556 | F14: 0.002763466089 | G14: 0.002797731954 | H14: 0.00519595609 | I14: 0.003411276394 | J14: 0.002290042501 | K14: 0.002470503073 | L14: 0.004217152117 | M14: 0.004164884358 | N14: 0.002606017257 | O14: 0.002797290844 | P14: 0.003723805334 | Q14: 0.004953519154 | T14: 6 | U14: 0.004717386859 | W14: 0.00674817595 | X14: 0.006750935598 | Y14: 0.00565887983 | Z14: 0.00633140715 | AA14: 0.006923586929 | AB14: 0.007087180771 | AC14: 0.006175747717 | AD14: 0.006118148988 | AE14: 0.007507811979 | AF14: 0.007059911583 | AG14: 0.005952430148 | AH14: 0.005791620024 | AK14: 6 | AL14: 0.002231378091 | AN14: 0.004575842195 | AO14: 0.004620542378 | AP14: 0.004861782795 | AQ14: 0.004773530313 | AR14: 0.00420059332 | AS14: 0.004531794877 | AT14: 0.004220858929 | AU14: 0.004168499833 | AV14: 0.004780523523 | AW14: 0.005131621332 | AX14: 0.003726695429 | AY14: 0.004958633912 | BB14: 6 | BC14: 0.001292114417 | BE14: 0.002759654737 | BF14: 0.002793825586 | BG14: 0.005182503689 | BH14: 0.003405471189 | BI14: 0.00228742435 | BJ14: 0.002467456397 | BK14: 0.004208284852 | BL14: 0.004156235234 | BM14: 0.002602627482 | BN14: 0.002793385707 | BO14: 0.003716889135 | BP14: 0.004941290843
C15: 7 | D15: 0.00148623377 | F15: 0.003096564108 | G15: 0.003131855089 | H15: 0.005146210629 | I15: 0.003680095282 | J15: 0.002671716251 | K15: 0.002882253585 | L15: 0.004217893825 | M15: 0.004165607786 | N15: 0.003040353466 | O15: 0.003263505985 | P15: 0.003724383591 | Q15: 0.004954542666 | T15: 7 | U15: 0.005186647975 | W15: 0.007101463482 | X15: 0.007095277206 | Y15: 0.005876389796 | Z15: 0.006691797782 | AA15: 0.007287757678 | AB15: 0.007376551275 | AC15: 0.006568314193 | AD15: 0.006509654014 | AE15: 0.007821646908 | AF15: 0.007126268072 | AG15: 0.006399475313 | AH15: 0.005958587689 | AK15: 7 | AL15: 0.002646722827 | AN15: 0.005097477125 | AO15: 0.005138933062 | AP15: 0.004847789558 | AQ15: 0.005294521662 | AR15: 0.004964812872 | AS15: 0.005356310625 | AT15: 0.004222344086 | AU15: 0.004169948367 | AV15: 0.005650324887 | AW15: 0.006065352113 | AX15: 0.003727853142 | AY15: 0.004960683759 | BB15: 7 | BC15: 0.001485130418 | BE15: 0.003091779628 | BF15: 0.003126961047 | BG15: 0.005133014143 | BH15: 0.003673340299 | BI15: 0.002668153561 | BJ15: 0.002878107857 | BK15: 0.004209023445 | BL15: 0.004156955662 | BM15: 0.003035740938 | BN15: 0.003258192307 | BO15: 0.003717465247 | BP15: 0.00494230931
C16: 8 | D16: 0.001684824891 | F16: 0.003404275273 | G16: 0.003439670378 | H16: 0.005113586525 | I16: 0.003944328189 | J16: 0.003053390001 | K16: 0.003294004098 | L16: 0.004218635882 | M16: 0.00416633155 | N16: 0.003474689676 | O16: 0.003729721126 | P16: 0.003724962088 | Q16: 0.004955566741 | T16: 8 | U16: 0.00566340776 | W16: 0.007436048453 | X16: 0.007420336168 | Y16: 0.006124814544 | Z16: 0.007043368034 | AA16: 0.00761705597 | AB16: 0.007619280024 | AC16: 0.006961463162 | AD16: 0.006901735738 | AE16: 0.008087017559 | AF16: 0.007117106969 | AG16: 0.006847195637 | AH16: 0.0061257486 | AK16: 8 | AL16: 0.003076065814 | AN16: 0.005560898081 | AO16: 0.005597023744 | AP16: 0.00488524744 | AQ16: 0.005795907332 | AR16: 0.005729177378 | AS16: 0.006180995006 | AT16: 0.00422383029 | AU16: 0.004171397907 | AV16: 0.006520313836 | AW16: 0.006999298938 | AX16: 0.003729011575 | AY16: 0.004962735301 | BB16: 8 | BC16: 0.001683407166 | BE16: 0.003398493845 | BF16: 0.003433768242 | BG16: 0.005100556542 | BH16: 0.003936569721 | BI16: 0.003048737873 | BJ16: 0.003288590751 | BK16: 0.004209762384 | BL16: 0.004157676422 | BM16: 0.003468666889 | BN16: 0.003722782962 | BO16: 0.003718041597 | BP16: 0.004943328336
C17: 9 | D17: 0.001888343587 | F17: 0.003689832428 | G17: 0.003724533114 | H17: 0.005098103297 | I17: 0.004197057291 | J17: 0.003435063751 | K17: 0.00370575461 | L17: 0.004219378286 | M17: 0.004167055648 | N17: 0.003909025885 | O17: 0.004195936266 | P17: 0.003725540824 | Q17: 0.004956591382 | T17: 9 | U17: 0.006146620702 | W17: 0.007757269975 | X17: 0.007731656163 | Y17: 0.006400731193 | Z17: 0.007377943833 | AA17: 0.007911476533 | AB17: 0.007815371287 | AC17: 0.007355195921 | AD17: 0.007294395436 | AE17: 0.008303927597 | AF17: 0.007032484563 | AG17: 0.007295592653 | AH17: 0.006293103092 | AK17: 9 | AL17: 0.003517982467 | AN17: 0.005977217191 | AO17: 0.006006348201 | AP17: 0.004974246064 | AQ17: 0.006221181814 | AR17: 0.006493686728 | AS17: 0.007005847883 | AT17: 0.004225317539 | AU17: 0.004172848456 | AV17: 0.00739049021 | AW17: 0.007933461607 | AX17: 0.003730170728 | AY17: 0.004964788541 | BB17: 9 | BC17: 0.001886562908 | BE17: 0.003683041695 | BF17: 0.003717614215 | BG17: 0.005085151968 | BH17: 0.004188274213 | BI17: 0.003429177396 | BJ17: 0.003698905217 | BK17: 0.00421050167 | BL17: 0.004158397516 | BM17: 0.003901405496 | BN17: 0.004187157873 | BO17: 0.003718618186 | BP17: 0.004944347923
C18: 10 | D18: 0.002096427546 | F18: 0.00395613605 | G18: 0.003989453687 | H18: 0.005099781535 | I18: 0.004409237891 | J18: 0.003816737501 | K18: 0.004117505122 | L18: 0.004220121038 | M18: 0.004167780083 | N18: 0.004343362095 | O18: 0.004662151407 | P18: 0.003726119801 | Q18: 0.004957616587 | T18: 10 | U18: 0.006635303424 | W18: 0.008069634506 | X18: 0.008033916974 | Y18: 0.006700713505 | Z18: 0.007689886976 | AA18: 0.008171017719 | AB18: 0.007964835796 | AC18: 0.007749513772 | AD18: 0.007687634386 | AE18: 0.008472387664 | AF18: 0.00687247403 | AG18: 0.007744667894 | AH18: 0.006460651503 | AK18: 10 | AL18: 0.003971129034 | AN18: 0.006356050458 | AO18: 0.006376887571 | AP18: 0.005114885795 | AQ18: 0.006320881883 | AR18: 0.007258340811 | AS18: 0.007830869117 | AT18: 0.004226805837 | AU18: 0.004174300014 | AV18: 0.008260853845 | AW18: 0.008867839918 | AX18: 0.003731330601 | AY18: 0.004966843481 | BB18: 10 | BC18: 0.002094233109 | BE18: 0.003948331121 | BF18: 0.003981516918 | BG18: 0.005086821692 | BH18: 0.004399545681 | BI18: 0.003809472239 | BJ18: 0.004109051395 | BK18: 0.004211241301 | BL18: 0.004159118944 | BM18: 0.004333956921 | BN18: 0.00465131724 | BO18: 0.003719195013 | BP18: 0.004945368071
C19: 11 | D19: 0.002308730791 | F19: 0.004205784184 | G19: 0.004237128655 | H19: 0.005118643262 | I19: 0.004557880469 | J19: 0.004198411252 | K19: 0.004529255634 | L19: 0.00422086414 | M19: 0.004168504853 | N19: 0.004777698304 | O19: 0.005128366548 | P19: 0.003726699017 | Q19: 0.004958642358 | T19: 11 | U19: 0.007128531628 | W19: 0.008376914863 | X19: 0.008331037279 | Y19: 0.007021331035 | Z19: 0.00798446239 | AA19: 0.008395681498 | AB19: 0.008067690735 | AC19: 0.00814441802 | AD19: 0.00808145387 | AE19: 0.008592415363 | AF19: 0.006637165383 | AG19: 0.008194422902 | AH19: 0.006628394169 | AK19: 11 | AL19: 0.004434238622 | AN19: 0.006705682401 | AO19: 0.006717241273 | AP19: 0.005307280007 | AQ19: 0.006045516659 | AR19: 0.008023139517 | AS19: 0.008656058569 | AT19: 0.004228295183 | AU19: 0.004175752583 | AV19: 0.00913140458 | AW19: 0.009802433671 | AX19: 0.003732491197 | AY19: 0.004968900123 | BB19: 11 | BC19: 0.002306069767 | BE19: 0.004196964594 | BF19: 0.004228177301 | BG19: 0.00510558754 | BH19: 0.004547524787 | BI19: 0.004189622514 | BJ19: 0.004519029422 | BK19: 0.00421198128 | BL19: 0.004159840706 | BM19: 0.004766321326 | BN19: 0.005115261263 | BO19: 0.003719772078 | BP19: 0.004946388781
C20: 12 | D20: 0.00252492302 | F20: 0.00444109991 | G20: 0.004469969259 | H20: 0.005154712318 | I20: 0.004657426559 | J20: 0.004580085002 | K20: 0.004941006146 | L20: 0.00422160759 | M20: 0.004169229959 | N20: 0.005212034513 | O20: 0.005594581689 | P20: 0.003727278473 | Q20: 0.004959668694 | T20: 12 | U20: 0.007625437177 | W20: 0.008682239054 | X20: 0.008626266865 | Y20: 0.007359148219 | Z20: 0.008269748904 | AA20: 0.008585473456 | AB20: 0.008123959728 | AC20: 0.008539909973 | AD20: 0.008475855177 | AE20: 0.008664035248 | AF20: 0.006326665417 | AG20: 0.008644859219 | AH20: 0.006796331428 | AK20: 12 | AL20: 0.004906117427 | AN20: 0.007033215086 | AO20: 0.00703478174 | AP20: 0.005551557366 | AQ20: 0.005753084814 | AR20: 0.008788082737 | AS20: 0.009481416102 | AT20: 0.00422978558 | AU20: 0.004177206162 | AV20: 0.01000214225 | AW20: 0.01073724267 | AX20: 0.003733652514 | AY20: 0.004970958468 | BB20: 12 | BC20: 0.002521740758 | BE20: 0.004431267327 | BF20: 0.004460008618 | BG20: 0.005141472268 | BH20: 0.004646614306 | BI20: 0.004569628328 | BJ20: 0.004928839436 | BK20: 0.004212721605 | BL20: 0.004160562802 | BM20: 0.005198498873 | BN20: 0.005578990142 | BO20: 0.003720349383 | BP20: 0.004947410053
B21: 2 | C21: 13 | D21: 0.002744688975 | F21: 0.004664156527 | G21: 0.004690127574 | H21: 0.005207474167 | I21: 0.004748448001 | J21: 0.004753252474 | K21: 0.005073928436 | L21: 0.004580672861 | M21: 0.004527357373 | N21: 0.005356711422 | O21: 0.00560901861 | P21: 0.004136344012 | Q21: 0.005112038251 | S21: 2 | T21: 13 | U21: 0.008125205322 | W21: 0.008988169846 | X21: 0.008922269212 | Y21: 0.007710723411 | Z21: 0.008551566813 | AA21: 0.008740402786 | AB21: 0.008133672826 | AC21: 0.008935990945 | AD21: 0.008870839595 | AE21: 0.008687278808 | AF21: 0.005941097652 | AG21: 0.009095978397 | AH21: 0.006964463619 | AJ21: 2 | AK21: 13 | AL21: 0.005385641138 | AN21: 0.007344702751 | AO21: 0.007335794191 | AP21: 0.00584083243 | AQ21: 0.005841348748 | AR21: 0.006833591941 | AS21: 0.00667036793 | AT21: 0.008899483356 | AU21: 0.008834861752 | AV21: 0.007094459364 | AW21: 0.005782277836 | AX21: 0.009058153561 | AY21: 0.006942275875 | BA21: 2 | BB21: 13 | BC21: 0.002740929194 | BE21: 0.004653313053 | BF21: 0.004679163195 | BG21: 0.005193962162 | BH21: 0.004737209684 | BI21: 0.00474199144 | BJ21: 0.005061099438 | BK21: 0.004570213508 | BL21: 0.004517139718 | BM21: 0.005342415274 | BN21: 0.005593346641 | BO21: 0.004127812858 | BP21: 0.005099016144
C22: 14 | D22: 0.002967727832 | F22: 0.004876800631 | G22: 0.004899520461 | H22: 0.005274561164 | I22: 0.004861234838 | J22: 0.004926419947 | K22: 0.005206850725 | L22: 0.00488901518 | M22: 0.004834888489 | N22: 0.00550138833 | O22: 0.005623455532 | P22: 0.004487590848 | Q22: 0.00524294567 | T22: 14 | U22: 0.008627072057 | W22: 0.009296775924 | X22: 0.009221195347 | Y22: 0.008073146102 | Z22: 0.008833270897 | AA22: 0.009029897667 | AB22: 0.008479905513 | AC22: 0.009118685207 | AD22: 0.009073389873 | AE22: 0.008964309545 | AF22: 0.006598964594 | AG22: 0.009420028003 | AH22: 0.007573203121 | AK22: 14 | AL22: 0.005871751522 | AN22: 0.007645273144 | AO22: 0.007625602609 | AP22: 0.006147099666 | AQ22: 0.006328616358 | AR22: 0.007180314872 | AS22: 0.006936441037 | AT22: 0.008906088278 | AU22: 0.008841371068 | AV22: 0.007384083838 | AW22: 0.005811154374 | AX22: 0.009064996192 | AY22: 0.006946294451 | BB22: 14 | BC22: 0.002963332821 | BE22: 0.00486494756 | BF22: 0.004887556872 | BG22: 0.005260699388 | BH22: 0.004849457189 | BI22: 0.004914324848 | BJ22: 0.00519334195 | BK22: 0.004877102756 | BL22: 0.004823237953 | BM22: 0.005486310966 | BN22: 0.005607702934 | BO22: 0.004477551635 | BP22: 0.005229249283
C23: 15 | D23: 0.003193752621 | F23: 0.005080673244 | G23: 0.005099851502 | H23: 0.005353772563 | I23: 0.005012540366 | J23: 0.00509958742 | K23: 0.005339773015 | L23: 0.005156761085 | M23: 0.005101924593 | N23: 0.005646065238 | O23: 0.005637892453 | P23: 0.004792559085 | Q23: 0.00535668035 | T23: 15 | U23: 0.009130321599 | W23: 0.009609695437 | X23: 0.009524749773 | Y23: 0.008445654235 | Z23: 0.009118081278 | AA23: 0.009314812457 | AB23: 0.008832586703 | AC23: 0.009301715871 | AD23: 0.009276318945 | AE23: 0.009240340697 | AF23: 0.007307414999 | AG23: 0.009744773831 | AH23: 0.008183382859 | AK23: 15 | AL23: 0.006363453176 | AN23: 0.007939236685 | AO23: 0.007908683077 | AP23: 0.006463387738 | AQ23: 0.007133211495 | AR23: 0.007527067577 | AS23: 0.007202531692 | AT23: 0.008912703012 | AU23: 0.008847889983 | AV23: 0.007673729091 | AW23: 0.005840031119 | AX23: 0.009071849169 | AY23: 0.006950317681 | BB23: 15 | BC23: 0.003188663426 | BE23: 0.005067810174 | BF23: 0.005086891305 | BG23: 0.00533949207 | BH23: 0.005000019409 | BI23: 0.005086628562 | BJ23: 0.005325566976 | BK23: 0.005143510526 | BL23: 0.005088953874 | BM23: 0.005630185954 | BN23: 0.005622059021 | BO23: 0.004781111335 | BP23: 0.005342384368
C24: 16 | D24: 0.003422489662 | F24: 0.005277229142 | G24: 0.005292631066 | H24: 0.005443461197 | I24: 0.005193391654 | J24: 0.005272754893 | K24: 0.005472695304 | L24: 0.00539150986 | M24: 0.005336046009 | N24: 0.005790742147 | O24: 0.005652329375 | P24: 0.005059909496 | Q24: 0.00545646012 | T24: 16 | U24: 0.009634283986 | W24: 0.009928192656 | X24: 0.009834249254 | Y24: 0.008828025199 | Z24: 0.009410975438 | AA24: 0.009595145443 | AB24: 0.009191720203 | AC24: 0.009485083869 | AD24: 0.009479627877 | AE24: 0.009515371851 | AF24: 0.008066530334 | AG24: 0.01007021813 | AH24: 0.00879500795 | AK24: 16 | AL24: 0.006859810432 | AN24: 0.0082301845 | AO24: 0.008188765541 | AP24: 0.006789751246 | AQ24: 0.007910069555 | AR24: 0.007873850045 | AS24: 0.007468639888 | AT24: 0.008919327578 | AU24: 0.008854418518 | AV24: 0.007963395116 | AW24: 0.005868908071 | AX24: 0.009078712515 | AY24: 0.006954345574 | BB24: 16 | BC24: 0.003416646273 | BE24: 0.005263353364 | BF24: 0.005278674318 | BG24: 0.005428699109 | BH24: 0.005179952506 | BI24: 0.005258902593 | BJ24: 0.005457774521 | BK24: 0.005377027701 | BL24: 0.005321859759 | BM24: 0.005774040246 | BN24: 0.005636414902 | BO24: 0.005047151173 | BP24: 0.005441627573
C25: 17 | D25: 0.00365367803 | F25: 0.005467754533 | G25: 0.005479194649 | H25: 0.005542370767 | I25: 0.005391424637 | J25: 0.005445922366 | K25: 0.005605617594 | L25: 0.005599075635 | M25: 0.005543052351 | N25: 0.005935419055 | O25: 0.005666766296 | P25: 0.005296268812 | Q25: 0.005544746195 | T25: 17 | U25: 0.01013833279 | W25: 0.01025320841 | X25: 0.01015067513 | Y25: 0.009220038413 | Z25: 0.009719968355 | AA25: 0.009870894977 | AB25: 0.00955730994 | AC25: 0.009668790133 | AD25: 0.009683317734 | AE25: 0.009789402601 | AF25: 0.008876399661 | AG25: 0.01039636315 | AH25: 0.009408083537 | AK25: 17 | AL25: 0.00735994441 | AN25: 0.00852107631 | AO25: 0.008468925036 | AP25: 0.007126247831 | AQ25: 0.008565263562 | AR25: 0.008220662265 | AS25: 0.007734765621 | AT25: 0.008925962 | AU25: 0.008860956694 | AV25: 0.008253081907 | AW25: 0.00589778523 | AX25: 0.009085586254 | AY25: 0.006958378138 | BB25: 17 | BC25: 0.003647019562 | BE25: 0.005452860629 | BF25: 0.005464238469 | BG25: 0.005527068345 | BH25: 0.005376942936 | BI25: 0.00543114695 | BJ25: 0.005589964589 | BK25: 0.005583459076 | BL25: 0.005527746173 | BM25: 0.005917873847 | BN25: 0.005650770577 | BO25: 0.005282292906 | BP25: 0.005529430677
C26: 18 | D26: 0.003887069035 | F26: 0.005653383199 | G26: 0.005660719636 | H26: 0.005649527399 | I26: 0.005597100688 | J26: 0.005619089839 | K26: 0.005738539883 | L26: 0.005783982498 | M26: 0.00572745641 | N26: 0.006080095963 | O26: 0.005681203218 | P26: 0.005506793741 | Q26: 0.005623453207 | T26: 18 | U26: 0.01064188293 | W26: 0.01058540491 | X26: 0.0104747198 | Y26: 0.0096214753 | Z26: 0.01005231131 | AA26: 0.01014205947 | AB26: 0.009929359966 | AC26: 0.009852835601 | AD26: 0.009887389589 | AE26: 0.01006243254 | AF26: 0.009737119651 | AG26: 0.01072321116 | AH26: 0.01002261478 | AK26: 18 | AL26: 0.007863030213 | AN26: 0.008814319094 | AO26: 0.008751663331 | AP26: 0.007472938286 | AQ26: 0.009100038171 | AR26: 0.008567504227 | AS26: 0.008000908888 | AT26: 0.008932606298 | AU26: 0.008867504533 | AV26: 0.008542789457 | AW26: 0.005926662596 | AX26: 0.009092470409 | AY26: 0.006962415382 | BB26: 18 | BC26: 0.003879533903 | BE26: 0.005637462802 | BF26: 0.005644757971 | BG26: 0.005633628671 | BH26: 0.005581495123 | BI26: 0.005603361644 | BJ26: 0.005722137185 | BK26: 0.005767319493 | BL26: 0.005711116891 | BM26: 0.006061686762 | BN26: 0.005665126046 | BO26: 0.005491686787 | BP26: 0.005607700622
